Workbook

Sheet Template
A3: Advanced Intention Sheet
A5: Gymnast Name: | C5: Gender: | F5: Gymnast No: | L5: Club:
A7: ELEMENTS | C7: EXECUTION | D7: DIFFICULTY | H7: GROUP | L7: SPECIAL REQUIREMENTS | M7: BONUS | P7: Validation 1 | X7: Validation 2 | AF7: Validation 3 | AN7: Validation 4 | AV7: Validation 5 | BD7: Validation 6 | BL7: Validation 7 | BT7: Validation 8 | CB7: Validation 9 | CJ7: Validation 10 | CR7: G1 | CS7: Girls G2 | CT7: Boys G2 H | CU7: Boys G2 | CV7: MS | CW7: MS G | CX7: AS | CY7: FS | CZ7: B1 | DA7: B2 | DB7: Crt met b4 B | DJ7: C skill | DK7: C Skill G | DL7: B1 G
D8: A | E8: B | F8: C | G8: D | H8: 1 | I8: 2 | J8: 3 | K8: 4 | P8: found | Q8: list | V8: count if | W8: ofset | X8: found | Y8: list | AD8: count if | AE8: ofset | AF8: found | AG8: list | AL8: count if | AM8: ofset | AN8: found | AO8: list | AT8: count if | AU8: ofset | AV8: found | AW8: list | BB8: count if | BC8: ofset | BD8: found | BE8: list | BJ8: count if | BK8: ofset | BL8: found | BM8: list | BR8: count if | BS8: ofset | BT8: found | BU8: list | BZ8: count if | CA8: ofset | CB8: found | CC8: list | CH8: count if | CI8: ofset | CJ8: found | CK8: list | CP8: count if | CQ8: ofset | DC8: A | DD8: B | DE8: C | DF8: 1 | DG8: 2 | DH8: 3 | DI8: 4
A9: 1 | D9: =IFERROR(IF(VLOOKUP(B9,Moves!$A$1:$D$150,2,FALSE)="A","X"," "),"") ->  | E9: =IFERROR(IF(VLOOKUP(B9,Moves!$A$1:$D$150,2,FALSE)="B","X"," "),"") ->  | F9: =IFERROR(IF(VLOOKUP(B9,Moves!$A$1:$D$150,2,FALSE)="C","X"," "),"") ->  | G9: =IFERROR(IF(VLOOKUP(B9,Moves!$A$1:$D$150,2,FALSE)="D","X"," "),"") ->  | H9: =IFERROR(IF(VLOOKUP(B9,Moves!$A$1:$D$150,3,FALSE)=1,"X"," "),"") ->  | I9: =IFERROR(IF(VLOOKUP(B9,Moves!$A$1:$D$150,3,FALSE)=2,"X"," "),"") ->  | J9: =IFERROR(IF(VLOOKUP(B9,Moves!$A$1:$D$150,3,FALSE)=3,"X"," "),"") ->  | K9: =IFERROR(IF(VLOOKUP(B9,Moves!$A$1:$D$150,3,FALSE)=4,"X"," "),"") ->  | P9: =IF(ISNUMBER(SEARCH($B$9,Q9)),MAX($P$8:P8)+1,0) -> 1 | Q9: Straight jump | T9: =IFERROR(VLOOKUP(ROWS($Q$9:Q9),$P$9:$Q$162,2,0),"") -> Straight jump | V9: =COUNTIF(T9:T162,"?*") -> 154 | W9: =OFFSET($T$9,,,COUNTIF($T$9:$T$162,"?*")) -> Straight jump | X9: =IF(ISNUMBER(SEARCH($B$10,Y9)),MAX($X$8:X8)+1,0) -> 1 | Y9: Straight jump | AB9: =IFERROR(VLOOKUP(ROWS($Y$9:Y9),$X$9:$Y$162,2,0),"") -> Straight jump | AD9: =COUNTIF(AB9:AB162,"?*") -> 154 | AE9: =OFFSET($AB$9,,,COUNTIF($AB$9:$AB$162,"?*")) -> Straight jump | AF9: =IF(ISNUMBER(SEARCH($B$11,AG9)),MAX($AF$8:AF8)+1,0) -> 1 | AG9: Straight jump | AJ9: =IFERROR(VLOOKUP(ROWS($AG$9:AG9),$AF$9:$AG$162,2,0),"") -> Straight jump | AL9: =COUNTIF(AJ9:AJ162,"?*") -> 154 | AM9: =OFFSET($AJ$9,,,COUNTIF($AJ$9:$AJ$162,"?*")) -> Straight jump | AN9: =IF(ISNUMBER(SEARCH($B$12,AO9)),MAX($AN$8:AN8)+1,0) -> 1 | AO9: Straight jump | AR9: =IFERROR(VLOOKUP(ROWS($AO$9:AO9),$AN$9:$AO$162,2,0),"") -> Straight jump | AT9: =COUNTIF(AR9:AR162,"?*") -> 154 | AU9: =OFFSET($AR$9,,,COUNTIF($AR$9:$AR$162,"?*")) -> Straight jump | AV9: =IF(ISNUMBER(SEARCH($B$13,AW9)),MAX($AV$8:AV8)+1,0) -> 1 | AW9: Straight jump | AZ9: =IFERROR(VLOOKUP(ROWS($AW$9:AW9),$AV$9:$AW$162,2,0),"") -> Straight jump | BB9: =COUNTIF(AZ9:AZ162,"?*") -> 154 | BC9: =OFFSET($AZ$9,,,COUNTIF($AZ$9:$AZ$162,"?*")) -> Straight jump | BD9: =IF(ISNUMBER(SEARCH($B$14,BE9)),MAX($BD$8:BD8)+1,0) -> 1 | BE9: Straight jump | BH9: =IFERROR(VLOOKUP(ROWS($BE$9:BE9),$BD$9:$BE$162,2,0),"") -> Straight jump | BJ9: =COUNTIF(BH9:BH162,"?*") -> 154 | BK9: =OFFSET($BH$9,,,COUNTIF($BH$9:$BH$162,"?*")) -> Straight jump | BL9: =IF(ISNUMBER(SEARCH($B$15,BM9)),MAX($BL$8:BL8)+1,0) -> 1 | BM9: Straight jump | BP9: =IFERROR(VLOOKUP(ROWS($BM$9:BM9),$BL$9:$BM$162,2,0),"") -> Straight jump | BR9: =COUNTIF(BP9:BP162,"?*") -> 154 | BS9: =OFFSET($BP$9,,,COUNTIF($BP$9:$BP$162,"?*")) -> Straight jump | BT9: =IF(ISNUMBER(SEARCH($B$16,BU9)),MAX($BT$8:BT8)+1,0) -> 1 | BU9: Straight jump | BX9: =IFERROR(VLOOKUP(ROWS($BU$9:BU9),$BT$9:$BU$162,2,0),"") -> Straight jump | BZ9: =COUNTIF(BX9:BX162,"?*") -> 154 | CA9: =OFFSET($BX$9,,,COUNTIF($BX$9:$BX$162,"?*")) -> Straight jump | CB9: =IF(ISNUMBER(SEARCH($B$17,CC9)),MAX($CB$8:CB8)+1,0) -> 1 | CC9: Straight jump | CF9: =IFERROR(VLOOKUP(ROWS($CC$9:CC9),$CB$9:$CC$162,2,0),"") -> Straight jump | CH9: =COUNTIF(CF9:CF162,"?*") -> 154 | CI9: =OFFSET($CF$9,,,COUNTIF($CF$9:$CF$162,"?*")) -> Straight jump | CJ9: =IF(ISNUMBER(SEARCH($B$18,CK9)),MAX($CJ$8:CJ8)+1,0) -> 1 | CK9: Straight jump | CN9: =IFERROR(VLOOKUP(ROWS($CK$9:CK9),$CJ$9:$CK$162,2,0),"") -> Straight jump | CP9: =COUNTIF(CN9:CN162,"?*") -> 154 | CQ9: =OFFSET($CN$9,,,COUNTIF($CN$9:$CN$162,"?*")) -> Straight jump | CR9: =IF(L9<>$L$37,"",IF(H9="X",IF(E9="X","Yes",IF(F9="X","Yes","No")),"No")) ->  | CS9: =IF($D$5=$L$33,IF(L9=$L$38,IF(I9="X","Yes","No"),""),"") ->  | CT9: =IF($D$5="Female","",IF(L9=$L$44,IF(I9="X","Yes","No"),"No")) -> No | CU9: =IF($D$5=$L$34,IF(L9=$L$43,IF(I9="X","Yes","No"),"No"),"") ->  | CV9: =IF(L9="Mixed series",IF(H9="X","Yes",IF(H9<>"X","Yes","No")),"") ->  | CW9: =IF(CV9<>"Yes","",IF(H9="X",1,IF(I9="X",2,IF(J9="X",3,IF(K9="X",4,"No"))))) ->  | CX9: =IF(L9<>"Acrobatic skill","",IF(VLOOKUP(B9,Moves!$A$1:$D$150,4,FALSE)="",IF(J9="X","Yes",IF(K9="X","Yes","No")),"No")) ->  | CY9: =IF(L9<>"Flight skill/series","",IF(K9="X",IF(VLOOKUP(B9,Moves!A1:D150,4,FALSE)<>"","Yes","No"),"No")) ->  | CZ9: =IF(M9<>$M$32,"",IF(F9="X",IF(H9="X","Yes",IF(I9="X","Yes",IF(J9="X","Yes","No"))))) ->  | DA9: =IF(M9<>$M$33,"",IF(G9<>"X","No",IF(VLOOKUP(B9,Moves!$A$1:$D$150,3,FALSE)<>4,IF(H9="X","Yes",IF(I9="X","Yes",IF(J9="X","Yes")))))) ->  | DB9: =IF(COUNTIF(P9:DA9,"Yes")=2,"No","Yes") -> Yes | DC9: =IF(D9="X",IF(M9="Bonus - C Skill","No",IF(M9="Bonus - D Skill","No","Yes")),"") ->  | DD9: =IF(E9="X",IF(M9="Bonus - C Skill","No",IF(M9="Bonus - D Skill","No","Yes")),"") ->  | DE9: =IF(F9="X",IF(M9="Bonus - C Skill","No",IF(M9="Bonus - D Skill","No","Yes")),"") ->  | DF9: =IF(H9="X",IF(M9="Bonus - C Skill","No",IF(M9="Bonus - D Skill","No","Yes")),"") ->  | DG9: =IF(I9="X",IF(M9="Bonus - C Skill","No",IF(M9="Bonus - D Skill","No","Yes")),"") ->  | DH9: =IF(J9="X",IF(M9="Bonus - C Skill","No",IF(M9="Bonus - D Skill","No","Yes")),"") ->  | DI9: =IF(K9="X",IF(M9="Bonus - C Skill","No",IF(M9="Bonus - D Skill","No","Yes")),"") ->  | DJ9: =IF(M9="",IF(F9="X","Yes",""),"") ->  | DK9: =IF(DJ9<>"Yes","",IF(H9="X",1,IF(I9="X",2,IF(J9="X",3,IF(K9="X",4,"No"))))) ->  | DL9: =IF(CZ9<>"Yes","",IF(H9="X",1,IF(I9="X",2,IF(J9="X",3,IF(K9="X",4,"No"))))) -> 
A10: 2 | D10: =IFERROR(IF(VLOOKUP(B10,Moves!$A$1:$D$150,2,FALSE)="A","X"," "),"") ->  | E10: =IFERROR(IF(VLOOKUP(B10,Moves!$A$1:$D$150,2,FALSE)="B","X"," "),"") ->  | F10: =IFERROR(IF(VLOOKUP(B10,Moves!$A$1:$D$150,2,FALSE)="C","X"," "),"") ->  | G10: =IFERROR(IF(VLOOKUP(B10,Moves!$A$1:$D$150,2,FALSE)="D","X"," "),"") ->  | H10: =IFERROR(IF(VLOOKUP(B10,Moves!$A$1:$D$150,3,FALSE)=1,"X"," "),"") ->  | I10: =IFERROR(IF(VLOOKUP(B10,Moves!$A$1:$D$150,3,FALSE)=2,"X"," "),"") ->  | J10: =IFERROR(IF(VLOOKUP(B10,Moves!$A$1:$D$150,3,FALSE)=3,"X"," "),"") ->  | K10: =IFERROR(IF(VLOOKUP(B10,Moves!$A$1:$D$150,3,FALSE)=4,"X"," "),"") ->  | P10: =IF(ISNUMBER(SEARCH($B$9,Q10)),MAX($P$8:P9)+1,0) -> 2 | Q10: Jump ½ turn | T10: =IFERROR(VLOOKUP(ROWS($Q$9:Q10),$P$9:$Q$162,2,0),"") -> Jump ½ turn | X10: =IF(ISNUMBER(SEARCH($B$10,Y10)),MAX($X$8:X9)+1,0) -> 2 | Y10: Jump ½ turn | AB10: =IFERROR(VLOOKUP(ROWS($Y$9:Y10),$X$9:$Y$162,2,0),"") -> Jump ½ turn | AF10: =IF(ISNUMBER(SEARCH($B$11,AG10)),MAX($AF$8:AF9)+1,0) -> 2 | AG10: Jump ½ turn | AJ10: =IFERROR(VLOOKUP(ROWS($AG$9:AG10),$AF$9:$AG$162,2,0),"") -> Jump ½ turn | AN10: =IF(ISNUMBER(SEARCH($B$12,AO10)),MAX($AN$8:AN9)+1,0) -> 2 | AO10: Jump ½ turn | AR10: =IFERROR(VLOOKUP(ROWS($AO$9:AO10),$AN$9:$AO$162,2,0),"") -> Jump ½ turn | AV10: =IF(ISNUMBER(SEARCH($B$13,AW10)),MAX($AV$8:AV9)+1,0) -> 2 | AW10: Jump ½ turn | AZ10: =IFERROR(VLOOKUP(ROWS($AW$9:AW10),$AV$9:$AW$162,2,0),"") -> Jump ½ turn | BD10: =IF(ISNUMBER(SEARCH($B$14,BE10)),MAX($BD$8:BD9)+1,0) -> 2 | BE10: Jump ½ turn | BH10: =IFERROR(VLOOKUP(ROWS($BE$9:BE10),$BD$9:$BE$162,2,0),"") -> Jump ½ turn | BL10: =IF(ISNUMBER(SEARCH($B$15,BM10)),MAX($BL$8:BL9)+1,0) -> 2 | BM10: Jump ½ turn | BP10: =IFERROR(VLOOKUP(ROWS($BM$9:BM10),$BL$9:$BM$162,2,0),"") -> Jump ½ turn | BT10: =IF(ISNUMBER(SEARCH($B$16,BU10)),MAX($BT$8:BT9)+1,0) -> 2 | BU10: Jump ½ turn | BX10: =IFERROR(VLOOKUP(ROWS($BU$9:BU10),$BT$9:$BU$162,2,0),"") -> Jump ½ turn | CB10: =IF(ISNUMBER(SEARCH($B$17,CC10)),MAX($CB$8:CB9)+1,0) -> 2 | CC10: Jump ½ turn | CF10: =IFERROR(VLOOKUP(ROWS($CC$9:CC10),$CB$9:$CC$162,2,0),"") -> Jump ½ turn | CJ10: =IF(ISNUMBER(SEARCH($B$18,CK10)),MAX($CJ$8:CJ9)+1,0) -> 2 | CK10: Jump ½ turn | CN10: =IFERROR(VLOOKUP(ROWS($CK$9:CK10),$CJ$9:$CK$162,2,0),"") -> Jump ½ turn | CT10: =IF($D$5="Female","",IF(L10=$L$44,IF(I10="X","Yes","No"),"No")) -> No | CU10: =IF($D$5=$L$34,IF(L10=$L$43,IF(I10="X","Yes","No"),"No"),"") ->  | CX10: =IF(L10<>"Acrobatic skill","",IF(VLOOKUP(B10,Moves!$A$1:$D$150,4,FALSE)="",IF(J10="X","Yes",IF(K10="X","Yes","No")),"No")) ->  | CY10: =IF(L10<>"Flight skill/series","",IF(K10="X",IF(VLOOKUP(B10,Moves!A2:D151,4,FALSE)<>"","Yes","No"),"No")) ->  | DA10: =IF(M10<>$M$33,"",IF(G10<>"X","No",IF(VLOOKUP(B10,Moves!$A$1:$D$150,3,FALSE)<>4,IF(H10="X","Yes",IF(I10="X","Yes",IF(J10="X","Yes")))))) ->  | DB10: Yes
A11: 3 | D11: =IFERROR(IF(VLOOKUP(B11,Moves!$A$1:$D$150,2,FALSE)="A","X"," "),"") ->  | E11: =IFERROR(IF(VLOOKUP(B11,Moves!$A$1:$D$150,2,FALSE)="B","X"," "),"") ->  | F11: =IFERROR(IF(VLOOKUP(B11,Moves!$A$1:$D$150,2,FALSE)="C","X"," "),"") ->  | G11: =IFERROR(IF(VLOOKUP(B11,Moves!$A$1:$D$150,2,FALSE)="D","X"," "),"") ->  | H11: =IFERROR(IF(VLOOKUP(B11,Moves!$A$1:$D$150,3,FALSE)=1,"X"," "),"") ->  | I11: =IFERROR(IF(VLOOKUP(B11,Moves!$A$1:$D$150,3,FALSE)=2,"X"," "),"") ->  | J11: =IFERROR(IF(VLOOKUP(B11,Moves!$A$1:$D$150,3,FALSE)=3,"X"," "),"") ->  | K11: =IFERROR(IF(VLOOKUP(B11,Moves!$A$1:$D$150,3,FALSE)=4,"X"," "),"") ->  | P11: =IF(ISNUMBER(SEARCH($B$9,Q11)),MAX($P$8:P10)+1,0) -> 3 | Q11: Star jump | T11: =IFERROR(VLOOKUP(ROWS($Q$9:Q11),$P$9:$Q$162,2,0),"") -> Star jump | X11: =IF(ISNUMBER(SEARCH($B$10,Y11)),MAX($X$8:X10)+1,0) -> 3 | Y11: Star jump | AB11: =IFERROR(VLOOKUP(ROWS($Y$9:Y11),$X$9:$Y$162,2,0),"") -> Star jump | AF11: =IF(ISNUMBER(SEARCH($B$11,AG11)),MAX($AF$8:AF10)+1,0) -> 3 | AG11: Star jump | AJ11: =IFERROR(VLOOKUP(ROWS($AG$9:AG11),$AF$9:$AG$162,2,0),"") -> Star jump | AN11: =IF(ISNUMBER(SEARCH($B$12,AO11)),MAX($AN$8:AN10)+1,0) -> 3 | AO11: Star jump | AR11: =IFERROR(VLOOKUP(ROWS($AO$9:AO11),$AN$9:$AO$162,2,0),"") -> Star jump | AV11: =IF(ISNUMBER(SEARCH($B$13,AW11)),MAX($AV$8:AV10)+1,0) -> 3 | AW11: Star jump | AZ11: =IFERROR(VLOOKUP(ROWS($AW$9:AW11),$AV$9:$AW$162,2,0),"") -> Star jump | BD11: =IF(ISNUMBER(SEARCH($B$14,BE11)),MAX($BD$8:BD10)+1,0) -> 3 | BE11: Star jump | BH11: =IFERROR(VLOOKUP(ROWS($BE$9:BE11),$BD$9:$BE$162,2,0),"") -> Star jump | BL11: =IF(ISNUMBER(SEARCH($B$15,BM11)),MAX($BL$8:BL10)+1,0) -> 3 | BM11: Star jump | BP11: =IFERROR(VLOOKUP(ROWS($BM$9:BM11),$BL$9:$BM$162,2,0),"") -> Star jump | BT11: =IF(ISNUMBER(SEARCH($B$16,BU11)),MAX($BT$8:BT10)+1,0) -> 3 | BU11: Star jump | BX11: =IFERROR(VLOOKUP(ROWS($BU$9:BU11),$BT$9:$BU$162,2,0),"") -> Star jump | CB11: =IF(ISNUMBER(SEARCH($B$17,CC11)),MAX($CB$8:CB10)+1,0) -> 3 | CC11: Star jump | CF11: =IFERROR(VLOOKUP(ROWS($CC$9:CC11),$CB$9:$CC$162,2,0),"") -> Star jump | CJ11: =IF(ISNUMBER(SEARCH($B$18,CK11)),MAX($CJ$8:CJ10)+1,0) -> 3 | CK11: Star jump | CN11: =IFERROR(VLOOKUP(ROWS($CK$9:CK11),$CJ$9:$CK$162,2,0),"") -> Star jump | CT11: No | CX11: =IF(L11<>"Acrobatic skill","",IF(VLOOKUP(B11,Moves!$A$1:$D$150,4,FALSE)="",IF(J11="X","Yes",IF(K11="X","Yes","No")),"No")) ->  | CY11: =IF(L11<>"Flight skill/series","",IF(K11="X",IF(VLOOKUP(B11,Moves!A3:D152,4,FALSE)<>"","Yes","No"),"No")) ->  | DA11: =IF(M11<>$M$33,"",IF(G11<>"X","No",IF(VLOOKUP(B11,Moves!$A$1:$D$150,3,FALSE)<>4,IF(H11="X","Yes",IF(I11="X","Yes",IF(J11="X","Yes")))))) ->  | DB11: Yes
A12: 4 | D12: =IFERROR(IF(VLOOKUP(B12,Moves!$A$1:$D$150,2,FALSE)="A","X"," "),"") ->  | E12: =IFERROR(IF(VLOOKUP(B12,Moves!$A$1:$D$150,2,FALSE)="B","X"," "),"") ->  | F12: =IFERROR(IF(VLOOKUP(B12,Moves!$A$1:$D$150,2,FALSE)="C","X"," "),"") ->  | G12: =IFERROR(IF(VLOOKUP(B12,Moves!$A$1:$D$150,2,FALSE)="D","X"," "),"") ->  | H12: =IFERROR(IF(VLOOKUP(B12,Moves!$A$1:$D$150,3,FALSE)=1,"X"," "),"") ->  | I12: =IFERROR(IF(VLOOKUP(B12,Moves!$A$1:$D$150,3,FALSE)=2,"X"," "),"") ->  | J12: =IFERROR(IF(VLOOKUP(B12,Moves!$A$1:$D$150,3,FALSE)=3,"X"," "),"") ->  | K12: =IFERROR(IF(VLOOKUP(B12,Moves!$A$1:$D$150,3,FALSE)=4,"X"," "),"") ->  | P12: =IF(ISNUMBER(SEARCH($B$9,Q12)),MAX($P$8:P11)+1,0) -> 4 | Q12: Tuck jump | T12: =IFERROR(VLOOKUP(ROWS($Q$9:Q12),$P$9:$Q$162,2,0),"") -> Tuck jump | X12: =IF(ISNUMBER(SEARCH($B$10,Y12)),MAX($X$8:X11)+1,0) -> 4 | Y12: Tuck jump | AB12: =IFERROR(VLOOKUP(ROWS($Y$9:Y12),$X$9:$Y$162,2,0),"") -> Tuck jump | AF12: =IF(ISNUMBER(SEARCH($B$11,AG12)),MAX($AF$8:AF11)+1,0) -> 4 | AG12: Tuck jump | AJ12: =IFERROR(VLOOKUP(ROWS($AG$9:AG12),$AF$9:$AG$162,2,0),"") -> Tuck jump | AN12: =IF(ISNUMBER(SEARCH($B$12,AO12)),MAX($AN$8:AN11)+1,0) -> 4 | AO12: Tuck jump | AR12: =IFERROR(VLOOKUP(ROWS($AO$9:AO12),$AN$9:$AO$162,2,0),"") -> Tuck jump | AV12: =IF(ISNUMBER(SEARCH($B$13,AW12)),MAX($AV$8:AV11)+1,0) -> 4 | AW12: Tuck jump | AZ12: =IFERROR(VLOOKUP(ROWS($AW$9:AW12),$AV$9:$AW$162,2,0),"") -> Tuck jump | BD12: =IF(ISNUMBER(SEARCH($B$14,BE12)),MAX($BD$8:BD11)+1,0) -> 4 | BE12: Tuck jump | BH12: =IFERROR(VLOOKUP(ROWS($BE$9:BE12),$BD$9:$BE$162,2,0),"") -> Tuck jump | BL12: =IF(ISNUMBER(SEARCH($B$15,BM12)),MAX($BL$8:BL11)+1,0) -> 4 | BM12: Tuck jump | BP12: =IFERROR(VLOOKUP(ROWS($BM$9:BM12),$BL$9:$BM$162,2,0),"") -> Tuck jump | BT12: =IF(ISNUMBER(SEARCH($B$16,BU12)),MAX($BT$8:BT11)+1,0) -> 4 | BU12: Tuck jump | BX12: =IFERROR(VLOOKUP(ROWS($BU$9:BU12),$BT$9:$BU$162,2,0),"") -> Tuck jump | CB12: =IF(ISNUMBER(SEARCH($B$17,CC12)),MAX($CB$8:CB11)+1,0) -> 4 | CC12: Tuck jump | CF12: =IFERROR(VLOOKUP(ROWS($CC$9:CC12),$CB$9:$CC$162,2,0),"") -> Tuck jump | CJ12: =IF(ISNUMBER(SEARCH($B$18,CK12)),MAX($CJ$8:CJ11)+1,0) -> 4 | CK12: Tuck jump | CN12: =IFERROR(VLOOKUP(ROWS($CK$9:CK12),$CJ$9:$CK$162,2,0),"") -> Tuck jump | CT12: No | CX12: =IF(L12<>"Acrobatic skill","",IF(VLOOKUP(B12,Moves!$A$1:$D$150,4,FALSE)="",IF(J12="X","Yes",IF(K12="X","Yes","No")),"No")) ->  | CY12: =IF(L12<>"Flight skill/series","",IF(K12="X",IF(VLOOKUP(B12,Moves!A4:D153,4,FALSE)<>"","Yes","No"),"No")) ->  | DA12: =IF(M12<>$M$33,"",IF(G12<>"X","No",IF(VLOOKUP(B12,Moves!$A$1:$D$150,3,FALSE)<>4,IF(H12="X","Yes",IF(I12="X","Yes",IF(J12="X","Yes")))))) ->  | DB12: Yes
A13: 5 | D13: =IFERROR(IF(VLOOKUP(B13,Moves!$A$1:$D$150,2,FALSE)="A","X"," "),"") ->  | E13: =IFERROR(IF(VLOOKUP(B13,Moves!$A$1:$D$150,2,FALSE)="B","X"," "),"") ->  | F13: =IFERROR(IF(VLOOKUP(B13,Moves!$A$1:$D$150,2,FALSE)="C","X"," "),"") ->  | G13: =IFERROR(IF(VLOOKUP(B13,Moves!$A$1:$D$150,2,FALSE)="D","X"," "),"") ->  | H13: =IFERROR(IF(VLOOKUP(B13,Moves!$A$1:$D$150,3,FALSE)=1,"X"," "),"") ->  | I13: =IFERROR(IF(VLOOKUP(B13,Moves!$A$1:$D$150,3,FALSE)=2,"X"," "),"") ->  | J13: =IFERROR(IF(VLOOKUP(B13,Moves!$A$1:$D$150,3,FALSE)=3,"X"," "),"") ->  | K13: =IFERROR(IF(VLOOKUP(B13,Moves!$A$1:$D$150,3,FALSE)=4,"X"," "),"") ->  | P13: =IF(ISNUMBER(SEARCH($B$9,Q13)),MAX($P$8:P12)+1,0) -> 5 | Q13: 2 x dynamic 1/2 turns on knees | T13: =IFERROR(VLOOKUP(ROWS($Q$9:Q13),$P$9:$Q$162,2,0),"") -> 2 x dynamic 1/2 turns on knees | X13: =IF(ISNUMBER(SEARCH($B$10,Y13)),MAX($X$8:X12)+1,0) -> 5 | Y13: 2 x dynamic 1/2 turns on knees | AB13: =IFERROR(VLOOKUP(ROWS($Y$9:Y13),$X$9:$Y$162,2,0),"") -> 2 x dynamic 1/2 turns on knees | AF13: =IF(ISNUMBER(SEARCH($B$11,AG13)),MAX($AF$8:AF12)+1,0) -> 5 | AG13: 2 x dynamic 1/2 turns on knees | AJ13: =IFERROR(VLOOKUP(ROWS($AG$9:AG13),$AF$9:$AG$162,2,0),"") -> 2 x dynamic 1/2 turns on knees | AN13: =IF(ISNUMBER(SEARCH($B$12,AO13)),MAX($AN$8:AN12)+1,0) -> 5 | AO13: 2 x dynamic 1/2 turns on knees | AR13: =IFERROR(VLOOKUP(ROWS($AO$9:AO13),$AN$9:$AO$162,2,0),"") -> 2 x dynamic 1/2 turns on knees | AV13: =IF(ISNUMBER(SEARCH($B$13,AW13)),MAX($AV$8:AV12)+1,0) -> 5 | AW13: 2 x dynamic 1/2 turns on knees | AZ13: =IFERROR(VLOOKUP(ROWS($AW$9:AW13),$AV$9:$AW$162,2,0),"") -> 2 x dynamic 1/2 turns on knees | BD13: =IF(ISNUMBER(SEARCH($B$14,BE13)),MAX($BD$8:BD12)+1,0) -> 5 | BE13: 2 x dynamic 1/2 turns on knees | BH13: =IFERROR(VLOOKUP(ROWS($BE$9:BE13),$BD$9:$BE$162,2,0),"") -> 2 x dynamic 1/2 turns on knees | BL13: =IF(ISNUMBER(SEARCH($B$15,BM13)),MAX($BL$8:BL12)+1,0) -> 5 | BM13: 2 x dynamic 1/2 turns on knees | BP13: =IFERROR(VLOOKUP(ROWS($BM$9:BM13),$BL$9:$BM$162,2,0),"") -> 2 x dynamic 1/2 turns on knees | BT13: =IF(ISNUMBER(SEARCH($B$16,BU13)),MAX($BT$8:BT12)+1,0) -> 5 | BU13: 2 x dynamic 1/2 turns on knees | BX13: =IFERROR(VLOOKUP(ROWS($BU$9:BU13),$BT$9:$BU$162,2,0),"") -> 2 x dynamic 1/2 turns on knees | CB13: =IF(ISNUMBER(SEARCH($B$17,CC13)),MAX($CB$8:CB12)+1,0) -> 5 | CC13: 2 x dynamic 1/2 turns on knees | CF13: =IFERROR(VLOOKUP(ROWS($CC$9:CC13),$CB$9:$CC$162,2,0),"") -> 2 x dynamic 1/2 turns on knees | CJ13: =IF(ISNUMBER(SEARCH($B$18,CK13)),MAX($CJ$8:CJ12)+1,0) -> 5 | CK13: 2 x dynamic 1/2 turns on knees | CN13: =IFERROR(VLOOKUP(ROWS($CK$9:CK13),$CJ$9:$CK$162,2,0),"") -> 2 x dynamic 1/2 turns on knees | CT13: No | CX13: =IF(L13<>"Acrobatic skill","",IF(VLOOKUP(B13,Moves!$A$1:$D$150,4,FALSE)="",IF(J13="X","Yes",IF(K13="X","Yes","No")),"No")) ->  | CY13: =IF(L13<>"Flight skill/series","",IF(K13="X",IF(VLOOKUP(B13,Moves!A5:D154,4,FALSE)<>"","Yes","No"),"No")) ->  | DA13: =IF(M13<>$M$33,"",IF(G13<>"X","No",IF(VLOOKUP(B13,Moves!$A$1:$D$150,3,FALSE)<>4,IF(H13="X","Yes",IF(I13="X","Yes",IF(J13="X","Yes")))))) ->  | DB13: Yes
A14: 6 | D14: =IFERROR(IF(VLOOKUP(B14,Moves!$A$1:$D$150,2,FALSE)="A","X"," "),"") ->  | E14: =IFERROR(IF(VLOOKUP(B14,Moves!$A$1:$D$150,2,FALSE)="B","X"," "),"") ->  | F14: =IFERROR(IF(VLOOKUP(B14,Moves!$A$1:$D$150,2,FALSE)="C","X"," "),"") ->  | G14: =IFERROR(IF(VLOOKUP(B14,Moves!$A$1:$D$150,2,FALSE)="D","X"," "),"") ->  | H14: =IFERROR(IF(VLOOKUP(B14,Moves!$A$1:$D$150,3,FALSE)=1,"X"," "),"") ->  | I14: =IFERROR(IF(VLOOKUP(B14,Moves!$A$1:$D$150,3,FALSE)=2,"X"," "),"") ->  | J14: =IFERROR(IF(VLOOKUP(B14,Moves!$A$1:$D$150,3,FALSE)=3,"X"," "),"") ->  | K14: =IFERROR(IF(VLOOKUP(B14,Moves!$A$1:$D$150,3,FALSE)=4,"X"," "),"") ->  | P14: =IF(ISNUMBER(SEARCH($B$9,Q14)),MAX($P$8:P13)+1,0) -> 6 | Q14: 1 leg balance | T14: =IFERROR(VLOOKUP(ROWS($Q$9:Q14),$P$9:$Q$162,2,0),"") -> 1 leg balance | X14: =IF(ISNUMBER(SEARCH($B$10,Y14)),MAX($X$8:X13)+1,0) -> 6 | Y14: 1 leg balance | AB14: =IFERROR(VLOOKUP(ROWS($Y$9:Y14),$X$9:$Y$162,2,0),"") -> 1 leg balance | AF14: =IF(ISNUMBER(SEARCH($B$11,AG14)),MAX($AF$8:AF13)+1,0) -> 6 | AG14: 1 leg balance | AJ14: =IFERROR(VLOOKUP(ROWS($AG$9:AG14),$AF$9:$AG$162,2,0),"") -> 1 leg balance | AN14: =IF(ISNUMBER(SEARCH($B$12,AO14)),MAX($AN$8:AN13)+1,0) -> 6 | AO14: 1 leg balance | AR14: =IFERROR(VLOOKUP(ROWS($AO$9:AO14),$AN$9:$AO$162,2,0),"") -> 1 leg balance | AV14: =IF(ISNUMBER(SEARCH($B$13,AW14)),MAX($AV$8:AV13)+1,0) -> 6 | AW14: 1 leg balance | AZ14: =IFERROR(VLOOKUP(ROWS($AW$9:AW14),$AV$9:$AW$162,2,0),"") -> 1 leg balance | BD14: =IF(ISNUMBER(SEARCH($B$14,BE14)),MAX($BD$8:BD13)+1,0) -> 6 | BE14: 1 leg balance | BH14: =IFERROR(VLOOKUP(ROWS($BE$9:BE14),$BD$9:$BE$162,2,0),"") -> 1 leg balance | BL14: =IF(ISNUMBER(SEARCH($B$15,BM14)),MAX($BL$8:BL13)+1,0) -> 6 | BM14: 1 leg balance | BP14: =IFERROR(VLOOKUP(ROWS($BM$9:BM14),$BL$9:$BM$162,2,0),"") -> 1 leg balance | BT14: =IF(ISNUMBER(SEARCH($B$16,BU14)),MAX($BT$8:BT13)+1,0) -> 6 | BU14: 1 leg balance | BX14: =IFERROR(VLOOKUP(ROWS($BU$9:BU14),$BT$9:$BU$162,2,0),"") -> 1 leg balance | CB14: =IF(ISNUMBER(SEARCH($B$17,CC14)),MAX($CB$8:CB13)+1,0) -> 6 | CC14: 1 leg balance | CF14: =IFERROR(VLOOKUP(ROWS($CC$9:CC14),$CB$9:$CC$162,2,0),"") -> 1 leg balance | CJ14: =IF(ISNUMBER(SEARCH($B$18,CK14)),MAX($CJ$8:CJ13)+1,0) -> 6 | CK14: 1 leg balance | CN14: =IFERROR(VLOOKUP(ROWS($CK$9:CK14),$CJ$9:$CK$162,2,0),"") -> 1 leg balance | CT14: No | CX14: =IF(L14<>"Acrobatic skill","",IF(VLOOKUP(B14,Moves!$A$1:$D$150,4,FALSE)="",IF(J14="X","Yes",IF(K14="X","Yes","No")),"No")) ->  | CY14: =IF(L14<>"Flight skill/series","",IF(K14="X",IF(VLOOKUP(B14,Moves!A6:D155,4,FALSE)<>"","Yes","No"),"No")) ->  | DA14: =IF(M14<>$M$33,"",IF(G14<>"X","No",IF(VLOOKUP(B14,Moves!$A$1:$D$150,3,FALSE)<>4,IF(H14="X","Yes",IF(I14="X","Yes",IF(J14="X","Yes")))))) ->  | DB14: Yes
A15: 7 | D15: =IFERROR(IF(VLOOKUP(B15,Moves!$A$1:$D$150,2,FALSE)="A","X"," "),"") ->  | E15: =IFERROR(IF(VLOOKUP(B15,Moves!$A$1:$D$150,2,FALSE)="B","X"," "),"") ->  | F15: =IFERROR(IF(VLOOKUP(B15,Moves!$A$1:$D$150,2,FALSE)="C","X"," "),"") ->  | G15: =IFERROR(IF(VLOOKUP(B15,Moves!$A$1:$D$150,2,FALSE)="D","X"," "),"") ->  | H15: =IFERROR(IF(VLOOKUP(B15,Moves!$A$1:$D$150,3,FALSE)=1,"X"," "),"") ->  | I15: =IFERROR(IF(VLOOKUP(B15,Moves!$A$1:$D$150,3,FALSE)=2,"X"," "),"") ->  | J15: =IFERROR(IF(VLOOKUP(B15,Moves!$A$1:$D$150,3,FALSE)=3,"X"," "),"") ->  | K15: =IFERROR(IF(VLOOKUP(B15,Moves!$A$1:$D$150,3,FALSE)=4,"X"," "),"") ->  | P15: =IF(ISNUMBER(SEARCH($B$9,Q15)),MAX($P$8:P14)+1,0) -> 7 | Q15: Splits (F or S) | T15: =IFERROR(VLOOKUP(ROWS($Q$9:Q15),$P$9:$Q$162,2,0),"") -> Splits (F or S) | X15: =IF(ISNUMBER(SEARCH($B$10,Y15)),MAX($X$8:X14)+1,0) -> 7 | Y15: Splits (F or S) | AB15: =IFERROR(VLOOKUP(ROWS($Y$9:Y15),$X$9:$Y$162,2,0),"") -> Splits (F or S) | AF15: =IF(ISNUMBER(SEARCH($B$11,AG15)),MAX($AF$8:AF14)+1,0) -> 7 | AG15: Splits (F or S) | AJ15: =IFERROR(VLOOKUP(ROWS($AG$9:AG15),$AF$9:$AG$162,2,0),"") -> Splits (F or S) | AN15: =IF(ISNUMBER(SEARCH($B$12,AO15)),MAX($AN$8:AN14)+1,0) -> 7 | AO15: Splits (F or S) | AR15: =IFERROR(VLOOKUP(ROWS($AO$9:AO15),$AN$9:$AO$162,2,0),"") -> Splits (F or S) | AV15: =IF(ISNUMBER(SEARCH($B$13,AW15)),MAX($AV$8:AV14)+1,0) -> 7 | AW15: Splits (F or S) | AZ15: =IFERROR(VLOOKUP(ROWS($AW$9:AW15),$AV$9:$AW$162,2,0),"") -> Splits (F or S) | BD15: =IF(ISNUMBER(SEARCH($B$14,BE15)),MAX($BD$8:BD14)+1,0) -> 7 | BE15: Splits (F or S) | BH15: =IFERROR(VLOOKUP(ROWS($BE$9:BE15),$BD$9:$BE$162,2,0),"") -> Splits (F or S) | BL15: =IF(ISNUMBER(SEARCH($B$15,BM15)),MAX($BL$8:BL14)+1,0) -> 7 | BM15: Splits (F or S) | BP15: =IFERROR(VLOOKUP(ROWS($BM$9:BM15),$BL$9:$BM$162,2,0),"") -> Splits (F or S) | BT15: =IF(ISNUMBER(SEARCH($B$16,BU15)),MAX($BT$8:BT14)+1,0) -> 7 | BU15: Splits (F or S) | BX15: =IFERROR(VLOOKUP(ROWS($BU$9:BU15),$BT$9:$BU$162,2,0),"") -> Splits (F or S) | CB15: =IF(ISNUMBER(SEARCH($B$17,CC15)),MAX($CB$8:CB14)+1,0) -> 7 | CC15: Splits (F or S) | CF15: =IFERROR(VLOOKUP(ROWS($CC$9:CC15),$CB$9:$CC$162,2,0),"") -> Splits (F or S) | CJ15: =IF(ISNUMBER(SEARCH($B$18,CK15)),MAX($CJ$8:CJ14)+1,0) -> 7 | CK15: Splits (F or S) | CN15: =IFERROR(VLOOKUP(ROWS($CK$9:CK15),$CJ$9:$CK$162,2,0),"") -> Splits (F or S) | CT15: No | CX15: =IF(L15<>"Acrobatic skill","",IF(VLOOKUP(B15,Moves!$A$1:$D$150,4,FALSE)="",IF(J15="X","Yes",IF(K15="X","Yes","No")),"No")) ->  | CY15: =IF(L15<>"Flight skill/series","",IF(K15="X",IF(VLOOKUP(B15,Moves!A7:D156,4,FALSE)<>"","Yes","No"),"No")) ->  | DA15: =IF(M15<>$M$33,"",IF(G15<>"X","No",IF(VLOOKUP(B15,Moves!$A$1:$D$150,3,FALSE)<>4,IF(H15="X","Yes",IF(I15="X","Yes",IF(J15="X","Yes")))))) ->  | DB15: Yes
A16: 8 | D16: =IFERROR(IF(VLOOKUP(B16,Moves!$A$1:$D$150,2,FALSE)="A","X"," "),"") ->  | E16: =IFERROR(IF(VLOOKUP(B16,Moves!$A$1:$D$150,2,FALSE)="B","X"," "),"") ->  | F16: =IFERROR(IF(VLOOKUP(B16,Moves!$A$1:$D$150,2,FALSE)="C","X"," "),"") ->  | G16: =IFERROR(IF(VLOOKUP(B16,Moves!$A$1:$D$150,2,FALSE)="D","X"," "),"") ->  | H16: =IFERROR(IF(VLOOKUP(B16,Moves!$A$1:$D$150,3,FALSE)=1,"X"," "),"") ->  | I16: =IFERROR(IF(VLOOKUP(B16,Moves!$A$1:$D$150,3,FALSE)=2,"X"," "),"") ->  | J16: =IFERROR(IF(VLOOKUP(B16,Moves!$A$1:$D$150,3,FALSE)=3,"X"," "),"") ->  | K16: =IFERROR(IF(VLOOKUP(B16,Moves!$A$1:$D$150,3,FALSE)=4,"X"," "),"") ->  | P16: =IF(ISNUMBER(SEARCH($B$9,Q16)),MAX($P$8:P15)+1,0) -> 8 | Q16: Japana (up to 45⁰ chest) | T16: =IFERROR(VLOOKUP(ROWS($Q$9:Q16),$P$9:$Q$162,2,0),"") -> Japana (up to 45⁰ chest) | X16: =IF(ISNUMBER(SEARCH($B$10,Y16)),MAX($X$8:X15)+1,0) -> 8 | Y16: Japana (up to 45⁰ chest) | AB16: =IFERROR(VLOOKUP(ROWS($Y$9:Y16),$X$9:$Y$162,2,0),"") -> Japana (up to 45⁰ chest) | AF16: =IF(ISNUMBER(SEARCH($B$11,AG16)),MAX($AF$8:AF15)+1,0) -> 8 | AG16: Japana (up to 45⁰ chest) | AJ16: =IFERROR(VLOOKUP(ROWS($AG$9:AG16),$AF$9:$AG$162,2,0),"") -> Japana (up to 45⁰ chest) | AN16: =IF(ISNUMBER(SEARCH($B$12,AO16)),MAX($AN$8:AN15)+1,0) -> 8 | AO16: Japana (up to 45⁰ chest) | AR16: =IFERROR(VLOOKUP(ROWS($AO$9:AO16),$AN$9:$AO$162,2,0),"") -> Japana (up to 45⁰ chest) | AV16: =IF(ISNUMBER(SEARCH($B$13,AW16)),MAX($AV$8:AV15)+1,0) -> 8 | AW16: Japana (up to 45⁰ chest) | AZ16: =IFERROR(VLOOKUP(ROWS($AW$9:AW16),$AV$9:$AW$162,2,0),"") -> Japana (up to 45⁰ chest) | BD16: =IF(ISNUMBER(SEARCH($B$14,BE16)),MAX($BD$8:BD15)+1,0) -> 8 | BE16: Japana (up to 45⁰ chest) | BH16: =IFERROR(VLOOKUP(ROWS($BE$9:BE16),$BD$9:$BE$162,2,0),"") -> Japana (up to 45⁰ chest) | BL16: =IF(ISNUMBER(SEARCH($B$15,BM16)),MAX($BL$8:BL15)+1,0) -> 8 | BM16: Japana (up to 45⁰ chest) | BP16: =IFERROR(VLOOKUP(ROWS($BM$9:BM16),$BL$9:$BM$162,2,0),"") -> Japana (up to 45⁰ chest) | BT16: =IF(ISNUMBER(SEARCH($B$16,BU16)),MAX($BT$8:BT15)+1,0) -> 8 | BU16: Japana (up to 45⁰ chest) | BX16: =IFERROR(VLOOKUP(ROWS($BU$9:BU16),$BT$9:$BU$162,2,0),"") -> Japana (up to 45⁰ chest) | CB16: =IF(ISNUMBER(SEARCH($B$17,CC16)),MAX($CB$8:CB15)+1,0) -> 8 | CC16: Japana (up to 45⁰ chest) | CF16: =IFERROR(VLOOKUP(ROWS($CC$9:CC16),$CB$9:$CC$162,2,0),"") -> Japana (up to 45⁰ chest) | CJ16: =IF(ISNUMBER(SEARCH($B$18,CK16)),MAX($CJ$8:CJ15)+1,0) -> 8 | CK16: Japana (up to 45⁰ chest) | CN16: =IFERROR(VLOOKUP(ROWS($CK$9:CK16),$CJ$9:$CK$162,2,0),"") -> Japana (up to 45⁰ chest) | CT16: No | CX16: =IF(L16<>"Acrobatic skill","",IF(VLOOKUP(B16,Moves!$A$1:$D$150,4,FALSE)="",IF(J16="X","Yes",IF(K16="X","Yes","No")),"No")) ->  | CY16: =IF(L16<>"Flight skill/series","",IF(K16="X",IF(VLOOKUP(B16,Moves!A8:D157,4,FALSE)<>"","Yes","No"),"No")) ->  | DA16: =IF(M16<>$M$33,"",IF(G16<>"X","No",IF(VLOOKUP(B16,Moves!$A$1:$D$150,3,FALSE)<>4,IF(H16="X","Yes",IF(I16="X","Yes",IF(J16="X","Yes")))))) ->  | DB16: Yes
A17: 9 | D17: =IFERROR(IF(VLOOKUP(B17,Moves!$A$1:$D$150,2,FALSE)="A","X"," "),"") ->  | E17: =IFERROR(IF(VLOOKUP(B17,Moves!$A$1:$D$150,2,FALSE)="B","X"," "),"") ->  | F17: =IFERROR(IF(VLOOKUP(B17,Moves!$A$1:$D$150,2,FALSE)="C","X"," "),"") ->  | G17: =IFERROR(IF(VLOOKUP(B17,Moves!$A$1:$D$150,2,FALSE)="D","X"," "),"") ->  | H17: =IFERROR(IF(VLOOKUP(B17,Moves!$A$1:$D$150,3,FALSE)=1,"X"," "),"") ->  | I17: =IFERROR(IF(VLOOKUP(B17,Moves!$A$1:$D$150,3,FALSE)=2,"X"," "),"") ->  | J17: =IFERROR(IF(VLOOKUP(B17,Moves!$A$1:$D$150,3,FALSE)=3,"X"," "),"") ->  | K17: =IFERROR(IF(VLOOKUP(B17,Moves!$A$1:$D$150,3,FALSE)=4,"X"," "),"") ->  | P17: =IF(ISNUMBER(SEARCH($B$9,Q17)),MAX($P$8:P16)+1,0) -> 9 | Q17: D Shape | T17: =IFERROR(VLOOKUP(ROWS($Q$9:Q17),$P$9:$Q$162,2,0),"") -> D Shape | X17: =IF(ISNUMBER(SEARCH($B$10,Y17)),MAX($X$8:X16)+1,0) -> 9 | Y17: D Shape | AB17: =IFERROR(VLOOKUP(ROWS($Y$9:Y17),$X$9:$Y$162,2,0),"") -> D Shape | AF17: =IF(ISNUMBER(SEARCH($B$11,AG17)),MAX($AF$8:AF16)+1,0) -> 9 | AG17: D Shape | AJ17: =IFERROR(VLOOKUP(ROWS($AG$9:AG17),$AF$9:$AG$162,2,0),"") -> D Shape | AN17: =IF(ISNUMBER(SEARCH($B$12,AO17)),MAX($AN$8:AN16)+1,0) -> 9 | AO17: D Shape | AR17: =IFERROR(VLOOKUP(ROWS($AO$9:AO17),$AN$9:$AO$162,2,0),"") -> D Shape | AV17: =IF(ISNUMBER(SEARCH($B$13,AW17)),MAX($AV$8:AV16)+1,0) -> 9 | AW17: D Shape | AZ17: =IFERROR(VLOOKUP(ROWS($AW$9:AW17),$AV$9:$AW$162,2,0),"") -> D Shape | BD17: =IF(ISNUMBER(SEARCH($B$14,BE17)),MAX($BD$8:BD16)+1,0) -> 9 | BE17: D Shape | BH17: =IFERROR(VLOOKUP(ROWS($BE$9:BE17),$BD$9:$BE$162,2,0),"") -> D Shape | BL17: =IF(ISNUMBER(SEARCH($B$15,BM17)),MAX($BL$8:BL16)+1,0) -> 9 | BM17: D Shape | BP17: =IFERROR(VLOOKUP(ROWS($BM$9:BM17),$BL$9:$BM$162,2,0),"") -> D Shape | BT17: =IF(ISNUMBER(SEARCH($B$16,BU17)),MAX($BT$8:BT16)+1,0) -> 9 | BU17: D Shape | BX17: =IFERROR(VLOOKUP(ROWS($BU$9:BU17),$BT$9:$BU$162,2,0),"") -> D Shape | CB17: =IF(ISNUMBER(SEARCH($B$17,CC17)),MAX($CB$8:CB16)+1,0) -> 9 | CC17: D Shape | CF17: =IFERROR(VLOOKUP(ROWS($CC$9:CC17),$CB$9:$CC$162,2,0),"") -> D Shape | CJ17: =IF(ISNUMBER(SEARCH($B$18,CK17)),MAX($CJ$8:CJ16)+1,0) -> 9 | CK17: D Shape | CN17: =IFERROR(VLOOKUP(ROWS($CK$9:CK17),$CJ$9:$CK$162,2,0),"") -> D Shape | CT17: No | CX17: =IF(L17<>"Acrobatic skill","",IF(VLOOKUP(B17,Moves!$A$1:$D$150,4,FALSE)="",IF(J17="X","Yes",IF(K17="X","Yes","No")),"No")) ->  | CY17: =IF(L17<>"Flight skill/series","",IF(K17="X",IF(VLOOKUP(B17,Moves!A9:D158,4,FALSE)<>"","Yes","No"),"No")) ->  | DA17: =IF(M17<>$M$33,"",IF(G17<>"X","No",IF(VLOOKUP(B17,Moves!$A$1:$D$150,3,FALSE)<>4,IF(H17="X","Yes",IF(I17="X","Yes",IF(J17="X","Yes")))))) ->  | DB17: Yes
A18: 10 | D18: =IFERROR(IF(VLOOKUP(B18,Moves!$A$1:$D$150,2,FALSE)="A","X"," "),"") ->  | E18: =IFERROR(IF(VLOOKUP(B18,Moves!$A$1:$D$150,2,FALSE)="B","X"," "),"") ->  | F18: =IFERROR(IF(VLOOKUP(B18,Moves!$A$1:$D$150,2,FALSE)="C","X"," "),"") ->  | G18: =IFERROR(IF(VLOOKUP(B18,Moves!$A$1:$D$150,2,FALSE)="D","X"," "),"") ->  | H18: =IFERROR(IF(VLOOKUP(B18,Moves!$A$1:$D$150,3,FALSE)=1,"X"," "),"") ->  | I18: =IFERROR(IF(VLOOKUP(B18,Moves!$A$1:$D$150,3,FALSE)=2,"X"," "),"") ->  | J18: =IFERROR(IF(VLOOKUP(B18,Moves!$A$1:$D$150,3,FALSE)=3,"X"," "),"") ->  | K18: =IFERROR(IF(VLOOKUP(B18,Moves!$A$1:$D$150,3,FALSE)=4,"X"," "),"") ->  | P18: =IF(ISNUMBER(SEARCH($B$9,Q18)),MAX($P$8:P17)+1,0) -> 10 | Q18: Bridge | T18: =IFERROR(VLOOKUP(ROWS($Q$9:Q18),$P$9:$Q$162,2,0),"") -> Bridge | X18: =IF(ISNUMBER(SEARCH($B$10,Y18)),MAX($X$8:X17)+1,0) -> 10 | Y18: Bridge | AB18: =IFERROR(VLOOKUP(ROWS($Y$9:Y18),$X$9:$Y$162,2,0),"") -> Bridge | AF18: =IF(ISNUMBER(SEARCH($B$11,AG18)),MAX($AF$8:AF17)+1,0) -> 10 | AG18: Bridge | AJ18: =IFERROR(VLOOKUP(ROWS($AG$9:AG18),$AF$9:$AG$162,2,0),"") -> Bridge | AN18: =IF(ISNUMBER(SEARCH($B$12,AO18)),MAX($AN$8:AN17)+1,0) -> 10 | AO18: Bridge | AR18: =IFERROR(VLOOKUP(ROWS($AO$9:AO18),$AN$9:$AO$162,2,0),"") -> Bridge | AV18: =IF(ISNUMBER(SEARCH($B$13,AW18)),MAX($AV$8:AV17)+1,0) -> 10 | AW18: Bridge | AZ18: =IFERROR(VLOOKUP(ROWS($AW$9:AW18),$AV$9:$AW$162,2,0),"") -> Bridge | BD18: =IF(ISNUMBER(SEARCH($B$14,BE18)),MAX($BD$8:BD17)+1,0) -> 10 | BE18: Bridge | BH18: =IFERROR(VLOOKUP(ROWS($BE$9:BE18),$BD$9:$BE$162,2,0),"") -> Bridge | BL18: =IF(ISNUMBER(SEARCH($B$15,BM18)),MAX($BL$8:BL17)+1,0) -> 10 | BM18: Bridge | BP18: =IFERROR(VLOOKUP(ROWS($BM$9:BM18),$BL$9:$BM$162,2,0),"") -> Bridge | BT18: =IF(ISNUMBER(SEARCH($B$16,BU18)),MAX($BT$8:BT17)+1,0) -> 10 | BU18: Bridge | BX18: =IFERROR(VLOOKUP(ROWS($BU$9:BU18),$BT$9:$BU$162,2,0),"") -> Bridge | CB18: =IF(ISNUMBER(SEARCH($B$17,CC18)),MAX($CB$8:CB17)+1,0) -> 10 | CC18: Bridge | CF18: =IFERROR(VLOOKUP(ROWS($CC$9:CC18),$CB$9:$CC$162,2,0),"") -> Bridge | CJ18: =IF(ISNUMBER(SEARCH($B$18,CK18)),MAX($CJ$8:CJ17)+1,0) -> 10 | CK18: Bridge | CN18: =IFERROR(VLOOKUP(ROWS($CK$9:CK18),$CJ$9:$CK$162,2,0),"") -> Bridge | CT18: No | CX18: =IF(L18<>"Acrobatic skill","",IF(VLOOKUP(B18,Moves!$A$1:$D$150,4,FALSE)="",IF(J18="X","Yes",IF(K18="X","Yes","No")),"No")) ->  | CY18: =IF(L18<>"Flight skill/series","",IF(K18="X",IF(VLOOKUP(B18,Moves!A10:D159,4,FALSE)<>"","Yes","No"),"No")) ->  | DA18: =IF(M18<>$M$33,"",IF(G18<>"X","No",IF(VLOOKUP(B18,Moves!$A$1:$D$150,3,FALSE)<>4,IF(H18="X","Yes",IF(I18="X","Yes",IF(J18="X","Yes")))))) ->  | DB18: Yes
P19: =IF(ISNUMBER(SEARCH($B$9,Q19)),MAX($P$8:P18)+1,0) -> 11 | Q19: F or B support (lower or push up) | T19: =IFERROR(VLOOKUP(ROWS($Q$9:Q19),$P$9:$Q$162,2,0),"") -> F or B support (lower or push up) | X19: =IF(ISNUMBER(SEARCH($B$10,Y19)),MAX($X$8:X18)+1,0) -> 11 | Y19: F or B support (lower or push up) | AB19: =IFERROR(VLOOKUP(ROWS($Y$9:Y19),$X$9:$Y$162,2,0),"") -> F or B support (lower or push up) | AF19: =IF(ISNUMBER(SEARCH($B$11,AG19)),MAX($AF$8:AF18)+1,0) -> 11 | AG19: F or B support (lower or push up) | AJ19: =IFERROR(VLOOKUP(ROWS($AG$9:AG19),$AF$9:$AG$162,2,0),"") -> F or B support (lower or push up) | AN19: =IF(ISNUMBER(SEARCH($B$12,AO19)),MAX($AN$8:AN18)+1,0) -> 11 | AO19: F or B support (lower or push up) | AR19: =IFERROR(VLOOKUP(ROWS($AO$9:AO19),$AN$9:$AO$162,2,0),"") -> F or B support (lower or push up) | AV19: =IF(ISNUMBER(SEARCH($B$13,AW19)),MAX($AV$8:AV18)+1,0) -> 11 | AW19: F or B support (lower or push up) | AZ19: =IFERROR(VLOOKUP(ROWS($AW$9:AW19),$AV$9:$AW$162,2,0),"") -> F or B support (lower or push up) | BD19: =IF(ISNUMBER(SEARCH($B$14,BE19)),MAX($BD$8:BD18)+1,0) -> 11 | BE19: F or B support (lower or push up) | BH19: =IFERROR(VLOOKUP(ROWS($BE$9:BE19),$BD$9:$BE$162,2,0),"") -> F or B support (lower or push up) | BL19: =IF(ISNUMBER(SEARCH($B$15,BM19)),MAX($BL$8:BL18)+1,0) -> 11 | BM19: F or B support (lower or push up) | BP19: =IFERROR(VLOOKUP(ROWS($BM$9:BM19),$BL$9:$BM$162,2,0),"") -> F or B support (lower or push up) | BT19: =IF(ISNUMBER(SEARCH($B$16,BU19)),MAX($BT$8:BT18)+1,0) -> 11 | BU19: F or B support (lower or push up) | BX19: =IFERROR(VLOOKUP(ROWS($BU$9:BU19),$BT$9:$BU$162,2,0),"") -> F or B support (lower or push up) | CB19: =IF(ISNUMBER(SEARCH($B$17,CC19)),MAX($CB$8:CB18)+1,0) -> 11 | CC19: F or B support (lower or push up) | CF19: =IFERROR(VLOOKUP(ROWS($CC$9:CC19),$CB$9:$CC$162,2,0),"") -> F or B support (lower or push up) | CJ19: =IF(ISNUMBER(SEARCH($B$18,CK19)),MAX($CJ$8:CJ18)+1,0) -> 11 | CK19: F or B support (lower or push up) | CN19: =IFERROR(VLOOKUP(ROWS($CK$9:CK19),$CJ$9:$CK$162,2,0),"") -> F or B support (lower or push up) | DL19: =IF(ISERROR(MODE($DK$9:$DL$18)),"Yes","No") -> Yes
A20: Judges Section | D20: Difficulty | H20: Group Content | P20: =IF(ISNUMBER(SEARCH($B$9,Q20)),MAX($P$8:P19)+1,0) -> 12 | Q20: F Support turn to B Support | T20: =IFERROR(VLOOKUP(ROWS($Q$9:Q20),$P$9:$Q$162,2,0),"") -> F Support turn to B Support | X20: =IF(ISNUMBER(SEARCH($B$10,Y20)),MAX($X$8:X19)+1,0) -> 12 | Y20: F Support turn to B Support | AB20: =IFERROR(VLOOKUP(ROWS($Y$9:Y20),$X$9:$Y$162,2,0),"") -> F Support turn to B Support | AF20: =IF(ISNUMBER(SEARCH($B$11,AG20)),MAX($AF$8:AF19)+1,0) -> 12 | AG20: F Support turn to B Support | AJ20: =IFERROR(VLOOKUP(ROWS($AG$9:AG20),$AF$9:$AG$162,2,0),"") -> F Support turn to B Support | AN20: =IF(ISNUMBER(SEARCH($B$12,AO20)),MAX($AN$8:AN19)+1,0) -> 12 | AO20: F Support turn to B Support | AR20: =IFERROR(VLOOKUP(ROWS($AO$9:AO20),$AN$9:$AO$162,2,0),"") -> F Support turn to B Support | AV20: =IF(ISNUMBER(SEARCH($B$13,AW20)),MAX($AV$8:AV19)+1,0) -> 12 | AW20: F Support turn to B Support | AZ20: =IFERROR(VLOOKUP(ROWS($AW$9:AW20),$AV$9:$AW$162,2,0),"") -> F Support turn to B Support | BD20: =IF(ISNUMBER(SEARCH($B$14,BE20)),MAX($BD$8:BD19)+1,0) -> 12 | BE20: F Support turn to B Support | BH20: =IFERROR(VLOOKUP(ROWS($BE$9:BE20),$BD$9:$BE$162,2,0),"") -> F Support turn to B Support | BL20: =IF(ISNUMBER(SEARCH($B$15,BM20)),MAX($BL$8:BL19)+1,0) -> 12 | BM20: F Support turn to B Support | BP20: =IFERROR(VLOOKUP(ROWS($BM$9:BM20),$BL$9:$BM$162,2,0),"") -> F Support turn to B Support | BT20: =IF(ISNUMBER(SEARCH($B$16,BU20)),MAX($BT$8:BT19)+1,0) -> 12 | BU20: F Support turn to B Support | BX20: =IFERROR(VLOOKUP(ROWS($BU$9:BU20),$BT$9:$BU$162,2,0),"") -> F Support turn to B Support | CB20: =IF(ISNUMBER(SEARCH($B$17,CC20)),MAX($CB$8:CB19)+1,0) -> 12 | CC20: F Support turn to B Support | CF20: =IFERROR(VLOOKUP(ROWS($CC$9:CC20),$CB$9:$CC$162,2,0),"") -> F Support turn to B Support | CJ20: =IF(ISNUMBER(SEARCH($B$18,CK20)),MAX($CJ$8:CJ19)+1,0) -> 12 | CK20: F Support turn to B Support | CN20: =IFERROR(VLOOKUP(ROWS($CK$9:CK20),$CJ$9:$CK$162,2,0),"") -> F Support turn to B Support
D21: 3 x A = 0.60 | H21: 2 x Grp 1 | L21: 1 = 0.20 | M21: C Skill Gp 1,2 or 3 =0.50 | P21: =IF(ISNUMBER(SEARCH($B$9,Q21)),MAX($P$8:P20)+1,0) -> 13 | Q21: Piked V sit (hand supp.) | T21: =IFERROR(VLOOKUP(ROWS($Q$9:Q21),$P$9:$Q$162,2,0),"") -> Piked V sit (hand supp.) | X21: =IF(ISNUMBER(SEARCH($B$10,Y21)),MAX($X$8:X20)+1,0) -> 13 | Y21: Piked V sit (hand supp.) | AB21: =IFERROR(VLOOKUP(ROWS($Y$9:Y21),$X$9:$Y$162,2,0),"") -> Piked V sit (hand supp.) | AF21: =IF(ISNUMBER(SEARCH($B$11,AG21)),MAX($AF$8:AF20)+1,0) -> 13 | AG21: Piked V sit (hand supp.) | AJ21: =IFERROR(VLOOKUP(ROWS($AG$9:AG21),$AF$9:$AG$162,2,0),"") -> Piked V sit (hand supp.) | AN21: =IF(ISNUMBER(SEARCH($B$12,AO21)),MAX($AN$8:AN20)+1,0) -> 13 | AO21: Piked V sit (hand supp.) | AR21: =IFERROR(VLOOKUP(ROWS($AO$9:AO21),$AN$9:$AO$162,2,0),"") -> Piked V sit (hand supp.) | AV21: =IF(ISNUMBER(SEARCH($B$13,AW21)),MAX($AV$8:AV20)+1,0) -> 13 | AW21: Piked V sit (hand supp.) | AZ21: =IFERROR(VLOOKUP(ROWS($AW$9:AW21),$AV$9:$AW$162,2,0),"") -> Piked V sit (hand supp.) | BD21: =IF(ISNUMBER(SEARCH($B$14,BE21)),MAX($BD$8:BD20)+1,0) -> 13 | BE21: Piked V sit (hand supp.) | BH21: =IFERROR(VLOOKUP(ROWS($BE$9:BE21),$BD$9:$BE$162,2,0),"") -> Piked V sit (hand supp.) | BL21: =IF(ISNUMBER(SEARCH($B$15,BM21)),MAX($BL$8:BL20)+1,0) -> 13 | BM21: Piked V sit (hand supp.) | BP21: =IFERROR(VLOOKUP(ROWS($BM$9:BM21),$BL$9:$BM$162,2,0),"") -> Piked V sit (hand supp.) | BT21: =IF(ISNUMBER(SEARCH($B$16,BU21)),MAX($BT$8:BT20)+1,0) -> 13 | BU21: Piked V sit (hand supp.) | BX21: =IFERROR(VLOOKUP(ROWS($BU$9:BU21),$BT$9:$BU$162,2,0),"") -> Piked V sit (hand supp.) | CB21: =IF(ISNUMBER(SEARCH($B$17,CC21)),MAX($CB$8:CB20)+1,0) -> 13 | CC21: Piked V sit (hand supp.) | CF21: =IFERROR(VLOOKUP(ROWS($CC$9:CC21),$CB$9:$CC$162,2,0),"") -> Piked V sit (hand supp.) | CJ21: =IF(ISNUMBER(SEARCH($B$18,CK21)),MAX($CJ$8:CJ20)+1,0) -> 13 | CK21: Piked V sit (hand supp.) | CN21: =IFERROR(VLOOKUP(ROWS($CK$9:CK21),$CJ$9:$CK$162,2,0),"") -> Piked V sit (hand supp.)
D22: 4 x B = 1.20 | H22: 2 x Grp 2 | L22: 2 = 0.20 | M22: Different group from other | P22: =IF(ISNUMBER(SEARCH($B$9,Q22)),MAX($P$8:P21)+1,0) -> 14 | Q22: ½ lever (1 foot on floor) | T22: =IFERROR(VLOOKUP(ROWS($Q$9:Q22),$P$9:$Q$162,2,0),"") -> ½ lever (1 foot on floor) | X22: =IF(ISNUMBER(SEARCH($B$10,Y22)),MAX($X$8:X21)+1,0) -> 14 | Y22: ½ lever (1 foot on floor) | AB22: =IFERROR(VLOOKUP(ROWS($Y$9:Y22),$X$9:$Y$162,2,0),"") -> ½ lever (1 foot on floor) | AF22: =IF(ISNUMBER(SEARCH($B$11,AG22)),MAX($AF$8:AF21)+1,0) -> 14 | AG22: ½ lever (1 foot on floor) | AJ22: =IFERROR(VLOOKUP(ROWS($AG$9:AG22),$AF$9:$AG$162,2,0),"") -> ½ lever (1 foot on floor) | AN22: =IF(ISNUMBER(SEARCH($B$12,AO22)),MAX($AN$8:AN21)+1,0) -> 14 | AO22: ½ lever (1 foot on floor) | AR22: =IFERROR(VLOOKUP(ROWS($AO$9:AO22),$AN$9:$AO$162,2,0),"") -> ½ lever (1 foot on floor) | AV22: =IF(ISNUMBER(SEARCH($B$13,AW22)),MAX($AV$8:AV21)+1,0) -> 14 | AW22: ½ lever (1 foot on floor) | AZ22: =IFERROR(VLOOKUP(ROWS($AW$9:AW22),$AV$9:$AW$162,2,0),"") -> ½ lever (1 foot on floor) | BD22: =IF(ISNUMBER(SEARCH($B$14,BE22)),MAX($BD$8:BD21)+1,0) -> 14 | BE22: ½ lever (1 foot on floor) | BH22: =IFERROR(VLOOKUP(ROWS($BE$9:BE22),$BD$9:$BE$162,2,0),"") -> ½ lever (1 foot on floor) | BL22: =IF(ISNUMBER(SEARCH($B$15,BM22)),MAX($BL$8:BL21)+1,0) -> 14 | BM22: ½ lever (1 foot on floor) | BP22: =IFERROR(VLOOKUP(ROWS($BM$9:BM22),$BL$9:$BM$162,2,0),"") -> ½ lever (1 foot on floor) | BT22: =IF(ISNUMBER(SEARCH($B$16,BU22)),MAX($BT$8:BT21)+1,0) -> 14 | BU22: ½ lever (1 foot on floor) | BX22: =IFERROR(VLOOKUP(ROWS($BU$9:BU22),$BT$9:$BU$162,2,0),"") -> ½ lever (1 foot on floor) | CB22: =IF(ISNUMBER(SEARCH($B$17,CC22)),MAX($CB$8:CB21)+1,0) -> 14 | CC22: ½ lever (1 foot on floor) | CF22: =IFERROR(VLOOKUP(ROWS($CC$9:CC22),$CB$9:$CC$162,2,0),"") -> ½ lever (1 foot on floor) | CJ22: =IF(ISNUMBER(SEARCH($B$18,CK22)),MAX($CJ$8:CJ21)+1,0) -> 14 | CK22: ½ lever (1 foot on floor) | CN22: =IFERROR(VLOOKUP(ROWS($CK$9:CK22),$CJ$9:$CK$162,2,0),"") -> ½ lever (1 foot on floor)
D23: 1x C = 0.50 | H23: 2 x Grp 3 | L23: 3 = 0.20 | M23: C skill | P23: =IF(ISNUMBER(SEARCH($B$9,Q23)),MAX($P$8:P22)+1,0) -> 15 | Q23: Headstand (leg optional) | T23: =IFERROR(VLOOKUP(ROWS($Q$9:Q23),$P$9:$Q$162,2,0),"") -> Headstand (leg optional) | X23: =IF(ISNUMBER(SEARCH($B$10,Y23)),MAX($X$8:X22)+1,0) -> 15 | Y23: Headstand (leg optional) | AB23: =IFERROR(VLOOKUP(ROWS($Y$9:Y23),$X$9:$Y$162,2,0),"") -> Headstand (leg optional) | AF23: =IF(ISNUMBER(SEARCH($B$11,AG23)),MAX($AF$8:AF22)+1,0) -> 15 | AG23: Headstand (leg optional) | AJ23: =IFERROR(VLOOKUP(ROWS($AG$9:AG23),$AF$9:$AG$162,2,0),"") -> Headstand (leg optional) | AN23: =IF(ISNUMBER(SEARCH($B$12,AO23)),MAX($AN$8:AN22)+1,0) -> 15 | AO23: Headstand (leg optional) | AR23: =IFERROR(VLOOKUP(ROWS($AO$9:AO23),$AN$9:$AO$162,2,0),"") -> Headstand (leg optional) | AV23: =IF(ISNUMBER(SEARCH($B$13,AW23)),MAX($AV$8:AV22)+1,0) -> 15 | AW23: Headstand (leg optional) | AZ23: =IFERROR(VLOOKUP(ROWS($AW$9:AW23),$AV$9:$AW$162,2,0),"") -> Headstand (leg optional) | BD23: =IF(ISNUMBER(SEARCH($B$14,BE23)),MAX($BD$8:BD22)+1,0) -> 15 | BE23: Headstand (leg optional) | BH23: =IFERROR(VLOOKUP(ROWS($BE$9:BE23),$BD$9:$BE$162,2,0),"") -> Headstand (leg optional) | BL23: =IF(ISNUMBER(SEARCH($B$15,BM23)),MAX($BL$8:BL22)+1,0) -> 15 | BM23: Headstand (leg optional) | BP23: =IFERROR(VLOOKUP(ROWS($BM$9:BM23),$BL$9:$BM$162,2,0),"") -> Headstand (leg optional) | BT23: =IF(ISNUMBER(SEARCH($B$16,BU23)),MAX($BT$8:BT22)+1,0) -> 15 | BU23: Headstand (leg optional) | BX23: =IFERROR(VLOOKUP(ROWS($BU$9:BU23),$BT$9:$BU$162,2,0),"") -> Headstand (leg optional) | CB23: =IF(ISNUMBER(SEARCH($B$17,CC23)),MAX($CB$8:CB22)+1,0) -> 15 | CC23: Headstand (leg optional) | CF23: =IFERROR(VLOOKUP(ROWS($CC$9:CC23),$CB$9:$CC$162,2,0),"") -> Headstand (leg optional) | CJ23: =IF(ISNUMBER(SEARCH($B$18,CK23)),MAX($CJ$8:CJ22)+1,0) -> 15 | CK23: Headstand (leg optional) | CN23: =IFERROR(VLOOKUP(ROWS($CK$9:CK23),$CJ$9:$CK$162,2,0),"") -> Headstand (leg optional)
H24: 2 x Grp 4 | L24: 4 = 0.20 | M24: D Skill Gp 1,2 or 3 = 0.70 | P24: =IF(ISNUMBER(SEARCH($B$9,Q24)),MAX($P$8:P23)+1,0) -> 16 | Q24: Shoulder stand (hip supp) | T24: =IFERROR(VLOOKUP(ROWS($Q$9:Q24),$P$9:$Q$162,2,0),"") -> Shoulder stand (hip supp) | X24: =IF(ISNUMBER(SEARCH($B$10,Y24)),MAX($X$8:X23)+1,0) -> 16 | Y24: Shoulder stand (hip supp) | AB24: =IFERROR(VLOOKUP(ROWS($Y$9:Y24),$X$9:$Y$162,2,0),"") -> Shoulder stand (hip supp) | AF24: =IF(ISNUMBER(SEARCH($B$11,AG24)),MAX($AF$8:AF23)+1,0) -> 16 | AG24: Shoulder stand (hip supp) | AJ24: =IFERROR(VLOOKUP(ROWS($AG$9:AG24),$AF$9:$AG$162,2,0),"") -> Shoulder stand (hip supp) | AN24: =IF(ISNUMBER(SEARCH($B$12,AO24)),MAX($AN$8:AN23)+1,0) -> 16 | AO24: Shoulder stand (hip supp) | AR24: =IFERROR(VLOOKUP(ROWS($AO$9:AO24),$AN$9:$AO$162,2,0),"") -> Shoulder stand (hip supp) | AV24: =IF(ISNUMBER(SEARCH($B$13,AW24)),MAX($AV$8:AV23)+1,0) -> 16 | AW24: Shoulder stand (hip supp) | AZ24: =IFERROR(VLOOKUP(ROWS($AW$9:AW24),$AV$9:$AW$162,2,0),"") -> Shoulder stand (hip supp) | BD24: =IF(ISNUMBER(SEARCH($B$14,BE24)),MAX($BD$8:BD23)+1,0) -> 16 | BE24: Shoulder stand (hip supp) | BH24: =IFERROR(VLOOKUP(ROWS($BE$9:BE24),$BD$9:$BE$162,2,0),"") -> Shoulder stand (hip supp) | BL24: =IF(ISNUMBER(SEARCH($B$15,BM24)),MAX($BL$8:BL23)+1,0) -> 16 | BM24: Shoulder stand (hip supp) | BP24: =IFERROR(VLOOKUP(ROWS($BM$9:BM24),$BL$9:$BM$162,2,0),"") -> Shoulder stand (hip supp) | BT24: =IF(ISNUMBER(SEARCH($B$16,BU24)),MAX($BT$8:BT23)+1,0) -> 16 | BU24: Shoulder stand (hip supp) | BX24: =IFERROR(VLOOKUP(ROWS($BU$9:BU24),$BT$9:$BU$162,2,0),"") -> Shoulder stand (hip supp) | CB24: =IF(ISNUMBER(SEARCH($B$17,CC24)),MAX($CB$8:CB23)+1,0) -> 16 | CC24: Shoulder stand (hip supp) | CF24: =IFERROR(VLOOKUP(ROWS($CC$9:CC24),$CB$9:$CC$162,2,0),"") -> Shoulder stand (hip supp) | CJ24: =IF(ISNUMBER(SEARCH($B$18,CK24)),MAX($CJ$8:CJ23)+1,0) -> 16 | CK24: Shoulder stand (hip supp) | CN24: =IFERROR(VLOOKUP(ROWS($CK$9:CK24),$CJ$9:$CK$162,2,0),"") -> Shoulder stand (hip supp)
L25: 5 = 0.20 | P25: =IF(ISNUMBER(SEARCH($B$9,Q25)),MAX($P$8:P24)+1,0) -> 17 | Q25: Forward Roll | T25: =IFERROR(VLOOKUP(ROWS($Q$9:Q25),$P$9:$Q$162,2,0),"") -> Forward Roll | X25: =IF(ISNUMBER(SEARCH($B$10,Y25)),MAX($X$8:X24)+1,0) -> 17 | Y25: Forward Roll | AB25: =IFERROR(VLOOKUP(ROWS($Y$9:Y25),$X$9:$Y$162,2,0),"") -> Forward Roll | AF25: =IF(ISNUMBER(SEARCH($B$11,AG25)),MAX($AF$8:AF24)+1,0) -> 17 | AG25: Forward Roll | AJ25: =IFERROR(VLOOKUP(ROWS($AG$9:AG25),$AF$9:$AG$162,2,0),"") -> Forward Roll | AN25: =IF(ISNUMBER(SEARCH($B$12,AO25)),MAX($AN$8:AN24)+1,0) -> 17 | AO25: Forward Roll | AR25: =IFERROR(VLOOKUP(ROWS($AO$9:AO25),$AN$9:$AO$162,2,0),"") -> Forward Roll | AV25: =IF(ISNUMBER(SEARCH($B$13,AW25)),MAX($AV$8:AV24)+1,0) -> 17 | AW25: Forward Roll | AZ25: =IFERROR(VLOOKUP(ROWS($AW$9:AW25),$AV$9:$AW$162,2,0),"") -> Forward Roll | BD25: =IF(ISNUMBER(SEARCH($B$14,BE25)),MAX($BD$8:BD24)+1,0) -> 17 | BE25: Forward Roll | BH25: =IFERROR(VLOOKUP(ROWS($BE$9:BE25),$BD$9:$BE$162,2,0),"") -> Forward Roll | BL25: =IF(ISNUMBER(SEARCH($B$15,BM25)),MAX($BL$8:BL24)+1,0) -> 17 | BM25: Forward Roll | BP25: =IFERROR(VLOOKUP(ROWS($BM$9:BM25),$BL$9:$BM$162,2,0),"") -> Forward Roll | BT25: =IF(ISNUMBER(SEARCH($B$16,BU25)),MAX($BT$8:BT24)+1,0) -> 17 | BU25: Forward Roll | BX25: =IFERROR(VLOOKUP(ROWS($BU$9:BU25),$BT$9:$BU$162,2,0),"") -> Forward Roll | CB25: =IF(ISNUMBER(SEARCH($B$17,CC25)),MAX($CB$8:CB24)+1,0) -> 17 | CC25: Forward Roll | CF25: =IFERROR(VLOOKUP(ROWS($CC$9:CC25),$CB$9:$CC$162,2,0),"") -> Forward Roll | CJ25: =IF(ISNUMBER(SEARCH($B$18,CK25)),MAX($CJ$8:CJ24)+1,0) -> 17 | CK25: Forward Roll | CN25: =IFERROR(VLOOKUP(ROWS($CK$9:CK25),$CJ$9:$CK$162,2,0),"") -> Forward Roll
D26: Total = 2.30 | L26: Total = 1.00 | M26: Total = 1.20 | P26: =IF(ISNUMBER(SEARCH($B$9,Q26)),MAX($P$8:P25)+1,0) -> 18 | Q26: Back Roll & to straddle | T26: =IFERROR(VLOOKUP(ROWS($Q$9:Q26),$P$9:$Q$162,2,0),"") -> Back Roll & to straddle | X26: =IF(ISNUMBER(SEARCH($B$10,Y26)),MAX($X$8:X25)+1,0) -> 18 | Y26: Back Roll & to straddle | AB26: =IFERROR(VLOOKUP(ROWS($Y$9:Y26),$X$9:$Y$162,2,0),"") -> Back Roll & to straddle | AF26: =IF(ISNUMBER(SEARCH($B$11,AG26)),MAX($AF$8:AF25)+1,0) -> 18 | AG26: Back Roll & to straddle | AJ26: =IFERROR(VLOOKUP(ROWS($AG$9:AG26),$AF$9:$AG$162,2,0),"") -> Back Roll & to straddle | AN26: =IF(ISNUMBER(SEARCH($B$12,AO26)),MAX($AN$8:AN25)+1,0) -> 18 | AO26: Back Roll & to straddle | AR26: =IFERROR(VLOOKUP(ROWS($AO$9:AO26),$AN$9:$AO$162,2,0),"") -> Back Roll & to straddle | AV26: =IF(ISNUMBER(SEARCH($B$13,AW26)),MAX($AV$8:AV25)+1,0) -> 18 | AW26: Back Roll & to straddle | AZ26: =IFERROR(VLOOKUP(ROWS($AW$9:AW26),$AV$9:$AW$162,2,0),"") -> Back Roll & to straddle | BD26: =IF(ISNUMBER(SEARCH($B$14,BE26)),MAX($BD$8:BD25)+1,0) -> 18 | BE26: Back Roll & to straddle | BH26: =IFERROR(VLOOKUP(ROWS($BE$9:BE26),$BD$9:$BE$162,2,0),"") -> Back Roll & to straddle | BL26: =IF(ISNUMBER(SEARCH($B$15,BM26)),MAX($BL$8:BL25)+1,0) -> 18 | BM26: Back Roll & to straddle | BP26: =IFERROR(VLOOKUP(ROWS($BM$9:BM26),$BL$9:$BM$162,2,0),"") -> Back Roll & to straddle | BT26: =IF(ISNUMBER(SEARCH($B$16,BU26)),MAX($BT$8:BT25)+1,0) -> 18 | BU26: Back Roll & to straddle | BX26: =IFERROR(VLOOKUP(ROWS($BU$9:BU26),$BT$9:$BU$162,2,0),"") -> Back Roll & to straddle | CB26: =IF(ISNUMBER(SEARCH($B$17,CC26)),MAX($CB$8:CB25)+1,0) -> 18 | CC26: Back Roll & to straddle | CF26: =IFERROR(VLOOKUP(ROWS($CC$9:CC26),$CB$9:$CC$162,2,0),"") -> Back Roll & to straddle | CJ26: =IF(ISNUMBER(SEARCH($B$18,CK26)),MAX($CJ$8:CJ25)+1,0) -> 18 | CK26: Back Roll & to straddle | CN26: =IFERROR(VLOOKUP(ROWS($CK$9:CK26),$CJ$9:$CK$162,2,0),"") -> Back Roll & to straddle
P27: =IF(ISNUMBER(SEARCH($B$9,Q27)),MAX($P$8:P26)+1,0) -> 19 | Q27: Circle (‘teddy bear’) roll | T27: =IFERROR(VLOOKUP(ROWS($Q$9:Q27),$P$9:$Q$162,2,0),"") -> Circle (‘teddy bear’) roll | X27: =IF(ISNUMBER(SEARCH($B$10,Y27)),MAX($X$8:X26)+1,0) -> 19 | Y27: Circle (‘teddy bear’) roll | AB27: =IFERROR(VLOOKUP(ROWS($Y$9:Y27),$X$9:$Y$162,2,0),"") -> Circle (‘teddy bear’) roll | AF27: =IF(ISNUMBER(SEARCH($B$11,AG27)),MAX($AF$8:AF26)+1,0) -> 19 | AG27: Circle (‘teddy bear’) roll | AJ27: =IFERROR(VLOOKUP(ROWS($AG$9:AG27),$AF$9:$AG$162,2,0),"") -> Circle (‘teddy bear’) roll | AN27: =IF(ISNUMBER(SEARCH($B$12,AO27)),MAX($AN$8:AN26)+1,0) -> 19 | AO27: Circle (‘teddy bear’) roll | AR27: =IFERROR(VLOOKUP(ROWS($AO$9:AO27),$AN$9:$AO$162,2,0),"") -> Circle (‘teddy bear’) roll | AV27: =IF(ISNUMBER(SEARCH($B$13,AW27)),MAX($AV$8:AV26)+1,0) -> 19 | AW27: Circle (‘teddy bear’) roll | AZ27: =IFERROR(VLOOKUP(ROWS($AW$9:AW27),$AV$9:$AW$162,2,0),"") -> Circle (‘teddy bear’) roll | BD27: =IF(ISNUMBER(SEARCH($B$14,BE27)),MAX($BD$8:BD26)+1,0) -> 19 | BE27: Circle (‘teddy bear’) roll | BH27: =IFERROR(VLOOKUP(ROWS($BE$9:BE27),$BD$9:$BE$162,2,0),"") -> Circle (‘teddy bear’) roll | BL27: =IF(ISNUMBER(SEARCH($B$15,BM27)),MAX($BL$8:BL26)+1,0) -> 19 | BM27: Circle (‘teddy bear’) roll | BP27: =IFERROR(VLOOKUP(ROWS($BM$9:BM27),$BL$9:$BM$162,2,0),"") -> Circle (‘teddy bear’) roll | BT27: =IF(ISNUMBER(SEARCH($B$16,BU27)),MAX($BT$8:BT26)+1,0) -> 19 | BU27: Circle (‘teddy bear’) roll | BX27: =IFERROR(VLOOKUP(ROWS($BU$9:BU27),$BT$9:$BU$162,2,0),"") -> Circle (‘teddy bear’) roll | CB27: =IF(ISNUMBER(SEARCH($B$17,CC27)),MAX($CB$8:CB26)+1,0) -> 19 | CC27: Circle (‘teddy bear’) roll | CF27: =IFERROR(VLOOKUP(ROWS($CC$9:CC27),$CB$9:$CC$162,2,0),"") -> Circle (‘teddy bear’) roll | CJ27: =IF(ISNUMBER(SEARCH($B$18,CK27)),MAX($CJ$8:CJ26)+1,0) -> 19 | CK27: Circle (‘teddy bear’) roll | CN27: =IFERROR(VLOOKUP(ROWS($CK$9:CK27),$CJ$9:$CK$162,2,0),"") -> Circle (‘teddy bear’) roll
A28: Execution | D28: 5 | P28: =IF(ISNUMBER(SEARCH($B$9,Q28)),MAX($P$8:P27)+1,0) -> 20 | Q28: Side Roll (various shapes) | T28: =IFERROR(VLOOKUP(ROWS($Q$9:Q28),$P$9:$Q$162,2,0),"") -> Side Roll (various shapes) | X28: =IF(ISNUMBER(SEARCH($B$10,Y28)),MAX($X$8:X27)+1,0) -> 20 | Y28: Side Roll (various shapes) | AB28: =IFERROR(VLOOKUP(ROWS($Y$9:Y28),$X$9:$Y$162,2,0),"") -> Side Roll (various shapes) | AF28: =IF(ISNUMBER(SEARCH($B$11,AG28)),MAX($AF$8:AF27)+1,0) -> 20 | AG28: Side Roll (various shapes) | AJ28: =IFERROR(VLOOKUP(ROWS($AG$9:AG28),$AF$9:$AG$162,2,0),"") -> Side Roll (various shapes) | AN28: =IF(ISNUMBER(SEARCH($B$12,AO28)),MAX($AN$8:AN27)+1,0) -> 20 | AO28: Side Roll (various shapes) | AR28: =IFERROR(VLOOKUP(ROWS($AO$9:AO28),$AN$9:$AO$162,2,0),"") -> Side Roll (various shapes) | AV28: =IF(ISNUMBER(SEARCH($B$13,AW28)),MAX($AV$8:AV27)+1,0) -> 20 | AW28: Side Roll (various shapes) | AZ28: =IFERROR(VLOOKUP(ROWS($AW$9:AW28),$AV$9:$AW$162,2,0),"") -> Side Roll (various shapes) | BD28: =IF(ISNUMBER(SEARCH($B$14,BE28)),MAX($BD$8:BD27)+1,0) -> 20 | BE28: Side Roll (various shapes) | BH28: =IFERROR(VLOOKUP(ROWS($BE$9:BE28),$BD$9:$BE$162,2,0),"") -> Side Roll (various shapes) | BL28: =IF(ISNUMBER(SEARCH($B$15,BM28)),MAX($BL$8:BL27)+1,0) -> 20 | BM28: Side Roll (various shapes) | BP28: =IFERROR(VLOOKUP(ROWS($BM$9:BM28),$BL$9:$BM$162,2,0),"") -> Side Roll (various shapes) | BT28: =IF(ISNUMBER(SEARCH($B$16,BU28)),MAX($BT$8:BT27)+1,0) -> 20 | BU28: Side Roll (various shapes) | BX28: =IFERROR(VLOOKUP(ROWS($BU$9:BU28),$BT$9:$BU$162,2,0),"") -> Side Roll (various shapes) | CB28: =IF(ISNUMBER(SEARCH($B$17,CC28)),MAX($CB$8:CB27)+1,0) -> 20 | CC28: Side Roll (various shapes) | CF28: =IFERROR(VLOOKUP(ROWS($CC$9:CC28),$CB$9:$CC$162,2,0),"") -> Side Roll (various shapes) | CJ28: =IF(ISNUMBER(SEARCH($B$18,CK28)),MAX($CJ$8:CJ27)+1,0) -> 20 | CK28: Side Roll (various shapes) | CN28: =IFERROR(VLOOKUP(ROWS($CK$9:CK28),$CJ$9:$CK$162,2,0),"") -> Side Roll (various shapes)
A29: Artistry / Linkage | D29: 0.4 | P29: =IF(ISNUMBER(SEARCH($B$9,Q29)),MAX($P$8:P28)+1,0) -> 21 | Q29: Egg roll (leg shape optional) | T29: =IFERROR(VLOOKUP(ROWS($Q$9:Q29),$P$9:$Q$162,2,0),"") -> Egg roll (leg shape optional) | X29: =IF(ISNUMBER(SEARCH($B$10,Y29)),MAX($X$8:X28)+1,0) -> 21 | Y29: Egg roll (leg shape optional) | AB29: =IFERROR(VLOOKUP(ROWS($Y$9:Y29),$X$9:$Y$162,2,0),"") -> Egg roll (leg shape optional) | AF29: =IF(ISNUMBER(SEARCH($B$11,AG29)),MAX($AF$8:AF28)+1,0) -> 21 | AG29: Egg roll (leg shape optional) | AJ29: =IFERROR(VLOOKUP(ROWS($AG$9:AG29),$AF$9:$AG$162,2,0),"") -> Egg roll (leg shape optional) | AN29: =IF(ISNUMBER(SEARCH($B$12,AO29)),MAX($AN$8:AN28)+1,0) -> 21 | AO29: Egg roll (leg shape optional) | AR29: =IFERROR(VLOOKUP(ROWS($AO$9:AO29),$AN$9:$AO$162,2,0),"") -> Egg roll (leg shape optional) | AV29: =IF(ISNUMBER(SEARCH($B$13,AW29)),MAX($AV$8:AV28)+1,0) -> 21 | AW29: Egg roll (leg shape optional) | AZ29: =IFERROR(VLOOKUP(ROWS($AW$9:AW29),$AV$9:$AW$162,2,0),"") -> Egg roll (leg shape optional) | BD29: =IF(ISNUMBER(SEARCH($B$14,BE29)),MAX($BD$8:BD28)+1,0) -> 21 | BE29: Egg roll (leg shape optional) | BH29: =IFERROR(VLOOKUP(ROWS($BE$9:BE29),$BD$9:$BE$162,2,0),"") -> Egg roll (leg shape optional) | BL29: =IF(ISNUMBER(SEARCH($B$15,BM29)),MAX($BL$8:BL28)+1,0) -> 21 | BM29: Egg roll (leg shape optional) | BP29: =IFERROR(VLOOKUP(ROWS($BM$9:BM29),$BL$9:$BM$162,2,0),"") -> Egg roll (leg shape optional) | BT29: =IF(ISNUMBER(SEARCH($B$16,BU29)),MAX($BT$8:BT28)+1,0) -> 21 | BU29: Egg roll (leg shape optional) | BX29: =IFERROR(VLOOKUP(ROWS($BU$9:BU29),$BT$9:$BU$162,2,0),"") -> Egg roll (leg shape optional) | CB29: =IF(ISNUMBER(SEARCH($B$17,CC29)),MAX($CB$8:CB28)+1,0) -> 21 | CC29: Egg roll (leg shape optional) | CF29: =IFERROR(VLOOKUP(ROWS($CC$9:CC29),$CB$9:$CC$162,2,0),"") -> Egg roll (leg shape optional) | CJ29: =IF(ISNUMBER(SEARCH($B$18,CK29)),MAX($CJ$8:CJ28)+1,0) -> 21 | CK29: Egg roll (leg shape optional) | CN29: =IFERROR(VLOOKUP(ROWS($CK$9:CK29),$CJ$9:$CK$162,2,0),"") -> Egg roll (leg shape optional)
A30: Total Start Value: | H30: Total Execution: | P30: =IF(ISNUMBER(SEARCH($B$9,Q30)),MAX($P$8:P29)+1,0) -> 22 | Q30: Tuck Bunny Hop to Handstand | T30: =IFERROR(VLOOKUP(ROWS($Q$9:Q30),$P$9:$Q$162,2,0),"") -> Tuck Bunny Hop to Handstand | X30: =IF(ISNUMBER(SEARCH($B$10,Y30)),MAX($X$8:X29)+1,0) -> 22 | Y30: Tuck Bunny Hop to Handstand | AB30: =IFERROR(VLOOKUP(ROWS($Y$9:Y30),$X$9:$Y$162,2,0),"") -> Tuck Bunny Hop to Handstand | AF30: =IF(ISNUMBER(SEARCH($B$11,AG30)),MAX($AF$8:AF29)+1,0) -> 22 | AG30: Tuck Bunny Hop to Handstand | AJ30: =IFERROR(VLOOKUP(ROWS($AG$9:AG30),$AF$9:$AG$162,2,0),"") -> Tuck Bunny Hop to Handstand | AN30: =IF(ISNUMBER(SEARCH($B$12,AO30)),MAX($AN$8:AN29)+1,0) -> 22 | AO30: Tuck Bunny Hop to Handstand | AR30: =IFERROR(VLOOKUP(ROWS($AO$9:AO30),$AN$9:$AO$162,2,0),"") -> Tuck Bunny Hop to Handstand | AV30: =IF(ISNUMBER(SEARCH($B$13,AW30)),MAX($AV$8:AV29)+1,0) -> 22 | AW30: Tuck Bunny Hop to Handstand | AZ30: =IFERROR(VLOOKUP(ROWS($AW$9:AW30),$AV$9:$AW$162,2,0),"") -> Tuck Bunny Hop to Handstand | BD30: =IF(ISNUMBER(SEARCH($B$14,BE30)),MAX($BD$8:BD29)+1,0) -> 22 | BE30: Tuck Bunny Hop to Handstand | BH30: =IFERROR(VLOOKUP(ROWS($BE$9:BE30),$BD$9:$BE$162,2,0),"") -> Tuck Bunny Hop to Handstand | BL30: =IF(ISNUMBER(SEARCH($B$15,BM30)),MAX($BL$8:BL29)+1,0) -> 22 | BM30: Tuck Bunny Hop to Handstand | BP30: =IFERROR(VLOOKUP(ROWS($BM$9:BM30),$BL$9:$BM$162,2,0),"") -> Tuck Bunny Hop to Handstand | BT30: =IF(ISNUMBER(SEARCH($B$16,BU30)),MAX($BT$8:BT29)+1,0) -> 22 | BU30: Tuck Bunny Hop to Handstand | BX30: =IFERROR(VLOOKUP(ROWS($BU$9:BU30),$BT$9:$BU$162,2,0),"") -> Tuck Bunny Hop to Handstand | CB30: =IF(ISNUMBER(SEARCH($B$17,CC30)),MAX($CB$8:CB29)+1,0) -> 22 | CC30: Tuck Bunny Hop to Handstand | CF30: =IFERROR(VLOOKUP(ROWS($CC$9:CC30),$CB$9:$CC$162,2,0),"") -> Tuck Bunny Hop to Handstand | CJ30: =IF(ISNUMBER(SEARCH($B$18,CK30)),MAX($CJ$8:CJ29)+1,0) -> 22 | CK30: Tuck Bunny Hop to Handstand | CN30: =IFERROR(VLOOKUP(ROWS($CK$9:CK30),$CJ$9:$CK$162,2,0),"") -> Tuck Bunny Hop to Handstand
P31: =IF(ISNUMBER(SEARCH($B$9,Q31)),MAX($P$8:P30)+1,0) -> 23 | Q31: Handstand return to feet | T31: =IFERROR(VLOOKUP(ROWS($Q$9:Q31),$P$9:$Q$162,2,0),"") -> Handstand return to feet | X31: =IF(ISNUMBER(SEARCH($B$10,Y31)),MAX($X$8:X30)+1,0) -> 23 | Y31: Handstand return to feet | AB31: =IFERROR(VLOOKUP(ROWS($Y$9:Y31),$X$9:$Y$162,2,0),"") -> Handstand return to feet | AF31: =IF(ISNUMBER(SEARCH($B$11,AG31)),MAX($AF$8:AF30)+1,0) -> 23 | AG31: Handstand return to feet | AJ31: =IFERROR(VLOOKUP(ROWS($AG$9:AG31),$AF$9:$AG$162,2,0),"") -> Handstand return to feet | AN31: =IF(ISNUMBER(SEARCH($B$12,AO31)),MAX($AN$8:AN30)+1,0) -> 23 | AO31: Handstand return to feet | AR31: =IFERROR(VLOOKUP(ROWS($AO$9:AO31),$AN$9:$AO$162,2,0),"") -> Handstand return to feet | AV31: =IF(ISNUMBER(SEARCH($B$13,AW31)),MAX($AV$8:AV30)+1,0) -> 23 | AW31: Handstand return to feet | AZ31: =IFERROR(VLOOKUP(ROWS($AW$9:AW31),$AV$9:$AW$162,2,0),"") -> Handstand return to feet | BD31: =IF(ISNUMBER(SEARCH($B$14,BE31)),MAX($BD$8:BD30)+1,0) -> 23 | BE31: Handstand return to feet | BH31: =IFERROR(VLOOKUP(ROWS($BE$9:BE31),$BD$9:$BE$162,2,0),"") -> Handstand return to feet | BL31: =IF(ISNUMBER(SEARCH($B$15,BM31)),MAX($BL$8:BL30)+1,0) -> 23 | BM31: Handstand return to feet | BP31: =IFERROR(VLOOKUP(ROWS($BM$9:BM31),$BL$9:$BM$162,2,0),"") -> Handstand return to feet | BT31: =IF(ISNUMBER(SEARCH($B$16,BU31)),MAX($BT$8:BT30)+1,0) -> 23 | BU31: Handstand return to feet | BX31: =IFERROR(VLOOKUP(ROWS($BU$9:BU31),$BT$9:$BU$162,2,0),"") -> Handstand return to feet | CB31: =IF(ISNUMBER(SEARCH($B$17,CC31)),MAX($CB$8:CB30)+1,0) -> 23 | CC31: Handstand return to feet | CF31: =IFERROR(VLOOKUP(ROWS($CC$9:CC31),$CB$9:$CC$162,2,0),"") -> Handstand return to feet | CJ31: =IF(ISNUMBER(SEARCH($B$18,CK31)),MAX($CJ$8:CJ30)+1,0) -> 23 | CK31: Handstand return to feet | CN31: =IFERROR(VLOOKUP(ROWS($CK$9:CK31),$CJ$9:$CK$162,2,0),"") -> Handstand return to feet
D32: A | E32: B | F32: C | H32: 1 | I32: 2 | J32: 3 | K32: 4 | L32: Sex | M32: Bonus - C Skill | P32: =IF(ISNUMBER(SEARCH($B$9,Q32)),MAX($P$8:P31)+1,0) -> 24 | Q32: Cartwheel | T32: =IFERROR(VLOOKUP(ROWS($Q$9:Q32),$P$9:$Q$162,2,0),"") -> Cartwheel | X32: =IF(ISNUMBER(SEARCH($B$10,Y32)),MAX($X$8:X31)+1,0) -> 24 | Y32: Cartwheel | AB32: =IFERROR(VLOOKUP(ROWS($Y$9:Y32),$X$9:$Y$162,2,0),"") -> Cartwheel | AF32: =IF(ISNUMBER(SEARCH($B$11,AG32)),MAX($AF$8:AF31)+1,0) -> 24 | AG32: Cartwheel | AJ32: =IFERROR(VLOOKUP(ROWS($AG$9:AG32),$AF$9:$AG$162,2,0),"") -> Cartwheel | AN32: =IF(ISNUMBER(SEARCH($B$12,AO32)),MAX($AN$8:AN31)+1,0) -> 24 | AO32: Cartwheel | AR32: =IFERROR(VLOOKUP(ROWS($AO$9:AO32),$AN$9:$AO$162,2,0),"") -> Cartwheel | AV32: =IF(ISNUMBER(SEARCH($B$13,AW32)),MAX($AV$8:AV31)+1,0) -> 24 | AW32: Cartwheel | AZ32: =IFERROR(VLOOKUP(ROWS($AW$9:AW32),$AV$9:$AW$162,2,0),"") -> Cartwheel | BD32: =IF(ISNUMBER(SEARCH($B$14,BE32)),MAX($BD$8:BD31)+1,0) -> 24 | BE32: Cartwheel | BH32: =IFERROR(VLOOKUP(ROWS($BE$9:BE32),$BD$9:$BE$162,2,0),"") -> Cartwheel | BL32: =IF(ISNUMBER(SEARCH($B$15,BM32)),MAX($BL$8:BL31)+1,0) -> 24 | BM32: Cartwheel | BP32: =IFERROR(VLOOKUP(ROWS($BM$9:BM32),$BL$9:$BM$162,2,0),"") -> Cartwheel | BT32: =IF(ISNUMBER(SEARCH($B$16,BU32)),MAX($BT$8:BT31)+1,0) -> 24 | BU32: Cartwheel | BX32: =IFERROR(VLOOKUP(ROWS($BU$9:BU32),$BT$9:$BU$162,2,0),"") -> Cartwheel | CB32: =IF(ISNUMBER(SEARCH($B$17,CC32)),MAX($CB$8:CB31)+1,0) -> 24 | CC32: Cartwheel | CF32: =IFERROR(VLOOKUP(ROWS($CC$9:CC32),$CB$9:$CC$162,2,0),"") -> Cartwheel | CJ32: =IF(ISNUMBER(SEARCH($B$18,CK32)),MAX($CJ$8:CJ31)+1,0) -> 24 | CK32: Cartwheel | CN32: =IFERROR(VLOOKUP(ROWS($CK$9:CK32),$CJ$9:$CK$162,2,0),"") -> Cartwheel
D33: =IF(COUNTIF(DC9:DC18,"Yes")>=3,"Yes","No") -> No | E33: =IF(COUNTIF(DD9:DD18,"Yes")>=4,"Yes","No") -> No | F33: =IF(COUNTIF(DE9:DE18,"Yes")>=1,"Yes","No") -> No | H33: =IF(COUNTIF(H9:H18,"X")>=2,IF(COUNTIF(H9:H18,"X")<=4,"Yes","No"),"No") -> No | I33: =IF(COUNTIF(I9:I18,"X")>=2,IF(COUNTIF(I9:I18,"X")<=4,"Yes","No"),"No") -> No | J33: No | K33: No | L33: Female | M33: Bonus - D Skill | P33: =IF(ISNUMBER(SEARCH($B$9,Q33)),MAX($P$8:P32)+1,0) -> 25 | Q33: Bunny Hop / Jump - (Long) | T33: =IFERROR(VLOOKUP(ROWS($Q$9:Q33),$P$9:$Q$162,2,0),"") -> Bunny Hop / Jump - (Long) | X33: =IF(ISNUMBER(SEARCH($B$10,Y33)),MAX($X$8:X32)+1,0) -> 25 | Y33: Bunny Hop / Jump - (Long) | AB33: =IFERROR(VLOOKUP(ROWS($Y$9:Y33),$X$9:$Y$162,2,0),"") -> Bunny Hop / Jump - (Long) | AF33: =IF(ISNUMBER(SEARCH($B$11,AG33)),MAX($AF$8:AF32)+1,0) -> 25 | AG33: Bunny Hop / Jump - (Long) | AJ33: =IFERROR(VLOOKUP(ROWS($AG$9:AG33),$AF$9:$AG$162,2,0),"") -> Bunny Hop / Jump - (Long) | AN33: =IF(ISNUMBER(SEARCH($B$12,AO33)),MAX($AN$8:AN32)+1,0) -> 25 | AO33: Bunny Hop / Jump - (Long) | AR33: =IFERROR(VLOOKUP(ROWS($AO$9:AO33),$AN$9:$AO$162,2,0),"") -> Bunny Hop / Jump - (Long) | AV33: =IF(ISNUMBER(SEARCH($B$13,AW33)),MAX($AV$8:AV32)+1,0) -> 25 | AW33: Bunny Hop / Jump - (Long) | AZ33: =IFERROR(VLOOKUP(ROWS($AW$9:AW33),$AV$9:$AW$162,2,0),"") -> Bunny Hop / Jump - (Long) | BD33: =IF(ISNUMBER(SEARCH($B$14,BE33)),MAX($BD$8:BD32)+1,0) -> 25 | BE33: Bunny Hop / Jump - (Long) | BH33: =IFERROR(VLOOKUP(ROWS($BE$9:BE33),$BD$9:$BE$162,2,0),"") -> Bunny Hop / Jump - (Long) | BL33: =IF(ISNUMBER(SEARCH($B$15,BM33)),MAX($BL$8:BL32)+1,0) -> 25 | BM33: Bunny Hop / Jump - (Long) | BP33: =IFERROR(VLOOKUP(ROWS($BM$9:BM33),$BL$9:$BM$162,2,0),"") -> Bunny Hop / Jump - (Long) | BT33: =IF(ISNUMBER(SEARCH($B$16,BU33)),MAX($BT$8:BT32)+1,0) -> 25 | BU33: Bunny Hop / Jump - (Long) | BX33: =IFERROR(VLOOKUP(ROWS($BU$9:BU33),$BT$9:$BU$162,2,0),"") -> Bunny Hop / Jump - (Long) | CB33: =IF(ISNUMBER(SEARCH($B$17,CC33)),MAX($CB$8:CB32)+1,0) -> 25 | CC33: Bunny Hop / Jump - (Long) | CF33: =IFERROR(VLOOKUP(ROWS($CC$9:CC33),$CB$9:$CC$162,2,0),"") -> Bunny Hop / Jump - (Long) | CJ33: =IF(ISNUMBER(SEARCH($B$18,CK33)),MAX($CJ$8:CJ32)+1,0) -> 25 | CK33: Bunny Hop / Jump - (Long) | CN33: =IFERROR(VLOOKUP(ROWS($CK$9:CK33),$CJ$9:$CK$162,2,0),"") -> Bunny Hop / Jump - (Long)
L34: Male | M34: C Skill | P34: =IF(ISNUMBER(SEARCH($B$9,Q34)),MAX($P$8:P33)+1,0) -> 26 | Q34: Bunny Hop / Jump - (High) | T34: =IFERROR(VLOOKUP(ROWS($Q$9:Q34),$P$9:$Q$162,2,0),"") -> Bunny Hop / Jump - (High) | X34: =IF(ISNUMBER(SEARCH($B$10,Y34)),MAX($X$8:X33)+1,0) -> 26 | Y34: Bunny Hop / Jump - (High) | AB34: =IFERROR(VLOOKUP(ROWS($Y$9:Y34),$X$9:$Y$162,2,0),"") -> Bunny Hop / Jump - (High) | AF34: =IF(ISNUMBER(SEARCH($B$11,AG34)),MAX($AF$8:AF33)+1,0) -> 26 | AG34: Bunny Hop / Jump - (High) | AJ34: =IFERROR(VLOOKUP(ROWS($AG$9:AG34),$AF$9:$AG$162,2,0),"") -> Bunny Hop / Jump - (High) | AN34: =IF(ISNUMBER(SEARCH($B$12,AO34)),MAX($AN$8:AN33)+1,0) -> 26 | AO34: Bunny Hop / Jump - (High) | AR34: =IFERROR(VLOOKUP(ROWS($AO$9:AO34),$AN$9:$AO$162,2,0),"") -> Bunny Hop / Jump - (High) | AV34: =IF(ISNUMBER(SEARCH($B$13,AW34)),MAX($AV$8:AV33)+1,0) -> 26 | AW34: Bunny Hop / Jump - (High) | AZ34: =IFERROR(VLOOKUP(ROWS($AW$9:AW34),$AV$9:$AW$162,2,0),"") -> Bunny Hop / Jump - (High) | BD34: =IF(ISNUMBER(SEARCH($B$14,BE34)),MAX($BD$8:BD33)+1,0) -> 26 | BE34: Bunny Hop / Jump - (High) | BH34: =IFERROR(VLOOKUP(ROWS($BE$9:BE34),$BD$9:$BE$162,2,0),"") -> Bunny Hop / Jump - (High) | BL34: =IF(ISNUMBER(SEARCH($B$15,BM34)),MAX($BL$8:BL33)+1,0) -> 26 | BM34: Bunny Hop / Jump - (High) | BP34: =IFERROR(VLOOKUP(ROWS($BM$9:BM34),$BL$9:$BM$162,2,0),"") -> Bunny Hop / Jump - (High) | BT34: =IF(ISNUMBER(SEARCH($B$16,BU34)),MAX($BT$8:BT33)+1,0) -> 26 | BU34: Bunny Hop / Jump - (High) | BX34: =IFERROR(VLOOKUP(ROWS($BU$9:BU34),$BT$9:$BU$162,2,0),"") -> Bunny Hop / Jump - (High) | CB34: =IF(ISNUMBER(SEARCH($B$17,CC34)),MAX($CB$8:CB33)+1,0) -> 26 | CC34: Bunny Hop / Jump - (High) | CF34: =IFERROR(VLOOKUP(ROWS($CC$9:CC34),$CB$9:$CC$162,2,0),"") -> Bunny Hop / Jump - (High) | CJ34: =IF(ISNUMBER(SEARCH($B$18,CK34)),MAX($CJ$8:CJ33)+1,0) -> 26 | CK34: Bunny Hop / Jump - (High) | CN34: =IFERROR(VLOOKUP(ROWS($CK$9:CK34),$CJ$9:$CK$162,2,0),"") -> Bunny Hop / Jump - (High)
D35: Achieved | H35: Achieved | M35: =IF(COUNTIF(DB9:DB18,"Yes")=10,IF(COUNTIF(CZ9:CZ18,"Yes")=1,IF(DL19="Yes","Yes","No"),"No"),"No") -> No | P35: =IF(ISNUMBER(SEARCH($B$9,Q35)),MAX($P$8:P34)+1,0) -> 27 | Q35: Split leap / jump (120° ) | T35: =IFERROR(VLOOKUP(ROWS($Q$9:Q35),$P$9:$Q$162,2,0),"") -> Split leap / jump (120° ) | X35: =IF(ISNUMBER(SEARCH($B$10,Y35)),MAX($X$8:X34)+1,0) -> 27 | Y35: Split leap / jump (120° ) | AB35: =IFERROR(VLOOKUP(ROWS($Y$9:Y35),$X$9:$Y$162,2,0),"") -> Split leap / jump (120° ) | AF35: =IF(ISNUMBER(SEARCH($B$11,AG35)),MAX($AF$8:AF34)+1,0) -> 27 | AG35: Split leap / jump (120° ) | AJ35: =IFERROR(VLOOKUP(ROWS($AG$9:AG35),$AF$9:$AG$162,2,0),"") -> Split leap / jump (120° ) | AN35: =IF(ISNUMBER(SEARCH($B$12,AO35)),MAX($AN$8:AN34)+1,0) -> 27 | AO35: Split leap / jump (120° ) | AR35: =IFERROR(VLOOKUP(ROWS($AO$9:AO35),$AN$9:$AO$162,2,0),"") -> Split leap / jump (120° ) | AV35: =IF(ISNUMBER(SEARCH($B$13,AW35)),MAX($AV$8:AV34)+1,0) -> 27 | AW35: Split leap / jump (120° ) | AZ35: =IFERROR(VLOOKUP(ROWS($AW$9:AW35),$AV$9:$AW$162,2,0),"") -> Split leap / jump (120° ) | BD35: =IF(ISNUMBER(SEARCH($B$14,BE35)),MAX($BD$8:BD34)+1,0) -> 27 | BE35: Split leap / jump (120° ) | BH35: =IFERROR(VLOOKUP(ROWS($BE$9:BE35),$BD$9:$BE$162,2,0),"") -> Split leap / jump (120° ) | BL35: =IF(ISNUMBER(SEARCH($B$15,BM35)),MAX($BL$8:BL34)+1,0) -> 27 | BM35: Split leap / jump (120° ) | BP35: =IFERROR(VLOOKUP(ROWS($BM$9:BM35),$BL$9:$BM$162,2,0),"") -> Split leap / jump (120° ) | BT35: =IF(ISNUMBER(SEARCH($B$16,BU35)),MAX($BT$8:BT34)+1,0) -> 27 | BU35: Split leap / jump (120° ) | BX35: =IFERROR(VLOOKUP(ROWS($BU$9:BU35),$BT$9:$BU$162,2,0),"") -> Split leap / jump (120° ) | CB35: =IF(ISNUMBER(SEARCH($B$17,CC35)),MAX($CB$8:CB34)+1,0) -> 27 | CC35: Split leap / jump (120° ) | CF35: =IFERROR(VLOOKUP(ROWS($CC$9:CC35),$CB$9:$CC$162,2,0),"") -> Split leap / jump (120° ) | CJ35: =IF(ISNUMBER(SEARCH($B$18,CK35)),MAX($CJ$8:CJ34)+1,0) -> 27 | CK35: Split leap / jump (120° ) | CN35: =IFERROR(VLOOKUP(ROWS($CK$9:CK35),$CJ$9:$CK$162,2,0),"") -> Split leap / jump (120° )
D36: =IF(COUNTIF(D33:F33,"Yes")=3,"Yes","No") -> No | H36: =IF(COUNTIF(H33:K33,"Yes")=4,"Yes","No") -> No | L36: GIRLS | P36: =IF(ISNUMBER(SEARCH($B$9,Q36)),MAX($P$8:P35)+1,0) -> 28 | Q36: Stag leap or jump | T36: =IFERROR(VLOOKUP(ROWS($Q$9:Q36),$P$9:$Q$162,2,0),"") -> Stag leap or jump | X36: =IF(ISNUMBER(SEARCH($B$10,Y36)),MAX($X$8:X35)+1,0) -> 28 | Y36: Stag leap or jump | AB36: =IFERROR(VLOOKUP(ROWS($Y$9:Y36),$X$9:$Y$162,2,0),"") -> Stag leap or jump | AF36: =IF(ISNUMBER(SEARCH($B$11,AG36)),MAX($AF$8:AF35)+1,0) -> 28 | AG36: Stag leap or jump | AJ36: =IFERROR(VLOOKUP(ROWS($AG$9:AG36),$AF$9:$AG$162,2,0),"") -> Stag leap or jump | AN36: =IF(ISNUMBER(SEARCH($B$12,AO36)),MAX($AN$8:AN35)+1,0) -> 28 | AO36: Stag leap or jump | AR36: =IFERROR(VLOOKUP(ROWS($AO$9:AO36),$AN$9:$AO$162,2,0),"") -> Stag leap or jump | AV36: =IF(ISNUMBER(SEARCH($B$13,AW36)),MAX($AV$8:AV35)+1,0) -> 28 | AW36: Stag leap or jump | AZ36: =IFERROR(VLOOKUP(ROWS($AW$9:AW36),$AV$9:$AW$162,2,0),"") -> Stag leap or jump | BD36: =IF(ISNUMBER(SEARCH($B$14,BE36)),MAX($BD$8:BD35)+1,0) -> 28 | BE36: Stag leap or jump | BH36: =IFERROR(VLOOKUP(ROWS($BE$9:BE36),$BD$9:$BE$162,2,0),"") -> Stag leap or jump | BL36: =IF(ISNUMBER(SEARCH($B$15,BM36)),MAX($BL$8:BL35)+1,0) -> 28 | BM36: Stag leap or jump | BP36: =IFERROR(VLOOKUP(ROWS($BM$9:BM36),$BL$9:$BM$162,2,0),"") -> Stag leap or jump | BT36: =IF(ISNUMBER(SEARCH($B$16,BU36)),MAX($BT$8:BT35)+1,0) -> 28 | BU36: Stag leap or jump | BX36: =IFERROR(VLOOKUP(ROWS($BU$9:BU36),$BT$9:$BU$162,2,0),"") -> Stag leap or jump | CB36: =IF(ISNUMBER(SEARCH($B$17,CC36)),MAX($CB$8:CB35)+1,0) -> 28 | CC36: Stag leap or jump | CF36: =IFERROR(VLOOKUP(ROWS($CC$9:CC36),$CB$9:$CC$162,2,0),"") -> Stag leap or jump | CJ36: =IF(ISNUMBER(SEARCH($B$18,CK36)),MAX($CJ$8:CJ35)+1,0) -> 28 | CK36: Stag leap or jump | CN36: =IFERROR(VLOOKUP(ROWS($CK$9:CK36),$CJ$9:$CK$162,2,0),"") -> Stag leap or jump
L37: Group 1 skill | M37: D Skill | P37: =IF(ISNUMBER(SEARCH($B$9,Q37)),MAX($P$8:P36)+1,0) -> 29 | Q37: Cat leap | T37: =IFERROR(VLOOKUP(ROWS($Q$9:Q37),$P$9:$Q$162,2,0),"") -> Cat leap | X37: =IF(ISNUMBER(SEARCH($B$10,Y37)),MAX($X$8:X36)+1,0) -> 29 | Y37: Cat leap | AB37: =IFERROR(VLOOKUP(ROWS($Y$9:Y37),$X$9:$Y$162,2,0),"") -> Cat leap | AF37: =IF(ISNUMBER(SEARCH($B$11,AG37)),MAX($AF$8:AF36)+1,0) -> 29 | AG37: Cat leap | AJ37: =IFERROR(VLOOKUP(ROWS($AG$9:AG37),$AF$9:$AG$162,2,0),"") -> Cat leap | AN37: =IF(ISNUMBER(SEARCH($B$12,AO37)),MAX($AN$8:AN36)+1,0) -> 29 | AO37: Cat leap | AR37: =IFERROR(VLOOKUP(ROWS($AO$9:AO37),$AN$9:$AO$162,2,0),"") -> Cat leap | AV37: =IF(ISNUMBER(SEARCH($B$13,AW37)),MAX($AV$8:AV36)+1,0) -> 29 | AW37: Cat leap | AZ37: =IFERROR(VLOOKUP(ROWS($AW$9:AW37),$AV$9:$AW$162,2,0),"") -> Cat leap | BD37: =IF(ISNUMBER(SEARCH($B$14,BE37)),MAX($BD$8:BD36)+1,0) -> 29 | BE37: Cat leap | BH37: =IFERROR(VLOOKUP(ROWS($BE$9:BE37),$BD$9:$BE$162,2,0),"") -> Cat leap | BL37: =IF(ISNUMBER(SEARCH($B$15,BM37)),MAX($BL$8:BL36)+1,0) -> 29 | BM37: Cat leap | BP37: =IFERROR(VLOOKUP(ROWS($BM$9:BM37),$BL$9:$BM$162,2,0),"") -> Cat leap | BT37: =IF(ISNUMBER(SEARCH($B$16,BU37)),MAX($BT$8:BT36)+1,0) -> 29 | BU37: Cat leap | BX37: =IFERROR(VLOOKUP(ROWS($BU$9:BU37),$BT$9:$BU$162,2,0),"") -> Cat leap | CB37: =IF(ISNUMBER(SEARCH($B$17,CC37)),MAX($CB$8:CB36)+1,0) -> 29 | CC37: Cat leap | CF37: =IFERROR(VLOOKUP(ROWS($CC$9:CC37),$CB$9:$CC$162,2,0),"") -> Cat leap | CJ37: =IF(ISNUMBER(SEARCH($B$18,CK37)),MAX($CJ$8:CJ36)+1,0) -> 29 | CK37: Cat leap | CN37: =IFERROR(VLOOKUP(ROWS($CK$9:CK37),$CJ$9:$CK$162,2,0),"") -> Cat leap
L38: Group 2 skill - Held | M38: =IF(COUNTIF(DB9:DB18,"Yes")=10,IF(COUNTIF(DA9:DA18,"Yes")=1,"Yes","No"),"No") -> No | P38: =IF(ISNUMBER(SEARCH($B$9,Q38)),MAX($P$8:P37)+1,0) -> 30 | Q38: Jump full turn | T38: =IFERROR(VLOOKUP(ROWS($Q$9:Q38),$P$9:$Q$162,2,0),"") -> Jump full turn | X38: =IF(ISNUMBER(SEARCH($B$10,Y38)),MAX($X$8:X37)+1,0) -> 30 | Y38: Jump full turn | AB38: =IFERROR(VLOOKUP(ROWS($Y$9:Y38),$X$9:$Y$162,2,0),"") -> Jump full turn | AF38: =IF(ISNUMBER(SEARCH($B$11,AG38)),MAX($AF$8:AF37)+1,0) -> 30 | AG38: Jump full turn | AJ38: =IFERROR(VLOOKUP(ROWS($AG$9:AG38),$AF$9:$AG$162,2,0),"") -> Jump full turn | AN38: =IF(ISNUMBER(SEARCH($B$12,AO38)),MAX($AN$8:AN37)+1,0) -> 30 | AO38: Jump full turn | AR38: =IFERROR(VLOOKUP(ROWS($AO$9:AO38),$AN$9:$AO$162,2,0),"") -> Jump full turn | AV38: =IF(ISNUMBER(SEARCH($B$13,AW38)),MAX($AV$8:AV37)+1,0) -> 30 | AW38: Jump full turn | AZ38: =IFERROR(VLOOKUP(ROWS($AW$9:AW38),$AV$9:$AW$162,2,0),"") -> Jump full turn | BD38: =IF(ISNUMBER(SEARCH($B$14,BE38)),MAX($BD$8:BD37)+1,0) -> 30 | BE38: Jump full turn | BH38: =IFERROR(VLOOKUP(ROWS($BE$9:BE38),$BD$9:$BE$162,2,0),"") -> Jump full turn | BL38: =IF(ISNUMBER(SEARCH($B$15,BM38)),MAX($BL$8:BL37)+1,0) -> 30 | BM38: Jump full turn | BP38: =IFERROR(VLOOKUP(ROWS($BM$9:BM38),$BL$9:$BM$162,2,0),"") -> Jump full turn | BT38: =IF(ISNUMBER(SEARCH($B$16,BU38)),MAX($BT$8:BT37)+1,0) -> 30 | BU38: Jump full turn | BX38: =IFERROR(VLOOKUP(ROWS($BU$9:BU38),$BT$9:$BU$162,2,0),"") -> Jump full turn | CB38: =IF(ISNUMBER(SEARCH($B$17,CC38)),MAX($CB$8:CB37)+1,0) -> 30 | CC38: Jump full turn | CF38: =IFERROR(VLOOKUP(ROWS($CC$9:CC38),$CB$9:$CC$162,2,0),"") -> Jump full turn | CJ38: =IF(ISNUMBER(SEARCH($B$18,CK38)),MAX($CJ$8:CJ37)+1,0) -> 30 | CK38: Jump full turn | CN38: =IFERROR(VLOOKUP(ROWS($CK$9:CK38),$CJ$9:$CK$162,2,0),"") -> Jump full turn
L39: Mixed series | P39: =IF(ISNUMBER(SEARCH($B$9,Q39)),MAX($P$8:P38)+1,0) -> 31 | Q39: Scissor jump | T39: =IFERROR(VLOOKUP(ROWS($Q$9:Q39),$P$9:$Q$162,2,0),"") -> Scissor jump | X39: =IF(ISNUMBER(SEARCH($B$10,Y39)),MAX($X$8:X38)+1,0) -> 31 | Y39: Scissor jump | AB39: =IFERROR(VLOOKUP(ROWS($Y$9:Y39),$X$9:$Y$162,2,0),"") -> Scissor jump | AF39: =IF(ISNUMBER(SEARCH($B$11,AG39)),MAX($AF$8:AF38)+1,0) -> 31 | AG39: Scissor jump | AJ39: =IFERROR(VLOOKUP(ROWS($AG$9:AG39),$AF$9:$AG$162,2,0),"") -> Scissor jump | AN39: =IF(ISNUMBER(SEARCH($B$12,AO39)),MAX($AN$8:AN38)+1,0) -> 31 | AO39: Scissor jump | AR39: =IFERROR(VLOOKUP(ROWS($AO$9:AO39),$AN$9:$AO$162,2,0),"") -> Scissor jump | AV39: =IF(ISNUMBER(SEARCH($B$13,AW39)),MAX($AV$8:AV38)+1,0) -> 31 | AW39: Scissor jump | AZ39: =IFERROR(VLOOKUP(ROWS($AW$9:AW39),$AV$9:$AW$162,2,0),"") -> Scissor jump | BD39: =IF(ISNUMBER(SEARCH($B$14,BE39)),MAX($BD$8:BD38)+1,0) -> 31 | BE39: Scissor jump | BH39: =IFERROR(VLOOKUP(ROWS($BE$9:BE39),$BD$9:$BE$162,2,0),"") -> Scissor jump | BL39: =IF(ISNUMBER(SEARCH($B$15,BM39)),MAX($BL$8:BL38)+1,0) -> 31 | BM39: Scissor jump | BP39: =IFERROR(VLOOKUP(ROWS($BM$9:BM39),$BL$9:$BM$162,2,0),"") -> Scissor jump | BT39: =IF(ISNUMBER(SEARCH($B$16,BU39)),MAX($BT$8:BT38)+1,0) -> 31 | BU39: Scissor jump | BX39: =IFERROR(VLOOKUP(ROWS($BU$9:BU39),$BT$9:$BU$162,2,0),"") -> Scissor jump | CB39: =IF(ISNUMBER(SEARCH($B$17,CC39)),MAX($CB$8:CB38)+1,0) -> 31 | CC39: Scissor jump | CF39: =IFERROR(VLOOKUP(ROWS($CC$9:CC39),$CB$9:$CC$162,2,0),"") -> Scissor jump | CJ39: =IF(ISNUMBER(SEARCH($B$18,CK39)),MAX($CJ$8:CJ38)+1,0) -> 31 | CK39: Scissor jump | CN39: =IFERROR(VLOOKUP(ROWS($CK$9:CK39),$CJ$9:$CK$162,2,0),"") -> Scissor jump
L40: Acrobatic skill | M40: Criteria met before bonus | P40: =IF(ISNUMBER(SEARCH($B$9,Q40)),MAX($P$8:P39)+1,0) -> 32 | Q40: W jump | T40: =IFERROR(VLOOKUP(ROWS($Q$9:Q40),$P$9:$Q$162,2,0),"") -> W jump | X40: =IF(ISNUMBER(SEARCH($B$10,Y40)),MAX($X$8:X39)+1,0) -> 32 | Y40: W jump | AB40: =IFERROR(VLOOKUP(ROWS($Y$9:Y40),$X$9:$Y$162,2,0),"") -> W jump | AF40: =IF(ISNUMBER(SEARCH($B$11,AG40)),MAX($AF$8:AF39)+1,0) -> 32 | AG40: W jump | AJ40: =IFERROR(VLOOKUP(ROWS($AG$9:AG40),$AF$9:$AG$162,2,0),"") -> W jump | AN40: =IF(ISNUMBER(SEARCH($B$12,AO40)),MAX($AN$8:AN39)+1,0) -> 32 | AO40: W jump | AR40: =IFERROR(VLOOKUP(ROWS($AO$9:AO40),$AN$9:$AO$162,2,0),"") -> W jump | AV40: =IF(ISNUMBER(SEARCH($B$13,AW40)),MAX($AV$8:AV39)+1,0) -> 32 | AW40: W jump | AZ40: =IFERROR(VLOOKUP(ROWS($AW$9:AW40),$AV$9:$AW$162,2,0),"") -> W jump | BD40: =IF(ISNUMBER(SEARCH($B$14,BE40)),MAX($BD$8:BD39)+1,0) -> 32 | BE40: W jump | BH40: =IFERROR(VLOOKUP(ROWS($BE$9:BE40),$BD$9:$BE$162,2,0),"") -> W jump | BL40: =IF(ISNUMBER(SEARCH($B$15,BM40)),MAX($BL$8:BL39)+1,0) -> 32 | BM40: W jump | BP40: =IFERROR(VLOOKUP(ROWS($BM$9:BM40),$BL$9:$BM$162,2,0),"") -> W jump | BT40: =IF(ISNUMBER(SEARCH($B$16,BU40)),MAX($BT$8:BT39)+1,0) -> 32 | BU40: W jump | BX40: =IFERROR(VLOOKUP(ROWS($BU$9:BU40),$BT$9:$BU$162,2,0),"") -> W jump | CB40: =IF(ISNUMBER(SEARCH($B$17,CC40)),MAX($CB$8:CB39)+1,0) -> 32 | CC40: W jump | CF40: =IFERROR(VLOOKUP(ROWS($CC$9:CC40),$CB$9:$CC$162,2,0),"") -> W jump | CJ40: =IF(ISNUMBER(SEARCH($B$18,CK40)),MAX($CJ$8:CJ39)+1,0) -> 32 | CK40: W jump | CN40: =IFERROR(VLOOKUP(ROWS($CK$9:CK40),$CJ$9:$CK$162,2,0),"") -> W jump
L41: Flight skill/series | M41: =IF(D36="Yes",IF(H36="Yes",IF(L75="Yes","Yes","No"),"No"),"No") -> No | P41: =IF(ISNUMBER(SEARCH($B$9,Q41)),MAX($P$8:P40)+1,0) -> 33 | Q41: Arabesque | T41: =IFERROR(VLOOKUP(ROWS($Q$9:Q41),$P$9:$Q$162,2,0),"") -> Arabesque | X41: =IF(ISNUMBER(SEARCH($B$10,Y41)),MAX($X$8:X40)+1,0) -> 33 | Y41: Arabesque | AB41: =IFERROR(VLOOKUP(ROWS($Y$9:Y41),$X$9:$Y$162,2,0),"") -> Arabesque | AF41: =IF(ISNUMBER(SEARCH($B$11,AG41)),MAX($AF$8:AF40)+1,0) -> 33 | AG41: Arabesque | AJ41: =IFERROR(VLOOKUP(ROWS($AG$9:AG41),$AF$9:$AG$162,2,0),"") -> Arabesque | AN41: =IF(ISNUMBER(SEARCH($B$12,AO41)),MAX($AN$8:AN40)+1,0) -> 33 | AO41: Arabesque | AR41: =IFERROR(VLOOKUP(ROWS($AO$9:AO41),$AN$9:$AO$162,2,0),"") -> Arabesque | AV41: =IF(ISNUMBER(SEARCH($B$13,AW41)),MAX($AV$8:AV40)+1,0) -> 33 | AW41: Arabesque | AZ41: =IFERROR(VLOOKUP(ROWS($AW$9:AW41),$AV$9:$AW$162,2,0),"") -> Arabesque | BD41: =IF(ISNUMBER(SEARCH($B$14,BE41)),MAX($BD$8:BD40)+1,0) -> 33 | BE41: Arabesque | BH41: =IFERROR(VLOOKUP(ROWS($BE$9:BE41),$BD$9:$BE$162,2,0),"") -> Arabesque | BL41: =IF(ISNUMBER(SEARCH($B$15,BM41)),MAX($BL$8:BL40)+1,0) -> 33 | BM41: Arabesque | BP41: =IFERROR(VLOOKUP(ROWS($BM$9:BM41),$BL$9:$BM$162,2,0),"") -> Arabesque | BT41: =IF(ISNUMBER(SEARCH($B$16,BU41)),MAX($BT$8:BT40)+1,0) -> 33 | BU41: Arabesque | BX41: =IFERROR(VLOOKUP(ROWS($BU$9:BU41),$BT$9:$BU$162,2,0),"") -> Arabesque | CB41: =IF(ISNUMBER(SEARCH($B$17,CC41)),MAX($CB$8:CB40)+1,0) -> 33 | CC41: Arabesque | CF41: =IFERROR(VLOOKUP(ROWS($CC$9:CC41),$CB$9:$CC$162,2,0),"") -> Arabesque | CJ41: =IF(ISNUMBER(SEARCH($B$18,CK41)),MAX($CJ$8:CJ40)+1,0) -> 33 | CK41: Arabesque | CN41: =IFERROR(VLOOKUP(ROWS($CK$9:CK41),$CJ$9:$CK$162,2,0),"") -> Arabesque
L42: BOYS | P42: =IF(ISNUMBER(SEARCH($B$9,Q42)),MAX($P$8:P41)+1,0) -> 34 | Q42: Japana (flat back, chest to floor) | T42: =IFERROR(VLOOKUP(ROWS($Q$9:Q42),$P$9:$Q$162,2,0),"") -> Japana (flat back, chest to floor) | X42: =IF(ISNUMBER(SEARCH($B$10,Y42)),MAX($X$8:X41)+1,0) -> 34 | Y42: Japana (flat back, chest to floor) | AB42: =IFERROR(VLOOKUP(ROWS($Y$9:Y42),$X$9:$Y$162,2,0),"") -> Japana (flat back, chest to floor) | AF42: =IF(ISNUMBER(SEARCH($B$11,AG42)),MAX($AF$8:AF41)+1,0) -> 34 | AG42: Japana (flat back, chest to floor) | AJ42: =IFERROR(VLOOKUP(ROWS($AG$9:AG42),$AF$9:$AG$162,2,0),"") -> Japana (flat back, chest to floor) | AN42: =IF(ISNUMBER(SEARCH($B$12,AO42)),MAX($AN$8:AN41)+1,0) -> 34 | AO42: Japana (flat back, chest to floor) | AR42: =IFERROR(VLOOKUP(ROWS($AO$9:AO42),$AN$9:$AO$162,2,0),"") -> Japana (flat back, chest to floor) | AV42: =IF(ISNUMBER(SEARCH($B$13,AW42)),MAX($AV$8:AV41)+1,0) -> 34 | AW42: Japana (flat back, chest to floor) | AZ42: =IFERROR(VLOOKUP(ROWS($AW$9:AW42),$AV$9:$AW$162,2,0),"") -> Japana (flat back, chest to floor) | BD42: =IF(ISNUMBER(SEARCH($B$14,BE42)),MAX($BD$8:BD41)+1,0) -> 34 | BE42: Japana (flat back, chest to floor) | BH42: =IFERROR(VLOOKUP(ROWS($BE$9:BE42),$BD$9:$BE$162,2,0),"") -> Japana (flat back, chest to floor) | BL42: =IF(ISNUMBER(SEARCH($B$15,BM42)),MAX($BL$8:BL41)+1,0) -> 34 | BM42: Japana (flat back, chest to floor) | BP42: =IFERROR(VLOOKUP(ROWS($BM$9:BM42),$BL$9:$BM$162,2,0),"") -> Japana (flat back, chest to floor) | BT42: =IF(ISNUMBER(SEARCH($B$16,BU42)),MAX($BT$8:BT41)+1,0) -> 34 | BU42: Japana (flat back, chest to floor) | BX42: =IFERROR(VLOOKUP(ROWS($BU$9:BU42),$BT$9:$BU$162,2,0),"") -> Japana (flat back, chest to floor) | CB42: =IF(ISNUMBER(SEARCH($B$17,CC42)),MAX($CB$8:CB41)+1,0) -> 34 | CC42: Japana (flat back, chest to floor) | CF42: =IFERROR(VLOOKUP(ROWS($CC$9:CC42),$CB$9:$CC$162,2,0),"") -> Japana (flat back, chest to floor) | CJ42: =IF(ISNUMBER(SEARCH($B$18,CK42)),MAX($CJ$8:CJ41)+1,0) -> 34 | CK42: Japana (flat back, chest to floor) | CN42: =IFERROR(VLOOKUP(ROWS($CK$9:CK42),$CJ$9:$CK$162,2,0),"") -> Japana (flat back, chest to floor)
L43: Group 2 skill | M43: Achieved | P43: =IF(ISNUMBER(SEARCH($B$9,Q43)),MAX($P$8:P42)+1,0) -> 35 | Q43: Fall to prone push to Front Support | T43: =IFERROR(VLOOKUP(ROWS($Q$9:Q43),$P$9:$Q$162,2,0),"") -> Fall to prone push to Front Support | X43: =IF(ISNUMBER(SEARCH($B$10,Y43)),MAX($X$8:X42)+1,0) -> 35 | Y43: Fall to prone push to Front Support | AB43: =IFERROR(VLOOKUP(ROWS($Y$9:Y43),$X$9:$Y$162,2,0),"") -> Fall to prone push to Front Support | AF43: =IF(ISNUMBER(SEARCH($B$11,AG43)),MAX($AF$8:AF42)+1,0) -> 35 | AG43: Fall to prone push to Front Support | AJ43: =IFERROR(VLOOKUP(ROWS($AG$9:AG43),$AF$9:$AG$162,2,0),"") -> Fall to prone push to Front Support | AN43: =IF(ISNUMBER(SEARCH($B$12,AO43)),MAX($AN$8:AN42)+1,0) -> 35 | AO43: Fall to prone push to Front Support | AR43: =IFERROR(VLOOKUP(ROWS($AO$9:AO43),$AN$9:$AO$162,2,0),"") -> Fall to prone push to Front Support | AV43: =IF(ISNUMBER(SEARCH($B$13,AW43)),MAX($AV$8:AV42)+1,0) -> 35 | AW43: Fall to prone push to Front Support | AZ43: =IFERROR(VLOOKUP(ROWS($AW$9:AW43),$AV$9:$AW$162,2,0),"") -> Fall to prone push to Front Support | BD43: =IF(ISNUMBER(SEARCH($B$14,BE43)),MAX($BD$8:BD42)+1,0) -> 35 | BE43: Fall to prone push to Front Support | BH43: =IFERROR(VLOOKUP(ROWS($BE$9:BE43),$BD$9:$BE$162,2,0),"") -> Fall to prone push to Front Support | BL43: =IF(ISNUMBER(SEARCH($B$15,BM43)),MAX($BL$8:BL42)+1,0) -> 35 | BM43: Fall to prone push to Front Support | BP43: =IFERROR(VLOOKUP(ROWS($BM$9:BM43),$BL$9:$BM$162,2,0),"") -> Fall to prone push to Front Support | BT43: =IF(ISNUMBER(SEARCH($B$16,BU43)),MAX($BT$8:BT42)+1,0) -> 35 | BU43: Fall to prone push to Front Support | BX43: =IFERROR(VLOOKUP(ROWS($BU$9:BU43),$BT$9:$BU$162,2,0),"") -> Fall to prone push to Front Support | CB43: =IF(ISNUMBER(SEARCH($B$17,CC43)),MAX($CB$8:CB42)+1,0) -> 35 | CC43: Fall to prone push to Front Support | CF43: =IFERROR(VLOOKUP(ROWS($CC$9:CC43),$CB$9:$CC$162,2,0),"") -> Fall to prone push to Front Support | CJ43: =IF(ISNUMBER(SEARCH($B$18,CK43)),MAX($CJ$8:CJ42)+1,0) -> 35 | CK43: Fall to prone push to Front Support | CN43: =IFERROR(VLOOKUP(ROWS($CK$9:CK43),$CJ$9:$CK$162,2,0),"") -> Fall to prone push to Front Support
L44: Group 2 skill - Held | M44: =IF(M41="Yes",IF(M35="Yes",IF(M38="Yes","Yes","No"),"No"),"No") -> No | P44: =IF(ISNUMBER(SEARCH($B$9,Q44)),MAX($P$8:P43)+1,0) -> 36 | Q44: Swedish Fall | T44: =IFERROR(VLOOKUP(ROWS($Q$9:Q44),$P$9:$Q$162,2,0),"") -> Swedish Fall | X44: =IF(ISNUMBER(SEARCH($B$10,Y44)),MAX($X$8:X43)+1,0) -> 36 | Y44: Swedish Fall | AB44: =IFERROR(VLOOKUP(ROWS($Y$9:Y44),$X$9:$Y$162,2,0),"") -> Swedish Fall | AF44: =IF(ISNUMBER(SEARCH($B$11,AG44)),MAX($AF$8:AF43)+1,0) -> 36 | AG44: Swedish Fall | AJ44: =IFERROR(VLOOKUP(ROWS($AG$9:AG44),$AF$9:$AG$162,2,0),"") -> Swedish Fall | AN44: =IF(ISNUMBER(SEARCH($B$12,AO44)),MAX($AN$8:AN43)+1,0) -> 36 | AO44: Swedish Fall | AR44: =IFERROR(VLOOKUP(ROWS($AO$9:AO44),$AN$9:$AO$162,2,0),"") -> Swedish Fall | AV44: =IF(ISNUMBER(SEARCH($B$13,AW44)),MAX($AV$8:AV43)+1,0) -> 36 | AW44: Swedish Fall | AZ44: =IFERROR(VLOOKUP(ROWS($AW$9:AW44),$AV$9:$AW$162,2,0),"") -> Swedish Fall | BD44: =IF(ISNUMBER(SEARCH($B$14,BE44)),MAX($BD$8:BD43)+1,0) -> 36 | BE44: Swedish Fall | BH44: =IFERROR(VLOOKUP(ROWS($BE$9:BE44),$BD$9:$BE$162,2,0),"") -> Swedish Fall | BL44: =IF(ISNUMBER(SEARCH($B$15,BM44)),MAX($BL$8:BL43)+1,0) -> 36 | BM44: Swedish Fall | BP44: =IFERROR(VLOOKUP(ROWS($BM$9:BM44),$BL$9:$BM$162,2,0),"") -> Swedish Fall | BT44: =IF(ISNUMBER(SEARCH($B$16,BU44)),MAX($BT$8:BT43)+1,0) -> 36 | BU44: Swedish Fall | BX44: =IFERROR(VLOOKUP(ROWS($BU$9:BU44),$BT$9:$BU$162,2,0),"") -> Swedish Fall | CB44: =IF(ISNUMBER(SEARCH($B$17,CC44)),MAX($CB$8:CB43)+1,0) -> 36 | CC44: Swedish Fall | CF44: =IFERROR(VLOOKUP(ROWS($CC$9:CC44),$CB$9:$CC$162,2,0),"") -> Swedish Fall | CJ44: =IF(ISNUMBER(SEARCH($B$18,CK44)),MAX($CJ$8:CJ43)+1,0) -> 36 | CK44: Swedish Fall | CN44: =IFERROR(VLOOKUP(ROWS($CK$9:CK44),$CJ$9:$CK$162,2,0),"") -> Swedish Fall
L45: Mixed series | P45: =IF(ISNUMBER(SEARCH($B$9,Q45)),MAX($P$8:P44)+1,0) -> 37 | Q45: Piked V sit (no supp.) | T45: =IFERROR(VLOOKUP(ROWS($Q$9:Q45),$P$9:$Q$162,2,0),"") -> Piked V sit (no supp.) | X45: =IF(ISNUMBER(SEARCH($B$10,Y45)),MAX($X$8:X44)+1,0) -> 37 | Y45: Piked V sit (no supp.) | AB45: =IFERROR(VLOOKUP(ROWS($Y$9:Y45),$X$9:$Y$162,2,0),"") -> Piked V sit (no supp.) | AF45: =IF(ISNUMBER(SEARCH($B$11,AG45)),MAX($AF$8:AF44)+1,0) -> 37 | AG45: Piked V sit (no supp.) | AJ45: =IFERROR(VLOOKUP(ROWS($AG$9:AG45),$AF$9:$AG$162,2,0),"") -> Piked V sit (no supp.) | AN45: =IF(ISNUMBER(SEARCH($B$12,AO45)),MAX($AN$8:AN44)+1,0) -> 37 | AO45: Piked V sit (no supp.) | AR45: =IFERROR(VLOOKUP(ROWS($AO$9:AO45),$AN$9:$AO$162,2,0),"") -> Piked V sit (no supp.) | AV45: =IF(ISNUMBER(SEARCH($B$13,AW45)),MAX($AV$8:AV44)+1,0) -> 37 | AW45: Piked V sit (no supp.) | AZ45: =IFERROR(VLOOKUP(ROWS($AW$9:AW45),$AV$9:$AW$162,2,0),"") -> Piked V sit (no supp.) | BD45: =IF(ISNUMBER(SEARCH($B$14,BE45)),MAX($BD$8:BD44)+1,0) -> 37 | BE45: Piked V sit (no supp.) | BH45: =IFERROR(VLOOKUP(ROWS($BE$9:BE45),$BD$9:$BE$162,2,0),"") -> Piked V sit (no supp.) | BL45: =IF(ISNUMBER(SEARCH($B$15,BM45)),MAX($BL$8:BL44)+1,0) -> 37 | BM45: Piked V sit (no supp.) | BP45: =IFERROR(VLOOKUP(ROWS($BM$9:BM45),$BL$9:$BM$162,2,0),"") -> Piked V sit (no supp.) | BT45: =IF(ISNUMBER(SEARCH($B$16,BU45)),MAX($BT$8:BT44)+1,0) -> 37 | BU45: Piked V sit (no supp.) | BX45: =IFERROR(VLOOKUP(ROWS($BU$9:BU45),$BT$9:$BU$162,2,0),"") -> Piked V sit (no supp.) | CB45: =IF(ISNUMBER(SEARCH($B$17,CC45)),MAX($CB$8:CB44)+1,0) -> 37 | CC45: Piked V sit (no supp.) | CF45: =IFERROR(VLOOKUP(ROWS($CC$9:CC45),$CB$9:$CC$162,2,0),"") -> Piked V sit (no supp.) | CJ45: =IF(ISNUMBER(SEARCH($B$18,CK45)),MAX($CJ$8:CJ44)+1,0) -> 37 | CK45: Piked V sit (no supp.) | CN45: =IFERROR(VLOOKUP(ROWS($CK$9:CK45),$CJ$9:$CK$162,2,0),"") -> Piked V sit (no supp.)
L46: Acrobatic skill | P46: =IF(ISNUMBER(SEARCH($B$9,Q46)),MAX($P$8:P45)+1,0) -> 38 | Q46: 1/2 lever shown (straight or straddled) | T46: =IFERROR(VLOOKUP(ROWS($Q$9:Q46),$P$9:$Q$162,2,0),"") -> 1/2 lever shown (straight or straddled) | X46: =IF(ISNUMBER(SEARCH($B$10,Y46)),MAX($X$8:X45)+1,0) -> 38 | Y46: 1/2 lever shown (straight or straddled) | AB46: =IFERROR(VLOOKUP(ROWS($Y$9:Y46),$X$9:$Y$162,2,0),"") -> 1/2 lever shown (straight or straddled) | AF46: =IF(ISNUMBER(SEARCH($B$11,AG46)),MAX($AF$8:AF45)+1,0) -> 38 | AG46: 1/2 lever shown (straight or straddled) | AJ46: =IFERROR(VLOOKUP(ROWS($AG$9:AG46),$AF$9:$AG$162,2,0),"") -> 1/2 lever shown (straight or straddled) | AN46: =IF(ISNUMBER(SEARCH($B$12,AO46)),MAX($AN$8:AN45)+1,0) -> 38 | AO46: 1/2 lever shown (straight or straddled) | AR46: =IFERROR(VLOOKUP(ROWS($AO$9:AO46),$AN$9:$AO$162,2,0),"") -> 1/2 lever shown (straight or straddled) | AV46: =IF(ISNUMBER(SEARCH($B$13,AW46)),MAX($AV$8:AV45)+1,0) -> 38 | AW46: 1/2 lever shown (straight or straddled) | AZ46: =IFERROR(VLOOKUP(ROWS($AW$9:AW46),$AV$9:$AW$162,2,0),"") -> 1/2 lever shown (straight or straddled) | BD46: =IF(ISNUMBER(SEARCH($B$14,BE46)),MAX($BD$8:BD45)+1,0) -> 38 | BE46: 1/2 lever shown (straight or straddled) | BH46: =IFERROR(VLOOKUP(ROWS($BE$9:BE46),$BD$9:$BE$162,2,0),"") -> 1/2 lever shown (straight or straddled) | BL46: =IF(ISNUMBER(SEARCH($B$15,BM46)),MAX($BL$8:BL45)+1,0) -> 38 | BM46: 1/2 lever shown (straight or straddled) | BP46: =IFERROR(VLOOKUP(ROWS($BM$9:BM46),$BL$9:$BM$162,2,0),"") -> 1/2 lever shown (straight or straddled) | BT46: =IF(ISNUMBER(SEARCH($B$16,BU46)),MAX($BT$8:BT45)+1,0) -> 38 | BU46: 1/2 lever shown (straight or straddled) | BX46: =IFERROR(VLOOKUP(ROWS($BU$9:BU46),$BT$9:$BU$162,2,0),"") -> 1/2 lever shown (straight or straddled) | CB46: =IF(ISNUMBER(SEARCH($B$17,CC46)),MAX($CB$8:CB45)+1,0) -> 38 | CC46: 1/2 lever shown (straight or straddled) | CF46: =IFERROR(VLOOKUP(ROWS($CC$9:CC46),$CB$9:$CC$162,2,0),"") -> 1/2 lever shown (straight or straddled) | CJ46: =IF(ISNUMBER(SEARCH($B$18,CK46)),MAX($CJ$8:CJ45)+1,0) -> 38 | CK46: 1/2 lever shown (straight or straddled) | CN46: =IFERROR(VLOOKUP(ROWS($CK$9:CK46),$CJ$9:$CK$162,2,0),"") -> 1/2 lever shown (straight or straddled)
L47: Flight skill/series | P47: =IF(ISNUMBER(SEARCH($B$9,Q47)),MAX($P$8:P46)+1,0) -> 39 | Q47: Shoulder stand (no support) | T47: =IFERROR(VLOOKUP(ROWS($Q$9:Q47),$P$9:$Q$162,2,0),"") -> Shoulder stand (no support) | X47: =IF(ISNUMBER(SEARCH($B$10,Y47)),MAX($X$8:X46)+1,0) -> 39 | Y47: Shoulder stand (no support) | AB47: =IFERROR(VLOOKUP(ROWS($Y$9:Y47),$X$9:$Y$162,2,0),"") -> Shoulder stand (no support) | AF47: =IF(ISNUMBER(SEARCH($B$11,AG47)),MAX($AF$8:AF46)+1,0) -> 39 | AG47: Shoulder stand (no support) | AJ47: =IFERROR(VLOOKUP(ROWS($AG$9:AG47),$AF$9:$AG$162,2,0),"") -> Shoulder stand (no support) | AN47: =IF(ISNUMBER(SEARCH($B$12,AO47)),MAX($AN$8:AN46)+1,0) -> 39 | AO47: Shoulder stand (no support) | AR47: =IFERROR(VLOOKUP(ROWS($AO$9:AO47),$AN$9:$AO$162,2,0),"") -> Shoulder stand (no support) | AV47: =IF(ISNUMBER(SEARCH($B$13,AW47)),MAX($AV$8:AV46)+1,0) -> 39 | AW47: Shoulder stand (no support) | AZ47: =IFERROR(VLOOKUP(ROWS($AW$9:AW47),$AV$9:$AW$162,2,0),"") -> Shoulder stand (no support) | BD47: =IF(ISNUMBER(SEARCH($B$14,BE47)),MAX($BD$8:BD46)+1,0) -> 39 | BE47: Shoulder stand (no support) | BH47: =IFERROR(VLOOKUP(ROWS($BE$9:BE47),$BD$9:$BE$162,2,0),"") -> Shoulder stand (no support) | BL47: =IF(ISNUMBER(SEARCH($B$15,BM47)),MAX($BL$8:BL46)+1,0) -> 39 | BM47: Shoulder stand (no support) | BP47: =IFERROR(VLOOKUP(ROWS($BM$9:BM47),$BL$9:$BM$162,2,0),"") -> Shoulder stand (no support) | BT47: =IF(ISNUMBER(SEARCH($B$16,BU47)),MAX($BT$8:BT46)+1,0) -> 39 | BU47: Shoulder stand (no support) | BX47: =IFERROR(VLOOKUP(ROWS($BU$9:BU47),$BT$9:$BU$162,2,0),"") -> Shoulder stand (no support) | CB47: =IF(ISNUMBER(SEARCH($B$17,CC47)),MAX($CB$8:CB46)+1,0) -> 39 | CC47: Shoulder stand (no support) | CF47: =IFERROR(VLOOKUP(ROWS($CC$9:CC47),$CB$9:$CC$162,2,0),"") -> Shoulder stand (no support) | CJ47: =IF(ISNUMBER(SEARCH($B$18,CK47)),MAX($CJ$8:CJ46)+1,0) -> 39 | CK47: Shoulder stand (no support) | CN47: =IFERROR(VLOOKUP(ROWS($CK$9:CK47),$CJ$9:$CK$162,2,0),"") -> Shoulder stand (no support)
P48: =IF(ISNUMBER(SEARCH($B$9,Q48)),MAX($P$8:P47)+1,0) -> 40 | Q48: F Roll to straddle stand | T48: =IFERROR(VLOOKUP(ROWS($Q$9:Q48),$P$9:$Q$162,2,0),"") -> F Roll to straddle stand | X48: =IF(ISNUMBER(SEARCH($B$10,Y48)),MAX($X$8:X47)+1,0) -> 40 | Y48: F Roll to straddle stand | AB48: =IFERROR(VLOOKUP(ROWS($Y$9:Y48),$X$9:$Y$162,2,0),"") -> F Roll to straddle stand | AF48: =IF(ISNUMBER(SEARCH($B$11,AG48)),MAX($AF$8:AF47)+1,0) -> 40 | AG48: F Roll to straddle stand | AJ48: =IFERROR(VLOOKUP(ROWS($AG$9:AG48),$AF$9:$AG$162,2,0),"") -> F Roll to straddle stand | AN48: =IF(ISNUMBER(SEARCH($B$12,AO48)),MAX($AN$8:AN47)+1,0) -> 40 | AO48: F Roll to straddle stand | AR48: =IFERROR(VLOOKUP(ROWS($AO$9:AO48),$AN$9:$AO$162,2,0),"") -> F Roll to straddle stand | AV48: =IF(ISNUMBER(SEARCH($B$13,AW48)),MAX($AV$8:AV47)+1,0) -> 40 | AW48: F Roll to straddle stand | AZ48: =IFERROR(VLOOKUP(ROWS($AW$9:AW48),$AV$9:$AW$162,2,0),"") -> F Roll to straddle stand | BD48: =IF(ISNUMBER(SEARCH($B$14,BE48)),MAX($BD$8:BD47)+1,0) -> 40 | BE48: F Roll to straddle stand | BH48: =IFERROR(VLOOKUP(ROWS($BE$9:BE48),$BD$9:$BE$162,2,0),"") -> F Roll to straddle stand | BL48: =IF(ISNUMBER(SEARCH($B$15,BM48)),MAX($BL$8:BL47)+1,0) -> 40 | BM48: F Roll to straddle stand | BP48: =IFERROR(VLOOKUP(ROWS($BM$9:BM48),$BL$9:$BM$162,2,0),"") -> F Roll to straddle stand | BT48: =IF(ISNUMBER(SEARCH($B$16,BU48)),MAX($BT$8:BT47)+1,0) -> 40 | BU48: F Roll to straddle stand | BX48: =IFERROR(VLOOKUP(ROWS($BU$9:BU48),$BT$9:$BU$162,2,0),"") -> F Roll to straddle stand | CB48: =IF(ISNUMBER(SEARCH($B$17,CC48)),MAX($CB$8:CB47)+1,0) -> 40 | CC48: F Roll to straddle stand | CF48: =IFERROR(VLOOKUP(ROWS($CC$9:CC48),$CB$9:$CC$162,2,0),"") -> F Roll to straddle stand | CJ48: =IF(ISNUMBER(SEARCH($B$18,CK48)),MAX($CJ$8:CJ47)+1,0) -> 40 | CK48: F Roll to straddle stand | CN48: =IFERROR(VLOOKUP(ROWS($CK$9:CK48),$CJ$9:$CK$162,2,0),"") -> F Roll to straddle stand
L49: 1 | P49: =IF(ISNUMBER(SEARCH($B$9,Q49)),MAX($P$8:P48)+1,0) -> 41 | Q49: Handstand F roll | T49: =IFERROR(VLOOKUP(ROWS($Q$9:Q49),$P$9:$Q$162,2,0),"") -> Handstand F roll | X49: =IF(ISNUMBER(SEARCH($B$10,Y49)),MAX($X$8:X48)+1,0) -> 41 | Y49: Handstand F roll | AB49: =IFERROR(VLOOKUP(ROWS($Y$9:Y49),$X$9:$Y$162,2,0),"") -> Handstand F roll | AF49: =IF(ISNUMBER(SEARCH($B$11,AG49)),MAX($AF$8:AF48)+1,0) -> 41 | AG49: Handstand F roll | AJ49: =IFERROR(VLOOKUP(ROWS($AG$9:AG49),$AF$9:$AG$162,2,0),"") -> Handstand F roll | AN49: =IF(ISNUMBER(SEARCH($B$12,AO49)),MAX($AN$8:AN48)+1,0) -> 41 | AO49: Handstand F roll | AR49: =IFERROR(VLOOKUP(ROWS($AO$9:AO49),$AN$9:$AO$162,2,0),"") -> Handstand F roll | AV49: =IF(ISNUMBER(SEARCH($B$13,AW49)),MAX($AV$8:AV48)+1,0) -> 41 | AW49: Handstand F roll | AZ49: =IFERROR(VLOOKUP(ROWS($AW$9:AW49),$AV$9:$AW$162,2,0),"") -> Handstand F roll | BD49: =IF(ISNUMBER(SEARCH($B$14,BE49)),MAX($BD$8:BD48)+1,0) -> 41 | BE49: Handstand F roll | BH49: =IFERROR(VLOOKUP(ROWS($BE$9:BE49),$BD$9:$BE$162,2,0),"") -> Handstand F roll | BL49: =IF(ISNUMBER(SEARCH($B$15,BM49)),MAX($BL$8:BL48)+1,0) -> 41 | BM49: Handstand F roll | BP49: =IFERROR(VLOOKUP(ROWS($BM$9:BM49),$BL$9:$BM$162,2,0),"") -> Handstand F roll | BT49: =IF(ISNUMBER(SEARCH($B$16,BU49)),MAX($BT$8:BT48)+1,0) -> 41 | BU49: Handstand F roll | BX49: =IFERROR(VLOOKUP(ROWS($BU$9:BU49),$BT$9:$BU$162,2,0),"") -> Handstand F roll | CB49: =IF(ISNUMBER(SEARCH($B$17,CC49)),MAX($CB$8:CB48)+1,0) -> 41 | CC49: Handstand F roll | CF49: =IFERROR(VLOOKUP(ROWS($CC$9:CC49),$CB$9:$CC$162,2,0),"") -> Handstand F roll | CJ49: =IF(ISNUMBER(SEARCH($B$18,CK49)),MAX($CJ$8:CJ48)+1,0) -> 41 | CK49: Handstand F roll | CN49: =IFERROR(VLOOKUP(ROWS($CK$9:CK49),$CJ$9:$CK$162,2,0),"") -> Handstand F roll
L50: Girls G1 | P50: =IF(ISNUMBER(SEARCH($B$9,Q50)),MAX($P$8:P49)+1,0) -> 42 | Q50: B Roll to pike stand | T50: =IFERROR(VLOOKUP(ROWS($Q$9:Q50),$P$9:$Q$162,2,0),"") -> B Roll to pike stand | X50: =IF(ISNUMBER(SEARCH($B$10,Y50)),MAX($X$8:X49)+1,0) -> 42 | Y50: B Roll to pike stand | AB50: =IFERROR(VLOOKUP(ROWS($Y$9:Y50),$X$9:$Y$162,2,0),"") -> B Roll to pike stand | AF50: =IF(ISNUMBER(SEARCH($B$11,AG50)),MAX($AF$8:AF49)+1,0) -> 42 | AG50: B Roll to pike stand | AJ50: =IFERROR(VLOOKUP(ROWS($AG$9:AG50),$AF$9:$AG$162,2,0),"") -> B Roll to pike stand | AN50: =IF(ISNUMBER(SEARCH($B$12,AO50)),MAX($AN$8:AN49)+1,0) -> 42 | AO50: B Roll to pike stand | AR50: =IFERROR(VLOOKUP(ROWS($AO$9:AO50),$AN$9:$AO$162,2,0),"") -> B Roll to pike stand | AV50: =IF(ISNUMBER(SEARCH($B$13,AW50)),MAX($AV$8:AV49)+1,0) -> 42 | AW50: B Roll to pike stand | AZ50: =IFERROR(VLOOKUP(ROWS($AW$9:AW50),$AV$9:$AW$162,2,0),"") -> B Roll to pike stand | BD50: =IF(ISNUMBER(SEARCH($B$14,BE50)),MAX($BD$8:BD49)+1,0) -> 42 | BE50: B Roll to pike stand | BH50: =IFERROR(VLOOKUP(ROWS($BE$9:BE50),$BD$9:$BE$162,2,0),"") -> B Roll to pike stand | BL50: =IF(ISNUMBER(SEARCH($B$15,BM50)),MAX($BL$8:BL49)+1,0) -> 42 | BM50: B Roll to pike stand | BP50: =IFERROR(VLOOKUP(ROWS($BM$9:BM50),$BL$9:$BM$162,2,0),"") -> B Roll to pike stand | BT50: =IF(ISNUMBER(SEARCH($B$16,BU50)),MAX($BT$8:BT49)+1,0) -> 42 | BU50: B Roll to pike stand | BX50: =IFERROR(VLOOKUP(ROWS($BU$9:BU50),$BT$9:$BU$162,2,0),"") -> B Roll to pike stand | CB50: =IF(ISNUMBER(SEARCH($B$17,CC50)),MAX($CB$8:CB49)+1,0) -> 42 | CC50: B Roll to pike stand | CF50: =IFERROR(VLOOKUP(ROWS($CC$9:CC50),$CB$9:$CC$162,2,0),"") -> B Roll to pike stand | CJ50: =IF(ISNUMBER(SEARCH($B$18,CK50)),MAX($CJ$8:CJ49)+1,0) -> 42 | CK50: B Roll to pike stand | CN50: =IFERROR(VLOOKUP(ROWS($CK$9:CK50),$CJ$9:$CK$162,2,0),"") -> B Roll to pike stand
L51: =IF(D5="Female",IF(COUNTIF(CR9:CR18,"Yes")>=1,"Yes","No"),"Yes") -> Yes | P51: =IF(ISNUMBER(SEARCH($B$9,Q51)),MAX($P$8:P50)+1,0) -> 43 | Q51: Handstand ½ turn | T51: =IFERROR(VLOOKUP(ROWS($Q$9:Q51),$P$9:$Q$162,2,0),"") -> Handstand ½ turn | X51: =IF(ISNUMBER(SEARCH($B$10,Y51)),MAX($X$8:X50)+1,0) -> 43 | Y51: Handstand ½ turn | AB51: =IFERROR(VLOOKUP(ROWS($Y$9:Y51),$X$9:$Y$162,2,0),"") -> Handstand ½ turn | AF51: =IF(ISNUMBER(SEARCH($B$11,AG51)),MAX($AF$8:AF50)+1,0) -> 43 | AG51: Handstand ½ turn | AJ51: =IFERROR(VLOOKUP(ROWS($AG$9:AG51),$AF$9:$AG$162,2,0),"") -> Handstand ½ turn | AN51: =IF(ISNUMBER(SEARCH($B$12,AO51)),MAX($AN$8:AN50)+1,0) -> 43 | AO51: Handstand ½ turn | AR51: =IFERROR(VLOOKUP(ROWS($AO$9:AO51),$AN$9:$AO$162,2,0),"") -> Handstand ½ turn | AV51: =IF(ISNUMBER(SEARCH($B$13,AW51)),MAX($AV$8:AV50)+1,0) -> 43 | AW51: Handstand ½ turn | AZ51: =IFERROR(VLOOKUP(ROWS($AW$9:AW51),$AV$9:$AW$162,2,0),"") -> Handstand ½ turn | BD51: =IF(ISNUMBER(SEARCH($B$14,BE51)),MAX($BD$8:BD50)+1,0) -> 43 | BE51: Handstand ½ turn | BH51: =IFERROR(VLOOKUP(ROWS($BE$9:BE51),$BD$9:$BE$162,2,0),"") -> Handstand ½ turn | BL51: =IF(ISNUMBER(SEARCH($B$15,BM51)),MAX($BL$8:BL50)+1,0) -> 43 | BM51: Handstand ½ turn | BP51: =IFERROR(VLOOKUP(ROWS($BM$9:BM51),$BL$9:$BM$162,2,0),"") -> Handstand ½ turn | BT51: =IF(ISNUMBER(SEARCH($B$16,BU51)),MAX($BT$8:BT50)+1,0) -> 43 | BU51: Handstand ½ turn | BX51: =IFERROR(VLOOKUP(ROWS($BU$9:BU51),$BT$9:$BU$162,2,0),"") -> Handstand ½ turn | CB51: =IF(ISNUMBER(SEARCH($B$17,CC51)),MAX($CB$8:CB50)+1,0) -> 43 | CC51: Handstand ½ turn | CF51: =IFERROR(VLOOKUP(ROWS($CC$9:CC51),$CB$9:$CC$162,2,0),"") -> Handstand ½ turn | CJ51: =IF(ISNUMBER(SEARCH($B$18,CK51)),MAX($CJ$8:CJ50)+1,0) -> 43 | CK51: Handstand ½ turn | CN51: =IFERROR(VLOOKUP(ROWS($CK$9:CK51),$CJ$9:$CK$162,2,0),"") -> Handstand ½ turn
L52: Boys G2 | P52: =IF(ISNUMBER(SEARCH($B$9,Q52)),MAX($P$8:P51)+1,0) -> 44 | Q52: Straddle Bunny Hop to Handstand | T52: =IFERROR(VLOOKUP(ROWS($Q$9:Q52),$P$9:$Q$162,2,0),"") -> Straddle Bunny Hop to Handstand | X52: =IF(ISNUMBER(SEARCH($B$10,Y52)),MAX($X$8:X51)+1,0) -> 44 | Y52: Straddle Bunny Hop to Handstand | AB52: =IFERROR(VLOOKUP(ROWS($Y$9:Y52),$X$9:$Y$162,2,0),"") -> Straddle Bunny Hop to Handstand | AF52: =IF(ISNUMBER(SEARCH($B$11,AG52)),MAX($AF$8:AF51)+1,0) -> 44 | AG52: Straddle Bunny Hop to Handstand | AJ52: =IFERROR(VLOOKUP(ROWS($AG$9:AG52),$AF$9:$AG$162,2,0),"") -> Straddle Bunny Hop to Handstand | AN52: =IF(ISNUMBER(SEARCH($B$12,AO52)),MAX($AN$8:AN51)+1,0) -> 44 | AO52: Straddle Bunny Hop to Handstand | AR52: =IFERROR(VLOOKUP(ROWS($AO$9:AO52),$AN$9:$AO$162,2,0),"") -> Straddle Bunny Hop to Handstand | AV52: =IF(ISNUMBER(SEARCH($B$13,AW52)),MAX($AV$8:AV51)+1,0) -> 44 | AW52: Straddle Bunny Hop to Handstand | AZ52: =IFERROR(VLOOKUP(ROWS($AW$9:AW52),$AV$9:$AW$162,2,0),"") -> Straddle Bunny Hop to Handstand | BD52: =IF(ISNUMBER(SEARCH($B$14,BE52)),MAX($BD$8:BD51)+1,0) -> 44 | BE52: Straddle Bunny Hop to Handstand | BH52: =IFERROR(VLOOKUP(ROWS($BE$9:BE52),$BD$9:$BE$162,2,0),"") -> Straddle Bunny Hop to Handstand | BL52: =IF(ISNUMBER(SEARCH($B$15,BM52)),MAX($BL$8:BL51)+1,0) -> 44 | BM52: Straddle Bunny Hop to Handstand | BP52: =IFERROR(VLOOKUP(ROWS($BM$9:BM52),$BL$9:$BM$162,2,0),"") -> Straddle Bunny Hop to Handstand | BT52: =IF(ISNUMBER(SEARCH($B$16,BU52)),MAX($BT$8:BT51)+1,0) -> 44 | BU52: Straddle Bunny Hop to Handstand | BX52: =IFERROR(VLOOKUP(ROWS($BU$9:BU52),$BT$9:$BU$162,2,0),"") -> Straddle Bunny Hop to Handstand | CB52: =IF(ISNUMBER(SEARCH($B$17,CC52)),MAX($CB$8:CB51)+1,0) -> 44 | CC52: Straddle Bunny Hop to Handstand | CF52: =IFERROR(VLOOKUP(ROWS($CC$9:CC52),$CB$9:$CC$162,2,0),"") -> Straddle Bunny Hop to Handstand | CJ52: =IF(ISNUMBER(SEARCH($B$18,CK52)),MAX($CJ$8:CJ51)+1,0) -> 44 | CK52: Straddle Bunny Hop to Handstand | CN52: =IFERROR(VLOOKUP(ROWS($CK$9:CK52),$CJ$9:$CK$162,2,0),"") -> Straddle Bunny Hop to Handstand
L53: =IF(COUNTIF(CU9:CU18,"Yes")=1,"Yes","No") -> No | P53: =IF(ISNUMBER(SEARCH($B$9,Q53)),MAX($P$8:P52)+1,0) -> 45 | Q53: Single Leg Circle | T53: =IFERROR(VLOOKUP(ROWS($Q$9:Q53),$P$9:$Q$162,2,0),"") -> Single Leg Circle | X53: =IF(ISNUMBER(SEARCH($B$10,Y53)),MAX($X$8:X52)+1,0) -> 45 | Y53: Single Leg Circle | AB53: =IFERROR(VLOOKUP(ROWS($Y$9:Y53),$X$9:$Y$162,2,0),"") -> Single Leg Circle | AF53: =IF(ISNUMBER(SEARCH($B$11,AG53)),MAX($AF$8:AF52)+1,0) -> 45 | AG53: Single Leg Circle | AJ53: =IFERROR(VLOOKUP(ROWS($AG$9:AG53),$AF$9:$AG$162,2,0),"") -> Single Leg Circle | AN53: =IF(ISNUMBER(SEARCH($B$12,AO53)),MAX($AN$8:AN52)+1,0) -> 45 | AO53: Single Leg Circle | AR53: =IFERROR(VLOOKUP(ROWS($AO$9:AO53),$AN$9:$AO$162,2,0),"") -> Single Leg Circle | AV53: =IF(ISNUMBER(SEARCH($B$13,AW53)),MAX($AV$8:AV52)+1,0) -> 45 | AW53: Single Leg Circle | AZ53: =IFERROR(VLOOKUP(ROWS($AW$9:AW53),$AV$9:$AW$162,2,0),"") -> Single Leg Circle | BD53: =IF(ISNUMBER(SEARCH($B$14,BE53)),MAX($BD$8:BD52)+1,0) -> 45 | BE53: Single Leg Circle | BH53: =IFERROR(VLOOKUP(ROWS($BE$9:BE53),$BD$9:$BE$162,2,0),"") -> Single Leg Circle | BL53: =IF(ISNUMBER(SEARCH($B$15,BM53)),MAX($BL$8:BL52)+1,0) -> 45 | BM53: Single Leg Circle | BP53: =IFERROR(VLOOKUP(ROWS($BM$9:BM53),$BL$9:$BM$162,2,0),"") -> Single Leg Circle | BT53: =IF(ISNUMBER(SEARCH($B$16,BU53)),MAX($BT$8:BT52)+1,0) -> 45 | BU53: Single Leg Circle | BX53: =IFERROR(VLOOKUP(ROWS($BU$9:BU53),$BT$9:$BU$162,2,0),"") -> Single Leg Circle | CB53: =IF(ISNUMBER(SEARCH($B$17,CC53)),MAX($CB$8:CB52)+1,0) -> 45 | CC53: Single Leg Circle | CF53: =IFERROR(VLOOKUP(ROWS($CC$9:CC53),$CB$9:$CC$162,2,0),"") -> Single Leg Circle | CJ53: =IF(ISNUMBER(SEARCH($B$18,CK53)),MAX($CJ$8:CJ52)+1,0) -> 45 | CK53: Single Leg Circle | CN53: =IFERROR(VLOOKUP(ROWS($CK$9:CK53),$CJ$9:$CK$162,2,0),"") -> Single Leg Circle
L54: =IF(D5="Female",IF(L51="Yes","Yes","No"),IF(D5="Male",IF(L53="Yes","Yes","No"),"No")) -> No | P54: =IF(ISNUMBER(SEARCH($B$9,Q54)),MAX($P$8:P53)+1,0) -> 46 | Q54: Backward walkover | T54: =IFERROR(VLOOKUP(ROWS($Q$9:Q54),$P$9:$Q$162,2,0),"") -> Backward walkover | X54: =IF(ISNUMBER(SEARCH($B$10,Y54)),MAX($X$8:X53)+1,0) -> 46 | Y54: Backward walkover | AB54: =IFERROR(VLOOKUP(ROWS($Y$9:Y54),$X$9:$Y$162,2,0),"") -> Backward walkover | AF54: =IF(ISNUMBER(SEARCH($B$11,AG54)),MAX($AF$8:AF53)+1,0) -> 46 | AG54: Backward walkover | AJ54: =IFERROR(VLOOKUP(ROWS($AG$9:AG54),$AF$9:$AG$162,2,0),"") -> Backward walkover | AN54: =IF(ISNUMBER(SEARCH($B$12,AO54)),MAX($AN$8:AN53)+1,0) -> 46 | AO54: Backward walkover | AR54: =IFERROR(VLOOKUP(ROWS($AO$9:AO54),$AN$9:$AO$162,2,0),"") -> Backward walkover | AV54: =IF(ISNUMBER(SEARCH($B$13,AW54)),MAX($AV$8:AV53)+1,0) -> 46 | AW54: Backward walkover | AZ54: =IFERROR(VLOOKUP(ROWS($AW$9:AW54),$AV$9:$AW$162,2,0),"") -> Backward walkover | BD54: =IF(ISNUMBER(SEARCH($B$14,BE54)),MAX($BD$8:BD53)+1,0) -> 46 | BE54: Backward walkover | BH54: =IFERROR(VLOOKUP(ROWS($BE$9:BE54),$BD$9:$BE$162,2,0),"") -> Backward walkover | BL54: =IF(ISNUMBER(SEARCH($B$15,BM54)),MAX($BL$8:BL53)+1,0) -> 46 | BM54: Backward walkover | BP54: =IFERROR(VLOOKUP(ROWS($BM$9:BM54),$BL$9:$BM$162,2,0),"") -> Backward walkover | BT54: =IF(ISNUMBER(SEARCH($B$16,BU54)),MAX($BT$8:BT53)+1,0) -> 46 | BU54: Backward walkover | BX54: =IFERROR(VLOOKUP(ROWS($BU$9:BU54),$BT$9:$BU$162,2,0),"") -> Backward walkover | CB54: =IF(ISNUMBER(SEARCH($B$17,CC54)),MAX($CB$8:CB53)+1,0) -> 46 | CC54: Backward walkover | CF54: =IFERROR(VLOOKUP(ROWS($CC$9:CC54),$CB$9:$CC$162,2,0),"") -> Backward walkover | CJ54: =IF(ISNUMBER(SEARCH($B$18,CK54)),MAX($CJ$8:CJ53)+1,0) -> 46 | CK54: Backward walkover | CN54: =IFERROR(VLOOKUP(ROWS($CK$9:CK54),$CJ$9:$CK$162,2,0),"") -> Backward walkover
P55: =IF(ISNUMBER(SEARCH($B$9,Q55)),MAX($P$8:P54)+1,0) -> 47 | Q55: Cartwheel ¼ turn in (Front to Back)↓ | T55: =IFERROR(VLOOKUP(ROWS($Q$9:Q55),$P$9:$Q$162,2,0),"") -> Cartwheel ¼ turn in (Front to Back)↓ | X55: =IF(ISNUMBER(SEARCH($B$10,Y55)),MAX($X$8:X54)+1,0) -> 47 | Y55: Cartwheel ¼ turn in (Front to Back)↓ | AB55: =IFERROR(VLOOKUP(ROWS($Y$9:Y55),$X$9:$Y$162,2,0),"") -> Cartwheel ¼ turn in (Front to Back)↓ | AF55: =IF(ISNUMBER(SEARCH($B$11,AG55)),MAX($AF$8:AF54)+1,0) -> 47 | AG55: Cartwheel ¼ turn in (Front to Back)↓ | AJ55: =IFERROR(VLOOKUP(ROWS($AG$9:AG55),$AF$9:$AG$162,2,0),"") -> Cartwheel ¼ turn in (Front to Back)↓ | AN55: =IF(ISNUMBER(SEARCH($B$12,AO55)),MAX($AN$8:AN54)+1,0) -> 47 | AO55: Cartwheel ¼ turn in (Front to Back)↓ | AR55: =IFERROR(VLOOKUP(ROWS($AO$9:AO55),$AN$9:$AO$162,2,0),"") -> Cartwheel ¼ turn in (Front to Back)↓ | AV55: =IF(ISNUMBER(SEARCH($B$13,AW55)),MAX($AV$8:AV54)+1,0) -> 47 | AW55: Cartwheel ¼ turn in (Front to Back)↓ | AZ55: =IFERROR(VLOOKUP(ROWS($AW$9:AW55),$AV$9:$AW$162,2,0),"") -> Cartwheel ¼ turn in (Front to Back)↓ | BD55: =IF(ISNUMBER(SEARCH($B$14,BE55)),MAX($BD$8:BD54)+1,0) -> 47 | BE55: Cartwheel ¼ turn in (Front to Back)↓ | BH55: =IFERROR(VLOOKUP(ROWS($BE$9:BE55),$BD$9:$BE$162,2,0),"") -> Cartwheel ¼ turn in (Front to Back)↓ | BL55: =IF(ISNUMBER(SEARCH($B$15,BM55)),MAX($BL$8:BL54)+1,0) -> 47 | BM55: Cartwheel ¼ turn in (Front to Back)↓ | BP55: =IFERROR(VLOOKUP(ROWS($BM$9:BM55),$BL$9:$BM$162,2,0),"") -> Cartwheel ¼ turn in (Front to Back)↓ | BT55: =IF(ISNUMBER(SEARCH($B$16,BU55)),MAX($BT$8:BT54)+1,0) -> 47 | BU55: Cartwheel ¼ turn in (Front to Back)↓ | BX55: =IFERROR(VLOOKUP(ROWS($BU$9:BU55),$BT$9:$BU$162,2,0),"") -> Cartwheel ¼ turn in (Front to Back)↓ | CB55: =IF(ISNUMBER(SEARCH($B$17,CC55)),MAX($CB$8:CB54)+1,0) -> 47 | CC55: Cartwheel ¼ turn in (Front to Back)↓ | CF55: =IFERROR(VLOOKUP(ROWS($CC$9:CC55),$CB$9:$CC$162,2,0),"") -> Cartwheel ¼ turn in (Front to Back)↓ | CJ55: =IF(ISNUMBER(SEARCH($B$18,CK55)),MAX($CJ$8:CJ54)+1,0) -> 47 | CK55: Cartwheel ¼ turn in (Front to Back)↓ | CN55: =IFERROR(VLOOKUP(ROWS($CK$9:CK55),$CJ$9:$CK$162,2,0),"") -> Cartwheel ¼ turn in (Front to Back)↓
L56: 2 | P56: =IF(ISNUMBER(SEARCH($B$9,Q56)),MAX($P$8:P55)+1,0) -> 48 | Q56: Cartwheel ¼ turn out | T56: =IFERROR(VLOOKUP(ROWS($Q$9:Q56),$P$9:$Q$162,2,0),"") -> Cartwheel ¼ turn out | X56: =IF(ISNUMBER(SEARCH($B$10,Y56)),MAX($X$8:X55)+1,0) -> 48 | Y56: Cartwheel ¼ turn out | AB56: =IFERROR(VLOOKUP(ROWS($Y$9:Y56),$X$9:$Y$162,2,0),"") -> Cartwheel ¼ turn out | AF56: =IF(ISNUMBER(SEARCH($B$11,AG56)),MAX($AF$8:AF55)+1,0) -> 48 | AG56: Cartwheel ¼ turn out | AJ56: =IFERROR(VLOOKUP(ROWS($AG$9:AG56),$AF$9:$AG$162,2,0),"") -> Cartwheel ¼ turn out | AN56: =IF(ISNUMBER(SEARCH($B$12,AO56)),MAX($AN$8:AN55)+1,0) -> 48 | AO56: Cartwheel ¼ turn out | AR56: =IFERROR(VLOOKUP(ROWS($AO$9:AO56),$AN$9:$AO$162,2,0),"") -> Cartwheel ¼ turn out | AV56: =IF(ISNUMBER(SEARCH($B$13,AW56)),MAX($AV$8:AV55)+1,0) -> 48 | AW56: Cartwheel ¼ turn out | AZ56: =IFERROR(VLOOKUP(ROWS($AW$9:AW56),$AV$9:$AW$162,2,0),"") -> Cartwheel ¼ turn out | BD56: =IF(ISNUMBER(SEARCH($B$14,BE56)),MAX($BD$8:BD55)+1,0) -> 48 | BE56: Cartwheel ¼ turn out | BH56: =IFERROR(VLOOKUP(ROWS($BE$9:BE56),$BD$9:$BE$162,2,0),"") -> Cartwheel ¼ turn out | BL56: =IF(ISNUMBER(SEARCH($B$15,BM56)),MAX($BL$8:BL55)+1,0) -> 48 | BM56: Cartwheel ¼ turn out | BP56: =IFERROR(VLOOKUP(ROWS($BM$9:BM56),$BL$9:$BM$162,2,0),"") -> Cartwheel ¼ turn out | BT56: =IF(ISNUMBER(SEARCH($B$16,BU56)),MAX($BT$8:BT55)+1,0) -> 48 | BU56: Cartwheel ¼ turn out | BX56: =IFERROR(VLOOKUP(ROWS($BU$9:BU56),$BT$9:$BU$162,2,0),"") -> Cartwheel ¼ turn out | CB56: =IF(ISNUMBER(SEARCH($B$17,CC56)),MAX($CB$8:CB55)+1,0) -> 48 | CC56: Cartwheel ¼ turn out | CF56: =IFERROR(VLOOKUP(ROWS($CC$9:CC56),$CB$9:$CC$162,2,0),"") -> Cartwheel ¼ turn out | CJ56: =IF(ISNUMBER(SEARCH($B$18,CK56)),MAX($CJ$8:CJ55)+1,0) -> 48 | CK56: Cartwheel ¼ turn out | CN56: =IFERROR(VLOOKUP(ROWS($CK$9:CK56),$CJ$9:$CK$162,2,0),"") -> Cartwheel ¼ turn out
L57: Gilrs G2 | P57: =IF(ISNUMBER(SEARCH($B$9,Q57)),MAX($P$8:P56)+1,0) -> 49 | Q57: 1 Arm Cartwheel | T57: =IFERROR(VLOOKUP(ROWS($Q$9:Q57),$P$9:$Q$162,2,0),"") -> 1 Arm Cartwheel | X57: =IF(ISNUMBER(SEARCH($B$10,Y57)),MAX($X$8:X56)+1,0) -> 49 | Y57: 1 Arm Cartwheel | AB57: =IFERROR(VLOOKUP(ROWS($Y$9:Y57),$X$9:$Y$162,2,0),"") -> 1 Arm Cartwheel | AF57: =IF(ISNUMBER(SEARCH($B$11,AG57)),MAX($AF$8:AF56)+1,0) -> 49 | AG57: 1 Arm Cartwheel | AJ57: =IFERROR(VLOOKUP(ROWS($AG$9:AG57),$AF$9:$AG$162,2,0),"") -> 1 Arm Cartwheel | AN57: =IF(ISNUMBER(SEARCH($B$12,AO57)),MAX($AN$8:AN56)+1,0) -> 49 | AO57: 1 Arm Cartwheel | AR57: =IFERROR(VLOOKUP(ROWS($AO$9:AO57),$AN$9:$AO$162,2,0),"") -> 1 Arm Cartwheel | AV57: =IF(ISNUMBER(SEARCH($B$13,AW57)),MAX($AV$8:AV56)+1,0) -> 49 | AW57: 1 Arm Cartwheel | AZ57: =IFERROR(VLOOKUP(ROWS($AW$9:AW57),$AV$9:$AW$162,2,0),"") -> 1 Arm Cartwheel | BD57: =IF(ISNUMBER(SEARCH($B$14,BE57)),MAX($BD$8:BD56)+1,0) -> 49 | BE57: 1 Arm Cartwheel | BH57: =IFERROR(VLOOKUP(ROWS($BE$9:BE57),$BD$9:$BE$162,2,0),"") -> 1 Arm Cartwheel | BL57: =IF(ISNUMBER(SEARCH($B$15,BM57)),MAX($BL$8:BL56)+1,0) -> 49 | BM57: 1 Arm Cartwheel | BP57: =IFERROR(VLOOKUP(ROWS($BM$9:BM57),$BL$9:$BM$162,2,0),"") -> 1 Arm Cartwheel | BT57: =IF(ISNUMBER(SEARCH($B$16,BU57)),MAX($BT$8:BT56)+1,0) -> 49 | BU57: 1 Arm Cartwheel | BX57: =IFERROR(VLOOKUP(ROWS($BU$9:BU57),$BT$9:$BU$162,2,0),"") -> 1 Arm Cartwheel | CB57: =IF(ISNUMBER(SEARCH($B$17,CC57)),MAX($CB$8:CB56)+1,0) -> 49 | CC57: 1 Arm Cartwheel | CF57: =IFERROR(VLOOKUP(ROWS($CC$9:CC57),$CB$9:$CC$162,2,0),"") -> 1 Arm Cartwheel | CJ57: =IF(ISNUMBER(SEARCH($B$18,CK57)),MAX($CJ$8:CJ56)+1,0) -> 49 | CK57: 1 Arm Cartwheel | CN57: =IFERROR(VLOOKUP(ROWS($CK$9:CK57),$CJ$9:$CK$162,2,0),"") -> 1 Arm Cartwheel
L58: =IF(COUNTIF(CS9:CS18,"Yes")>=1,"Yes","No") -> No | P58: =IF(ISNUMBER(SEARCH($B$9,Q58)),MAX($P$8:P57)+1,0) -> 50 | Q58: 2 x side C/wheels (opt. entry / exit) | T58: =IFERROR(VLOOKUP(ROWS($Q$9:Q58),$P$9:$Q$162,2,0),"") -> 2 x side C/wheels (opt. entry / exit) | X58: =IF(ISNUMBER(SEARCH($B$10,Y58)),MAX($X$8:X57)+1,0) -> 50 | Y58: 2 x side C/wheels (opt. entry / exit) | AB58: =IFERROR(VLOOKUP(ROWS($Y$9:Y58),$X$9:$Y$162,2,0),"") -> 2 x side C/wheels (opt. entry / exit) | AF58: =IF(ISNUMBER(SEARCH($B$11,AG58)),MAX($AF$8:AF57)+1,0) -> 50 | AG58: 2 x side C/wheels (opt. entry / exit) | AJ58: =IFERROR(VLOOKUP(ROWS($AG$9:AG58),$AF$9:$AG$162,2,0),"") -> 2 x side C/wheels (opt. entry / exit) | AN58: =IF(ISNUMBER(SEARCH($B$12,AO58)),MAX($AN$8:AN57)+1,0) -> 50 | AO58: 2 x side C/wheels (opt. entry / exit) | AR58: =IFERROR(VLOOKUP(ROWS($AO$9:AO58),$AN$9:$AO$162,2,0),"") -> 2 x side C/wheels (opt. entry / exit) | AV58: =IF(ISNUMBER(SEARCH($B$13,AW58)),MAX($AV$8:AV57)+1,0) -> 50 | AW58: 2 x side C/wheels (opt. entry / exit) | AZ58: =IFERROR(VLOOKUP(ROWS($AW$9:AW58),$AV$9:$AW$162,2,0),"") -> 2 x side C/wheels (opt. entry / exit) | BD58: =IF(ISNUMBER(SEARCH($B$14,BE58)),MAX($BD$8:BD57)+1,0) -> 50 | BE58: 2 x side C/wheels (opt. entry / exit) | BH58: =IFERROR(VLOOKUP(ROWS($BE$9:BE58),$BD$9:$BE$162,2,0),"") -> 2 x side C/wheels (opt. entry / exit) | BL58: =IF(ISNUMBER(SEARCH($B$15,BM58)),MAX($BL$8:BL57)+1,0) -> 50 | BM58: 2 x side C/wheels (opt. entry / exit) | BP58: =IFERROR(VLOOKUP(ROWS($BM$9:BM58),$BL$9:$BM$162,2,0),"") -> 2 x side C/wheels (opt. entry / exit) | BT58: =IF(ISNUMBER(SEARCH($B$16,BU58)),MAX($BT$8:BT57)+1,0) -> 50 | BU58: 2 x side C/wheels (opt. entry / exit) | BX58: =IFERROR(VLOOKUP(ROWS($BU$9:BU58),$BT$9:$BU$162,2,0),"") -> 2 x side C/wheels (opt. entry / exit) | CB58: =IF(ISNUMBER(SEARCH($B$17,CC58)),MAX($CB$8:CB57)+1,0) -> 50 | CC58: 2 x side C/wheels (opt. entry / exit) | CF58: =IFERROR(VLOOKUP(ROWS($CC$9:CC58),$CB$9:$CC$162,2,0),"") -> 2 x side C/wheels (opt. entry / exit) | CJ58: =IF(ISNUMBER(SEARCH($B$18,CK58)),MAX($CJ$8:CJ57)+1,0) -> 50 | CK58: 2 x side C/wheels (opt. entry / exit) | CN58: =IFERROR(VLOOKUP(ROWS($CK$9:CK58),$CJ$9:$CK$162,2,0),"") -> 2 x side C/wheels (opt. entry / exit)
L59: Boys G2 H | P59: =IF(ISNUMBER(SEARCH($B$9,Q59)),MAX($P$8:P58)+1,0) -> 51 | Q59: Dive C/wheel (must show flight) | T59: =IFERROR(VLOOKUP(ROWS($Q$9:Q59),$P$9:$Q$162,2,0),"") -> Dive C/wheel (must show flight) | X59: =IF(ISNUMBER(SEARCH($B$10,Y59)),MAX($X$8:X58)+1,0) -> 51 | Y59: Dive C/wheel (must show flight) | AB59: =IFERROR(VLOOKUP(ROWS($Y$9:Y59),$X$9:$Y$162,2,0),"") -> Dive C/wheel (must show flight) | AF59: =IF(ISNUMBER(SEARCH($B$11,AG59)),MAX($AF$8:AF58)+1,0) -> 51 | AG59: Dive C/wheel (must show flight) | AJ59: =IFERROR(VLOOKUP(ROWS($AG$9:AG59),$AF$9:$AG$162,2,0),"") -> Dive C/wheel (must show flight) | AN59: =IF(ISNUMBER(SEARCH($B$12,AO59)),MAX($AN$8:AN58)+1,0) -> 51 | AO59: Dive C/wheel (must show flight) | AR59: =IFERROR(VLOOKUP(ROWS($AO$9:AO59),$AN$9:$AO$162,2,0),"") -> Dive C/wheel (must show flight) | AV59: =IF(ISNUMBER(SEARCH($B$13,AW59)),MAX($AV$8:AV58)+1,0) -> 51 | AW59: Dive C/wheel (must show flight) | AZ59: =IFERROR(VLOOKUP(ROWS($AW$9:AW59),$AV$9:$AW$162,2,0),"") -> Dive C/wheel (must show flight) | BD59: =IF(ISNUMBER(SEARCH($B$14,BE59)),MAX($BD$8:BD58)+1,0) -> 51 | BE59: Dive C/wheel (must show flight) | BH59: =IFERROR(VLOOKUP(ROWS($BE$9:BE59),$BD$9:$BE$162,2,0),"") -> Dive C/wheel (must show flight) | BL59: =IF(ISNUMBER(SEARCH($B$15,BM59)),MAX($BL$8:BL58)+1,0) -> 51 | BM59: Dive C/wheel (must show flight) | BP59: =IFERROR(VLOOKUP(ROWS($BM$9:BM59),$BL$9:$BM$162,2,0),"") -> Dive C/wheel (must show flight) | BT59: =IF(ISNUMBER(SEARCH($B$16,BU59)),MAX($BT$8:BT58)+1,0) -> 51 | BU59: Dive C/wheel (must show flight) | BX59: =IFERROR(VLOOKUP(ROWS($BU$9:BU59),$BT$9:$BU$162,2,0),"") -> Dive C/wheel (must show flight) | CB59: =IF(ISNUMBER(SEARCH($B$17,CC59)),MAX($CB$8:CB58)+1,0) -> 51 | CC59: Dive C/wheel (must show flight) | CF59: =IFERROR(VLOOKUP(ROWS($CC$9:CC59),$CB$9:$CC$162,2,0),"") -> Dive C/wheel (must show flight) | CJ59: =IF(ISNUMBER(SEARCH($B$18,CK59)),MAX($CJ$8:CJ58)+1,0) -> 51 | CK59: Dive C/wheel (must show flight) | CN59: =IFERROR(VLOOKUP(ROWS($CK$9:CK59),$CJ$9:$CK$162,2,0),"") -> Dive C/wheel (must show flight)
L60: =IF(COUNTIF(CT9:CT18,"Yes")=1,"Yes","No") -> No | P60: =IF(ISNUMBER(SEARCH($B$9,Q60)),MAX($P$8:P59)+1,0) -> 52 | Q60: Roundoff | T60: =IFERROR(VLOOKUP(ROWS($Q$9:Q60),$P$9:$Q$162,2,0),"") -> Roundoff | X60: =IF(ISNUMBER(SEARCH($B$10,Y60)),MAX($X$8:X59)+1,0) -> 52 | Y60: Roundoff | AB60: =IFERROR(VLOOKUP(ROWS($Y$9:Y60),$X$9:$Y$162,2,0),"") -> Roundoff | AF60: =IF(ISNUMBER(SEARCH($B$11,AG60)),MAX($AF$8:AF59)+1,0) -> 52 | AG60: Roundoff | AJ60: =IFERROR(VLOOKUP(ROWS($AG$9:AG60),$AF$9:$AG$162,2,0),"") -> Roundoff | AN60: =IF(ISNUMBER(SEARCH($B$12,AO60)),MAX($AN$8:AN59)+1,0) -> 52 | AO60: Roundoff | AR60: =IFERROR(VLOOKUP(ROWS($AO$9:AO60),$AN$9:$AO$162,2,0),"") -> Roundoff | AV60: =IF(ISNUMBER(SEARCH($B$13,AW60)),MAX($AV$8:AV59)+1,0) -> 52 | AW60: Roundoff | AZ60: =IFERROR(VLOOKUP(ROWS($AW$9:AW60),$AV$9:$AW$162,2,0),"") -> Roundoff | BD60: =IF(ISNUMBER(SEARCH($B$14,BE60)),MAX($BD$8:BD59)+1,0) -> 52 | BE60: Roundoff | BH60: =IFERROR(VLOOKUP(ROWS($BE$9:BE60),$BD$9:$BE$162,2,0),"") -> Roundoff | BL60: =IF(ISNUMBER(SEARCH($B$15,BM60)),MAX($BL$8:BL59)+1,0) -> 52 | BM60: Roundoff | BP60: =IFERROR(VLOOKUP(ROWS($BM$9:BM60),$BL$9:$BM$162,2,0),"") -> Roundoff | BT60: =IF(ISNUMBER(SEARCH($B$16,BU60)),MAX($BT$8:BT59)+1,0) -> 52 | BU60: Roundoff | BX60: =IFERROR(VLOOKUP(ROWS($BU$9:BU60),$BT$9:$BU$162,2,0),"") -> Roundoff | CB60: =IF(ISNUMBER(SEARCH($B$17,CC60)),MAX($CB$8:CB59)+1,0) -> 52 | CC60: Roundoff | CF60: =IFERROR(VLOOKUP(ROWS($CC$9:CC60),$CB$9:$CC$162,2,0),"") -> Roundoff | CJ60: =IF(ISNUMBER(SEARCH($B$18,CK60)),MAX($CJ$8:CJ59)+1,0) -> 52 | CK60: Roundoff | CN60: =IFERROR(VLOOKUP(ROWS($CK$9:CK60),$CJ$9:$CK$162,2,0),"") -> Roundoff
L61: =IF(D5="Female",IF(L58="Yes","Yes","No"),IF(D5="Male",IF(L60="Yes","Yes","No"),"No")) -> No | P61: =IF(ISNUMBER(SEARCH($B$9,Q61)),MAX($P$8:P60)+1,0) -> 53 | Q61: Roundoff jump (optional shape) | T61: =IFERROR(VLOOKUP(ROWS($Q$9:Q61),$P$9:$Q$162,2,0),"") -> Roundoff jump (optional shape) | X61: =IF(ISNUMBER(SEARCH($B$10,Y61)),MAX($X$8:X60)+1,0) -> 53 | Y61: Roundoff jump (optional shape) | AB61: =IFERROR(VLOOKUP(ROWS($Y$9:Y61),$X$9:$Y$162,2,0),"") -> Roundoff jump (optional shape) | AF61: =IF(ISNUMBER(SEARCH($B$11,AG61)),MAX($AF$8:AF60)+1,0) -> 53 | AG61: Roundoff jump (optional shape) | AJ61: =IFERROR(VLOOKUP(ROWS($AG$9:AG61),$AF$9:$AG$162,2,0),"") -> Roundoff jump (optional shape) | AN61: =IF(ISNUMBER(SEARCH($B$12,AO61)),MAX($AN$8:AN60)+1,0) -> 53 | AO61: Roundoff jump (optional shape) | AR61: =IFERROR(VLOOKUP(ROWS($AO$9:AO61),$AN$9:$AO$162,2,0),"") -> Roundoff jump (optional shape) | AV61: =IF(ISNUMBER(SEARCH($B$13,AW61)),MAX($AV$8:AV60)+1,0) -> 53 | AW61: Roundoff jump (optional shape) | AZ61: =IFERROR(VLOOKUP(ROWS($AW$9:AW61),$AV$9:$AW$162,2,0),"") -> Roundoff jump (optional shape) | BD61: =IF(ISNUMBER(SEARCH($B$14,BE61)),MAX($BD$8:BD60)+1,0) -> 53 | BE61: Roundoff jump (optional shape) | BH61: =IFERROR(VLOOKUP(ROWS($BE$9:BE61),$BD$9:$BE$162,2,0),"") -> Roundoff jump (optional shape) | BL61: =IF(ISNUMBER(SEARCH($B$15,BM61)),MAX($BL$8:BL60)+1,0) -> 53 | BM61: Roundoff jump (optional shape) | BP61: =IFERROR(VLOOKUP(ROWS($BM$9:BM61),$BL$9:$BM$162,2,0),"") -> Roundoff jump (optional shape) | BT61: =IF(ISNUMBER(SEARCH($B$16,BU61)),MAX($BT$8:BT60)+1,0) -> 53 | BU61: Roundoff jump (optional shape) | BX61: =IFERROR(VLOOKUP(ROWS($BU$9:BU61),$BT$9:$BU$162,2,0),"") -> Roundoff jump (optional shape) | CB61: =IF(ISNUMBER(SEARCH($B$17,CC61)),MAX($CB$8:CB60)+1,0) -> 53 | CC61: Roundoff jump (optional shape) | CF61: =IFERROR(VLOOKUP(ROWS($CC$9:CC61),$CB$9:$CC$162,2,0),"") -> Roundoff jump (optional shape) | CJ61: =IF(ISNUMBER(SEARCH($B$18,CK61)),MAX($CJ$8:CJ60)+1,0) -> 53 | CK61: Roundoff jump (optional shape) | CN61: =IFERROR(VLOOKUP(ROWS($CK$9:CK61),$CJ$9:$CK$162,2,0),"") -> Roundoff jump (optional shape)
P62: =IF(ISNUMBER(SEARCH($B$9,Q62)),MAX($P$8:P61)+1,0) -> 54 | Q62: Split leap or jump (150°) | T62: =IFERROR(VLOOKUP(ROWS($Q$9:Q62),$P$9:$Q$162,2,0),"") -> Split leap or jump (150°) | X62: =IF(ISNUMBER(SEARCH($B$10,Y62)),MAX($X$8:X61)+1,0) -> 54 | Y62: Split leap or jump (150°) | AB62: =IFERROR(VLOOKUP(ROWS($Y$9:Y62),$X$9:$Y$162,2,0),"") -> Split leap or jump (150°) | AF62: =IF(ISNUMBER(SEARCH($B$11,AG62)),MAX($AF$8:AF61)+1,0) -> 54 | AG62: Split leap or jump (150°) | AJ62: =IFERROR(VLOOKUP(ROWS($AG$9:AG62),$AF$9:$AG$162,2,0),"") -> Split leap or jump (150°) | AN62: =IF(ISNUMBER(SEARCH($B$12,AO62)),MAX($AN$8:AN61)+1,0) -> 54 | AO62: Split leap or jump (150°) | AR62: =IFERROR(VLOOKUP(ROWS($AO$9:AO62),$AN$9:$AO$162,2,0),"") -> Split leap or jump (150°) | AV62: =IF(ISNUMBER(SEARCH($B$13,AW62)),MAX($AV$8:AV61)+1,0) -> 54 | AW62: Split leap or jump (150°) | AZ62: =IFERROR(VLOOKUP(ROWS($AW$9:AW62),$AV$9:$AW$162,2,0),"") -> Split leap or jump (150°) | BD62: =IF(ISNUMBER(SEARCH($B$14,BE62)),MAX($BD$8:BD61)+1,0) -> 54 | BE62: Split leap or jump (150°) | BH62: =IFERROR(VLOOKUP(ROWS($BE$9:BE62),$BD$9:$BE$162,2,0),"") -> Split leap or jump (150°) | BL62: =IF(ISNUMBER(SEARCH($B$15,BM62)),MAX($BL$8:BL61)+1,0) -> 54 | BM62: Split leap or jump (150°) | BP62: =IFERROR(VLOOKUP(ROWS($BM$9:BM62),$BL$9:$BM$162,2,0),"") -> Split leap or jump (150°) | BT62: =IF(ISNUMBER(SEARCH($B$16,BU62)),MAX($BT$8:BT61)+1,0) -> 54 | BU62: Split leap or jump (150°) | BX62: =IFERROR(VLOOKUP(ROWS($BU$9:BU62),$BT$9:$BU$162,2,0),"") -> Split leap or jump (150°) | CB62: =IF(ISNUMBER(SEARCH($B$17,CC62)),MAX($CB$8:CB61)+1,0) -> 54 | CC62: Split leap or jump (150°) | CF62: =IFERROR(VLOOKUP(ROWS($CC$9:CC62),$CB$9:$CC$162,2,0),"") -> Split leap or jump (150°) | CJ62: =IF(ISNUMBER(SEARCH($B$18,CK62)),MAX($CJ$8:CJ61)+1,0) -> 54 | CK62: Split leap or jump (150°) | CN62: =IFERROR(VLOOKUP(ROWS($CK$9:CK62),$CJ$9:$CK$162,2,0),"") -> Split leap or jump (150°)
L63: 3 | P63: =IF(ISNUMBER(SEARCH($B$9,Q63)),MAX($P$8:P62)+1,0) -> 55 | Q63: Fouette Turn | T63: =IFERROR(VLOOKUP(ROWS($Q$9:Q63),$P$9:$Q$162,2,0),"") -> Fouette Turn | X63: =IF(ISNUMBER(SEARCH($B$10,Y63)),MAX($X$8:X62)+1,0) -> 55 | Y63: Fouette Turn | AB63: =IFERROR(VLOOKUP(ROWS($Y$9:Y63),$X$9:$Y$162,2,0),"") -> Fouette Turn | AF63: =IF(ISNUMBER(SEARCH($B$11,AG63)),MAX($AF$8:AF62)+1,0) -> 55 | AG63: Fouette Turn | AJ63: =IFERROR(VLOOKUP(ROWS($AG$9:AG63),$AF$9:$AG$162,2,0),"") -> Fouette Turn | AN63: =IF(ISNUMBER(SEARCH($B$12,AO63)),MAX($AN$8:AN62)+1,0) -> 55 | AO63: Fouette Turn | AR63: =IFERROR(VLOOKUP(ROWS($AO$9:AO63),$AN$9:$AO$162,2,0),"") -> Fouette Turn | AV63: =IF(ISNUMBER(SEARCH($B$13,AW63)),MAX($AV$8:AV62)+1,0) -> 55 | AW63: Fouette Turn | AZ63: =IFERROR(VLOOKUP(ROWS($AW$9:AW63),$AV$9:$AW$162,2,0),"") -> Fouette Turn | BD63: =IF(ISNUMBER(SEARCH($B$14,BE63)),MAX($BD$8:BD62)+1,0) -> 55 | BE63: Fouette Turn | BH63: =IFERROR(VLOOKUP(ROWS($BE$9:BE63),$BD$9:$BE$162,2,0),"") -> Fouette Turn | BL63: =IF(ISNUMBER(SEARCH($B$15,BM63)),MAX($BL$8:BL62)+1,0) -> 55 | BM63: Fouette Turn | BP63: =IFERROR(VLOOKUP(ROWS($BM$9:BM63),$BL$9:$BM$162,2,0),"") -> Fouette Turn | BT63: =IF(ISNUMBER(SEARCH($B$16,BU63)),MAX($BT$8:BT62)+1,0) -> 55 | BU63: Fouette Turn | BX63: =IFERROR(VLOOKUP(ROWS($BU$9:BU63),$BT$9:$BU$162,2,0),"") -> Fouette Turn | CB63: =IF(ISNUMBER(SEARCH($B$17,CC63)),MAX($CB$8:CB62)+1,0) -> 55 | CC63: Fouette Turn | CF63: =IFERROR(VLOOKUP(ROWS($CC$9:CC63),$CB$9:$CC$162,2,0),"") -> Fouette Turn | CJ63: =IF(ISNUMBER(SEARCH($B$18,CK63)),MAX($CJ$8:CJ62)+1,0) -> 55 | CK63: Fouette Turn | CN63: =IFERROR(VLOOKUP(ROWS($CK$9:CK63),$CJ$9:$CK$162,2,0),"") -> Fouette Turn
L64: Mix Series | P64: =IF(ISNUMBER(SEARCH($B$9,Q64)),MAX($P$8:P63)+1,0) -> 56 | Q64: Cat leap ½ turn | T64: =IFERROR(VLOOKUP(ROWS($Q$9:Q64),$P$9:$Q$162,2,0),"") -> Cat leap ½ turn | X64: =IF(ISNUMBER(SEARCH($B$10,Y64)),MAX($X$8:X63)+1,0) -> 56 | Y64: Cat leap ½ turn | AB64: =IFERROR(VLOOKUP(ROWS($Y$9:Y64),$X$9:$Y$162,2,0),"") -> Cat leap ½ turn | AF64: =IF(ISNUMBER(SEARCH($B$11,AG64)),MAX($AF$8:AF63)+1,0) -> 56 | AG64: Cat leap ½ turn | AJ64: =IFERROR(VLOOKUP(ROWS($AG$9:AG64),$AF$9:$AG$162,2,0),"") -> Cat leap ½ turn | AN64: =IF(ISNUMBER(SEARCH($B$12,AO64)),MAX($AN$8:AN63)+1,0) -> 56 | AO64: Cat leap ½ turn | AR64: =IFERROR(VLOOKUP(ROWS($AO$9:AO64),$AN$9:$AO$162,2,0),"") -> Cat leap ½ turn | AV64: =IF(ISNUMBER(SEARCH($B$13,AW64)),MAX($AV$8:AV63)+1,0) -> 56 | AW64: Cat leap ½ turn | AZ64: =IFERROR(VLOOKUP(ROWS($AW$9:AW64),$AV$9:$AW$162,2,0),"") -> Cat leap ½ turn | BD64: =IF(ISNUMBER(SEARCH($B$14,BE64)),MAX($BD$8:BD63)+1,0) -> 56 | BE64: Cat leap ½ turn | BH64: =IFERROR(VLOOKUP(ROWS($BE$9:BE64),$BD$9:$BE$162,2,0),"") -> Cat leap ½ turn | BL64: =IF(ISNUMBER(SEARCH($B$15,BM64)),MAX($BL$8:BL63)+1,0) -> 56 | BM64: Cat leap ½ turn | BP64: =IFERROR(VLOOKUP(ROWS($BM$9:BM64),$BL$9:$BM$162,2,0),"") -> Cat leap ½ turn | BT64: =IF(ISNUMBER(SEARCH($B$16,BU64)),MAX($BT$8:BT63)+1,0) -> 56 | BU64: Cat leap ½ turn | BX64: =IFERROR(VLOOKUP(ROWS($BU$9:BU64),$BT$9:$BU$162,2,0),"") -> Cat leap ½ turn | CB64: =IF(ISNUMBER(SEARCH($B$17,CC64)),MAX($CB$8:CB63)+1,0) -> 56 | CC64: Cat leap ½ turn | CF64: =IFERROR(VLOOKUP(ROWS($CC$9:CC64),$CB$9:$CC$162,2,0),"") -> Cat leap ½ turn | CJ64: =IF(ISNUMBER(SEARCH($B$18,CK64)),MAX($CJ$8:CJ63)+1,0) -> 56 | CK64: Cat leap ½ turn | CN64: =IFERROR(VLOOKUP(ROWS($CK$9:CK64),$CJ$9:$CK$162,2,0),"") -> Cat leap ½ turn
L65: =IF(COUNTIF(CW9:CW18,1)=1,IF(COUNTIF(CW9:CW18,2)=1,"Yes",IF(COUNTIF(CW9:CW18,3)=1,"Yes",IF(COUNTIF(CW9:CW18,4)=1,"Yes","No"))),"No") -> No | P65: =IF(ISNUMBER(SEARCH($B$9,Q65)),MAX($P$8:P64)+1,0) -> 57 | Q65: Jump 1 ½ turn | T65: =IFERROR(VLOOKUP(ROWS($Q$9:Q65),$P$9:$Q$162,2,0),"") -> Jump 1 ½ turn | X65: =IF(ISNUMBER(SEARCH($B$10,Y65)),MAX($X$8:X64)+1,0) -> 57 | Y65: Jump 1 ½ turn | AB65: =IFERROR(VLOOKUP(ROWS($Y$9:Y65),$X$9:$Y$162,2,0),"") -> Jump 1 ½ turn | AF65: =IF(ISNUMBER(SEARCH($B$11,AG65)),MAX($AF$8:AF64)+1,0) -> 57 | AG65: Jump 1 ½ turn | AJ65: =IFERROR(VLOOKUP(ROWS($AG$9:AG65),$AF$9:$AG$162,2,0),"") -> Jump 1 ½ turn | AN65: =IF(ISNUMBER(SEARCH($B$12,AO65)),MAX($AN$8:AN64)+1,0) -> 57 | AO65: Jump 1 ½ turn | AR65: =IFERROR(VLOOKUP(ROWS($AO$9:AO65),$AN$9:$AO$162,2,0),"") -> Jump 1 ½ turn | AV65: =IF(ISNUMBER(SEARCH($B$13,AW65)),MAX($AV$8:AV64)+1,0) -> 57 | AW65: Jump 1 ½ turn | AZ65: =IFERROR(VLOOKUP(ROWS($AW$9:AW65),$AV$9:$AW$162,2,0),"") -> Jump 1 ½ turn | BD65: =IF(ISNUMBER(SEARCH($B$14,BE65)),MAX($BD$8:BD64)+1,0) -> 57 | BE65: Jump 1 ½ turn | BH65: =IFERROR(VLOOKUP(ROWS($BE$9:BE65),$BD$9:$BE$162,2,0),"") -> Jump 1 ½ turn | BL65: =IF(ISNUMBER(SEARCH($B$15,BM65)),MAX($BL$8:BL64)+1,0) -> 57 | BM65: Jump 1 ½ turn | BP65: =IFERROR(VLOOKUP(ROWS($BM$9:BM65),$BL$9:$BM$162,2,0),"") -> Jump 1 ½ turn | BT65: =IF(ISNUMBER(SEARCH($B$16,BU65)),MAX($BT$8:BT64)+1,0) -> 57 | BU65: Jump 1 ½ turn | BX65: =IFERROR(VLOOKUP(ROWS($BU$9:BU65),$BT$9:$BU$162,2,0),"") -> Jump 1 ½ turn | CB65: =IF(ISNUMBER(SEARCH($B$17,CC65)),MAX($CB$8:CB64)+1,0) -> 57 | CC65: Jump 1 ½ turn | CF65: =IFERROR(VLOOKUP(ROWS($CC$9:CC65),$CB$9:$CC$162,2,0),"") -> Jump 1 ½ turn | CJ65: =IF(ISNUMBER(SEARCH($B$18,CK65)),MAX($CJ$8:CJ64)+1,0) -> 57 | CK65: Jump 1 ½ turn | CN65: =IFERROR(VLOOKUP(ROWS($CK$9:CK65),$CJ$9:$CK$162,2,0),"") -> Jump 1 ½ turn
P66: =IF(ISNUMBER(SEARCH($B$9,Q66)),MAX($P$8:P65)+1,0) -> 58 | Q66: Straddle jump | T66: =IFERROR(VLOOKUP(ROWS($Q$9:Q66),$P$9:$Q$162,2,0),"") -> Straddle jump | X66: =IF(ISNUMBER(SEARCH($B$10,Y66)),MAX($X$8:X65)+1,0) -> 58 | Y66: Straddle jump | AB66: =IFERROR(VLOOKUP(ROWS($Y$9:Y66),$X$9:$Y$162,2,0),"") -> Straddle jump | AF66: =IF(ISNUMBER(SEARCH($B$11,AG66)),MAX($AF$8:AF65)+1,0) -> 58 | AG66: Straddle jump | AJ66: =IFERROR(VLOOKUP(ROWS($AG$9:AG66),$AF$9:$AG$162,2,0),"") -> Straddle jump | AN66: =IF(ISNUMBER(SEARCH($B$12,AO66)),MAX($AN$8:AN65)+1,0) -> 58 | AO66: Straddle jump | AR66: =IFERROR(VLOOKUP(ROWS($AO$9:AO66),$AN$9:$AO$162,2,0),"") -> Straddle jump | AV66: =IF(ISNUMBER(SEARCH($B$13,AW66)),MAX($AV$8:AV65)+1,0) -> 58 | AW66: Straddle jump | AZ66: =IFERROR(VLOOKUP(ROWS($AW$9:AW66),$AV$9:$AW$162,2,0),"") -> Straddle jump | BD66: =IF(ISNUMBER(SEARCH($B$14,BE66)),MAX($BD$8:BD65)+1,0) -> 58 | BE66: Straddle jump | BH66: =IFERROR(VLOOKUP(ROWS($BE$9:BE66),$BD$9:$BE$162,2,0),"") -> Straddle jump | BL66: =IF(ISNUMBER(SEARCH($B$15,BM66)),MAX($BL$8:BL65)+1,0) -> 58 | BM66: Straddle jump | BP66: =IFERROR(VLOOKUP(ROWS($BM$9:BM66),$BL$9:$BM$162,2,0),"") -> Straddle jump | BT66: =IF(ISNUMBER(SEARCH($B$16,BU66)),MAX($BT$8:BT65)+1,0) -> 58 | BU66: Straddle jump | BX66: =IFERROR(VLOOKUP(ROWS($BU$9:BU66),$BT$9:$BU$162,2,0),"") -> Straddle jump | CB66: =IF(ISNUMBER(SEARCH($B$17,CC66)),MAX($CB$8:CB65)+1,0) -> 58 | CC66: Straddle jump | CF66: =IFERROR(VLOOKUP(ROWS($CC$9:CC66),$CB$9:$CC$162,2,0),"") -> Straddle jump | CJ66: =IF(ISNUMBER(SEARCH($B$18,CK66)),MAX($CJ$8:CJ65)+1,0) -> 58 | CK66: Straddle jump | CN66: =IFERROR(VLOOKUP(ROWS($CK$9:CK66),$CJ$9:$CK$162,2,0),"") -> Straddle jump
L67: 4 | P67: =IF(ISNUMBER(SEARCH($B$9,Q67)),MAX($P$8:P66)+1,0) -> 59 | Q67: Tuck jump ½ turn | T67: =IFERROR(VLOOKUP(ROWS($Q$9:Q67),$P$9:$Q$162,2,0),"") -> Tuck jump ½ turn | X67: =IF(ISNUMBER(SEARCH($B$10,Y67)),MAX($X$8:X66)+1,0) -> 59 | Y67: Tuck jump ½ turn | AB67: =IFERROR(VLOOKUP(ROWS($Y$9:Y67),$X$9:$Y$162,2,0),"") -> Tuck jump ½ turn | AF67: =IF(ISNUMBER(SEARCH($B$11,AG67)),MAX($AF$8:AF66)+1,0) -> 59 | AG67: Tuck jump ½ turn | AJ67: =IFERROR(VLOOKUP(ROWS($AG$9:AG67),$AF$9:$AG$162,2,0),"") -> Tuck jump ½ turn | AN67: =IF(ISNUMBER(SEARCH($B$12,AO67)),MAX($AN$8:AN66)+1,0) -> 59 | AO67: Tuck jump ½ turn | AR67: =IFERROR(VLOOKUP(ROWS($AO$9:AO67),$AN$9:$AO$162,2,0),"") -> Tuck jump ½ turn | AV67: =IF(ISNUMBER(SEARCH($B$13,AW67)),MAX($AV$8:AV66)+1,0) -> 59 | AW67: Tuck jump ½ turn | AZ67: =IFERROR(VLOOKUP(ROWS($AW$9:AW67),$AV$9:$AW$162,2,0),"") -> Tuck jump ½ turn | BD67: =IF(ISNUMBER(SEARCH($B$14,BE67)),MAX($BD$8:BD66)+1,0) -> 59 | BE67: Tuck jump ½ turn | BH67: =IFERROR(VLOOKUP(ROWS($BE$9:BE67),$BD$9:$BE$162,2,0),"") -> Tuck jump ½ turn | BL67: =IF(ISNUMBER(SEARCH($B$15,BM67)),MAX($BL$8:BL66)+1,0) -> 59 | BM67: Tuck jump ½ turn | BP67: =IFERROR(VLOOKUP(ROWS($BM$9:BM67),$BL$9:$BM$162,2,0),"") -> Tuck jump ½ turn | BT67: =IF(ISNUMBER(SEARCH($B$16,BU67)),MAX($BT$8:BT66)+1,0) -> 59 | BU67: Tuck jump ½ turn | BX67: =IFERROR(VLOOKUP(ROWS($BU$9:BU67),$BT$9:$BU$162,2,0),"") -> Tuck jump ½ turn | CB67: =IF(ISNUMBER(SEARCH($B$17,CC67)),MAX($CB$8:CB66)+1,0) -> 59 | CC67: Tuck jump ½ turn | CF67: =IFERROR(VLOOKUP(ROWS($CC$9:CC67),$CB$9:$CC$162,2,0),"") -> Tuck jump ½ turn | CJ67: =IF(ISNUMBER(SEARCH($B$18,CK67)),MAX($CJ$8:CJ66)+1,0) -> 59 | CK67: Tuck jump ½ turn | CN67: =IFERROR(VLOOKUP(ROWS($CK$9:CK67),$CJ$9:$CK$162,2,0),"") -> Tuck jump ½ turn
L68: AS | P68: =IF(ISNUMBER(SEARCH($B$9,Q68)),MAX($P$8:P67)+1,0) -> 60 | Q68: Full Spin | T68: =IFERROR(VLOOKUP(ROWS($Q$9:Q68),$P$9:$Q$162,2,0),"") -> Full Spin | X68: =IF(ISNUMBER(SEARCH($B$10,Y68)),MAX($X$8:X67)+1,0) -> 60 | Y68: Full Spin | AB68: =IFERROR(VLOOKUP(ROWS($Y$9:Y68),$X$9:$Y$162,2,0),"") -> Full Spin | AF68: =IF(ISNUMBER(SEARCH($B$11,AG68)),MAX($AF$8:AF67)+1,0) -> 60 | AG68: Full Spin | AJ68: =IFERROR(VLOOKUP(ROWS($AG$9:AG68),$AF$9:$AG$162,2,0),"") -> Full Spin | AN68: =IF(ISNUMBER(SEARCH($B$12,AO68)),MAX($AN$8:AN67)+1,0) -> 60 | AO68: Full Spin | AR68: =IFERROR(VLOOKUP(ROWS($AO$9:AO68),$AN$9:$AO$162,2,0),"") -> Full Spin | AV68: =IF(ISNUMBER(SEARCH($B$13,AW68)),MAX($AV$8:AV67)+1,0) -> 60 | AW68: Full Spin | AZ68: =IFERROR(VLOOKUP(ROWS($AW$9:AW68),$AV$9:$AW$162,2,0),"") -> Full Spin | BD68: =IF(ISNUMBER(SEARCH($B$14,BE68)),MAX($BD$8:BD67)+1,0) -> 60 | BE68: Full Spin | BH68: =IFERROR(VLOOKUP(ROWS($BE$9:BE68),$BD$9:$BE$162,2,0),"") -> Full Spin | BL68: =IF(ISNUMBER(SEARCH($B$15,BM68)),MAX($BL$8:BL67)+1,0) -> 60 | BM68: Full Spin | BP68: =IFERROR(VLOOKUP(ROWS($BM$9:BM68),$BL$9:$BM$162,2,0),"") -> Full Spin | BT68: =IF(ISNUMBER(SEARCH($B$16,BU68)),MAX($BT$8:BT67)+1,0) -> 60 | BU68: Full Spin | BX68: =IFERROR(VLOOKUP(ROWS($BU$9:BU68),$BT$9:$BU$162,2,0),"") -> Full Spin | CB68: =IF(ISNUMBER(SEARCH($B$17,CC68)),MAX($CB$8:CB67)+1,0) -> 60 | CC68: Full Spin | CF68: =IFERROR(VLOOKUP(ROWS($CC$9:CC68),$CB$9:$CC$162,2,0),"") -> Full Spin | CJ68: =IF(ISNUMBER(SEARCH($B$18,CK68)),MAX($CJ$8:CJ67)+1,0) -> 60 | CK68: Full Spin | CN68: =IFERROR(VLOOKUP(ROWS($CK$9:CK68),$CJ$9:$CK$162,2,0),"") -> Full Spin
L69: =IF(COUNTIF(CX9:CX18,"Yes")=1,"Yes","No") -> No | P69: =IF(ISNUMBER(SEARCH($B$9,Q69)),MAX($P$8:P68)+1,0) -> 61 | Q69: Y scale (leg above waist height) | T69: =IFERROR(VLOOKUP(ROWS($Q$9:Q69),$P$9:$Q$162,2,0),"") -> Y scale (leg above waist height) | X69: =IF(ISNUMBER(SEARCH($B$10,Y69)),MAX($X$8:X68)+1,0) -> 61 | Y69: Y scale (leg above waist height) | AB69: =IFERROR(VLOOKUP(ROWS($Y$9:Y69),$X$9:$Y$162,2,0),"") -> Y scale (leg above waist height) | AF69: =IF(ISNUMBER(SEARCH($B$11,AG69)),MAX($AF$8:AF68)+1,0) -> 61 | AG69: Y scale (leg above waist height) | AJ69: =IFERROR(VLOOKUP(ROWS($AG$9:AG69),$AF$9:$AG$162,2,0),"") -> Y scale (leg above waist height) | AN69: =IF(ISNUMBER(SEARCH($B$12,AO69)),MAX($AN$8:AN68)+1,0) -> 61 | AO69: Y scale (leg above waist height) | AR69: =IFERROR(VLOOKUP(ROWS($AO$9:AO69),$AN$9:$AO$162,2,0),"") -> Y scale (leg above waist height) | AV69: =IF(ISNUMBER(SEARCH($B$13,AW69)),MAX($AV$8:AV68)+1,0) -> 61 | AW69: Y scale (leg above waist height) | AZ69: =IFERROR(VLOOKUP(ROWS($AW$9:AW69),$AV$9:$AW$162,2,0),"") -> Y scale (leg above waist height) | BD69: =IF(ISNUMBER(SEARCH($B$14,BE69)),MAX($BD$8:BD68)+1,0) -> 61 | BE69: Y scale (leg above waist height) | BH69: =IFERROR(VLOOKUP(ROWS($BE$9:BE69),$BD$9:$BE$162,2,0),"") -> Y scale (leg above waist height) | BL69: =IF(ISNUMBER(SEARCH($B$15,BM69)),MAX($BL$8:BL68)+1,0) -> 61 | BM69: Y scale (leg above waist height) | BP69: =IFERROR(VLOOKUP(ROWS($BM$9:BM69),$BL$9:$BM$162,2,0),"") -> Y scale (leg above waist height) | BT69: =IF(ISNUMBER(SEARCH($B$16,BU69)),MAX($BT$8:BT68)+1,0) -> 61 | BU69: Y scale (leg above waist height) | BX69: =IFERROR(VLOOKUP(ROWS($BU$9:BU69),$BT$9:$BU$162,2,0),"") -> Y scale (leg above waist height) | CB69: =IF(ISNUMBER(SEARCH($B$17,CC69)),MAX($CB$8:CB68)+1,0) -> 61 | CC69: Y scale (leg above waist height) | CF69: =IFERROR(VLOOKUP(ROWS($CC$9:CC69),$CB$9:$CC$162,2,0),"") -> Y scale (leg above waist height) | CJ69: =IF(ISNUMBER(SEARCH($B$18,CK69)),MAX($CJ$8:CJ68)+1,0) -> 61 | CK69: Y scale (leg above waist height) | CN69: =IFERROR(VLOOKUP(ROWS($CK$9:CK69),$CJ$9:$CK$162,2,0),"") -> Y scale (leg above waist height)
P70: =IF(ISNUMBER(SEARCH($B$9,Q70)),MAX($P$8:P69)+1,0) -> 62 | Q70: 2 way Splits | T70: =IFERROR(VLOOKUP(ROWS($Q$9:Q70),$P$9:$Q$162,2,0),"") -> 2 way Splits | X70: =IF(ISNUMBER(SEARCH($B$10,Y70)),MAX($X$8:X69)+1,0) -> 62 | Y70: 2 way Splits | AB70: =IFERROR(VLOOKUP(ROWS($Y$9:Y70),$X$9:$Y$162,2,0),"") -> 2 way Splits | AF70: =IF(ISNUMBER(SEARCH($B$11,AG70)),MAX($AF$8:AF69)+1,0) -> 62 | AG70: 2 way Splits | AJ70: =IFERROR(VLOOKUP(ROWS($AG$9:AG70),$AF$9:$AG$162,2,0),"") -> 2 way Splits | AN70: =IF(ISNUMBER(SEARCH($B$12,AO70)),MAX($AN$8:AN69)+1,0) -> 62 | AO70: 2 way Splits | AR70: =IFERROR(VLOOKUP(ROWS($AO$9:AO70),$AN$9:$AO$162,2,0),"") -> 2 way Splits | AV70: =IF(ISNUMBER(SEARCH($B$13,AW70)),MAX($AV$8:AV69)+1,0) -> 62 | AW70: 2 way Splits | AZ70: =IFERROR(VLOOKUP(ROWS($AW$9:AW70),$AV$9:$AW$162,2,0),"") -> 2 way Splits | BD70: =IF(ISNUMBER(SEARCH($B$14,BE70)),MAX($BD$8:BD69)+1,0) -> 62 | BE70: 2 way Splits | BH70: =IFERROR(VLOOKUP(ROWS($BE$9:BE70),$BD$9:$BE$162,2,0),"") -> 2 way Splits | BL70: =IF(ISNUMBER(SEARCH($B$15,BM70)),MAX($BL$8:BL69)+1,0) -> 62 | BM70: 2 way Splits | BP70: =IFERROR(VLOOKUP(ROWS($BM$9:BM70),$BL$9:$BM$162,2,0),"") -> 2 way Splits | BT70: =IF(ISNUMBER(SEARCH($B$16,BU70)),MAX($BT$8:BT69)+1,0) -> 62 | BU70: 2 way Splits | BX70: =IFERROR(VLOOKUP(ROWS($BU$9:BU70),$BT$9:$BU$162,2,0),"") -> 2 way Splits | CB70: =IF(ISNUMBER(SEARCH($B$17,CC70)),MAX($CB$8:CB69)+1,0) -> 62 | CC70: 2 way Splits | CF70: =IFERROR(VLOOKUP(ROWS($CC$9:CC70),$CB$9:$CC$162,2,0),"") -> 2 way Splits | CJ70: =IF(ISNUMBER(SEARCH($B$18,CK70)),MAX($CJ$8:CJ69)+1,0) -> 62 | CK70: 2 way Splits | CN70: =IFERROR(VLOOKUP(ROWS($CK$9:CK70),$CJ$9:$CK$162,2,0),"") -> 2 way Splits
L71: AF | P71: =IF(ISNUMBER(SEARCH($B$9,Q71)),MAX($P$8:P70)+1,0) -> 63 | Q71: Japana Swim Through | T71: =IFERROR(VLOOKUP(ROWS($Q$9:Q71),$P$9:$Q$162,2,0),"") -> Japana Swim Through | X71: =IF(ISNUMBER(SEARCH($B$10,Y71)),MAX($X$8:X70)+1,0) -> 63 | Y71: Japana Swim Through | AB71: =IFERROR(VLOOKUP(ROWS($Y$9:Y71),$X$9:$Y$162,2,0),"") -> Japana Swim Through | AF71: =IF(ISNUMBER(SEARCH($B$11,AG71)),MAX($AF$8:AF70)+1,0) -> 63 | AG71: Japana Swim Through | AJ71: =IFERROR(VLOOKUP(ROWS($AG$9:AG71),$AF$9:$AG$162,2,0),"") -> Japana Swim Through | AN71: =IF(ISNUMBER(SEARCH($B$12,AO71)),MAX($AN$8:AN70)+1,0) -> 63 | AO71: Japana Swim Through | AR71: =IFERROR(VLOOKUP(ROWS($AO$9:AO71),$AN$9:$AO$162,2,0),"") -> Japana Swim Through | AV71: =IF(ISNUMBER(SEARCH($B$13,AW71)),MAX($AV$8:AV70)+1,0) -> 63 | AW71: Japana Swim Through | AZ71: =IFERROR(VLOOKUP(ROWS($AW$9:AW71),$AV$9:$AW$162,2,0),"") -> Japana Swim Through | BD71: =IF(ISNUMBER(SEARCH($B$14,BE71)),MAX($BD$8:BD70)+1,0) -> 63 | BE71: Japana Swim Through | BH71: =IFERROR(VLOOKUP(ROWS($BE$9:BE71),$BD$9:$BE$162,2,0),"") -> Japana Swim Through | BL71: =IF(ISNUMBER(SEARCH($B$15,BM71)),MAX($BL$8:BL70)+1,0) -> 63 | BM71: Japana Swim Through | BP71: =IFERROR(VLOOKUP(ROWS($BM$9:BM71),$BL$9:$BM$162,2,0),"") -> Japana Swim Through | BT71: =IF(ISNUMBER(SEARCH($B$16,BU71)),MAX($BT$8:BT70)+1,0) -> 63 | BU71: Japana Swim Through | BX71: =IFERROR(VLOOKUP(ROWS($BU$9:BU71),$BT$9:$BU$162,2,0),"") -> Japana Swim Through | CB71: =IF(ISNUMBER(SEARCH($B$17,CC71)),MAX($CB$8:CB70)+1,0) -> 63 | CC71: Japana Swim Through | CF71: =IFERROR(VLOOKUP(ROWS($CC$9:CC71),$CB$9:$CC$162,2,0),"") -> Japana Swim Through | CJ71: =IF(ISNUMBER(SEARCH($B$18,CK71)),MAX($CJ$8:CJ70)+1,0) -> 63 | CK71: Japana Swim Through | CN71: =IFERROR(VLOOKUP(ROWS($CK$9:CK71),$CJ$9:$CK$162,2,0),"") -> Japana Swim Through
L72: =IF(COUNTIF(CY9:CY18,"Yes")=1,"Yes","No") -> No | P72: =IF(ISNUMBER(SEARCH($B$9,Q72)),MAX($P$8:P71)+1,0) -> 64 | Q72: Fall to Prone Jump to Straddle Stand | T72: =IFERROR(VLOOKUP(ROWS($Q$9:Q72),$P$9:$Q$162,2,0),"") -> Fall to Prone Jump to Straddle Stand | X72: =IF(ISNUMBER(SEARCH($B$10,Y72)),MAX($X$8:X71)+1,0) -> 64 | Y72: Fall to Prone Jump to Straddle Stand | AB72: =IFERROR(VLOOKUP(ROWS($Y$9:Y72),$X$9:$Y$162,2,0),"") -> Fall to Prone Jump to Straddle Stand | AF72: =IF(ISNUMBER(SEARCH($B$11,AG72)),MAX($AF$8:AF71)+1,0) -> 64 | AG72: Fall to Prone Jump to Straddle Stand | AJ72: =IFERROR(VLOOKUP(ROWS($AG$9:AG72),$AF$9:$AG$162,2,0),"") -> Fall to Prone Jump to Straddle Stand | AN72: =IF(ISNUMBER(SEARCH($B$12,AO72)),MAX($AN$8:AN71)+1,0) -> 64 | AO72: Fall to Prone Jump to Straddle Stand | AR72: =IFERROR(VLOOKUP(ROWS($AO$9:AO72),$AN$9:$AO$162,2,0),"") -> Fall to Prone Jump to Straddle Stand | AV72: =IF(ISNUMBER(SEARCH($B$13,AW72)),MAX($AV$8:AV71)+1,0) -> 64 | AW72: Fall to Prone Jump to Straddle Stand | AZ72: =IFERROR(VLOOKUP(ROWS($AW$9:AW72),$AV$9:$AW$162,2,0),"") -> Fall to Prone Jump to Straddle Stand | BD72: =IF(ISNUMBER(SEARCH($B$14,BE72)),MAX($BD$8:BD71)+1,0) -> 64 | BE72: Fall to Prone Jump to Straddle Stand | BH72: =IFERROR(VLOOKUP(ROWS($BE$9:BE72),$BD$9:$BE$162,2,0),"") -> Fall to Prone Jump to Straddle Stand | BL72: =IF(ISNUMBER(SEARCH($B$15,BM72)),MAX($BL$8:BL71)+1,0) -> 64 | BM72: Fall to Prone Jump to Straddle Stand | BP72: =IFERROR(VLOOKUP(ROWS($BM$9:BM72),$BL$9:$BM$162,2,0),"") -> Fall to Prone Jump to Straddle Stand | BT72: =IF(ISNUMBER(SEARCH($B$16,BU72)),MAX($BT$8:BT71)+1,0) -> 64 | BU72: Fall to Prone Jump to Straddle Stand | BX72: =IFERROR(VLOOKUP(ROWS($BU$9:BU72),$BT$9:$BU$162,2,0),"") -> Fall to Prone Jump to Straddle Stand | CB72: =IF(ISNUMBER(SEARCH($B$17,CC72)),MAX($CB$8:CB71)+1,0) -> 64 | CC72: Fall to Prone Jump to Straddle Stand | CF72: =IFERROR(VLOOKUP(ROWS($CC$9:CC72),$CB$9:$CC$162,2,0),"") -> Fall to Prone Jump to Straddle Stand | CJ72: =IF(ISNUMBER(SEARCH($B$18,CK72)),MAX($CJ$8:CJ71)+1,0) -> 64 | CK72: Fall to Prone Jump to Straddle Stand | CN72: =IFERROR(VLOOKUP(ROWS($CK$9:CK72),$CJ$9:$CK$162,2,0),"") -> Fall to Prone Jump to Straddle Stand
P73: =IF(ISNUMBER(SEARCH($B$9,Q73)),MAX($P$8:P72)+1,0) -> 65 | Q73: F Supp jump legs through straddle - | T73: =IFERROR(VLOOKUP(ROWS($Q$9:Q73),$P$9:$Q$162,2,0),"") -> F Supp jump legs through straddle - | X73: =IF(ISNUMBER(SEARCH($B$10,Y73)),MAX($X$8:X72)+1,0) -> 65 | Y73: F Supp jump legs through straddle - | AB73: =IFERROR(VLOOKUP(ROWS($Y$9:Y73),$X$9:$Y$162,2,0),"") -> F Supp jump legs through straddle - | AF73: =IF(ISNUMBER(SEARCH($B$11,AG73)),MAX($AF$8:AF72)+1,0) -> 65 | AG73: F Supp jump legs through straddle - | AJ73: =IFERROR(VLOOKUP(ROWS($AG$9:AG73),$AF$9:$AG$162,2,0),"") -> F Supp jump legs through straddle - | AN73: =IF(ISNUMBER(SEARCH($B$12,AO73)),MAX($AN$8:AN72)+1,0) -> 65 | AO73: F Supp jump legs through straddle - | AR73: =IFERROR(VLOOKUP(ROWS($AO$9:AO73),$AN$9:$AO$162,2,0),"") -> F Supp jump legs through straddle - | AV73: =IF(ISNUMBER(SEARCH($B$13,AW73)),MAX($AV$8:AV72)+1,0) -> 65 | AW73: F Supp jump legs through straddle - | AZ73: =IFERROR(VLOOKUP(ROWS($AW$9:AW73),$AV$9:$AW$162,2,0),"") -> F Supp jump legs through straddle - | BD73: =IF(ISNUMBER(SEARCH($B$14,BE73)),MAX($BD$8:BD72)+1,0) -> 65 | BE73: F Supp jump legs through straddle - | BH73: =IFERROR(VLOOKUP(ROWS($BE$9:BE73),$BD$9:$BE$162,2,0),"") -> F Supp jump legs through straddle - | BL73: =IF(ISNUMBER(SEARCH($B$15,BM73)),MAX($BL$8:BL72)+1,0) -> 65 | BM73: F Supp jump legs through straddle - | BP73: =IFERROR(VLOOKUP(ROWS($BM$9:BM73),$BL$9:$BM$162,2,0),"") -> F Supp jump legs through straddle - | BT73: =IF(ISNUMBER(SEARCH($B$16,BU73)),MAX($BT$8:BT72)+1,0) -> 65 | BU73: F Supp jump legs through straddle - | BX73: =IFERROR(VLOOKUP(ROWS($BU$9:BU73),$BT$9:$BU$162,2,0),"") -> F Supp jump legs through straddle - | CB73: =IF(ISNUMBER(SEARCH($B$17,CC73)),MAX($CB$8:CB72)+1,0) -> 65 | CC73: F Supp jump legs through straddle - | CF73: =IFERROR(VLOOKUP(ROWS($CC$9:CC73),$CB$9:$CC$162,2,0),"") -> F Supp jump legs through straddle - | CJ73: =IF(ISNUMBER(SEARCH($B$18,CK73)),MAX($CJ$8:CJ72)+1,0) -> 65 | CK73: F Supp jump legs through straddle - | CN73: =IFERROR(VLOOKUP(ROWS($CK$9:CK73),$CJ$9:$CK$162,2,0),"") -> F Supp jump legs through straddle -
L74: Achieved | P74: =IF(ISNUMBER(SEARCH($B$9,Q74)),MAX($P$8:P73)+1,0) -> 66 | Q74: Tuck ‘Russian’ Lever | T74: =IFERROR(VLOOKUP(ROWS($Q$9:Q74),$P$9:$Q$162,2,0),"") -> Tuck ‘Russian’ Lever | X74: =IF(ISNUMBER(SEARCH($B$10,Y74)),MAX($X$8:X73)+1,0) -> 66 | Y74: Tuck ‘Russian’ Lever | AB74: =IFERROR(VLOOKUP(ROWS($Y$9:Y74),$X$9:$Y$162,2,0),"") -> Tuck ‘Russian’ Lever | AF74: =IF(ISNUMBER(SEARCH($B$11,AG74)),MAX($AF$8:AF73)+1,0) -> 66 | AG74: Tuck ‘Russian’ Lever | AJ74: =IFERROR(VLOOKUP(ROWS($AG$9:AG74),$AF$9:$AG$162,2,0),"") -> Tuck ‘Russian’ Lever | AN74: =IF(ISNUMBER(SEARCH($B$12,AO74)),MAX($AN$8:AN73)+1,0) -> 66 | AO74: Tuck ‘Russian’ Lever | AR74: =IFERROR(VLOOKUP(ROWS($AO$9:AO74),$AN$9:$AO$162,2,0),"") -> Tuck ‘Russian’ Lever | AV74: =IF(ISNUMBER(SEARCH($B$13,AW74)),MAX($AV$8:AV73)+1,0) -> 66 | AW74: Tuck ‘Russian’ Lever | AZ74: =IFERROR(VLOOKUP(ROWS($AW$9:AW74),$AV$9:$AW$162,2,0),"") -> Tuck ‘Russian’ Lever | BD74: =IF(ISNUMBER(SEARCH($B$14,BE74)),MAX($BD$8:BD73)+1,0) -> 66 | BE74: Tuck ‘Russian’ Lever | BH74: =IFERROR(VLOOKUP(ROWS($BE$9:BE74),$BD$9:$BE$162,2,0),"") -> Tuck ‘Russian’ Lever | BL74: =IF(ISNUMBER(SEARCH($B$15,BM74)),MAX($BL$8:BL73)+1,0) -> 66 | BM74: Tuck ‘Russian’ Lever | BP74: =IFERROR(VLOOKUP(ROWS($BM$9:BM74),$BL$9:$BM$162,2,0),"") -> Tuck ‘Russian’ Lever | BT74: =IF(ISNUMBER(SEARCH($B$16,BU74)),MAX($BT$8:BT73)+1,0) -> 66 | BU74: Tuck ‘Russian’ Lever | BX74: =IFERROR(VLOOKUP(ROWS($BU$9:BU74),$BT$9:$BU$162,2,0),"") -> Tuck ‘Russian’ Lever | CB74: =IF(ISNUMBER(SEARCH($B$17,CC74)),MAX($CB$8:CB73)+1,0) -> 66 | CC74: Tuck ‘Russian’ Lever | CF74: =IFERROR(VLOOKUP(ROWS($CC$9:CC74),$CB$9:$CC$162,2,0),"") -> Tuck ‘Russian’ Lever | CJ74: =IF(ISNUMBER(SEARCH($B$18,CK74)),MAX($CJ$8:CJ73)+1,0) -> 66 | CK74: Tuck ‘Russian’ Lever | CN74: =IFERROR(VLOOKUP(ROWS($CK$9:CK74),$CJ$9:$CK$162,2,0),"") -> Tuck ‘Russian’ Lever
L75: =IF(D5="Female",IF(L51="Yes",IF(L54="Yes",IF(L65="Yes",IF(L69="Yes",IF(L72="Yes","Yes","No"),"No"),"No"),"No"),"No"),IF(D5="Male",IF(L54="Yes",IF(L65="Yes",IF(L69="Yes",IF(L72="Yes","Yes","No"),"No"),"No"),"No"),"No")) -> No | P75: =IF(ISNUMBER(SEARCH($B$9,Q75)),MAX($P$8:P74)+1,0) -> 67 | Q75: Tucked hold (press off knees) | T75: =IFERROR(VLOOKUP(ROWS($Q$9:Q75),$P$9:$Q$162,2,0),"") -> Tucked hold (press off knees) | X75: =IF(ISNUMBER(SEARCH($B$10,Y75)),MAX($X$8:X74)+1,0) -> 67 | Y75: Tucked hold (press off knees) | AB75: =IFERROR(VLOOKUP(ROWS($Y$9:Y75),$X$9:$Y$162,2,0),"") -> Tucked hold (press off knees) | AF75: =IF(ISNUMBER(SEARCH($B$11,AG75)),MAX($AF$8:AF74)+1,0) -> 67 | AG75: Tucked hold (press off knees) | AJ75: =IFERROR(VLOOKUP(ROWS($AG$9:AG75),$AF$9:$AG$162,2,0),"") -> Tucked hold (press off knees) | AN75: =IF(ISNUMBER(SEARCH($B$12,AO75)),MAX($AN$8:AN74)+1,0) -> 67 | AO75: Tucked hold (press off knees) | AR75: =IFERROR(VLOOKUP(ROWS($AO$9:AO75),$AN$9:$AO$162,2,0),"") -> Tucked hold (press off knees) | AV75: =IF(ISNUMBER(SEARCH($B$13,AW75)),MAX($AV$8:AV74)+1,0) -> 67 | AW75: Tucked hold (press off knees) | AZ75: =IFERROR(VLOOKUP(ROWS($AW$9:AW75),$AV$9:$AW$162,2,0),"") -> Tucked hold (press off knees) | BD75: =IF(ISNUMBER(SEARCH($B$14,BE75)),MAX($BD$8:BD74)+1,0) -> 67 | BE75: Tucked hold (press off knees) | BH75: =IFERROR(VLOOKUP(ROWS($BE$9:BE75),$BD$9:$BE$162,2,0),"") -> Tucked hold (press off knees) | BL75: =IF(ISNUMBER(SEARCH($B$15,BM75)),MAX($BL$8:BL74)+1,0) -> 67 | BM75: Tucked hold (press off knees) | BP75: =IFERROR(VLOOKUP(ROWS($BM$9:BM75),$BL$9:$BM$162,2,0),"") -> Tucked hold (press off knees) | BT75: =IF(ISNUMBER(SEARCH($B$16,BU75)),MAX($BT$8:BT74)+1,0) -> 67 | BU75: Tucked hold (press off knees) | BX75: =IFERROR(VLOOKUP(ROWS($BU$9:BU75),$BT$9:$BU$162,2,0),"") -> Tucked hold (press off knees) | CB75: =IF(ISNUMBER(SEARCH($B$17,CC75)),MAX($CB$8:CB74)+1,0) -> 67 | CC75: Tucked hold (press off knees) | CF75: =IFERROR(VLOOKUP(ROWS($CC$9:CC75),$CB$9:$CC$162,2,0),"") -> Tucked hold (press off knees) | CJ75: =IF(ISNUMBER(SEARCH($B$18,CK75)),MAX($CJ$8:CJ74)+1,0) -> 67 | CK75: Tucked hold (press off knees) | CN75: =IFERROR(VLOOKUP(ROWS($CK$9:CK75),$CJ$9:$CK$162,2,0),"") -> Tucked hold (press off knees)
P76: =IF(ISNUMBER(SEARCH($B$9,Q76)),MAX($P$8:P75)+1,0) -> 68 | Q76: 1/2 lever held 2 secs (pike / straddle) | T76: =IFERROR(VLOOKUP(ROWS($Q$9:Q76),$P$9:$Q$162,2,0),"") -> 1/2 lever held 2 secs (pike / straddle) | X76: =IF(ISNUMBER(SEARCH($B$10,Y76)),MAX($X$8:X75)+1,0) -> 68 | Y76: 1/2 lever held 2 secs (pike / straddle) | AB76: =IFERROR(VLOOKUP(ROWS($Y$9:Y76),$X$9:$Y$162,2,0),"") -> 1/2 lever held 2 secs (pike / straddle) | AF76: =IF(ISNUMBER(SEARCH($B$11,AG76)),MAX($AF$8:AF75)+1,0) -> 68 | AG76: 1/2 lever held 2 secs (pike / straddle) | AJ76: =IFERROR(VLOOKUP(ROWS($AG$9:AG76),$AF$9:$AG$162,2,0),"") -> 1/2 lever held 2 secs (pike / straddle) | AN76: =IF(ISNUMBER(SEARCH($B$12,AO76)),MAX($AN$8:AN75)+1,0) -> 68 | AO76: 1/2 lever held 2 secs (pike / straddle) | AR76: =IFERROR(VLOOKUP(ROWS($AO$9:AO76),$AN$9:$AO$162,2,0),"") -> 1/2 lever held 2 secs (pike / straddle) | AV76: =IF(ISNUMBER(SEARCH($B$13,AW76)),MAX($AV$8:AV75)+1,0) -> 68 | AW76: 1/2 lever held 2 secs (pike / straddle) | AZ76: =IFERROR(VLOOKUP(ROWS($AW$9:AW76),$AV$9:$AW$162,2,0),"") -> 1/2 lever held 2 secs (pike / straddle) | BD76: =IF(ISNUMBER(SEARCH($B$14,BE76)),MAX($BD$8:BD75)+1,0) -> 68 | BE76: 1/2 lever held 2 secs (pike / straddle) | BH76: =IFERROR(VLOOKUP(ROWS($BE$9:BE76),$BD$9:$BE$162,2,0),"") -> 1/2 lever held 2 secs (pike / straddle) | BL76: =IF(ISNUMBER(SEARCH($B$15,BM76)),MAX($BL$8:BL75)+1,0) -> 68 | BM76: 1/2 lever held 2 secs (pike / straddle) | BP76: =IFERROR(VLOOKUP(ROWS($BM$9:BM76),$BL$9:$BM$162,2,0),"") -> 1/2 lever held 2 secs (pike / straddle) | BT76: =IF(ISNUMBER(SEARCH($B$16,BU76)),MAX($BT$8:BT75)+1,0) -> 68 | BU76: 1/2 lever held 2 secs (pike / straddle) | BX76: =IFERROR(VLOOKUP(ROWS($BU$9:BU76),$BT$9:$BU$162,2,0),"") -> 1/2 lever held 2 secs (pike / straddle) | CB76: =IF(ISNUMBER(SEARCH($B$17,CC76)),MAX($CB$8:CB75)+1,0) -> 68 | CC76: 1/2 lever held 2 secs (pike / straddle) | CF76: =IFERROR(VLOOKUP(ROWS($CC$9:CC76),$CB$9:$CC$162,2,0),"") -> 1/2 lever held 2 secs (pike / straddle) | CJ76: =IF(ISNUMBER(SEARCH($B$18,CK76)),MAX($CJ$8:CJ75)+1,0) -> 68 | CK76: 1/2 lever held 2 secs (pike / straddle) | CN76: =IFERROR(VLOOKUP(ROWS($CK$9:CK76),$CJ$9:$CK$162,2,0),"") -> 1/2 lever held 2 secs (pike / straddle)
P77: =IF(ISNUMBER(SEARCH($B$9,Q77)),MAX($P$8:P76)+1,0) -> 69 | Q77: Straddle stand press to h/stand | T77: =IFERROR(VLOOKUP(ROWS($Q$9:Q77),$P$9:$Q$162,2,0),"") -> Straddle stand press to h/stand | X77: =IF(ISNUMBER(SEARCH($B$10,Y77)),MAX($X$8:X76)+1,0) -> 69 | Y77: Straddle stand press to h/stand | AB77: =IFERROR(VLOOKUP(ROWS($Y$9:Y77),$X$9:$Y$162,2,0),"") -> Straddle stand press to h/stand | AF77: =IF(ISNUMBER(SEARCH($B$11,AG77)),MAX($AF$8:AF76)+1,0) -> 69 | AG77: Straddle stand press to h/stand | AJ77: =IFERROR(VLOOKUP(ROWS($AG$9:AG77),$AF$9:$AG$162,2,0),"") -> Straddle stand press to h/stand | AN77: =IF(ISNUMBER(SEARCH($B$12,AO77)),MAX($AN$8:AN76)+1,0) -> 69 | AO77: Straddle stand press to h/stand | AR77: =IFERROR(VLOOKUP(ROWS($AO$9:AO77),$AN$9:$AO$162,2,0),"") -> Straddle stand press to h/stand | AV77: =IF(ISNUMBER(SEARCH($B$13,AW77)),MAX($AV$8:AV76)+1,0) -> 69 | AW77: Straddle stand press to h/stand | AZ77: =IFERROR(VLOOKUP(ROWS($AW$9:AW77),$AV$9:$AW$162,2,0),"") -> Straddle stand press to h/stand | BD77: =IF(ISNUMBER(SEARCH($B$14,BE77)),MAX($BD$8:BD76)+1,0) -> 69 | BE77: Straddle stand press to h/stand | BH77: =IFERROR(VLOOKUP(ROWS($BE$9:BE77),$BD$9:$BE$162,2,0),"") -> Straddle stand press to h/stand | BL77: =IF(ISNUMBER(SEARCH($B$15,BM77)),MAX($BL$8:BL76)+1,0) -> 69 | BM77: Straddle stand press to h/stand | BP77: =IFERROR(VLOOKUP(ROWS($BM$9:BM77),$BL$9:$BM$162,2,0),"") -> Straddle stand press to h/stand | BT77: =IF(ISNUMBER(SEARCH($B$16,BU77)),MAX($BT$8:BT76)+1,0) -> 69 | BU77: Straddle stand press to h/stand | BX77: =IFERROR(VLOOKUP(ROWS($BU$9:BU77),$BT$9:$BU$162,2,0),"") -> Straddle stand press to h/stand | CB77: =IF(ISNUMBER(SEARCH($B$17,CC77)),MAX($CB$8:CB76)+1,0) -> 69 | CC77: Straddle stand press to h/stand | CF77: =IFERROR(VLOOKUP(ROWS($CC$9:CC77),$CB$9:$CC$162,2,0),"") -> Straddle stand press to h/stand | CJ77: =IF(ISNUMBER(SEARCH($B$18,CK77)),MAX($CJ$8:CJ76)+1,0) -> 69 | CK77: Straddle stand press to h/stand | CN77: =IFERROR(VLOOKUP(ROWS($CK$9:CK77),$CJ$9:$CK$162,2,0),"") -> Straddle stand press to h/stand
P78: =IF(ISNUMBER(SEARCH($B$9,Q78)),MAX($P$8:P77)+1,0) -> 70 | Q78: Forward roll with straight legs | T78: =IFERROR(VLOOKUP(ROWS($Q$9:Q78),$P$9:$Q$162,2,0),"") -> Forward roll with straight legs | X78: =IF(ISNUMBER(SEARCH($B$10,Y78)),MAX($X$8:X77)+1,0) -> 70 | Y78: Forward roll with straight legs | AB78: =IFERROR(VLOOKUP(ROWS($Y$9:Y78),$X$9:$Y$162,2,0),"") -> Forward roll with straight legs | AF78: =IF(ISNUMBER(SEARCH($B$11,AG78)),MAX($AF$8:AF77)+1,0) -> 70 | AG78: Forward roll with straight legs | AJ78: =IFERROR(VLOOKUP(ROWS($AG$9:AG78),$AF$9:$AG$162,2,0),"") -> Forward roll with straight legs | AN78: =IF(ISNUMBER(SEARCH($B$12,AO78)),MAX($AN$8:AN77)+1,0) -> 70 | AO78: Forward roll with straight legs | AR78: =IFERROR(VLOOKUP(ROWS($AO$9:AO78),$AN$9:$AO$162,2,0),"") -> Forward roll with straight legs | AV78: =IF(ISNUMBER(SEARCH($B$13,AW78)),MAX($AV$8:AV77)+1,0) -> 70 | AW78: Forward roll with straight legs | AZ78: =IFERROR(VLOOKUP(ROWS($AW$9:AW78),$AV$9:$AW$162,2,0),"") -> Forward roll with straight legs | BD78: =IF(ISNUMBER(SEARCH($B$14,BE78)),MAX($BD$8:BD77)+1,0) -> 70 | BE78: Forward roll with straight legs | BH78: =IFERROR(VLOOKUP(ROWS($BE$9:BE78),$BD$9:$BE$162,2,0),"") -> Forward roll with straight legs | BL78: =IF(ISNUMBER(SEARCH($B$15,BM78)),MAX($BL$8:BL77)+1,0) -> 70 | BM78: Forward roll with straight legs | BP78: =IFERROR(VLOOKUP(ROWS($BM$9:BM78),$BL$9:$BM$162,2,0),"") -> Forward roll with straight legs | BT78: =IF(ISNUMBER(SEARCH($B$16,BU78)),MAX($BT$8:BT77)+1,0) -> 70 | BU78: Forward roll with straight legs | BX78: =IFERROR(VLOOKUP(ROWS($BU$9:BU78),$BT$9:$BU$162,2,0),"") -> Forward roll with straight legs | CB78: =IF(ISNUMBER(SEARCH($B$17,CC78)),MAX($CB$8:CB77)+1,0) -> 70 | CC78: Forward roll with straight legs | CF78: =IFERROR(VLOOKUP(ROWS($CC$9:CC78),$CB$9:$CC$162,2,0),"") -> Forward roll with straight legs | CJ78: =IF(ISNUMBER(SEARCH($B$18,CK78)),MAX($CJ$8:CJ77)+1,0) -> 70 | CK78: Forward roll with straight legs | CN78: =IFERROR(VLOOKUP(ROWS($CK$9:CK78),$CJ$9:$CK$162,2,0),"") -> Forward roll with straight legs
P79: =IF(ISNUMBER(SEARCH($B$9,Q79)),MAX($P$8:P78)+1,0) -> 71 | Q79: H/stand F Roll straight arms | T79: =IFERROR(VLOOKUP(ROWS($Q$9:Q79),$P$9:$Q$162,2,0),"") -> H/stand F Roll straight arms | X79: =IF(ISNUMBER(SEARCH($B$10,Y79)),MAX($X$8:X78)+1,0) -> 71 | Y79: H/stand F Roll straight arms | AB79: =IFERROR(VLOOKUP(ROWS($Y$9:Y79),$X$9:$Y$162,2,0),"") -> H/stand F Roll straight arms | AF79: =IF(ISNUMBER(SEARCH($B$11,AG79)),MAX($AF$8:AF78)+1,0) -> 71 | AG79: H/stand F Roll straight arms | AJ79: =IFERROR(VLOOKUP(ROWS($AG$9:AG79),$AF$9:$AG$162,2,0),"") -> H/stand F Roll straight arms | AN79: =IF(ISNUMBER(SEARCH($B$12,AO79)),MAX($AN$8:AN78)+1,0) -> 71 | AO79: H/stand F Roll straight arms | AR79: =IFERROR(VLOOKUP(ROWS($AO$9:AO79),$AN$9:$AO$162,2,0),"") -> H/stand F Roll straight arms | AV79: =IF(ISNUMBER(SEARCH($B$13,AW79)),MAX($AV$8:AV78)+1,0) -> 71 | AW79: H/stand F Roll straight arms | AZ79: =IFERROR(VLOOKUP(ROWS($AW$9:AW79),$AV$9:$AW$162,2,0),"") -> H/stand F Roll straight arms | BD79: =IF(ISNUMBER(SEARCH($B$14,BE79)),MAX($BD$8:BD78)+1,0) -> 71 | BE79: H/stand F Roll straight arms | BH79: =IFERROR(VLOOKUP(ROWS($BE$9:BE79),$BD$9:$BE$162,2,0),"") -> H/stand F Roll straight arms | BL79: =IF(ISNUMBER(SEARCH($B$15,BM79)),MAX($BL$8:BL78)+1,0) -> 71 | BM79: H/stand F Roll straight arms | BP79: =IFERROR(VLOOKUP(ROWS($BM$9:BM79),$BL$9:$BM$162,2,0),"") -> H/stand F Roll straight arms | BT79: =IF(ISNUMBER(SEARCH($B$16,BU79)),MAX($BT$8:BT78)+1,0) -> 71 | BU79: H/stand F Roll straight arms | BX79: =IFERROR(VLOOKUP(ROWS($BU$9:BU79),$BT$9:$BU$162,2,0),"") -> H/stand F Roll straight arms | CB79: =IF(ISNUMBER(SEARCH($B$17,CC79)),MAX($CB$8:CB78)+1,0) -> 71 | CC79: H/stand F Roll straight arms | CF79: =IFERROR(VLOOKUP(ROWS($CC$9:CC79),$CB$9:$CC$162,2,0),"") -> H/stand F Roll straight arms | CJ79: =IF(ISNUMBER(SEARCH($B$18,CK79)),MAX($CJ$8:CJ78)+1,0) -> 71 | CK79: H/stand F Roll straight arms | CN79: =IFERROR(VLOOKUP(ROWS($CK$9:CK79),$CJ$9:$CK$162,2,0),"") -> H/stand F Roll straight arms
P80: =IF(ISNUMBER(SEARCH($B$9,Q80)),MAX($P$8:P79)+1,0) -> 72 | Q80: B Roll through h/stand | T80: =IFERROR(VLOOKUP(ROWS($Q$9:Q80),$P$9:$Q$162,2,0),"") -> B Roll through h/stand | X80: =IF(ISNUMBER(SEARCH($B$10,Y80)),MAX($X$8:X79)+1,0) -> 72 | Y80: B Roll through h/stand | AB80: =IFERROR(VLOOKUP(ROWS($Y$9:Y80),$X$9:$Y$162,2,0),"") -> B Roll through h/stand | AF80: =IF(ISNUMBER(SEARCH($B$11,AG80)),MAX($AF$8:AF79)+1,0) -> 72 | AG80: B Roll through h/stand | AJ80: =IFERROR(VLOOKUP(ROWS($AG$9:AG80),$AF$9:$AG$162,2,0),"") -> B Roll through h/stand | AN80: =IF(ISNUMBER(SEARCH($B$12,AO80)),MAX($AN$8:AN79)+1,0) -> 72 | AO80: B Roll through h/stand | AR80: =IFERROR(VLOOKUP(ROWS($AO$9:AO80),$AN$9:$AO$162,2,0),"") -> B Roll through h/stand | AV80: =IF(ISNUMBER(SEARCH($B$13,AW80)),MAX($AV$8:AV79)+1,0) -> 72 | AW80: B Roll through h/stand | AZ80: =IFERROR(VLOOKUP(ROWS($AW$9:AW80),$AV$9:$AW$162,2,0),"") -> B Roll through h/stand | BD80: =IF(ISNUMBER(SEARCH($B$14,BE80)),MAX($BD$8:BD79)+1,0) -> 72 | BE80: B Roll through h/stand | BH80: =IFERROR(VLOOKUP(ROWS($BE$9:BE80),$BD$9:$BE$162,2,0),"") -> B Roll through h/stand | BL80: =IF(ISNUMBER(SEARCH($B$15,BM80)),MAX($BL$8:BL79)+1,0) -> 72 | BM80: B Roll through h/stand | BP80: =IFERROR(VLOOKUP(ROWS($BM$9:BM80),$BL$9:$BM$162,2,0),"") -> B Roll through h/stand | BT80: =IF(ISNUMBER(SEARCH($B$16,BU80)),MAX($BT$8:BT79)+1,0) -> 72 | BU80: B Roll through h/stand | BX80: =IFERROR(VLOOKUP(ROWS($BU$9:BU80),$BT$9:$BU$162,2,0),"") -> B Roll through h/stand | CB80: =IF(ISNUMBER(SEARCH($B$17,CC80)),MAX($CB$8:CB79)+1,0) -> 72 | CC80: B Roll through h/stand | CF80: =IFERROR(VLOOKUP(ROWS($CC$9:CC80),$CB$9:$CC$162,2,0),"") -> B Roll through h/stand | CJ80: =IF(ISNUMBER(SEARCH($B$18,CK80)),MAX($CJ$8:CJ79)+1,0) -> 72 | CK80: B Roll through h/stand | CN80: =IFERROR(VLOOKUP(ROWS($CK$9:CK80),$CJ$9:$CK$162,2,0),"") -> B Roll through h/stand
P81: =IF(ISNUMBER(SEARCH($B$9,Q81)),MAX($P$8:P80)+1,0) -> 73 | Q81: Handstand full pirouette | T81: =IFERROR(VLOOKUP(ROWS($Q$9:Q81),$P$9:$Q$162,2,0),"") -> Handstand full pirouette | X81: =IF(ISNUMBER(SEARCH($B$10,Y81)),MAX($X$8:X80)+1,0) -> 73 | Y81: Handstand full pirouette | AB81: =IFERROR(VLOOKUP(ROWS($Y$9:Y81),$X$9:$Y$162,2,0),"") -> Handstand full pirouette | AF81: =IF(ISNUMBER(SEARCH($B$11,AG81)),MAX($AF$8:AF80)+1,0) -> 73 | AG81: Handstand full pirouette | AJ81: =IFERROR(VLOOKUP(ROWS($AG$9:AG81),$AF$9:$AG$162,2,0),"") -> Handstand full pirouette | AN81: =IF(ISNUMBER(SEARCH($B$12,AO81)),MAX($AN$8:AN80)+1,0) -> 73 | AO81: Handstand full pirouette | AR81: =IFERROR(VLOOKUP(ROWS($AO$9:AO81),$AN$9:$AO$162,2,0),"") -> Handstand full pirouette | AV81: =IF(ISNUMBER(SEARCH($B$13,AW81)),MAX($AV$8:AV80)+1,0) -> 73 | AW81: Handstand full pirouette | AZ81: =IFERROR(VLOOKUP(ROWS($AW$9:AW81),$AV$9:$AW$162,2,0),"") -> Handstand full pirouette | BD81: =IF(ISNUMBER(SEARCH($B$14,BE81)),MAX($BD$8:BD80)+1,0) -> 73 | BE81: Handstand full pirouette | BH81: =IFERROR(VLOOKUP(ROWS($BE$9:BE81),$BD$9:$BE$162,2,0),"") -> Handstand full pirouette | BL81: =IF(ISNUMBER(SEARCH($B$15,BM81)),MAX($BL$8:BL80)+1,0) -> 73 | BM81: Handstand full pirouette | BP81: =IFERROR(VLOOKUP(ROWS($BM$9:BM81),$BL$9:$BM$162,2,0),"") -> Handstand full pirouette | BT81: =IF(ISNUMBER(SEARCH($B$16,BU81)),MAX($BT$8:BT80)+1,0) -> 73 | BU81: Handstand full pirouette | BX81: =IFERROR(VLOOKUP(ROWS($BU$9:BU81),$BT$9:$BU$162,2,0),"") -> Handstand full pirouette | CB81: =IF(ISNUMBER(SEARCH($B$17,CC81)),MAX($CB$8:CB80)+1,0) -> 73 | CC81: Handstand full pirouette | CF81: =IFERROR(VLOOKUP(ROWS($CC$9:CC81),$CB$9:$CC$162,2,0),"") -> Handstand full pirouette | CJ81: =IF(ISNUMBER(SEARCH($B$18,CK81)),MAX($CJ$8:CJ80)+1,0) -> 73 | CK81: Handstand full pirouette | CN81: =IFERROR(VLOOKUP(ROWS($CK$9:CK81),$CJ$9:$CK$162,2,0),"") -> Handstand full pirouette
P82: =IF(ISNUMBER(SEARCH($B$9,Q82)),MAX($P$8:P81)+1,0) -> 74 | Q82: Pike Bunny Hop to Handstand - | T82: =IFERROR(VLOOKUP(ROWS($Q$9:Q82),$P$9:$Q$162,2,0),"") -> Pike Bunny Hop to Handstand - | X82: =IF(ISNUMBER(SEARCH($B$10,Y82)),MAX($X$8:X81)+1,0) -> 74 | Y82: Pike Bunny Hop to Handstand - | AB82: =IFERROR(VLOOKUP(ROWS($Y$9:Y82),$X$9:$Y$162,2,0),"") -> Pike Bunny Hop to Handstand - | AF82: =IF(ISNUMBER(SEARCH($B$11,AG82)),MAX($AF$8:AF81)+1,0) -> 74 | AG82: Pike Bunny Hop to Handstand - | AJ82: =IFERROR(VLOOKUP(ROWS($AG$9:AG82),$AF$9:$AG$162,2,0),"") -> Pike Bunny Hop to Handstand - | AN82: =IF(ISNUMBER(SEARCH($B$12,AO82)),MAX($AN$8:AN81)+1,0) -> 74 | AO82: Pike Bunny Hop to Handstand - | AR82: =IFERROR(VLOOKUP(ROWS($AO$9:AO82),$AN$9:$AO$162,2,0),"") -> Pike Bunny Hop to Handstand - | AV82: =IF(ISNUMBER(SEARCH($B$13,AW82)),MAX($AV$8:AV81)+1,0) -> 74 | AW82: Pike Bunny Hop to Handstand - | AZ82: =IFERROR(VLOOKUP(ROWS($AW$9:AW82),$AV$9:$AW$162,2,0),"") -> Pike Bunny Hop to Handstand - | BD82: =IF(ISNUMBER(SEARCH($B$14,BE82)),MAX($BD$8:BD81)+1,0) -> 74 | BE82: Pike Bunny Hop to Handstand - | BH82: =IFERROR(VLOOKUP(ROWS($BE$9:BE82),$BD$9:$BE$162,2,0),"") -> Pike Bunny Hop to Handstand - | BL82: =IF(ISNUMBER(SEARCH($B$15,BM82)),MAX($BL$8:BL81)+1,0) -> 74 | BM82: Pike Bunny Hop to Handstand - | BP82: =IFERROR(VLOOKUP(ROWS($BM$9:BM82),$BL$9:$BM$162,2,0),"") -> Pike Bunny Hop to Handstand - | BT82: =IF(ISNUMBER(SEARCH($B$16,BU82)),MAX($BT$8:BT81)+1,0) -> 74 | BU82: Pike Bunny Hop to Handstand - | BX82: =IFERROR(VLOOKUP(ROWS($BU$9:BU82),$BT$9:$BU$162,2,0),"") -> Pike Bunny Hop to Handstand - | CB82: =IF(ISNUMBER(SEARCH($B$17,CC82)),MAX($CB$8:CB81)+1,0) -> 74 | CC82: Pike Bunny Hop to Handstand - | CF82: =IFERROR(VLOOKUP(ROWS($CC$9:CC82),$CB$9:$CC$162,2,0),"") -> Pike Bunny Hop to Handstand - | CJ82: =IF(ISNUMBER(SEARCH($B$18,CK82)),MAX($CJ$8:CJ81)+1,0) -> 74 | CK82: Pike Bunny Hop to Handstand - | CN82: =IFERROR(VLOOKUP(ROWS($CK$9:CK82),$CJ$9:$CK$162,2,0),"") -> Pike Bunny Hop to Handstand -
P83: =IF(ISNUMBER(SEARCH($B$9,Q83)),MAX($P$8:P82)+1,0) -> 75 | Q83: Half Double Leg Circle | T83: =IFERROR(VLOOKUP(ROWS($Q$9:Q83),$P$9:$Q$162,2,0),"") -> Half Double Leg Circle | X83: =IF(ISNUMBER(SEARCH($B$10,Y83)),MAX($X$8:X82)+1,0) -> 75 | Y83: Half Double Leg Circle | AB83: =IFERROR(VLOOKUP(ROWS($Y$9:Y83),$X$9:$Y$162,2,0),"") -> Half Double Leg Circle | AF83: =IF(ISNUMBER(SEARCH($B$11,AG83)),MAX($AF$8:AF82)+1,0) -> 75 | AG83: Half Double Leg Circle | AJ83: =IFERROR(VLOOKUP(ROWS($AG$9:AG83),$AF$9:$AG$162,2,0),"") -> Half Double Leg Circle | AN83: =IF(ISNUMBER(SEARCH($B$12,AO83)),MAX($AN$8:AN82)+1,0) -> 75 | AO83: Half Double Leg Circle | AR83: =IFERROR(VLOOKUP(ROWS($AO$9:AO83),$AN$9:$AO$162,2,0),"") -> Half Double Leg Circle | AV83: =IF(ISNUMBER(SEARCH($B$13,AW83)),MAX($AV$8:AV82)+1,0) -> 75 | AW83: Half Double Leg Circle | AZ83: =IFERROR(VLOOKUP(ROWS($AW$9:AW83),$AV$9:$AW$162,2,0),"") -> Half Double Leg Circle | BD83: =IF(ISNUMBER(SEARCH($B$14,BE83)),MAX($BD$8:BD82)+1,0) -> 75 | BE83: Half Double Leg Circle | BH83: =IFERROR(VLOOKUP(ROWS($BE$9:BE83),$BD$9:$BE$162,2,0),"") -> Half Double Leg Circle | BL83: =IF(ISNUMBER(SEARCH($B$15,BM83)),MAX($BL$8:BL82)+1,0) -> 75 | BM83: Half Double Leg Circle | BP83: =IFERROR(VLOOKUP(ROWS($BM$9:BM83),$BL$9:$BM$162,2,0),"") -> Half Double Leg Circle | BT83: =IF(ISNUMBER(SEARCH($B$16,BU83)),MAX($BT$8:BT82)+1,0) -> 75 | BU83: Half Double Leg Circle | BX83: =IFERROR(VLOOKUP(ROWS($BU$9:BU83),$BT$9:$BU$162,2,0),"") -> Half Double Leg Circle | CB83: =IF(ISNUMBER(SEARCH($B$17,CC83)),MAX($CB$8:CB82)+1,0) -> 75 | CC83: Half Double Leg Circle | CF83: =IFERROR(VLOOKUP(ROWS($CC$9:CC83),$CB$9:$CC$162,2,0),"") -> Half Double Leg Circle | CJ83: =IF(ISNUMBER(SEARCH($B$18,CK83)),MAX($CJ$8:CJ82)+1,0) -> 75 | CK83: Half Double Leg Circle | CN83: =IFERROR(VLOOKUP(ROWS($CK$9:CK83),$CJ$9:$CK$162,2,0),"") -> Half Double Leg Circle
P84: =IF(ISNUMBER(SEARCH($B$9,Q84)),MAX($P$8:P83)+1,0) -> 76 | Q84: Forward walkover | T84: =IFERROR(VLOOKUP(ROWS($Q$9:Q84),$P$9:$Q$162,2,0),"") -> Forward walkover | X84: =IF(ISNUMBER(SEARCH($B$10,Y84)),MAX($X$8:X83)+1,0) -> 76 | Y84: Forward walkover | AB84: =IFERROR(VLOOKUP(ROWS($Y$9:Y84),$X$9:$Y$162,2,0),"") -> Forward walkover | AF84: =IF(ISNUMBER(SEARCH($B$11,AG84)),MAX($AF$8:AF83)+1,0) -> 76 | AG84: Forward walkover | AJ84: =IFERROR(VLOOKUP(ROWS($AG$9:AG84),$AF$9:$AG$162,2,0),"") -> Forward walkover | AN84: =IF(ISNUMBER(SEARCH($B$12,AO84)),MAX($AN$8:AN83)+1,0) -> 76 | AO84: Forward walkover | AR84: =IFERROR(VLOOKUP(ROWS($AO$9:AO84),$AN$9:$AO$162,2,0),"") -> Forward walkover | AV84: =IF(ISNUMBER(SEARCH($B$13,AW84)),MAX($AV$8:AV83)+1,0) -> 76 | AW84: Forward walkover | AZ84: =IFERROR(VLOOKUP(ROWS($AW$9:AW84),$AV$9:$AW$162,2,0),"") -> Forward walkover | BD84: =IF(ISNUMBER(SEARCH($B$14,BE84)),MAX($BD$8:BD83)+1,0) -> 76 | BE84: Forward walkover | BH84: =IFERROR(VLOOKUP(ROWS($BE$9:BE84),$BD$9:$BE$162,2,0),"") -> Forward walkover | BL84: =IF(ISNUMBER(SEARCH($B$15,BM84)),MAX($BL$8:BL83)+1,0) -> 76 | BM84: Forward walkover | BP84: =IFERROR(VLOOKUP(ROWS($BM$9:BM84),$BL$9:$BM$162,2,0),"") -> Forward walkover | BT84: =IF(ISNUMBER(SEARCH($B$16,BU84)),MAX($BT$8:BT83)+1,0) -> 76 | BU84: Forward walkover | BX84: =IFERROR(VLOOKUP(ROWS($BU$9:BU84),$BT$9:$BU$162,2,0),"") -> Forward walkover | CB84: =IF(ISNUMBER(SEARCH($B$17,CC84)),MAX($CB$8:CB83)+1,0) -> 76 | CC84: Forward walkover | CF84: =IFERROR(VLOOKUP(ROWS($CC$9:CC84),$CB$9:$CC$162,2,0),"") -> Forward walkover | CJ84: =IF(ISNUMBER(SEARCH($B$18,CK84)),MAX($CJ$8:CJ83)+1,0) -> 76 | CK84: Forward walkover | CN84: =IFERROR(VLOOKUP(ROWS($CK$9:CK84),$CJ$9:$CK$162,2,0),"") -> Forward walkover
P85: =IF(ISNUMBER(SEARCH($B$9,Q85)),MAX($P$8:P84)+1,0) -> 77 | Q85: Standing Flic to 2 feet | T85: =IFERROR(VLOOKUP(ROWS($Q$9:Q85),$P$9:$Q$162,2,0),"") -> Standing Flic to 2 feet | X85: =IF(ISNUMBER(SEARCH($B$10,Y85)),MAX($X$8:X84)+1,0) -> 77 | Y85: Standing Flic to 2 feet | AB85: =IFERROR(VLOOKUP(ROWS($Y$9:Y85),$X$9:$Y$162,2,0),"") -> Standing Flic to 2 feet | AF85: =IF(ISNUMBER(SEARCH($B$11,AG85)),MAX($AF$8:AF84)+1,0) -> 77 | AG85: Standing Flic to 2 feet | AJ85: =IFERROR(VLOOKUP(ROWS($AG$9:AG85),$AF$9:$AG$162,2,0),"") -> Standing Flic to 2 feet | AN85: =IF(ISNUMBER(SEARCH($B$12,AO85)),MAX($AN$8:AN84)+1,0) -> 77 | AO85: Standing Flic to 2 feet | AR85: =IFERROR(VLOOKUP(ROWS($AO$9:AO85),$AN$9:$AO$162,2,0),"") -> Standing Flic to 2 feet | AV85: =IF(ISNUMBER(SEARCH($B$13,AW85)),MAX($AV$8:AV84)+1,0) -> 77 | AW85: Standing Flic to 2 feet | AZ85: =IFERROR(VLOOKUP(ROWS($AW$9:AW85),$AV$9:$AW$162,2,0),"") -> Standing Flic to 2 feet | BD85: =IF(ISNUMBER(SEARCH($B$14,BE85)),MAX($BD$8:BD84)+1,0) -> 77 | BE85: Standing Flic to 2 feet | BH85: =IFERROR(VLOOKUP(ROWS($BE$9:BE85),$BD$9:$BE$162,2,0),"") -> Standing Flic to 2 feet | BL85: =IF(ISNUMBER(SEARCH($B$15,BM85)),MAX($BL$8:BL84)+1,0) -> 77 | BM85: Standing Flic to 2 feet | BP85: =IFERROR(VLOOKUP(ROWS($BM$9:BM85),$BL$9:$BM$162,2,0),"") -> Standing Flic to 2 feet | BT85: =IF(ISNUMBER(SEARCH($B$16,BU85)),MAX($BT$8:BT84)+1,0) -> 77 | BU85: Standing Flic to 2 feet | BX85: =IFERROR(VLOOKUP(ROWS($BU$9:BU85),$BT$9:$BU$162,2,0),"") -> Standing Flic to 2 feet | CB85: =IF(ISNUMBER(SEARCH($B$17,CC85)),MAX($CB$8:CB84)+1,0) -> 77 | CC85: Standing Flic to 2 feet | CF85: =IFERROR(VLOOKUP(ROWS($CC$9:CC85),$CB$9:$CC$162,2,0),"") -> Standing Flic to 2 feet | CJ85: =IF(ISNUMBER(SEARCH($B$18,CK85)),MAX($CJ$8:CJ84)+1,0) -> 77 | CK85: Standing Flic to 2 feet | CN85: =IFERROR(VLOOKUP(ROWS($CK$9:CK85),$CJ$9:$CK$162,2,0),"") -> Standing Flic to 2 feet
P86: =IF(ISNUMBER(SEARCH($B$9,Q86)),MAX($P$8:P85)+1,0) -> 78 | Q86: Standing Flic to 1 foot | T86: =IFERROR(VLOOKUP(ROWS($Q$9:Q86),$P$9:$Q$162,2,0),"") -> Standing Flic to 1 foot | X86: =IF(ISNUMBER(SEARCH($B$10,Y86)),MAX($X$8:X85)+1,0) -> 78 | Y86: Standing Flic to 1 foot | AB86: =IFERROR(VLOOKUP(ROWS($Y$9:Y86),$X$9:$Y$162,2,0),"") -> Standing Flic to 1 foot | AF86: =IF(ISNUMBER(SEARCH($B$11,AG86)),MAX($AF$8:AF85)+1,0) -> 78 | AG86: Standing Flic to 1 foot | AJ86: =IFERROR(VLOOKUP(ROWS($AG$9:AG86),$AF$9:$AG$162,2,0),"") -> Standing Flic to 1 foot | AN86: =IF(ISNUMBER(SEARCH($B$12,AO86)),MAX($AN$8:AN85)+1,0) -> 78 | AO86: Standing Flic to 1 foot | AR86: =IFERROR(VLOOKUP(ROWS($AO$9:AO86),$AN$9:$AO$162,2,0),"") -> Standing Flic to 1 foot | AV86: =IF(ISNUMBER(SEARCH($B$13,AW86)),MAX($AV$8:AV85)+1,0) -> 78 | AW86: Standing Flic to 1 foot | AZ86: =IFERROR(VLOOKUP(ROWS($AW$9:AW86),$AV$9:$AW$162,2,0),"") -> Standing Flic to 1 foot | BD86: =IF(ISNUMBER(SEARCH($B$14,BE86)),MAX($BD$8:BD85)+1,0) -> 78 | BE86: Standing Flic to 1 foot | BH86: =IFERROR(VLOOKUP(ROWS($BE$9:BE86),$BD$9:$BE$162,2,0),"") -> Standing Flic to 1 foot | BL86: =IF(ISNUMBER(SEARCH($B$15,BM86)),MAX($BL$8:BL85)+1,0) -> 78 | BM86: Standing Flic to 1 foot | BP86: =IFERROR(VLOOKUP(ROWS($BM$9:BM86),$BL$9:$BM$162,2,0),"") -> Standing Flic to 1 foot | BT86: =IF(ISNUMBER(SEARCH($B$16,BU86)),MAX($BT$8:BT85)+1,0) -> 78 | BU86: Standing Flic to 1 foot | BX86: =IFERROR(VLOOKUP(ROWS($BU$9:BU86),$BT$9:$BU$162,2,0),"") -> Standing Flic to 1 foot | CB86: =IF(ISNUMBER(SEARCH($B$17,CC86)),MAX($CB$8:CB85)+1,0) -> 78 | CC86: Standing Flic to 1 foot | CF86: =IFERROR(VLOOKUP(ROWS($CC$9:CC86),$CB$9:$CC$162,2,0),"") -> Standing Flic to 1 foot | CJ86: =IF(ISNUMBER(SEARCH($B$18,CK86)),MAX($CJ$8:CJ85)+1,0) -> 78 | CK86: Standing Flic to 1 foot | CN86: =IFERROR(VLOOKUP(ROWS($CK$9:CK86),$CJ$9:$CK$162,2,0),"") -> Standing Flic to 1 foot
P87: =IF(ISNUMBER(SEARCH($B$9,Q87)),MAX($P$8:P86)+1,0) -> 79 | Q87: Standing Flic to Front Support | T87: =IFERROR(VLOOKUP(ROWS($Q$9:Q87),$P$9:$Q$162,2,0),"") -> Standing Flic to Front Support | X87: =IF(ISNUMBER(SEARCH($B$10,Y87)),MAX($X$8:X86)+1,0) -> 79 | Y87: Standing Flic to Front Support | AB87: =IFERROR(VLOOKUP(ROWS($Y$9:Y87),$X$9:$Y$162,2,0),"") -> Standing Flic to Front Support | AF87: =IF(ISNUMBER(SEARCH($B$11,AG87)),MAX($AF$8:AF86)+1,0) -> 79 | AG87: Standing Flic to Front Support | AJ87: =IFERROR(VLOOKUP(ROWS($AG$9:AG87),$AF$9:$AG$162,2,0),"") -> Standing Flic to Front Support | AN87: =IF(ISNUMBER(SEARCH($B$12,AO87)),MAX($AN$8:AN86)+1,0) -> 79 | AO87: Standing Flic to Front Support | AR87: =IFERROR(VLOOKUP(ROWS($AO$9:AO87),$AN$9:$AO$162,2,0),"") -> Standing Flic to Front Support | AV87: =IF(ISNUMBER(SEARCH($B$13,AW87)),MAX($AV$8:AV86)+1,0) -> 79 | AW87: Standing Flic to Front Support | AZ87: =IFERROR(VLOOKUP(ROWS($AW$9:AW87),$AV$9:$AW$162,2,0),"") -> Standing Flic to Front Support | BD87: =IF(ISNUMBER(SEARCH($B$14,BE87)),MAX($BD$8:BD86)+1,0) -> 79 | BE87: Standing Flic to Front Support | BH87: =IFERROR(VLOOKUP(ROWS($BE$9:BE87),$BD$9:$BE$162,2,0),"") -> Standing Flic to Front Support | BL87: =IF(ISNUMBER(SEARCH($B$15,BM87)),MAX($BL$8:BL86)+1,0) -> 79 | BM87: Standing Flic to Front Support | BP87: =IFERROR(VLOOKUP(ROWS($BM$9:BM87),$BL$9:$BM$162,2,0),"") -> Standing Flic to Front Support | BT87: =IF(ISNUMBER(SEARCH($B$16,BU87)),MAX($BT$8:BT86)+1,0) -> 79 | BU87: Standing Flic to Front Support | BX87: =IFERROR(VLOOKUP(ROWS($BU$9:BU87),$BT$9:$BU$162,2,0),"") -> Standing Flic to Front Support | CB87: =IF(ISNUMBER(SEARCH($B$17,CC87)),MAX($CB$8:CB86)+1,0) -> 79 | CC87: Standing Flic to Front Support | CF87: =IFERROR(VLOOKUP(ROWS($CC$9:CC87),$CB$9:$CC$162,2,0),"") -> Standing Flic to Front Support | CJ87: =IF(ISNUMBER(SEARCH($B$18,CK87)),MAX($CJ$8:CJ86)+1,0) -> 79 | CK87: Standing Flic to Front Support | CN87: =IFERROR(VLOOKUP(ROWS($CK$9:CK87),$CJ$9:$CK$162,2,0),"") -> Standing Flic to Front Support
P88: =IF(ISNUMBER(SEARCH($B$9,Q88)),MAX($P$8:P87)+1,0) -> 80 | Q88: Back Walkover, Flick (1or2 feet) | T88: =IFERROR(VLOOKUP(ROWS($Q$9:Q88),$P$9:$Q$162,2,0),"") -> Back Walkover, Flick (1or2 feet) | X88: =IF(ISNUMBER(SEARCH($B$10,Y88)),MAX($X$8:X87)+1,0) -> 80 | Y88: Back Walkover, Flick (1or2 feet) | AB88: =IFERROR(VLOOKUP(ROWS($Y$9:Y88),$X$9:$Y$162,2,0),"") -> Back Walkover, Flick (1or2 feet) | AF88: =IF(ISNUMBER(SEARCH($B$11,AG88)),MAX($AF$8:AF87)+1,0) -> 80 | AG88: Back Walkover, Flick (1or2 feet) | AJ88: =IFERROR(VLOOKUP(ROWS($AG$9:AG88),$AF$9:$AG$162,2,0),"") -> Back Walkover, Flick (1or2 feet) | AN88: =IF(ISNUMBER(SEARCH($B$12,AO88)),MAX($AN$8:AN87)+1,0) -> 80 | AO88: Back Walkover, Flick (1or2 feet) | AR88: =IFERROR(VLOOKUP(ROWS($AO$9:AO88),$AN$9:$AO$162,2,0),"") -> Back Walkover, Flick (1or2 feet) | AV88: =IF(ISNUMBER(SEARCH($B$13,AW88)),MAX($AV$8:AV87)+1,0) -> 80 | AW88: Back Walkover, Flick (1or2 feet) | AZ88: =IFERROR(VLOOKUP(ROWS($AW$9:AW88),$AV$9:$AW$162,2,0),"") -> Back Walkover, Flick (1or2 feet) | BD88: =IF(ISNUMBER(SEARCH($B$14,BE88)),MAX($BD$8:BD87)+1,0) -> 80 | BE88: Back Walkover, Flick (1or2 feet) | BH88: =IFERROR(VLOOKUP(ROWS($BE$9:BE88),$BD$9:$BE$162,2,0),"") -> Back Walkover, Flick (1or2 feet) | BL88: =IF(ISNUMBER(SEARCH($B$15,BM88)),MAX($BL$8:BL87)+1,0) -> 80 | BM88: Back Walkover, Flick (1or2 feet) | BP88: =IFERROR(VLOOKUP(ROWS($BM$9:BM88),$BL$9:$BM$162,2,0),"") -> Back Walkover, Flick (1or2 feet) | BT88: =IF(ISNUMBER(SEARCH($B$16,BU88)),MAX($BT$8:BT87)+1,0) -> 80 | BU88: Back Walkover, Flick (1or2 feet) | BX88: =IFERROR(VLOOKUP(ROWS($BU$9:BU88),$BT$9:$BU$162,2,0),"") -> Back Walkover, Flick (1or2 feet) | CB88: =IF(ISNUMBER(SEARCH($B$17,CC88)),MAX($CB$8:CB87)+1,0) -> 80 | CC88: Back Walkover, Flick (1or2 feet) | CF88: =IFERROR(VLOOKUP(ROWS($CC$9:CC88),$CB$9:$CC$162,2,0),"") -> Back Walkover, Flick (1or2 feet) | CJ88: =IF(ISNUMBER(SEARCH($B$18,CK88)),MAX($CJ$8:CJ87)+1,0) -> 80 | CK88: Back Walkover, Flick (1or2 feet) | CN88: =IFERROR(VLOOKUP(ROWS($CK$9:CK88),$CJ$9:$CK$162,2,0),"") -> Back Walkover, Flick (1or2 feet)
P89: =IF(ISNUMBER(SEARCH($B$9,Q89)),MAX($P$8:P88)+1,0) -> 81 | Q89: Cartwheel, Flick | T89: =IFERROR(VLOOKUP(ROWS($Q$9:Q89),$P$9:$Q$162,2,0),"") -> Cartwheel, Flick | X89: =IF(ISNUMBER(SEARCH($B$10,Y89)),MAX($X$8:X88)+1,0) -> 81 | Y89: Cartwheel, Flick | AB89: =IFERROR(VLOOKUP(ROWS($Y$9:Y89),$X$9:$Y$162,2,0),"") -> Cartwheel, Flick | AF89: =IF(ISNUMBER(SEARCH($B$11,AG89)),MAX($AF$8:AF88)+1,0) -> 81 | AG89: Cartwheel, Flick | AJ89: =IFERROR(VLOOKUP(ROWS($AG$9:AG89),$AF$9:$AG$162,2,0),"") -> Cartwheel, Flick | AN89: =IF(ISNUMBER(SEARCH($B$12,AO89)),MAX($AN$8:AN88)+1,0) -> 81 | AO89: Cartwheel, Flick | AR89: =IFERROR(VLOOKUP(ROWS($AO$9:AO89),$AN$9:$AO$162,2,0),"") -> Cartwheel, Flick | AV89: =IF(ISNUMBER(SEARCH($B$13,AW89)),MAX($AV$8:AV88)+1,0) -> 81 | AW89: Cartwheel, Flick | AZ89: =IFERROR(VLOOKUP(ROWS($AW$9:AW89),$AV$9:$AW$162,2,0),"") -> Cartwheel, Flick | BD89: =IF(ISNUMBER(SEARCH($B$14,BE89)),MAX($BD$8:BD88)+1,0) -> 81 | BE89: Cartwheel, Flick | BH89: =IFERROR(VLOOKUP(ROWS($BE$9:BE89),$BD$9:$BE$162,2,0),"") -> Cartwheel, Flick | BL89: =IF(ISNUMBER(SEARCH($B$15,BM89)),MAX($BL$8:BL88)+1,0) -> 81 | BM89: Cartwheel, Flick | BP89: =IFERROR(VLOOKUP(ROWS($BM$9:BM89),$BL$9:$BM$162,2,0),"") -> Cartwheel, Flick | BT89: =IF(ISNUMBER(SEARCH($B$16,BU89)),MAX($BT$8:BT88)+1,0) -> 81 | BU89: Cartwheel, Flick | BX89: =IFERROR(VLOOKUP(ROWS($BU$9:BU89),$BT$9:$BU$162,2,0),"") -> Cartwheel, Flick | CB89: =IF(ISNUMBER(SEARCH($B$17,CC89)),MAX($CB$8:CB88)+1,0) -> 81 | CC89: Cartwheel, Flick | CF89: =IFERROR(VLOOKUP(ROWS($CC$9:CC89),$CB$9:$CC$162,2,0),"") -> Cartwheel, Flick | CJ89: =IF(ISNUMBER(SEARCH($B$18,CK89)),MAX($CJ$8:CJ88)+1,0) -> 81 | CK89: Cartwheel, Flick | CN89: =IFERROR(VLOOKUP(ROWS($CK$9:CK89),$CJ$9:$CK$162,2,0),"") -> Cartwheel, Flick
P90: =IF(ISNUMBER(SEARCH($B$9,Q90)),MAX($P$8:P89)+1,0) -> 82 | Q90: Roundoff, Flic to 1 foot | T90: =IFERROR(VLOOKUP(ROWS($Q$9:Q90),$P$9:$Q$162,2,0),"") -> Roundoff, Flic to 1 foot | X90: =IF(ISNUMBER(SEARCH($B$10,Y90)),MAX($X$8:X89)+1,0) -> 82 | Y90: Roundoff, Flic to 1 foot | AB90: =IFERROR(VLOOKUP(ROWS($Y$9:Y90),$X$9:$Y$162,2,0),"") -> Roundoff, Flic to 1 foot | AF90: =IF(ISNUMBER(SEARCH($B$11,AG90)),MAX($AF$8:AF89)+1,0) -> 82 | AG90: Roundoff, Flic to 1 foot | AJ90: =IFERROR(VLOOKUP(ROWS($AG$9:AG90),$AF$9:$AG$162,2,0),"") -> Roundoff, Flic to 1 foot | AN90: =IF(ISNUMBER(SEARCH($B$12,AO90)),MAX($AN$8:AN89)+1,0) -> 82 | AO90: Roundoff, Flic to 1 foot | AR90: =IFERROR(VLOOKUP(ROWS($AO$9:AO90),$AN$9:$AO$162,2,0),"") -> Roundoff, Flic to 1 foot | AV90: =IF(ISNUMBER(SEARCH($B$13,AW90)),MAX($AV$8:AV89)+1,0) -> 82 | AW90: Roundoff, Flic to 1 foot | AZ90: =IFERROR(VLOOKUP(ROWS($AW$9:AW90),$AV$9:$AW$162,2,0),"") -> Roundoff, Flic to 1 foot | BD90: =IF(ISNUMBER(SEARCH($B$14,BE90)),MAX($BD$8:BD89)+1,0) -> 82 | BE90: Roundoff, Flic to 1 foot | BH90: =IFERROR(VLOOKUP(ROWS($BE$9:BE90),$BD$9:$BE$162,2,0),"") -> Roundoff, Flic to 1 foot | BL90: =IF(ISNUMBER(SEARCH($B$15,BM90)),MAX($BL$8:BL89)+1,0) -> 82 | BM90: Roundoff, Flic to 1 foot | BP90: =IFERROR(VLOOKUP(ROWS($BM$9:BM90),$BL$9:$BM$162,2,0),"") -> Roundoff, Flic to 1 foot | BT90: =IF(ISNUMBER(SEARCH($B$16,BU90)),MAX($BT$8:BT89)+1,0) -> 82 | BU90: Roundoff, Flic to 1 foot | BX90: =IFERROR(VLOOKUP(ROWS($BU$9:BU90),$BT$9:$BU$162,2,0),"") -> Roundoff, Flic to 1 foot | CB90: =IF(ISNUMBER(SEARCH($B$17,CC90)),MAX($CB$8:CB89)+1,0) -> 82 | CC90: Roundoff, Flic to 1 foot | CF90: =IFERROR(VLOOKUP(ROWS($CC$9:CC90),$CB$9:$CC$162,2,0),"") -> Roundoff, Flic to 1 foot | CJ90: =IF(ISNUMBER(SEARCH($B$18,CK90)),MAX($CJ$8:CJ89)+1,0) -> 82 | CK90: Roundoff, Flic to 1 foot | CN90: =IFERROR(VLOOKUP(ROWS($CK$9:CK90),$CJ$9:$CK$162,2,0),"") -> Roundoff, Flic to 1 foot
P91: =IF(ISNUMBER(SEARCH($B$9,Q91)),MAX($P$8:P90)+1,0) -> 83 | Q91: Roundoff, Flic to 2 feet | T91: =IFERROR(VLOOKUP(ROWS($Q$9:Q91),$P$9:$Q$162,2,0),"") -> Roundoff, Flic to 2 feet | X91: =IF(ISNUMBER(SEARCH($B$10,Y91)),MAX($X$8:X90)+1,0) -> 83 | Y91: Roundoff, Flic to 2 feet | AB91: =IFERROR(VLOOKUP(ROWS($Y$9:Y91),$X$9:$Y$162,2,0),"") -> Roundoff, Flic to 2 feet | AF91: =IF(ISNUMBER(SEARCH($B$11,AG91)),MAX($AF$8:AF90)+1,0) -> 83 | AG91: Roundoff, Flic to 2 feet | AJ91: =IFERROR(VLOOKUP(ROWS($AG$9:AG91),$AF$9:$AG$162,2,0),"") -> Roundoff, Flic to 2 feet | AN91: =IF(ISNUMBER(SEARCH($B$12,AO91)),MAX($AN$8:AN90)+1,0) -> 83 | AO91: Roundoff, Flic to 2 feet | AR91: =IFERROR(VLOOKUP(ROWS($AO$9:AO91),$AN$9:$AO$162,2,0),"") -> Roundoff, Flic to 2 feet | AV91: =IF(ISNUMBER(SEARCH($B$13,AW91)),MAX($AV$8:AV90)+1,0) -> 83 | AW91: Roundoff, Flic to 2 feet | AZ91: =IFERROR(VLOOKUP(ROWS($AW$9:AW91),$AV$9:$AW$162,2,0),"") -> Roundoff, Flic to 2 feet | BD91: =IF(ISNUMBER(SEARCH($B$14,BE91)),MAX($BD$8:BD90)+1,0) -> 83 | BE91: Roundoff, Flic to 2 feet | BH91: =IFERROR(VLOOKUP(ROWS($BE$9:BE91),$BD$9:$BE$162,2,0),"") -> Roundoff, Flic to 2 feet | BL91: =IF(ISNUMBER(SEARCH($B$15,BM91)),MAX($BL$8:BL90)+1,0) -> 83 | BM91: Roundoff, Flic to 2 feet | BP91: =IFERROR(VLOOKUP(ROWS($BM$9:BM91),$BL$9:$BM$162,2,0),"") -> Roundoff, Flic to 2 feet | BT91: =IF(ISNUMBER(SEARCH($B$16,BU91)),MAX($BT$8:BT90)+1,0) -> 83 | BU91: Roundoff, Flic to 2 feet | BX91: =IFERROR(VLOOKUP(ROWS($BU$9:BU91),$BT$9:$BU$162,2,0),"") -> Roundoff, Flic to 2 feet | CB91: =IF(ISNUMBER(SEARCH($B$17,CC91)),MAX($CB$8:CB90)+1,0) -> 83 | CC91: Roundoff, Flic to 2 feet | CF91: =IFERROR(VLOOKUP(ROWS($CC$9:CC91),$CB$9:$CC$162,2,0),"") -> Roundoff, Flic to 2 feet | CJ91: =IF(ISNUMBER(SEARCH($B$18,CK91)),MAX($CJ$8:CJ90)+1,0) -> 83 | CK91: Roundoff, Flic to 2 feet | CN91: =IFERROR(VLOOKUP(ROWS($CK$9:CK91),$CJ$9:$CK$162,2,0),"") -> Roundoff, Flic to 2 feet
P92: =IF(ISNUMBER(SEARCH($B$9,Q92)),MAX($P$8:P91)+1,0) -> 84 | Q92: Roundoff, Flic, Flic | T92: =IFERROR(VLOOKUP(ROWS($Q$9:Q92),$P$9:$Q$162,2,0),"") -> Roundoff, Flic, Flic | X92: =IF(ISNUMBER(SEARCH($B$10,Y92)),MAX($X$8:X91)+1,0) -> 84 | Y92: Roundoff, Flic, Flic | AB92: =IFERROR(VLOOKUP(ROWS($Y$9:Y92),$X$9:$Y$162,2,0),"") -> Roundoff, Flic, Flic | AF92: =IF(ISNUMBER(SEARCH($B$11,AG92)),MAX($AF$8:AF91)+1,0) -> 84 | AG92: Roundoff, Flic, Flic | AJ92: =IFERROR(VLOOKUP(ROWS($AG$9:AG92),$AF$9:$AG$162,2,0),"") -> Roundoff, Flic, Flic | AN92: =IF(ISNUMBER(SEARCH($B$12,AO92)),MAX($AN$8:AN91)+1,0) -> 84 | AO92: Roundoff, Flic, Flic | AR92: =IFERROR(VLOOKUP(ROWS($AO$9:AO92),$AN$9:$AO$162,2,0),"") -> Roundoff, Flic, Flic | AV92: =IF(ISNUMBER(SEARCH($B$13,AW92)),MAX($AV$8:AV91)+1,0) -> 84 | AW92: Roundoff, Flic, Flic | AZ92: =IFERROR(VLOOKUP(ROWS($AW$9:AW92),$AV$9:$AW$162,2,0),"") -> Roundoff, Flic, Flic | BD92: =IF(ISNUMBER(SEARCH($B$14,BE92)),MAX($BD$8:BD91)+1,0) -> 84 | BE92: Roundoff, Flic, Flic | BH92: =IFERROR(VLOOKUP(ROWS($BE$9:BE92),$BD$9:$BE$162,2,0),"") -> Roundoff, Flic, Flic | BL92: =IF(ISNUMBER(SEARCH($B$15,BM92)),MAX($BL$8:BL91)+1,0) -> 84 | BM92: Roundoff, Flic, Flic | BP92: =IFERROR(VLOOKUP(ROWS($BM$9:BM92),$BL$9:$BM$162,2,0),"") -> Roundoff, Flic, Flic | BT92: =IF(ISNUMBER(SEARCH($B$16,BU92)),MAX($BT$8:BT91)+1,0) -> 84 | BU92: Roundoff, Flic, Flic | BX92: =IFERROR(VLOOKUP(ROWS($BU$9:BU92),$BT$9:$BU$162,2,0),"") -> Roundoff, Flic, Flic | CB92: =IF(ISNUMBER(SEARCH($B$17,CC92)),MAX($CB$8:CB91)+1,0) -> 84 | CC92: Roundoff, Flic, Flic | CF92: =IFERROR(VLOOKUP(ROWS($CC$9:CC92),$CB$9:$CC$162,2,0),"") -> Roundoff, Flic, Flic | CJ92: =IF(ISNUMBER(SEARCH($B$18,CK92)),MAX($CJ$8:CJ91)+1,0) -> 84 | CK92: Roundoff, Flic, Flic | CN92: =IFERROR(VLOOKUP(ROWS($CK$9:CK92),$CJ$9:$CK$162,2,0),"") -> Roundoff, Flic, Flic
P93: =IF(ISNUMBER(SEARCH($B$9,Q93)),MAX($P$8:P92)+1,0) -> 85 | Q93: Handspring to 2 feet | T93: =IFERROR(VLOOKUP(ROWS($Q$9:Q93),$P$9:$Q$162,2,0),"") -> Handspring to 2 feet | X93: =IF(ISNUMBER(SEARCH($B$10,Y93)),MAX($X$8:X92)+1,0) -> 85 | Y93: Handspring to 2 feet | AB93: =IFERROR(VLOOKUP(ROWS($Y$9:Y93),$X$9:$Y$162,2,0),"") -> Handspring to 2 feet | AF93: =IF(ISNUMBER(SEARCH($B$11,AG93)),MAX($AF$8:AF92)+1,0) -> 85 | AG93: Handspring to 2 feet | AJ93: =IFERROR(VLOOKUP(ROWS($AG$9:AG93),$AF$9:$AG$162,2,0),"") -> Handspring to 2 feet | AN93: =IF(ISNUMBER(SEARCH($B$12,AO93)),MAX($AN$8:AN92)+1,0) -> 85 | AO93: Handspring to 2 feet | AR93: =IFERROR(VLOOKUP(ROWS($AO$9:AO93),$AN$9:$AO$162,2,0),"") -> Handspring to 2 feet | AV93: =IF(ISNUMBER(SEARCH($B$13,AW93)),MAX($AV$8:AV92)+1,0) -> 85 | AW93: Handspring to 2 feet | AZ93: =IFERROR(VLOOKUP(ROWS($AW$9:AW93),$AV$9:$AW$162,2,0),"") -> Handspring to 2 feet | BD93: =IF(ISNUMBER(SEARCH($B$14,BE93)),MAX($BD$8:BD92)+1,0) -> 85 | BE93: Handspring to 2 feet | BH93: =IFERROR(VLOOKUP(ROWS($BE$9:BE93),$BD$9:$BE$162,2,0),"") -> Handspring to 2 feet | BL93: =IF(ISNUMBER(SEARCH($B$15,BM93)),MAX($BL$8:BL92)+1,0) -> 85 | BM93: Handspring to 2 feet | BP93: =IFERROR(VLOOKUP(ROWS($BM$9:BM93),$BL$9:$BM$162,2,0),"") -> Handspring to 2 feet | BT93: =IF(ISNUMBER(SEARCH($B$16,BU93)),MAX($BT$8:BT92)+1,0) -> 85 | BU93: Handspring to 2 feet | BX93: =IFERROR(VLOOKUP(ROWS($BU$9:BU93),$BT$9:$BU$162,2,0),"") -> Handspring to 2 feet | CB93: =IF(ISNUMBER(SEARCH($B$17,CC93)),MAX($CB$8:CB92)+1,0) -> 85 | CC93: Handspring to 2 feet | CF93: =IFERROR(VLOOKUP(ROWS($CC$9:CC93),$CB$9:$CC$162,2,0),"") -> Handspring to 2 feet | CJ93: =IF(ISNUMBER(SEARCH($B$18,CK93)),MAX($CJ$8:CJ92)+1,0) -> 85 | CK93: Handspring to 2 feet | CN93: =IFERROR(VLOOKUP(ROWS($CK$9:CK93),$CJ$9:$CK$162,2,0),"") -> Handspring to 2 feet
P94: =IF(ISNUMBER(SEARCH($B$9,Q94)),MAX($P$8:P93)+1,0) -> 86 | Q94: Handspring to 1 foot | T94: =IFERROR(VLOOKUP(ROWS($Q$9:Q94),$P$9:$Q$162,2,0),"") -> Handspring to 1 foot | X94: =IF(ISNUMBER(SEARCH($B$10,Y94)),MAX($X$8:X93)+1,0) -> 86 | Y94: Handspring to 1 foot | AB94: =IFERROR(VLOOKUP(ROWS($Y$9:Y94),$X$9:$Y$162,2,0),"") -> Handspring to 1 foot | AF94: =IF(ISNUMBER(SEARCH($B$11,AG94)),MAX($AF$8:AF93)+1,0) -> 86 | AG94: Handspring to 1 foot | AJ94: =IFERROR(VLOOKUP(ROWS($AG$9:AG94),$AF$9:$AG$162,2,0),"") -> Handspring to 1 foot | AN94: =IF(ISNUMBER(SEARCH($B$12,AO94)),MAX($AN$8:AN93)+1,0) -> 86 | AO94: Handspring to 1 foot | AR94: =IFERROR(VLOOKUP(ROWS($AO$9:AO94),$AN$9:$AO$162,2,0),"") -> Handspring to 1 foot | AV94: =IF(ISNUMBER(SEARCH($B$13,AW94)),MAX($AV$8:AV93)+1,0) -> 86 | AW94: Handspring to 1 foot | AZ94: =IFERROR(VLOOKUP(ROWS($AW$9:AW94),$AV$9:$AW$162,2,0),"") -> Handspring to 1 foot | BD94: =IF(ISNUMBER(SEARCH($B$14,BE94)),MAX($BD$8:BD93)+1,0) -> 86 | BE94: Handspring to 1 foot | BH94: =IFERROR(VLOOKUP(ROWS($BE$9:BE94),$BD$9:$BE$162,2,0),"") -> Handspring to 1 foot | BL94: =IF(ISNUMBER(SEARCH($B$15,BM94)),MAX($BL$8:BL93)+1,0) -> 86 | BM94: Handspring to 1 foot | BP94: =IFERROR(VLOOKUP(ROWS($BM$9:BM94),$BL$9:$BM$162,2,0),"") -> Handspring to 1 foot | BT94: =IF(ISNUMBER(SEARCH($B$16,BU94)),MAX($BT$8:BT93)+1,0) -> 86 | BU94: Handspring to 1 foot | BX94: =IFERROR(VLOOKUP(ROWS($BU$9:BU94),$BT$9:$BU$162,2,0),"") -> Handspring to 1 foot | CB94: =IF(ISNUMBER(SEARCH($B$17,CC94)),MAX($CB$8:CB93)+1,0) -> 86 | CC94: Handspring to 1 foot | CF94: =IFERROR(VLOOKUP(ROWS($CC$9:CC94),$CB$9:$CC$162,2,0),"") -> Handspring to 1 foot | CJ94: =IF(ISNUMBER(SEARCH($B$18,CK94)),MAX($CJ$8:CJ93)+1,0) -> 86 | CK94: Handspring to 1 foot | CN94: =IFERROR(VLOOKUP(ROWS($CK$9:CK94),$CJ$9:$CK$162,2,0),"") -> Handspring to 1 foot
P95: =IF(ISNUMBER(SEARCH($B$9,Q95)),MAX($P$8:P94)+1,0) -> 87 | Q95: Handspring to Roundoff | T95: =IFERROR(VLOOKUP(ROWS($Q$9:Q95),$P$9:$Q$162,2,0),"") -> Handspring to Roundoff | X95: =IF(ISNUMBER(SEARCH($B$10,Y95)),MAX($X$8:X94)+1,0) -> 87 | Y95: Handspring to Roundoff | AB95: =IFERROR(VLOOKUP(ROWS($Y$9:Y95),$X$9:$Y$162,2,0),"") -> Handspring to Roundoff | AF95: =IF(ISNUMBER(SEARCH($B$11,AG95)),MAX($AF$8:AF94)+1,0) -> 87 | AG95: Handspring to Roundoff | AJ95: =IFERROR(VLOOKUP(ROWS($AG$9:AG95),$AF$9:$AG$162,2,0),"") -> Handspring to Roundoff | AN95: =IF(ISNUMBER(SEARCH($B$12,AO95)),MAX($AN$8:AN94)+1,0) -> 87 | AO95: Handspring to Roundoff | AR95: =IFERROR(VLOOKUP(ROWS($AO$9:AO95),$AN$9:$AO$162,2,0),"") -> Handspring to Roundoff | AV95: =IF(ISNUMBER(SEARCH($B$13,AW95)),MAX($AV$8:AV94)+1,0) -> 87 | AW95: Handspring to Roundoff | AZ95: =IFERROR(VLOOKUP(ROWS($AW$9:AW95),$AV$9:$AW$162,2,0),"") -> Handspring to Roundoff | BD95: =IF(ISNUMBER(SEARCH($B$14,BE95)),MAX($BD$8:BD94)+1,0) -> 87 | BE95: Handspring to Roundoff | BH95: =IFERROR(VLOOKUP(ROWS($BE$9:BE95),$BD$9:$BE$162,2,0),"") -> Handspring to Roundoff | BL95: =IF(ISNUMBER(SEARCH($B$15,BM95)),MAX($BL$8:BL94)+1,0) -> 87 | BM95: Handspring to Roundoff | BP95: =IFERROR(VLOOKUP(ROWS($BM$9:BM95),$BL$9:$BM$162,2,0),"") -> Handspring to Roundoff | BT95: =IF(ISNUMBER(SEARCH($B$16,BU95)),MAX($BT$8:BT94)+1,0) -> 87 | BU95: Handspring to Roundoff | BX95: =IFERROR(VLOOKUP(ROWS($BU$9:BU95),$BT$9:$BU$162,2,0),"") -> Handspring to Roundoff | CB95: =IF(ISNUMBER(SEARCH($B$17,CC95)),MAX($CB$8:CB94)+1,0) -> 87 | CC95: Handspring to Roundoff | CF95: =IFERROR(VLOOKUP(ROWS($CC$9:CC95),$CB$9:$CC$162,2,0),"") -> Handspring to Roundoff | CJ95: =IF(ISNUMBER(SEARCH($B$18,CK95)),MAX($CJ$8:CJ94)+1,0) -> 87 | CK95: Handspring to Roundoff | CN95: =IFERROR(VLOOKUP(ROWS($CK$9:CK95),$CJ$9:$CK$162,2,0),"") -> Handspring to Roundoff
P96: =IF(ISNUMBER(SEARCH($B$9,Q96)),MAX($P$8:P95)+1,0) -> 88 | Q96: 2 Handsprings 1 – 2 feet | T96: =IFERROR(VLOOKUP(ROWS($Q$9:Q96),$P$9:$Q$162,2,0),"") -> 2 Handsprings 1 – 2 feet | X96: =IF(ISNUMBER(SEARCH($B$10,Y96)),MAX($X$8:X95)+1,0) -> 88 | Y96: 2 Handsprings 1 – 2 feet | AB96: =IFERROR(VLOOKUP(ROWS($Y$9:Y96),$X$9:$Y$162,2,0),"") -> 2 Handsprings 1 – 2 feet | AF96: =IF(ISNUMBER(SEARCH($B$11,AG96)),MAX($AF$8:AF95)+1,0) -> 88 | AG96: 2 Handsprings 1 – 2 feet | AJ96: =IFERROR(VLOOKUP(ROWS($AG$9:AG96),$AF$9:$AG$162,2,0),"") -> 2 Handsprings 1 – 2 feet | AN96: =IF(ISNUMBER(SEARCH($B$12,AO96)),MAX($AN$8:AN95)+1,0) -> 88 | AO96: 2 Handsprings 1 – 2 feet | AR96: =IFERROR(VLOOKUP(ROWS($AO$9:AO96),$AN$9:$AO$162,2,0),"") -> 2 Handsprings 1 – 2 feet | AV96: =IF(ISNUMBER(SEARCH($B$13,AW96)),MAX($AV$8:AV95)+1,0) -> 88 | AW96: 2 Handsprings 1 – 2 feet | AZ96: =IFERROR(VLOOKUP(ROWS($AW$9:AW96),$AV$9:$AW$162,2,0),"") -> 2 Handsprings 1 – 2 feet | BD96: =IF(ISNUMBER(SEARCH($B$14,BE96)),MAX($BD$8:BD95)+1,0) -> 88 | BE96: 2 Handsprings 1 – 2 feet | BH96: =IFERROR(VLOOKUP(ROWS($BE$9:BE96),$BD$9:$BE$162,2,0),"") -> 2 Handsprings 1 – 2 feet | BL96: =IF(ISNUMBER(SEARCH($B$15,BM96)),MAX($BL$8:BL95)+1,0) -> 88 | BM96: 2 Handsprings 1 – 2 feet | BP96: =IFERROR(VLOOKUP(ROWS($BM$9:BM96),$BL$9:$BM$162,2,0),"") -> 2 Handsprings 1 – 2 feet | BT96: =IF(ISNUMBER(SEARCH($B$16,BU96)),MAX($BT$8:BT95)+1,0) -> 88 | BU96: 2 Handsprings 1 – 2 feet | BX96: =IFERROR(VLOOKUP(ROWS($BU$9:BU96),$BT$9:$BU$162,2,0),"") -> 2 Handsprings 1 – 2 feet | CB96: =IF(ISNUMBER(SEARCH($B$17,CC96)),MAX($CB$8:CB95)+1,0) -> 88 | CC96: 2 Handsprings 1 – 2 feet | CF96: =IFERROR(VLOOKUP(ROWS($CC$9:CC96),$CB$9:$CC$162,2,0),"") -> 2 Handsprings 1 – 2 feet | CJ96: =IF(ISNUMBER(SEARCH($B$18,CK96)),MAX($CJ$8:CJ95)+1,0) -> 88 | CK96: 2 Handsprings 1 – 2 feet | CN96: =IFERROR(VLOOKUP(ROWS($CK$9:CK96),$CJ$9:$CK$162,2,0),"") -> 2 Handsprings 1 – 2 feet
P97: =IF(ISNUMBER(SEARCH($B$9,Q97)),MAX($P$8:P96)+1,0) -> 89 | Q97: Handspring, Roundoff, Flic | T97: =IFERROR(VLOOKUP(ROWS($Q$9:Q97),$P$9:$Q$162,2,0),"") -> Handspring, Roundoff, Flic | X97: =IF(ISNUMBER(SEARCH($B$10,Y97)),MAX($X$8:X96)+1,0) -> 89 | Y97: Handspring, Roundoff, Flic | AB97: =IFERROR(VLOOKUP(ROWS($Y$9:Y97),$X$9:$Y$162,2,0),"") -> Handspring, Roundoff, Flic | AF97: =IF(ISNUMBER(SEARCH($B$11,AG97)),MAX($AF$8:AF96)+1,0) -> 89 | AG97: Handspring, Roundoff, Flic | AJ97: =IFERROR(VLOOKUP(ROWS($AG$9:AG97),$AF$9:$AG$162,2,0),"") -> Handspring, Roundoff, Flic | AN97: =IF(ISNUMBER(SEARCH($B$12,AO97)),MAX($AN$8:AN96)+1,0) -> 89 | AO97: Handspring, Roundoff, Flic | AR97: =IFERROR(VLOOKUP(ROWS($AO$9:AO97),$AN$9:$AO$162,2,0),"") -> Handspring, Roundoff, Flic | AV97: =IF(ISNUMBER(SEARCH($B$13,AW97)),MAX($AV$8:AV96)+1,0) -> 89 | AW97: Handspring, Roundoff, Flic | AZ97: =IFERROR(VLOOKUP(ROWS($AW$9:AW97),$AV$9:$AW$162,2,0),"") -> Handspring, Roundoff, Flic | BD97: =IF(ISNUMBER(SEARCH($B$14,BE97)),MAX($BD$8:BD96)+1,0) -> 89 | BE97: Handspring, Roundoff, Flic | BH97: =IFERROR(VLOOKUP(ROWS($BE$9:BE97),$BD$9:$BE$162,2,0),"") -> Handspring, Roundoff, Flic | BL97: =IF(ISNUMBER(SEARCH($B$15,BM97)),MAX($BL$8:BL96)+1,0) -> 89 | BM97: Handspring, Roundoff, Flic | BP97: =IFERROR(VLOOKUP(ROWS($BM$9:BM97),$BL$9:$BM$162,2,0),"") -> Handspring, Roundoff, Flic | BT97: =IF(ISNUMBER(SEARCH($B$16,BU97)),MAX($BT$8:BT96)+1,0) -> 89 | BU97: Handspring, Roundoff, Flic | BX97: =IFERROR(VLOOKUP(ROWS($BU$9:BU97),$BT$9:$BU$162,2,0),"") -> Handspring, Roundoff, Flic | CB97: =IF(ISNUMBER(SEARCH($B$17,CC97)),MAX($CB$8:CB96)+1,0) -> 89 | CC97: Handspring, Roundoff, Flic | CF97: =IFERROR(VLOOKUP(ROWS($CC$9:CC97),$CB$9:$CC$162,2,0),"") -> Handspring, Roundoff, Flic | CJ97: =IF(ISNUMBER(SEARCH($B$18,CK97)),MAX($CJ$8:CJ96)+1,0) -> 89 | CK97: Handspring, Roundoff, Flic | CN97: =IFERROR(VLOOKUP(ROWS($CK$9:CK97),$CJ$9:$CK$162,2,0),"") -> Handspring, Roundoff, Flic
P98: =IF(ISNUMBER(SEARCH($B$9,Q98)),MAX($P$8:P97)+1,0) -> 90 | Q98: Split leap or jump (180° split) | T98: =IFERROR(VLOOKUP(ROWS($Q$9:Q98),$P$9:$Q$162,2,0),"") -> Split leap or jump (180° split) | X98: =IF(ISNUMBER(SEARCH($B$10,Y98)),MAX($X$8:X97)+1,0) -> 90 | Y98: Split leap or jump (180° split) | AB98: =IFERROR(VLOOKUP(ROWS($Y$9:Y98),$X$9:$Y$162,2,0),"") -> Split leap or jump (180° split) | AF98: =IF(ISNUMBER(SEARCH($B$11,AG98)),MAX($AF$8:AF97)+1,0) -> 90 | AG98: Split leap or jump (180° split) | AJ98: =IFERROR(VLOOKUP(ROWS($AG$9:AG98),$AF$9:$AG$162,2,0),"") -> Split leap or jump (180° split) | AN98: =IF(ISNUMBER(SEARCH($B$12,AO98)),MAX($AN$8:AN97)+1,0) -> 90 | AO98: Split leap or jump (180° split) | AR98: =IFERROR(VLOOKUP(ROWS($AO$9:AO98),$AN$9:$AO$162,2,0),"") -> Split leap or jump (180° split) | AV98: =IF(ISNUMBER(SEARCH($B$13,AW98)),MAX($AV$8:AV97)+1,0) -> 90 | AW98: Split leap or jump (180° split) | AZ98: =IFERROR(VLOOKUP(ROWS($AW$9:AW98),$AV$9:$AW$162,2,0),"") -> Split leap or jump (180° split) | BD98: =IF(ISNUMBER(SEARCH($B$14,BE98)),MAX($BD$8:BD97)+1,0) -> 90 | BE98: Split leap or jump (180° split) | BH98: =IFERROR(VLOOKUP(ROWS($BE$9:BE98),$BD$9:$BE$162,2,0),"") -> Split leap or jump (180° split) | BL98: =IF(ISNUMBER(SEARCH($B$15,BM98)),MAX($BL$8:BL97)+1,0) -> 90 | BM98: Split leap or jump (180° split) | BP98: =IFERROR(VLOOKUP(ROWS($BM$9:BM98),$BL$9:$BM$162,2,0),"") -> Split leap or jump (180° split) | BT98: =IF(ISNUMBER(SEARCH($B$16,BU98)),MAX($BT$8:BT97)+1,0) -> 90 | BU98: Split leap or jump (180° split) | BX98: =IFERROR(VLOOKUP(ROWS($BU$9:BU98),$BT$9:$BU$162,2,0),"") -> Split leap or jump (180° split) | CB98: =IF(ISNUMBER(SEARCH($B$17,CC98)),MAX($CB$8:CB97)+1,0) -> 90 | CC98: Split leap or jump (180° split) | CF98: =IFERROR(VLOOKUP(ROWS($CC$9:CC98),$CB$9:$CC$162,2,0),"") -> Split leap or jump (180° split) | CJ98: =IF(ISNUMBER(SEARCH($B$18,CK98)),MAX($CJ$8:CJ97)+1,0) -> 90 | CK98: Split leap or jump (180° split) | CN98: =IFERROR(VLOOKUP(ROWS($CK$9:CK98),$CJ$9:$CK$162,2,0),"") -> Split leap or jump (180° split)
P99: =IF(ISNUMBER(SEARCH($B$9,Q99)),MAX($P$8:P98)+1,0) -> 91 | Q99: Change leg split leap or jump ↓(180° split) | T99: =IFERROR(VLOOKUP(ROWS($Q$9:Q99),$P$9:$Q$162,2,0),"") -> Change leg split leap or jump ↓(180° split) | X99: =IF(ISNUMBER(SEARCH($B$10,Y99)),MAX($X$8:X98)+1,0) -> 91 | Y99: Change leg split leap or jump ↓(180° split) | AB99: =IFERROR(VLOOKUP(ROWS($Y$9:Y99),$X$9:$Y$162,2,0),"") -> Change leg split leap or jump ↓(180° split) | AF99: =IF(ISNUMBER(SEARCH($B$11,AG99)),MAX($AF$8:AF98)+1,0) -> 91 | AG99: Change leg split leap or jump ↓(180° split) | AJ99: =IFERROR(VLOOKUP(ROWS($AG$9:AG99),$AF$9:$AG$162,2,0),"") -> Change leg split leap or jump ↓(180° split) | AN99: =IF(ISNUMBER(SEARCH($B$12,AO99)),MAX($AN$8:AN98)+1,0) -> 91 | AO99: Change leg split leap or jump ↓(180° split) | AR99: =IFERROR(VLOOKUP(ROWS($AO$9:AO99),$AN$9:$AO$162,2,0),"") -> Change leg split leap or jump ↓(180° split) | AV99: =IF(ISNUMBER(SEARCH($B$13,AW99)),MAX($AV$8:AV98)+1,0) -> 91 | AW99: Change leg split leap or jump ↓(180° split) | AZ99: =IFERROR(VLOOKUP(ROWS($AW$9:AW99),$AV$9:$AW$162,2,0),"") -> Change leg split leap or jump ↓(180° split) | BD99: =IF(ISNUMBER(SEARCH($B$14,BE99)),MAX($BD$8:BD98)+1,0) -> 91 | BE99: Change leg split leap or jump ↓(180° split) | BH99: =IFERROR(VLOOKUP(ROWS($BE$9:BE99),$BD$9:$BE$162,2,0),"") -> Change leg split leap or jump ↓(180° split) | BL99: =IF(ISNUMBER(SEARCH($B$15,BM99)),MAX($BL$8:BL98)+1,0) -> 91 | BM99: Change leg split leap or jump ↓(180° split) | BP99: =IFERROR(VLOOKUP(ROWS($BM$9:BM99),$BL$9:$BM$162,2,0),"") -> Change leg split leap or jump ↓(180° split) | BT99: =IF(ISNUMBER(SEARCH($B$16,BU99)),MAX($BT$8:BT98)+1,0) -> 91 | BU99: Change leg split leap or jump ↓(180° split) | BX99: =IFERROR(VLOOKUP(ROWS($BU$9:BU99),$BT$9:$BU$162,2,0),"") -> Change leg split leap or jump ↓(180° split) | CB99: =IF(ISNUMBER(SEARCH($B$17,CC99)),MAX($CB$8:CB98)+1,0) -> 91 | CC99: Change leg split leap or jump ↓(180° split) | CF99: =IFERROR(VLOOKUP(ROWS($CC$9:CC99),$CB$9:$CC$162,2,0),"") -> Change leg split leap or jump ↓(180° split) | CJ99: =IF(ISNUMBER(SEARCH($B$18,CK99)),MAX($CJ$8:CJ98)+1,0) -> 91 | CK99: Change leg split leap or jump ↓(180° split) | CN99: =IFERROR(VLOOKUP(ROWS($CK$9:CK99),$CJ$9:$CK$162,2,0),"") -> Change leg split leap or jump ↓(180° split)
P100: =IF(ISNUMBER(SEARCH($B$9,Q100)),MAX($P$8:P99)+1,0) -> 92 | Q100: Sissone | T100: =IFERROR(VLOOKUP(ROWS($Q$9:Q100),$P$9:$Q$162,2,0),"") -> Sissone | X100: =IF(ISNUMBER(SEARCH($B$10,Y100)),MAX($X$8:X99)+1,0) -> 92 | Y100: Sissone | AB100: =IFERROR(VLOOKUP(ROWS($Y$9:Y100),$X$9:$Y$162,2,0),"") -> Sissone | AF100: =IF(ISNUMBER(SEARCH($B$11,AG100)),MAX($AF$8:AF99)+1,0) -> 92 | AG100: Sissone | AJ100: =IFERROR(VLOOKUP(ROWS($AG$9:AG100),$AF$9:$AG$162,2,0),"") -> Sissone | AN100: =IF(ISNUMBER(SEARCH($B$12,AO100)),MAX($AN$8:AN99)+1,0) -> 92 | AO100: Sissone | AR100: =IFERROR(VLOOKUP(ROWS($AO$9:AO100),$AN$9:$AO$162,2,0),"") -> Sissone | AV100: =IF(ISNUMBER(SEARCH($B$13,AW100)),MAX($AV$8:AV99)+1,0) -> 92 | AW100: Sissone | AZ100: =IFERROR(VLOOKUP(ROWS($AW$9:AW100),$AV$9:$AW$162,2,0),"") -> Sissone | BD100: =IF(ISNUMBER(SEARCH($B$14,BE100)),MAX($BD$8:BD99)+1,0) -> 92 | BE100: Sissone | BH100: =IFERROR(VLOOKUP(ROWS($BE$9:BE100),$BD$9:$BE$162,2,0),"") -> Sissone | BL100: =IF(ISNUMBER(SEARCH($B$15,BM100)),MAX($BL$8:BL99)+1,0) -> 92 | BM100: Sissone | BP100: =IFERROR(VLOOKUP(ROWS($BM$9:BM100),$BL$9:$BM$162,2,0),"") -> Sissone | BT100: =IF(ISNUMBER(SEARCH($B$16,BU100)),MAX($BT$8:BT99)+1,0) -> 92 | BU100: Sissone | BX100: =IFERROR(VLOOKUP(ROWS($BU$9:BU100),$BT$9:$BU$162,2,0),"") -> Sissone | CB100: =IF(ISNUMBER(SEARCH($B$17,CC100)),MAX($CB$8:CB99)+1,0) -> 92 | CC100: Sissone | CF100: =IFERROR(VLOOKUP(ROWS($CC$9:CC100),$CB$9:$CC$162,2,0),"") -> Sissone | CJ100: =IF(ISNUMBER(SEARCH($B$18,CK100)),MAX($CJ$8:CJ99)+1,0) -> 92 | CK100: Sissone | CN100: =IFERROR(VLOOKUP(ROWS($CK$9:CK100),$CJ$9:$CK$162,2,0),"") -> Sissone
P101: =IF(ISNUMBER(SEARCH($B$9,Q101)),MAX($P$8:P100)+1,0) -> 93 | Q101: Cat leap full turn | T101: =IFERROR(VLOOKUP(ROWS($Q$9:Q101),$P$9:$Q$162,2,0),"") -> Cat leap full turn | X101: =IF(ISNUMBER(SEARCH($B$10,Y101)),MAX($X$8:X100)+1,0) -> 93 | Y101: Cat leap full turn | AB101: =IFERROR(VLOOKUP(ROWS($Y$9:Y101),$X$9:$Y$162,2,0),"") -> Cat leap full turn | AF101: =IF(ISNUMBER(SEARCH($B$11,AG101)),MAX($AF$8:AF100)+1,0) -> 93 | AG101: Cat leap full turn | AJ101: =IFERROR(VLOOKUP(ROWS($AG$9:AG101),$AF$9:$AG$162,2,0),"") -> Cat leap full turn | AN101: =IF(ISNUMBER(SEARCH($B$12,AO101)),MAX($AN$8:AN100)+1,0) -> 93 | AO101: Cat leap full turn | AR101: =IFERROR(VLOOKUP(ROWS($AO$9:AO101),$AN$9:$AO$162,2,0),"") -> Cat leap full turn | AV101: =IF(ISNUMBER(SEARCH($B$13,AW101)),MAX($AV$8:AV100)+1,0) -> 93 | AW101: Cat leap full turn | AZ101: =IFERROR(VLOOKUP(ROWS($AW$9:AW101),$AV$9:$AW$162,2,0),"") -> Cat leap full turn | BD101: =IF(ISNUMBER(SEARCH($B$14,BE101)),MAX($BD$8:BD100)+1,0) -> 93 | BE101: Cat leap full turn | BH101: =IFERROR(VLOOKUP(ROWS($BE$9:BE101),$BD$9:$BE$162,2,0),"") -> Cat leap full turn | BL101: =IF(ISNUMBER(SEARCH($B$15,BM101)),MAX($BL$8:BL100)+1,0) -> 93 | BM101: Cat leap full turn | BP101: =IFERROR(VLOOKUP(ROWS($BM$9:BM101),$BL$9:$BM$162,2,0),"") -> Cat leap full turn | BT101: =IF(ISNUMBER(SEARCH($B$16,BU101)),MAX($BT$8:BT100)+1,0) -> 93 | BU101: Cat leap full turn | BX101: =IFERROR(VLOOKUP(ROWS($BU$9:BU101),$BT$9:$BU$162,2,0),"") -> Cat leap full turn | CB101: =IF(ISNUMBER(SEARCH($B$17,CC101)),MAX($CB$8:CB100)+1,0) -> 93 | CC101: Cat leap full turn | CF101: =IFERROR(VLOOKUP(ROWS($CC$9:CC101),$CB$9:$CC$162,2,0),"") -> Cat leap full turn | CJ101: =IF(ISNUMBER(SEARCH($B$18,CK101)),MAX($CJ$8:CJ100)+1,0) -> 93 | CK101: Cat leap full turn | CN101: =IFERROR(VLOOKUP(ROWS($CK$9:CK101),$CJ$9:$CK$162,2,0),"") -> Cat leap full turn
P102: =IF(ISNUMBER(SEARCH($B$9,Q102)),MAX($P$8:P101)+1,0) -> 94 | Q102: Jump double turn | T102: =IFERROR(VLOOKUP(ROWS($Q$9:Q102),$P$9:$Q$162,2,0),"") -> Jump double turn | X102: =IF(ISNUMBER(SEARCH($B$10,Y102)),MAX($X$8:X101)+1,0) -> 94 | Y102: Jump double turn | AB102: =IFERROR(VLOOKUP(ROWS($Y$9:Y102),$X$9:$Y$162,2,0),"") -> Jump double turn | AF102: =IF(ISNUMBER(SEARCH($B$11,AG102)),MAX($AF$8:AF101)+1,0) -> 94 | AG102: Jump double turn | AJ102: =IFERROR(VLOOKUP(ROWS($AG$9:AG102),$AF$9:$AG$162,2,0),"") -> Jump double turn | AN102: =IF(ISNUMBER(SEARCH($B$12,AO102)),MAX($AN$8:AN101)+1,0) -> 94 | AO102: Jump double turn | AR102: =IFERROR(VLOOKUP(ROWS($AO$9:AO102),$AN$9:$AO$162,2,0),"") -> Jump double turn | AV102: =IF(ISNUMBER(SEARCH($B$13,AW102)),MAX($AV$8:AV101)+1,0) -> 94 | AW102: Jump double turn | AZ102: =IFERROR(VLOOKUP(ROWS($AW$9:AW102),$AV$9:$AW$162,2,0),"") -> Jump double turn | BD102: =IF(ISNUMBER(SEARCH($B$14,BE102)),MAX($BD$8:BD101)+1,0) -> 94 | BE102: Jump double turn | BH102: =IFERROR(VLOOKUP(ROWS($BE$9:BE102),$BD$9:$BE$162,2,0),"") -> Jump double turn | BL102: =IF(ISNUMBER(SEARCH($B$15,BM102)),MAX($BL$8:BL101)+1,0) -> 94 | BM102: Jump double turn | BP102: =IFERROR(VLOOKUP(ROWS($BM$9:BM102),$BL$9:$BM$162,2,0),"") -> Jump double turn | BT102: =IF(ISNUMBER(SEARCH($B$16,BU102)),MAX($BT$8:BT101)+1,0) -> 94 | BU102: Jump double turn | BX102: =IFERROR(VLOOKUP(ROWS($BU$9:BU102),$BT$9:$BU$162,2,0),"") -> Jump double turn | CB102: =IF(ISNUMBER(SEARCH($B$17,CC102)),MAX($CB$8:CB101)+1,0) -> 94 | CC102: Jump double turn | CF102: =IFERROR(VLOOKUP(ROWS($CC$9:CC102),$CB$9:$CC$162,2,0),"") -> Jump double turn | CJ102: =IF(ISNUMBER(SEARCH($B$18,CK102)),MAX($CJ$8:CJ101)+1,0) -> 94 | CK102: Jump double turn | CN102: =IFERROR(VLOOKUP(ROWS($CK$9:CK102),$CJ$9:$CK$162,2,0),"") -> Jump double turn
P103: =IF(ISNUMBER(SEARCH($B$9,Q103)),MAX($P$8:P102)+1,0) -> 95 | Q103: Jump to Prone | T103: =IFERROR(VLOOKUP(ROWS($Q$9:Q103),$P$9:$Q$162,2,0),"") -> Jump to Prone | X103: =IF(ISNUMBER(SEARCH($B$10,Y103)),MAX($X$8:X102)+1,0) -> 95 | Y103: Jump to Prone | AB103: =IFERROR(VLOOKUP(ROWS($Y$9:Y103),$X$9:$Y$162,2,0),"") -> Jump to Prone | AF103: =IF(ISNUMBER(SEARCH($B$11,AG103)),MAX($AF$8:AF102)+1,0) -> 95 | AG103: Jump to Prone | AJ103: =IFERROR(VLOOKUP(ROWS($AG$9:AG103),$AF$9:$AG$162,2,0),"") -> Jump to Prone | AN103: =IF(ISNUMBER(SEARCH($B$12,AO103)),MAX($AN$8:AN102)+1,0) -> 95 | AO103: Jump to Prone | AR103: =IFERROR(VLOOKUP(ROWS($AO$9:AO103),$AN$9:$AO$162,2,0),"") -> Jump to Prone | AV103: =IF(ISNUMBER(SEARCH($B$13,AW103)),MAX($AV$8:AV102)+1,0) -> 95 | AW103: Jump to Prone | AZ103: =IFERROR(VLOOKUP(ROWS($AW$9:AW103),$AV$9:$AW$162,2,0),"") -> Jump to Prone | BD103: =IF(ISNUMBER(SEARCH($B$14,BE103)),MAX($BD$8:BD102)+1,0) -> 95 | BE103: Jump to Prone | BH103: =IFERROR(VLOOKUP(ROWS($BE$9:BE103),$BD$9:$BE$162,2,0),"") -> Jump to Prone | BL103: =IF(ISNUMBER(SEARCH($B$15,BM103)),MAX($BL$8:BL102)+1,0) -> 95 | BM103: Jump to Prone | BP103: =IFERROR(VLOOKUP(ROWS($BM$9:BM103),$BL$9:$BM$162,2,0),"") -> Jump to Prone | BT103: =IF(ISNUMBER(SEARCH($B$16,BU103)),MAX($BT$8:BT102)+1,0) -> 95 | BU103: Jump to Prone | BX103: =IFERROR(VLOOKUP(ROWS($BU$9:BU103),$BT$9:$BU$162,2,0),"") -> Jump to Prone | CB103: =IF(ISNUMBER(SEARCH($B$17,CC103)),MAX($CB$8:CB102)+1,0) -> 95 | CC103: Jump to Prone | CF103: =IFERROR(VLOOKUP(ROWS($CC$9:CC103),$CB$9:$CC$162,2,0),"") -> Jump to Prone | CJ103: =IF(ISNUMBER(SEARCH($B$18,CK103)),MAX($CJ$8:CJ102)+1,0) -> 95 | CK103: Jump to Prone | CN103: =IFERROR(VLOOKUP(ROWS($CK$9:CK103),$CJ$9:$CK$162,2,0),"") -> Jump to Prone
P104: =IF(ISNUMBER(SEARCH($B$9,Q104)),MAX($P$8:P103)+1,0) -> 96 | Q104: Straddle jump (feet hip high) | T104: =IFERROR(VLOOKUP(ROWS($Q$9:Q104),$P$9:$Q$162,2,0),"") -> Straddle jump (feet hip high) | X104: =IF(ISNUMBER(SEARCH($B$10,Y104)),MAX($X$8:X103)+1,0) -> 96 | Y104: Straddle jump (feet hip high) | AB104: =IFERROR(VLOOKUP(ROWS($Y$9:Y104),$X$9:$Y$162,2,0),"") -> Straddle jump (feet hip high) | AF104: =IF(ISNUMBER(SEARCH($B$11,AG104)),MAX($AF$8:AF103)+1,0) -> 96 | AG104: Straddle jump (feet hip high) | AJ104: =IFERROR(VLOOKUP(ROWS($AG$9:AG104),$AF$9:$AG$162,2,0),"") -> Straddle jump (feet hip high) | AN104: =IF(ISNUMBER(SEARCH($B$12,AO104)),MAX($AN$8:AN103)+1,0) -> 96 | AO104: Straddle jump (feet hip high) | AR104: =IFERROR(VLOOKUP(ROWS($AO$9:AO104),$AN$9:$AO$162,2,0),"") -> Straddle jump (feet hip high) | AV104: =IF(ISNUMBER(SEARCH($B$13,AW104)),MAX($AV$8:AV103)+1,0) -> 96 | AW104: Straddle jump (feet hip high) | AZ104: =IFERROR(VLOOKUP(ROWS($AW$9:AW104),$AV$9:$AW$162,2,0),"") -> Straddle jump (feet hip high) | BD104: =IF(ISNUMBER(SEARCH($B$14,BE104)),MAX($BD$8:BD103)+1,0) -> 96 | BE104: Straddle jump (feet hip high) | BH104: =IFERROR(VLOOKUP(ROWS($BE$9:BE104),$BD$9:$BE$162,2,0),"") -> Straddle jump (feet hip high) | BL104: =IF(ISNUMBER(SEARCH($B$15,BM104)),MAX($BL$8:BL103)+1,0) -> 96 | BM104: Straddle jump (feet hip high) | BP104: =IFERROR(VLOOKUP(ROWS($BM$9:BM104),$BL$9:$BM$162,2,0),"") -> Straddle jump (feet hip high) | BT104: =IF(ISNUMBER(SEARCH($B$16,BU104)),MAX($BT$8:BT103)+1,0) -> 96 | BU104: Straddle jump (feet hip high) | BX104: =IFERROR(VLOOKUP(ROWS($BU$9:BU104),$BT$9:$BU$162,2,0),"") -> Straddle jump (feet hip high) | CB104: =IF(ISNUMBER(SEARCH($B$17,CC104)),MAX($CB$8:CB103)+1,0) -> 96 | CC104: Straddle jump (feet hip high) | CF104: =IFERROR(VLOOKUP(ROWS($CC$9:CC104),$CB$9:$CC$162,2,0),"") -> Straddle jump (feet hip high) | CJ104: =IF(ISNUMBER(SEARCH($B$18,CK104)),MAX($CJ$8:CJ103)+1,0) -> 96 | CK104: Straddle jump (feet hip high) | CN104: =IFERROR(VLOOKUP(ROWS($CK$9:CK104),$CJ$9:$CK$162,2,0),"") -> Straddle jump (feet hip high)
P105: =IF(ISNUMBER(SEARCH($B$9,Q105)),MAX($P$8:P104)+1,0) -> 97 | Q105: Tuck jump full turn | T105: =IFERROR(VLOOKUP(ROWS($Q$9:Q105),$P$9:$Q$162,2,0),"") -> Tuck jump full turn | X105: =IF(ISNUMBER(SEARCH($B$10,Y105)),MAX($X$8:X104)+1,0) -> 97 | Y105: Tuck jump full turn | AB105: =IFERROR(VLOOKUP(ROWS($Y$9:Y105),$X$9:$Y$162,2,0),"") -> Tuck jump full turn | AF105: =IF(ISNUMBER(SEARCH($B$11,AG105)),MAX($AF$8:AF104)+1,0) -> 97 | AG105: Tuck jump full turn | AJ105: =IFERROR(VLOOKUP(ROWS($AG$9:AG105),$AF$9:$AG$162,2,0),"") -> Tuck jump full turn | AN105: =IF(ISNUMBER(SEARCH($B$12,AO105)),MAX($AN$8:AN104)+1,0) -> 97 | AO105: Tuck jump full turn | AR105: =IFERROR(VLOOKUP(ROWS($AO$9:AO105),$AN$9:$AO$162,2,0),"") -> Tuck jump full turn | AV105: =IF(ISNUMBER(SEARCH($B$13,AW105)),MAX($AV$8:AV104)+1,0) -> 97 | AW105: Tuck jump full turn | AZ105: =IFERROR(VLOOKUP(ROWS($AW$9:AW105),$AV$9:$AW$162,2,0),"") -> Tuck jump full turn | BD105: =IF(ISNUMBER(SEARCH($B$14,BE105)),MAX($BD$8:BD104)+1,0) -> 97 | BE105: Tuck jump full turn | BH105: =IFERROR(VLOOKUP(ROWS($BE$9:BE105),$BD$9:$BE$162,2,0),"") -> Tuck jump full turn | BL105: =IF(ISNUMBER(SEARCH($B$15,BM105)),MAX($BL$8:BL104)+1,0) -> 97 | BM105: Tuck jump full turn | BP105: =IFERROR(VLOOKUP(ROWS($BM$9:BM105),$BL$9:$BM$162,2,0),"") -> Tuck jump full turn | BT105: =IF(ISNUMBER(SEARCH($B$16,BU105)),MAX($BT$8:BT104)+1,0) -> 97 | BU105: Tuck jump full turn | BX105: =IFERROR(VLOOKUP(ROWS($BU$9:BU105),$BT$9:$BU$162,2,0),"") -> Tuck jump full turn | CB105: =IF(ISNUMBER(SEARCH($B$17,CC105)),MAX($CB$8:CB104)+1,0) -> 97 | CC105: Tuck jump full turn | CF105: =IFERROR(VLOOKUP(ROWS($CC$9:CC105),$CB$9:$CC$162,2,0),"") -> Tuck jump full turn | CJ105: =IF(ISNUMBER(SEARCH($B$18,CK105)),MAX($CJ$8:CJ104)+1,0) -> 97 | CK105: Tuck jump full turn | CN105: =IFERROR(VLOOKUP(ROWS($CK$9:CK105),$CJ$9:$CK$162,2,0),"") -> Tuck jump full turn
P106: =IF(ISNUMBER(SEARCH($B$9,Q106)),MAX($P$8:P105)+1,0) -> 98 | Q106: 1½ Spin | T106: =IFERROR(VLOOKUP(ROWS($Q$9:Q106),$P$9:$Q$162,2,0),"") -> 1½ Spin | X106: =IF(ISNUMBER(SEARCH($B$10,Y106)),MAX($X$8:X105)+1,0) -> 98 | Y106: 1½ Spin | AB106: =IFERROR(VLOOKUP(ROWS($Y$9:Y106),$X$9:$Y$162,2,0),"") -> 1½ Spin | AF106: =IF(ISNUMBER(SEARCH($B$11,AG106)),MAX($AF$8:AF105)+1,0) -> 98 | AG106: 1½ Spin | AJ106: =IFERROR(VLOOKUP(ROWS($AG$9:AG106),$AF$9:$AG$162,2,0),"") -> 1½ Spin | AN106: =IF(ISNUMBER(SEARCH($B$12,AO106)),MAX($AN$8:AN105)+1,0) -> 98 | AO106: 1½ Spin | AR106: =IFERROR(VLOOKUP(ROWS($AO$9:AO106),$AN$9:$AO$162,2,0),"") -> 1½ Spin | AV106: =IF(ISNUMBER(SEARCH($B$13,AW106)),MAX($AV$8:AV105)+1,0) -> 98 | AW106: 1½ Spin | AZ106: =IFERROR(VLOOKUP(ROWS($AW$9:AW106),$AV$9:$AW$162,2,0),"") -> 1½ Spin | BD106: =IF(ISNUMBER(SEARCH($B$14,BE106)),MAX($BD$8:BD105)+1,0) -> 98 | BE106: 1½ Spin | BH106: =IFERROR(VLOOKUP(ROWS($BE$9:BE106),$BD$9:$BE$162,2,0),"") -> 1½ Spin | BL106: =IF(ISNUMBER(SEARCH($B$15,BM106)),MAX($BL$8:BL105)+1,0) -> 98 | BM106: 1½ Spin | BP106: =IFERROR(VLOOKUP(ROWS($BM$9:BM106),$BL$9:$BM$162,2,0),"") -> 1½ Spin | BT106: =IF(ISNUMBER(SEARCH($B$16,BU106)),MAX($BT$8:BT105)+1,0) -> 98 | BU106: 1½ Spin | BX106: =IFERROR(VLOOKUP(ROWS($BU$9:BU106),$BT$9:$BU$162,2,0),"") -> 1½ Spin | CB106: =IF(ISNUMBER(SEARCH($B$17,CC106)),MAX($CB$8:CB105)+1,0) -> 98 | CC106: 1½ Spin | CF106: =IFERROR(VLOOKUP(ROWS($CC$9:CC106),$CB$9:$CC$162,2,0),"") -> 1½ Spin | CJ106: =IF(ISNUMBER(SEARCH($B$18,CK106)),MAX($CJ$8:CJ105)+1,0) -> 98 | CK106: 1½ Spin | CN106: =IFERROR(VLOOKUP(ROWS($CK$9:CK106),$CJ$9:$CK$162,2,0),"") -> 1½ Spin
P107: =IF(ISNUMBER(SEARCH($B$9,Q107)),MAX($P$8:P106)+1,0) -> 99 | Q107: Y Scale (leg at shoulder height) | T107: =IFERROR(VLOOKUP(ROWS($Q$9:Q107),$P$9:$Q$162,2,0),"") -> Y Scale (leg at shoulder height) | X107: =IF(ISNUMBER(SEARCH($B$10,Y107)),MAX($X$8:X106)+1,0) -> 99 | Y107: Y Scale (leg at shoulder height) | AB107: =IFERROR(VLOOKUP(ROWS($Y$9:Y107),$X$9:$Y$162,2,0),"") -> Y Scale (leg at shoulder height) | AF107: =IF(ISNUMBER(SEARCH($B$11,AG107)),MAX($AF$8:AF106)+1,0) -> 99 | AG107: Y Scale (leg at shoulder height) | AJ107: =IFERROR(VLOOKUP(ROWS($AG$9:AG107),$AF$9:$AG$162,2,0),"") -> Y Scale (leg at shoulder height) | AN107: =IF(ISNUMBER(SEARCH($B$12,AO107)),MAX($AN$8:AN106)+1,0) -> 99 | AO107: Y Scale (leg at shoulder height) | AR107: =IFERROR(VLOOKUP(ROWS($AO$9:AO107),$AN$9:$AO$162,2,0),"") -> Y Scale (leg at shoulder height) | AV107: =IF(ISNUMBER(SEARCH($B$13,AW107)),MAX($AV$8:AV106)+1,0) -> 99 | AW107: Y Scale (leg at shoulder height) | AZ107: =IFERROR(VLOOKUP(ROWS($AW$9:AW107),$AV$9:$AW$162,2,0),"") -> Y Scale (leg at shoulder height) | BD107: =IF(ISNUMBER(SEARCH($B$14,BE107)),MAX($BD$8:BD106)+1,0) -> 99 | BE107: Y Scale (leg at shoulder height) | BH107: =IFERROR(VLOOKUP(ROWS($BE$9:BE107),$BD$9:$BE$162,2,0),"") -> Y Scale (leg at shoulder height) | BL107: =IF(ISNUMBER(SEARCH($B$15,BM107)),MAX($BL$8:BL106)+1,0) -> 99 | BM107: Y Scale (leg at shoulder height) | BP107: =IFERROR(VLOOKUP(ROWS($BM$9:BM107),$BL$9:$BM$162,2,0),"") -> Y Scale (leg at shoulder height) | BT107: =IF(ISNUMBER(SEARCH($B$16,BU107)),MAX($BT$8:BT106)+1,0) -> 99 | BU107: Y Scale (leg at shoulder height) | BX107: =IFERROR(VLOOKUP(ROWS($BU$9:BU107),$BT$9:$BU$162,2,0),"") -> Y Scale (leg at shoulder height) | CB107: =IF(ISNUMBER(SEARCH($B$17,CC107)),MAX($CB$8:CB106)+1,0) -> 99 | CC107: Y Scale (leg at shoulder height) | CF107: =IFERROR(VLOOKUP(ROWS($CC$9:CC107),$CB$9:$CC$162,2,0),"") -> Y Scale (leg at shoulder height) | CJ107: =IF(ISNUMBER(SEARCH($B$18,CK107)),MAX($CJ$8:CJ106)+1,0) -> 99 | CK107: Y Scale (leg at shoulder height) | CN107: =IFERROR(VLOOKUP(ROWS($CK$9:CK107),$CJ$9:$CK$162,2,0),"") -> Y Scale (leg at shoulder height)
P108: =IF(ISNUMBER(SEARCH($B$9,Q108)),MAX($P$8:P107)+1,0) -> 100 | Q108: 3 way Splits | T108: =IFERROR(VLOOKUP(ROWS($Q$9:Q108),$P$9:$Q$162,2,0),"") -> 3 way Splits | X108: =IF(ISNUMBER(SEARCH($B$10,Y108)),MAX($X$8:X107)+1,0) -> 100 | Y108: 3 way Splits | AB108: =IFERROR(VLOOKUP(ROWS($Y$9:Y108),$X$9:$Y$162,2,0),"") -> 3 way Splits | AF108: =IF(ISNUMBER(SEARCH($B$11,AG108)),MAX($AF$8:AF107)+1,0) -> 100 | AG108: 3 way Splits | AJ108: =IFERROR(VLOOKUP(ROWS($AG$9:AG108),$AF$9:$AG$162,2,0),"") -> 3 way Splits | AN108: =IF(ISNUMBER(SEARCH($B$12,AO108)),MAX($AN$8:AN107)+1,0) -> 100 | AO108: 3 way Splits | AR108: =IFERROR(VLOOKUP(ROWS($AO$9:AO108),$AN$9:$AO$162,2,0),"") -> 3 way Splits | AV108: =IF(ISNUMBER(SEARCH($B$13,AW108)),MAX($AV$8:AV107)+1,0) -> 100 | AW108: 3 way Splits | AZ108: =IFERROR(VLOOKUP(ROWS($AW$9:AW108),$AV$9:$AW$162,2,0),"") -> 3 way Splits | BD108: =IF(ISNUMBER(SEARCH($B$14,BE108)),MAX($BD$8:BD107)+1,0) -> 100 | BE108: 3 way Splits | BH108: =IFERROR(VLOOKUP(ROWS($BE$9:BE108),$BD$9:$BE$162,2,0),"") -> 3 way Splits | BL108: =IF(ISNUMBER(SEARCH($B$15,BM108)),MAX($BL$8:BL107)+1,0) -> 100 | BM108: 3 way Splits | BP108: =IFERROR(VLOOKUP(ROWS($BM$9:BM108),$BL$9:$BM$162,2,0),"") -> 3 way Splits | BT108: =IF(ISNUMBER(SEARCH($B$16,BU108)),MAX($BT$8:BT107)+1,0) -> 100 | BU108: 3 way Splits | BX108: =IFERROR(VLOOKUP(ROWS($BU$9:BU108),$BT$9:$BU$162,2,0),"") -> 3 way Splits | CB108: =IF(ISNUMBER(SEARCH($B$17,CC108)),MAX($CB$8:CB107)+1,0) -> 100 | CC108: 3 way Splits | CF108: =IFERROR(VLOOKUP(ROWS($CC$9:CC108),$CB$9:$CC$162,2,0),"") -> 3 way Splits | CJ108: =IF(ISNUMBER(SEARCH($B$18,CK108)),MAX($CJ$8:CJ107)+1,0) -> 100 | CK108: 3 way Splits | CN108: =IFERROR(VLOOKUP(ROWS($CK$9:CK108),$CJ$9:$CK$162,2,0),"") -> 3 way Splits
P109: =IF(ISNUMBER(SEARCH($B$9,Q109)),MAX($P$8:P108)+1,0) -> 101 | Q109: F Supp jump legs through straddle - | T109: =IFERROR(VLOOKUP(ROWS($Q$9:Q109),$P$9:$Q$162,2,0),"") -> F Supp jump legs through straddle - | X109: =IF(ISNUMBER(SEARCH($B$10,Y109)),MAX($X$8:X108)+1,0) -> 101 | Y109: F Supp jump legs through straddle - | AB109: =IFERROR(VLOOKUP(ROWS($Y$9:Y109),$X$9:$Y$162,2,0),"") -> F Supp jump legs through straddle - | AF109: =IF(ISNUMBER(SEARCH($B$11,AG109)),MAX($AF$8:AF108)+1,0) -> 101 | AG109: F Supp jump legs through straddle - | AJ109: =IFERROR(VLOOKUP(ROWS($AG$9:AG109),$AF$9:$AG$162,2,0),"") -> F Supp jump legs through straddle - | AN109: =IF(ISNUMBER(SEARCH($B$12,AO109)),MAX($AN$8:AN108)+1,0) -> 101 | AO109: F Supp jump legs through straddle - | AR109: =IFERROR(VLOOKUP(ROWS($AO$9:AO109),$AN$9:$AO$162,2,0),"") -> F Supp jump legs through straddle - | AV109: =IF(ISNUMBER(SEARCH($B$13,AW109)),MAX($AV$8:AV108)+1,0) -> 101 | AW109: F Supp jump legs through straddle - | AZ109: =IFERROR(VLOOKUP(ROWS($AW$9:AW109),$AV$9:$AW$162,2,0),"") -> F Supp jump legs through straddle - | BD109: =IF(ISNUMBER(SEARCH($B$14,BE109)),MAX($BD$8:BD108)+1,0) -> 101 | BE109: F Supp jump legs through straddle - | BH109: =IFERROR(VLOOKUP(ROWS($BE$9:BE109),$BD$9:$BE$162,2,0),"") -> F Supp jump legs through straddle - | BL109: =IF(ISNUMBER(SEARCH($B$15,BM109)),MAX($BL$8:BL108)+1,0) -> 101 | BM109: F Supp jump legs through straddle - | BP109: =IFERROR(VLOOKUP(ROWS($BM$9:BM109),$BL$9:$BM$162,2,0),"") -> F Supp jump legs through straddle - | BT109: =IF(ISNUMBER(SEARCH($B$16,BU109)),MAX($BT$8:BT108)+1,0) -> 101 | BU109: F Supp jump legs through straddle - | BX109: =IFERROR(VLOOKUP(ROWS($BU$9:BU109),$BT$9:$BU$162,2,0),"") -> F Supp jump legs through straddle - | CB109: =IF(ISNUMBER(SEARCH($B$17,CC109)),MAX($CB$8:CB108)+1,0) -> 101 | CC109: F Supp jump legs through straddle - | CF109: =IFERROR(VLOOKUP(ROWS($CC$9:CC109),$CB$9:$CC$162,2,0),"") -> F Supp jump legs through straddle - | CJ109: =IF(ISNUMBER(SEARCH($B$18,CK109)),MAX($CJ$8:CJ108)+1,0) -> 101 | CK109: F Supp jump legs through straddle - | CN109: =IFERROR(VLOOKUP(ROWS($CK$9:CK109),$CJ$9:$CK$162,2,0),"") -> F Supp jump legs through straddle -
P110: =IF(ISNUMBER(SEARCH($B$9,Q110)),MAX($P$8:P109)+1,0) -> 102 | Q110: Straddle 'Russian' Lever | T110: =IFERROR(VLOOKUP(ROWS($Q$9:Q110),$P$9:$Q$162,2,0),"") -> Straddle 'Russian' Lever | X110: =IF(ISNUMBER(SEARCH($B$10,Y110)),MAX($X$8:X109)+1,0) -> 102 | Y110: Straddle 'Russian' Lever | AB110: =IFERROR(VLOOKUP(ROWS($Y$9:Y110),$X$9:$Y$162,2,0),"") -> Straddle 'Russian' Lever | AF110: =IF(ISNUMBER(SEARCH($B$11,AG110)),MAX($AF$8:AF109)+1,0) -> 102 | AG110: Straddle 'Russian' Lever | AJ110: =IFERROR(VLOOKUP(ROWS($AG$9:AG110),$AF$9:$AG$162,2,0),"") -> Straddle 'Russian' Lever | AN110: =IF(ISNUMBER(SEARCH($B$12,AO110)),MAX($AN$8:AN109)+1,0) -> 102 | AO110: Straddle 'Russian' Lever | AR110: =IFERROR(VLOOKUP(ROWS($AO$9:AO110),$AN$9:$AO$162,2,0),"") -> Straddle 'Russian' Lever | AV110: =IF(ISNUMBER(SEARCH($B$13,AW110)),MAX($AV$8:AV109)+1,0) -> 102 | AW110: Straddle 'Russian' Lever | AZ110: =IFERROR(VLOOKUP(ROWS($AW$9:AW110),$AV$9:$AW$162,2,0),"") -> Straddle 'Russian' Lever | BD110: =IF(ISNUMBER(SEARCH($B$14,BE110)),MAX($BD$8:BD109)+1,0) -> 102 | BE110: Straddle 'Russian' Lever | BH110: =IFERROR(VLOOKUP(ROWS($BE$9:BE110),$BD$9:$BE$162,2,0),"") -> Straddle 'Russian' Lever | BL110: =IF(ISNUMBER(SEARCH($B$15,BM110)),MAX($BL$8:BL109)+1,0) -> 102 | BM110: Straddle 'Russian' Lever | BP110: =IFERROR(VLOOKUP(ROWS($BM$9:BM110),$BL$9:$BM$162,2,0),"") -> Straddle 'Russian' Lever | BT110: =IF(ISNUMBER(SEARCH($B$16,BU110)),MAX($BT$8:BT109)+1,0) -> 102 | BU110: Straddle 'Russian' Lever | BX110: =IFERROR(VLOOKUP(ROWS($BU$9:BU110),$BT$9:$BU$162,2,0),"") -> Straddle 'Russian' Lever | CB110: =IF(ISNUMBER(SEARCH($B$17,CC110)),MAX($CB$8:CB109)+1,0) -> 102 | CC110: Straddle 'Russian' Lever | CF110: =IFERROR(VLOOKUP(ROWS($CC$9:CC110),$CB$9:$CC$162,2,0),"") -> Straddle 'Russian' Lever | CJ110: =IF(ISNUMBER(SEARCH($B$18,CK110)),MAX($CJ$8:CJ109)+1,0) -> 102 | CK110: Straddle 'Russian' Lever | CN110: =IFERROR(VLOOKUP(ROWS($CK$9:CK110),$CJ$9:$CK$162,2,0),"") -> Straddle 'Russian' Lever
P111: =IF(ISNUMBER(SEARCH($B$9,Q111)),MAX($P$8:P110)+1,0) -> 103 | Q111: Straddle 1/2 Lever lift to Stand | T111: =IFERROR(VLOOKUP(ROWS($Q$9:Q111),$P$9:$Q$162,2,0),"") -> Straddle 1/2 Lever lift to Stand | X111: =IF(ISNUMBER(SEARCH($B$10,Y111)),MAX($X$8:X110)+1,0) -> 103 | Y111: Straddle 1/2 Lever lift to Stand | AB111: =IFERROR(VLOOKUP(ROWS($Y$9:Y111),$X$9:$Y$162,2,0),"") -> Straddle 1/2 Lever lift to Stand | AF111: =IF(ISNUMBER(SEARCH($B$11,AG111)),MAX($AF$8:AF110)+1,0) -> 103 | AG111: Straddle 1/2 Lever lift to Stand | AJ111: =IFERROR(VLOOKUP(ROWS($AG$9:AG111),$AF$9:$AG$162,2,0),"") -> Straddle 1/2 Lever lift to Stand | AN111: =IF(ISNUMBER(SEARCH($B$12,AO111)),MAX($AN$8:AN110)+1,0) -> 103 | AO111: Straddle 1/2 Lever lift to Stand | AR111: =IFERROR(VLOOKUP(ROWS($AO$9:AO111),$AN$9:$AO$162,2,0),"") -> Straddle 1/2 Lever lift to Stand | AV111: =IF(ISNUMBER(SEARCH($B$13,AW111)),MAX($AV$8:AV110)+1,0) -> 103 | AW111: Straddle 1/2 Lever lift to Stand | AZ111: =IFERROR(VLOOKUP(ROWS($AW$9:AW111),$AV$9:$AW$162,2,0),"") -> Straddle 1/2 Lever lift to Stand | BD111: =IF(ISNUMBER(SEARCH($B$14,BE111)),MAX($BD$8:BD110)+1,0) -> 103 | BE111: Straddle 1/2 Lever lift to Stand | BH111: =IFERROR(VLOOKUP(ROWS($BE$9:BE111),$BD$9:$BE$162,2,0),"") -> Straddle 1/2 Lever lift to Stand | BL111: =IF(ISNUMBER(SEARCH($B$15,BM111)),MAX($BL$8:BL110)+1,0) -> 103 | BM111: Straddle 1/2 Lever lift to Stand | BP111: =IFERROR(VLOOKUP(ROWS($BM$9:BM111),$BL$9:$BM$162,2,0),"") -> Straddle 1/2 Lever lift to Stand | BT111: =IF(ISNUMBER(SEARCH($B$16,BU111)),MAX($BT$8:BT110)+1,0) -> 103 | BU111: Straddle 1/2 Lever lift to Stand | BX111: =IFERROR(VLOOKUP(ROWS($BU$9:BU111),$BT$9:$BU$162,2,0),"") -> Straddle 1/2 Lever lift to Stand | CB111: =IF(ISNUMBER(SEARCH($B$17,CC111)),MAX($CB$8:CB110)+1,0) -> 103 | CC111: Straddle 1/2 Lever lift to Stand | CF111: =IFERROR(VLOOKUP(ROWS($CC$9:CC111),$CB$9:$CC$162,2,0),"") -> Straddle 1/2 Lever lift to Stand | CJ111: =IF(ISNUMBER(SEARCH($B$18,CK111)),MAX($CJ$8:CJ110)+1,0) -> 103 | CK111: Straddle 1/2 Lever lift to Stand | CN111: =IFERROR(VLOOKUP(ROWS($CK$9:CK111),$CJ$9:$CK$162,2,0),"") -> Straddle 1/2 Lever lift to Stand
P112: =IF(ISNUMBER(SEARCH($B$9,Q112)),MAX($P$8:P111)+1,0) -> 104 | Q112: H/stand from straddle stand full turn | T112: =IFERROR(VLOOKUP(ROWS($Q$9:Q112),$P$9:$Q$162,2,0),"") -> H/stand from straddle stand full turn | X112: =IF(ISNUMBER(SEARCH($B$10,Y112)),MAX($X$8:X111)+1,0) -> 104 | Y112: H/stand from straddle stand full turn | AB112: =IFERROR(VLOOKUP(ROWS($Y$9:Y112),$X$9:$Y$162,2,0),"") -> H/stand from straddle stand full turn | AF112: =IF(ISNUMBER(SEARCH($B$11,AG112)),MAX($AF$8:AF111)+1,0) -> 104 | AG112: H/stand from straddle stand full turn | AJ112: =IFERROR(VLOOKUP(ROWS($AG$9:AG112),$AF$9:$AG$162,2,0),"") -> H/stand from straddle stand full turn | AN112: =IF(ISNUMBER(SEARCH($B$12,AO112)),MAX($AN$8:AN111)+1,0) -> 104 | AO112: H/stand from straddle stand full turn | AR112: =IFERROR(VLOOKUP(ROWS($AO$9:AO112),$AN$9:$AO$162,2,0),"") -> H/stand from straddle stand full turn | AV112: =IF(ISNUMBER(SEARCH($B$13,AW112)),MAX($AV$8:AV111)+1,0) -> 104 | AW112: H/stand from straddle stand full turn | AZ112: =IFERROR(VLOOKUP(ROWS($AW$9:AW112),$AV$9:$AW$162,2,0),"") -> H/stand from straddle stand full turn | BD112: =IF(ISNUMBER(SEARCH($B$14,BE112)),MAX($BD$8:BD111)+1,0) -> 104 | BE112: H/stand from straddle stand full turn | BH112: =IFERROR(VLOOKUP(ROWS($BE$9:BE112),$BD$9:$BE$162,2,0),"") -> H/stand from straddle stand full turn | BL112: =IF(ISNUMBER(SEARCH($B$15,BM112)),MAX($BL$8:BL111)+1,0) -> 104 | BM112: H/stand from straddle stand full turn | BP112: =IFERROR(VLOOKUP(ROWS($BM$9:BM112),$BL$9:$BM$162,2,0),"") -> H/stand from straddle stand full turn | BT112: =IF(ISNUMBER(SEARCH($B$16,BU112)),MAX($BT$8:BT111)+1,0) -> 104 | BU112: H/stand from straddle stand full turn | BX112: =IFERROR(VLOOKUP(ROWS($BU$9:BU112),$BT$9:$BU$162,2,0),"") -> H/stand from straddle stand full turn | CB112: =IF(ISNUMBER(SEARCH($B$17,CC112)),MAX($CB$8:CB111)+1,0) -> 104 | CC112: H/stand from straddle stand full turn | CF112: =IFERROR(VLOOKUP(ROWS($CC$9:CC112),$CB$9:$CC$162,2,0),"") -> H/stand from straddle stand full turn | CJ112: =IF(ISNUMBER(SEARCH($B$18,CK112)),MAX($CJ$8:CJ111)+1,0) -> 104 | CK112: H/stand from straddle stand full turn | CN112: =IFERROR(VLOOKUP(ROWS($CK$9:CK112),$CJ$9:$CK$162,2,0),"") -> H/stand from straddle stand full turn
P113: =IF(ISNUMBER(SEARCH($B$9,Q113)),MAX($P$8:P112)+1,0) -> 105 | Q113: H/stand lower to Straddle 1/2 Lever | T113: =IFERROR(VLOOKUP(ROWS($Q$9:Q113),$P$9:$Q$162,2,0),"") -> H/stand lower to Straddle 1/2 Lever | X113: =IF(ISNUMBER(SEARCH($B$10,Y113)),MAX($X$8:X112)+1,0) -> 105 | Y113: H/stand lower to Straddle 1/2 Lever | AB113: =IFERROR(VLOOKUP(ROWS($Y$9:Y113),$X$9:$Y$162,2,0),"") -> H/stand lower to Straddle 1/2 Lever | AF113: =IF(ISNUMBER(SEARCH($B$11,AG113)),MAX($AF$8:AF112)+1,0) -> 105 | AG113: H/stand lower to Straddle 1/2 Lever | AJ113: =IFERROR(VLOOKUP(ROWS($AG$9:AG113),$AF$9:$AG$162,2,0),"") -> H/stand lower to Straddle 1/2 Lever | AN113: =IF(ISNUMBER(SEARCH($B$12,AO113)),MAX($AN$8:AN112)+1,0) -> 105 | AO113: H/stand lower to Straddle 1/2 Lever | AR113: =IFERROR(VLOOKUP(ROWS($AO$9:AO113),$AN$9:$AO$162,2,0),"") -> H/stand lower to Straddle 1/2 Lever | AV113: =IF(ISNUMBER(SEARCH($B$13,AW113)),MAX($AV$8:AV112)+1,0) -> 105 | AW113: H/stand lower to Straddle 1/2 Lever | AZ113: =IFERROR(VLOOKUP(ROWS($AW$9:AW113),$AV$9:$AW$162,2,0),"") -> H/stand lower to Straddle 1/2 Lever | BD113: =IF(ISNUMBER(SEARCH($B$14,BE113)),MAX($BD$8:BD112)+1,0) -> 105 | BE113: H/stand lower to Straddle 1/2 Lever | BH113: =IFERROR(VLOOKUP(ROWS($BE$9:BE113),$BD$9:$BE$162,2,0),"") -> H/stand lower to Straddle 1/2 Lever | BL113: =IF(ISNUMBER(SEARCH($B$15,BM113)),MAX($BL$8:BL112)+1,0) -> 105 | BM113: H/stand lower to Straddle 1/2 Lever | BP113: =IFERROR(VLOOKUP(ROWS($BM$9:BM113),$BL$9:$BM$162,2,0),"") -> H/stand lower to Straddle 1/2 Lever | BT113: =IF(ISNUMBER(SEARCH($B$16,BU113)),MAX($BT$8:BT112)+1,0) -> 105 | BU113: H/stand lower to Straddle 1/2 Lever | BX113: =IFERROR(VLOOKUP(ROWS($BU$9:BU113),$BT$9:$BU$162,2,0),"") -> H/stand lower to Straddle 1/2 Lever | CB113: =IF(ISNUMBER(SEARCH($B$17,CC113)),MAX($CB$8:CB112)+1,0) -> 105 | CC113: H/stand lower to Straddle 1/2 Lever | CF113: =IFERROR(VLOOKUP(ROWS($CC$9:CC113),$CB$9:$CC$162,2,0),"") -> H/stand lower to Straddle 1/2 Lever | CJ113: =IF(ISNUMBER(SEARCH($B$18,CK113)),MAX($CJ$8:CJ112)+1,0) -> 105 | CK113: H/stand lower to Straddle 1/2 Lever | CN113: =IFERROR(VLOOKUP(ROWS($CK$9:CK113),$CJ$9:$CK$162,2,0),"") -> H/stand lower to Straddle 1/2 Lever
P114: =IF(ISNUMBER(SEARCH($B$9,Q114)),MAX($P$8:P113)+1,0) -> 106 | Q114: Chest Roll to Bent Arms Handstand | T114: =IFERROR(VLOOKUP(ROWS($Q$9:Q114),$P$9:$Q$162,2,0),"") -> Chest Roll to Bent Arms Handstand | X114: =IF(ISNUMBER(SEARCH($B$10,Y114)),MAX($X$8:X113)+1,0) -> 106 | Y114: Chest Roll to Bent Arms Handstand | AB114: =IFERROR(VLOOKUP(ROWS($Y$9:Y114),$X$9:$Y$162,2,0),"") -> Chest Roll to Bent Arms Handstand | AF114: =IF(ISNUMBER(SEARCH($B$11,AG114)),MAX($AF$8:AF113)+1,0) -> 106 | AG114: Chest Roll to Bent Arms Handstand | AJ114: =IFERROR(VLOOKUP(ROWS($AG$9:AG114),$AF$9:$AG$162,2,0),"") -> Chest Roll to Bent Arms Handstand | AN114: =IF(ISNUMBER(SEARCH($B$12,AO114)),MAX($AN$8:AN113)+1,0) -> 106 | AO114: Chest Roll to Bent Arms Handstand | AR114: =IFERROR(VLOOKUP(ROWS($AO$9:AO114),$AN$9:$AO$162,2,0),"") -> Chest Roll to Bent Arms Handstand | AV114: =IF(ISNUMBER(SEARCH($B$13,AW114)),MAX($AV$8:AV113)+1,0) -> 106 | AW114: Chest Roll to Bent Arms Handstand | AZ114: =IFERROR(VLOOKUP(ROWS($AW$9:AW114),$AV$9:$AW$162,2,0),"") -> Chest Roll to Bent Arms Handstand | BD114: =IF(ISNUMBER(SEARCH($B$14,BE114)),MAX($BD$8:BD113)+1,0) -> 106 | BE114: Chest Roll to Bent Arms Handstand | BH114: =IFERROR(VLOOKUP(ROWS($BE$9:BE114),$BD$9:$BE$162,2,0),"") -> Chest Roll to Bent Arms Handstand | BL114: =IF(ISNUMBER(SEARCH($B$15,BM114)),MAX($BL$8:BL113)+1,0) -> 106 | BM114: Chest Roll to Bent Arms Handstand | BP114: =IFERROR(VLOOKUP(ROWS($BM$9:BM114),$BL$9:$BM$162,2,0),"") -> Chest Roll to Bent Arms Handstand | BT114: =IF(ISNUMBER(SEARCH($B$16,BU114)),MAX($BT$8:BT113)+1,0) -> 106 | BU114: Chest Roll to Bent Arms Handstand | BX114: =IFERROR(VLOOKUP(ROWS($BU$9:BU114),$BT$9:$BU$162,2,0),"") -> Chest Roll to Bent Arms Handstand | CB114: =IF(ISNUMBER(SEARCH($B$17,CC114)),MAX($CB$8:CB113)+1,0) -> 106 | CC114: Chest Roll to Bent Arms Handstand | CF114: =IFERROR(VLOOKUP(ROWS($CC$9:CC114),$CB$9:$CC$162,2,0),"") -> Chest Roll to Bent Arms Handstand | CJ114: =IF(ISNUMBER(SEARCH($B$18,CK114)),MAX($CJ$8:CJ113)+1,0) -> 106 | CK114: Chest Roll to Bent Arms Handstand | CN114: =IFERROR(VLOOKUP(ROWS($CK$9:CK114),$CJ$9:$CK$162,2,0),"") -> Chest Roll to Bent Arms Handstand
P115: =IF(ISNUMBER(SEARCH($B$9,Q115)),MAX($P$8:P114)+1,0) -> 107 | Q115: H/stand FR piked exit (straight arms) | T115: =IFERROR(VLOOKUP(ROWS($Q$9:Q115),$P$9:$Q$162,2,0),"") -> H/stand FR piked exit (straight arms) | X115: =IF(ISNUMBER(SEARCH($B$10,Y115)),MAX($X$8:X114)+1,0) -> 107 | Y115: H/stand FR piked exit (straight arms) | AB115: =IFERROR(VLOOKUP(ROWS($Y$9:Y115),$X$9:$Y$162,2,0),"") -> H/stand FR piked exit (straight arms) | AF115: =IF(ISNUMBER(SEARCH($B$11,AG115)),MAX($AF$8:AF114)+1,0) -> 107 | AG115: H/stand FR piked exit (straight arms) | AJ115: =IFERROR(VLOOKUP(ROWS($AG$9:AG115),$AF$9:$AG$162,2,0),"") -> H/stand FR piked exit (straight arms) | AN115: =IF(ISNUMBER(SEARCH($B$12,AO115)),MAX($AN$8:AN114)+1,0) -> 107 | AO115: H/stand FR piked exit (straight arms) | AR115: =IFERROR(VLOOKUP(ROWS($AO$9:AO115),$AN$9:$AO$162,2,0),"") -> H/stand FR piked exit (straight arms) | AV115: =IF(ISNUMBER(SEARCH($B$13,AW115)),MAX($AV$8:AV114)+1,0) -> 107 | AW115: H/stand FR piked exit (straight arms) | AZ115: =IFERROR(VLOOKUP(ROWS($AW$9:AW115),$AV$9:$AW$162,2,0),"") -> H/stand FR piked exit (straight arms) | BD115: =IF(ISNUMBER(SEARCH($B$14,BE115)),MAX($BD$8:BD114)+1,0) -> 107 | BE115: H/stand FR piked exit (straight arms) | BH115: =IFERROR(VLOOKUP(ROWS($BE$9:BE115),$BD$9:$BE$162,2,0),"") -> H/stand FR piked exit (straight arms) | BL115: =IF(ISNUMBER(SEARCH($B$15,BM115)),MAX($BL$8:BL114)+1,0) -> 107 | BM115: H/stand FR piked exit (straight arms) | BP115: =IFERROR(VLOOKUP(ROWS($BM$9:BM115),$BL$9:$BM$162,2,0),"") -> H/stand FR piked exit (straight arms) | BT115: =IF(ISNUMBER(SEARCH($B$16,BU115)),MAX($BT$8:BT114)+1,0) -> 107 | BU115: H/stand FR piked exit (straight arms) | BX115: =IFERROR(VLOOKUP(ROWS($BU$9:BU115),$BT$9:$BU$162,2,0),"") -> H/stand FR piked exit (straight arms) | CB115: =IF(ISNUMBER(SEARCH($B$17,CC115)),MAX($CB$8:CB114)+1,0) -> 107 | CC115: H/stand FR piked exit (straight arms) | CF115: =IFERROR(VLOOKUP(ROWS($CC$9:CC115),$CB$9:$CC$162,2,0),"") -> H/stand FR piked exit (straight arms) | CJ115: =IF(ISNUMBER(SEARCH($B$18,CK115)),MAX($CJ$8:CJ114)+1,0) -> 107 | CK115: H/stand FR piked exit (straight arms) | CN115: =IFERROR(VLOOKUP(ROWS($CK$9:CK115),$CJ$9:$CK$162,2,0),"") -> H/stand FR piked exit (straight arms)
P116: =IF(ISNUMBER(SEARCH($B$9,Q116)),MAX($P$8:P115)+1,0) -> 108 | Q116: B Roll to h/stand (straight arms) | T116: =IFERROR(VLOOKUP(ROWS($Q$9:Q116),$P$9:$Q$162,2,0),"") -> B Roll to h/stand (straight arms) | X116: =IF(ISNUMBER(SEARCH($B$10,Y116)),MAX($X$8:X115)+1,0) -> 108 | Y116: B Roll to h/stand (straight arms) | AB116: =IFERROR(VLOOKUP(ROWS($Y$9:Y116),$X$9:$Y$162,2,0),"") -> B Roll to h/stand (straight arms) | AF116: =IF(ISNUMBER(SEARCH($B$11,AG116)),MAX($AF$8:AF115)+1,0) -> 108 | AG116: B Roll to h/stand (straight arms) | AJ116: =IFERROR(VLOOKUP(ROWS($AG$9:AG116),$AF$9:$AG$162,2,0),"") -> B Roll to h/stand (straight arms) | AN116: =IF(ISNUMBER(SEARCH($B$12,AO116)),MAX($AN$8:AN115)+1,0) -> 108 | AO116: B Roll to h/stand (straight arms) | AR116: =IFERROR(VLOOKUP(ROWS($AO$9:AO116),$AN$9:$AO$162,2,0),"") -> B Roll to h/stand (straight arms) | AV116: =IF(ISNUMBER(SEARCH($B$13,AW116)),MAX($AV$8:AV115)+1,0) -> 108 | AW116: B Roll to h/stand (straight arms) | AZ116: =IFERROR(VLOOKUP(ROWS($AW$9:AW116),$AV$9:$AW$162,2,0),"") -> B Roll to h/stand (straight arms) | BD116: =IF(ISNUMBER(SEARCH($B$14,BE116)),MAX($BD$8:BD115)+1,0) -> 108 | BE116: B Roll to h/stand (straight arms) | BH116: =IFERROR(VLOOKUP(ROWS($BE$9:BE116),$BD$9:$BE$162,2,0),"") -> B Roll to h/stand (straight arms) | BL116: =IF(ISNUMBER(SEARCH($B$15,BM116)),MAX($BL$8:BL115)+1,0) -> 108 | BM116: B Roll to h/stand (straight arms) | BP116: =IFERROR(VLOOKUP(ROWS($BM$9:BM116),$BL$9:$BM$162,2,0),"") -> B Roll to h/stand (straight arms) | BT116: =IF(ISNUMBER(SEARCH($B$16,BU116)),MAX($BT$8:BT115)+1,0) -> 108 | BU116: B Roll to h/stand (straight arms) | BX116: =IFERROR(VLOOKUP(ROWS($BU$9:BU116),$BT$9:$BU$162,2,0),"") -> B Roll to h/stand (straight arms) | CB116: =IF(ISNUMBER(SEARCH($B$17,CC116)),MAX($CB$8:CB115)+1,0) -> 108 | CC116: B Roll to h/stand (straight arms) | CF116: =IFERROR(VLOOKUP(ROWS($CC$9:CC116),$CB$9:$CC$162,2,0),"") -> B Roll to h/stand (straight arms) | CJ116: =IF(ISNUMBER(SEARCH($B$18,CK116)),MAX($CJ$8:CJ115)+1,0) -> 108 | CK116: B Roll to h/stand (straight arms) | CN116: =IFERROR(VLOOKUP(ROWS($CK$9:CK116),$CJ$9:$CK$162,2,0),"") -> B Roll to h/stand (straight arms)
P117: =IF(ISNUMBER(SEARCH($B$9,Q117)),MAX($P$8:P116)+1,0) -> 109 | Q117: Handstand 1½ pirouette | T117: =IFERROR(VLOOKUP(ROWS($Q$9:Q117),$P$9:$Q$162,2,0),"") -> Handstand 1½ pirouette | X117: =IF(ISNUMBER(SEARCH($B$10,Y117)),MAX($X$8:X116)+1,0) -> 109 | Y117: Handstand 1½ pirouette | AB117: =IFERROR(VLOOKUP(ROWS($Y$9:Y117),$X$9:$Y$162,2,0),"") -> Handstand 1½ pirouette | AF117: =IF(ISNUMBER(SEARCH($B$11,AG117)),MAX($AF$8:AF116)+1,0) -> 109 | AG117: Handstand 1½ pirouette | AJ117: =IFERROR(VLOOKUP(ROWS($AG$9:AG117),$AF$9:$AG$162,2,0),"") -> Handstand 1½ pirouette | AN117: =IF(ISNUMBER(SEARCH($B$12,AO117)),MAX($AN$8:AN116)+1,0) -> 109 | AO117: Handstand 1½ pirouette | AR117: =IFERROR(VLOOKUP(ROWS($AO$9:AO117),$AN$9:$AO$162,2,0),"") -> Handstand 1½ pirouette | AV117: =IF(ISNUMBER(SEARCH($B$13,AW117)),MAX($AV$8:AV116)+1,0) -> 109 | AW117: Handstand 1½ pirouette | AZ117: =IFERROR(VLOOKUP(ROWS($AW$9:AW117),$AV$9:$AW$162,2,0),"") -> Handstand 1½ pirouette | BD117: =IF(ISNUMBER(SEARCH($B$14,BE117)),MAX($BD$8:BD116)+1,0) -> 109 | BE117: Handstand 1½ pirouette | BH117: =IFERROR(VLOOKUP(ROWS($BE$9:BE117),$BD$9:$BE$162,2,0),"") -> Handstand 1½ pirouette | BL117: =IF(ISNUMBER(SEARCH($B$15,BM117)),MAX($BL$8:BL116)+1,0) -> 109 | BM117: Handstand 1½ pirouette | BP117: =IFERROR(VLOOKUP(ROWS($BM$9:BM117),$BL$9:$BM$162,2,0),"") -> Handstand 1½ pirouette | BT117: =IF(ISNUMBER(SEARCH($B$16,BU117)),MAX($BT$8:BT116)+1,0) -> 109 | BU117: Handstand 1½ pirouette | BX117: =IFERROR(VLOOKUP(ROWS($BU$9:BU117),$BT$9:$BU$162,2,0),"") -> Handstand 1½ pirouette | CB117: =IF(ISNUMBER(SEARCH($B$17,CC117)),MAX($CB$8:CB116)+1,0) -> 109 | CC117: Handstand 1½ pirouette | CF117: =IFERROR(VLOOKUP(ROWS($CC$9:CC117),$CB$9:$CC$162,2,0),"") -> Handstand 1½ pirouette | CJ117: =IF(ISNUMBER(SEARCH($B$18,CK117)),MAX($CJ$8:CJ116)+1,0) -> 109 | CK117: Handstand 1½ pirouette | CN117: =IFERROR(VLOOKUP(ROWS($CK$9:CK117),$CJ$9:$CK$162,2,0),"") -> Handstand 1½ pirouette
P118: =IF(ISNUMBER(SEARCH($B$9,Q118)),MAX($P$8:P117)+1,0) -> 110 | Q118: Tic toc | T118: =IFERROR(VLOOKUP(ROWS($Q$9:Q118),$P$9:$Q$162,2,0),"") -> Tic toc | X118: =IF(ISNUMBER(SEARCH($B$10,Y118)),MAX($X$8:X117)+1,0) -> 110 | Y118: Tic toc | AB118: =IFERROR(VLOOKUP(ROWS($Y$9:Y118),$X$9:$Y$162,2,0),"") -> Tic toc | AF118: =IF(ISNUMBER(SEARCH($B$11,AG118)),MAX($AF$8:AF117)+1,0) -> 110 | AG118: Tic toc | AJ118: =IFERROR(VLOOKUP(ROWS($AG$9:AG118),$AF$9:$AG$162,2,0),"") -> Tic toc | AN118: =IF(ISNUMBER(SEARCH($B$12,AO118)),MAX($AN$8:AN117)+1,0) -> 110 | AO118: Tic toc | AR118: =IFERROR(VLOOKUP(ROWS($AO$9:AO118),$AN$9:$AO$162,2,0),"") -> Tic toc | AV118: =IF(ISNUMBER(SEARCH($B$13,AW118)),MAX($AV$8:AV117)+1,0) -> 110 | AW118: Tic toc | AZ118: =IFERROR(VLOOKUP(ROWS($AW$9:AW118),$AV$9:$AW$162,2,0),"") -> Tic toc | BD118: =IF(ISNUMBER(SEARCH($B$14,BE118)),MAX($BD$8:BD117)+1,0) -> 110 | BE118: Tic toc | BH118: =IFERROR(VLOOKUP(ROWS($BE$9:BE118),$BD$9:$BE$162,2,0),"") -> Tic toc | BL118: =IF(ISNUMBER(SEARCH($B$15,BM118)),MAX($BL$8:BL117)+1,0) -> 110 | BM118: Tic toc | BP118: =IFERROR(VLOOKUP(ROWS($BM$9:BM118),$BL$9:$BM$162,2,0),"") -> Tic toc | BT118: =IF(ISNUMBER(SEARCH($B$16,BU118)),MAX($BT$8:BT117)+1,0) -> 110 | BU118: Tic toc | BX118: =IFERROR(VLOOKUP(ROWS($BU$9:BU118),$BT$9:$BU$162,2,0),"") -> Tic toc | CB118: =IF(ISNUMBER(SEARCH($B$17,CC118)),MAX($CB$8:CB117)+1,0) -> 110 | CC118: Tic toc | CF118: =IFERROR(VLOOKUP(ROWS($CC$9:CC118),$CB$9:$CC$162,2,0),"") -> Tic toc | CJ118: =IF(ISNUMBER(SEARCH($B$18,CK118)),MAX($CJ$8:CJ117)+1,0) -> 110 | CK118: Tic toc | CN118: =IFERROR(VLOOKUP(ROWS($CK$9:CK118),$CJ$9:$CK$162,2,0),"") -> Tic toc
P119: =IF(ISNUMBER(SEARCH($B$9,Q119)),MAX($P$8:P118)+1,0) -> 111 | Q119: Flyspring | T119: =IFERROR(VLOOKUP(ROWS($Q$9:Q119),$P$9:$Q$162,2,0),"") -> Flyspring | X119: =IF(ISNUMBER(SEARCH($B$10,Y119)),MAX($X$8:X118)+1,0) -> 111 | Y119: Flyspring | AB119: =IFERROR(VLOOKUP(ROWS($Y$9:Y119),$X$9:$Y$162,2,0),"") -> Flyspring | AF119: =IF(ISNUMBER(SEARCH($B$11,AG119)),MAX($AF$8:AF118)+1,0) -> 111 | AG119: Flyspring | AJ119: =IFERROR(VLOOKUP(ROWS($AG$9:AG119),$AF$9:$AG$162,2,0),"") -> Flyspring | AN119: =IF(ISNUMBER(SEARCH($B$12,AO119)),MAX($AN$8:AN118)+1,0) -> 111 | AO119: Flyspring | AR119: =IFERROR(VLOOKUP(ROWS($AO$9:AO119),$AN$9:$AO$162,2,0),"") -> Flyspring | AV119: =IF(ISNUMBER(SEARCH($B$13,AW119)),MAX($AV$8:AV118)+1,0) -> 111 | AW119: Flyspring | AZ119: =IFERROR(VLOOKUP(ROWS($AW$9:AW119),$AV$9:$AW$162,2,0),"") -> Flyspring | BD119: =IF(ISNUMBER(SEARCH($B$14,BE119)),MAX($BD$8:BD118)+1,0) -> 111 | BE119: Flyspring | BH119: =IFERROR(VLOOKUP(ROWS($BE$9:BE119),$BD$9:$BE$162,2,0),"") -> Flyspring | BL119: =IF(ISNUMBER(SEARCH($B$15,BM119)),MAX($BL$8:BL118)+1,0) -> 111 | BM119: Flyspring | BP119: =IFERROR(VLOOKUP(ROWS($BM$9:BM119),$BL$9:$BM$162,2,0),"") -> Flyspring | BT119: =IF(ISNUMBER(SEARCH($B$16,BU119)),MAX($BT$8:BT118)+1,0) -> 111 | BU119: Flyspring | BX119: =IFERROR(VLOOKUP(ROWS($BU$9:BU119),$BT$9:$BU$162,2,0),"") -> Flyspring | CB119: =IF(ISNUMBER(SEARCH($B$17,CC119)),MAX($CB$8:CB118)+1,0) -> 111 | CC119: Flyspring | CF119: =IFERROR(VLOOKUP(ROWS($CC$9:CC119),$CB$9:$CC$162,2,0),"") -> Flyspring | CJ119: =IF(ISNUMBER(SEARCH($B$18,CK119)),MAX($CJ$8:CJ118)+1,0) -> 111 | CK119: Flyspring | CN119: =IFERROR(VLOOKUP(ROWS($CK$9:CK119),$CJ$9:$CK$162,2,0),"") -> Flyspring
P120: =IF(ISNUMBER(SEARCH($B$9,Q120)),MAX($P$8:P119)+1,0) -> 112 | Q120: Tucked Front Salto | T120: =IFERROR(VLOOKUP(ROWS($Q$9:Q120),$P$9:$Q$162,2,0),"") -> Tucked Front Salto | X120: =IF(ISNUMBER(SEARCH($B$10,Y120)),MAX($X$8:X119)+1,0) -> 112 | Y120: Tucked Front Salto | AB120: =IFERROR(VLOOKUP(ROWS($Y$9:Y120),$X$9:$Y$162,2,0),"") -> Tucked Front Salto | AF120: =IF(ISNUMBER(SEARCH($B$11,AG120)),MAX($AF$8:AF119)+1,0) -> 112 | AG120: Tucked Front Salto | AJ120: =IFERROR(VLOOKUP(ROWS($AG$9:AG120),$AF$9:$AG$162,2,0),"") -> Tucked Front Salto | AN120: =IF(ISNUMBER(SEARCH($B$12,AO120)),MAX($AN$8:AN119)+1,0) -> 112 | AO120: Tucked Front Salto | AR120: =IFERROR(VLOOKUP(ROWS($AO$9:AO120),$AN$9:$AO$162,2,0),"") -> Tucked Front Salto | AV120: =IF(ISNUMBER(SEARCH($B$13,AW120)),MAX($AV$8:AV119)+1,0) -> 112 | AW120: Tucked Front Salto | AZ120: =IFERROR(VLOOKUP(ROWS($AW$9:AW120),$AV$9:$AW$162,2,0),"") -> Tucked Front Salto | BD120: =IF(ISNUMBER(SEARCH($B$14,BE120)),MAX($BD$8:BD119)+1,0) -> 112 | BE120: Tucked Front Salto | BH120: =IFERROR(VLOOKUP(ROWS($BE$9:BE120),$BD$9:$BE$162,2,0),"") -> Tucked Front Salto | BL120: =IF(ISNUMBER(SEARCH($B$15,BM120)),MAX($BL$8:BL119)+1,0) -> 112 | BM120: Tucked Front Salto | BP120: =IFERROR(VLOOKUP(ROWS($BM$9:BM120),$BL$9:$BM$162,2,0),"") -> Tucked Front Salto | BT120: =IF(ISNUMBER(SEARCH($B$16,BU120)),MAX($BT$8:BT119)+1,0) -> 112 | BU120: Tucked Front Salto | BX120: =IFERROR(VLOOKUP(ROWS($BU$9:BU120),$BT$9:$BU$162,2,0),"") -> Tucked Front Salto | CB120: =IF(ISNUMBER(SEARCH($B$17,CC120)),MAX($CB$8:CB119)+1,0) -> 112 | CC120: Tucked Front Salto | CF120: =IFERROR(VLOOKUP(ROWS($CC$9:CC120),$CB$9:$CC$162,2,0),"") -> Tucked Front Salto | CJ120: =IF(ISNUMBER(SEARCH($B$18,CK120)),MAX($CJ$8:CJ119)+1,0) -> 112 | CK120: Tucked Front Salto | CN120: =IFERROR(VLOOKUP(ROWS($CK$9:CK120),$CJ$9:$CK$162,2,0),"") -> Tucked Front Salto
P121: =IF(ISNUMBER(SEARCH($B$9,Q121)),MAX($P$8:P120)+1,0) -> 113 | Q121: Tucked Back Salto FS | T121: =IFERROR(VLOOKUP(ROWS($Q$9:Q121),$P$9:$Q$162,2,0),"") -> Tucked Back Salto FS | X121: =IF(ISNUMBER(SEARCH($B$10,Y121)),MAX($X$8:X120)+1,0) -> 113 | Y121: Tucked Back Salto FS | AB121: =IFERROR(VLOOKUP(ROWS($Y$9:Y121),$X$9:$Y$162,2,0),"") -> Tucked Back Salto FS | AF121: =IF(ISNUMBER(SEARCH($B$11,AG121)),MAX($AF$8:AF120)+1,0) -> 113 | AG121: Tucked Back Salto FS | AJ121: =IFERROR(VLOOKUP(ROWS($AG$9:AG121),$AF$9:$AG$162,2,0),"") -> Tucked Back Salto FS | AN121: =IF(ISNUMBER(SEARCH($B$12,AO121)),MAX($AN$8:AN120)+1,0) -> 113 | AO121: Tucked Back Salto FS | AR121: =IFERROR(VLOOKUP(ROWS($AO$9:AO121),$AN$9:$AO$162,2,0),"") -> Tucked Back Salto FS | AV121: =IF(ISNUMBER(SEARCH($B$13,AW121)),MAX($AV$8:AV120)+1,0) -> 113 | AW121: Tucked Back Salto FS | AZ121: =IFERROR(VLOOKUP(ROWS($AW$9:AW121),$AV$9:$AW$162,2,0),"") -> Tucked Back Salto FS | BD121: =IF(ISNUMBER(SEARCH($B$14,BE121)),MAX($BD$8:BD120)+1,0) -> 113 | BE121: Tucked Back Salto FS | BH121: =IFERROR(VLOOKUP(ROWS($BE$9:BE121),$BD$9:$BE$162,2,0),"") -> Tucked Back Salto FS | BL121: =IF(ISNUMBER(SEARCH($B$15,BM121)),MAX($BL$8:BL120)+1,0) -> 113 | BM121: Tucked Back Salto FS | BP121: =IFERROR(VLOOKUP(ROWS($BM$9:BM121),$BL$9:$BM$162,2,0),"") -> Tucked Back Salto FS | BT121: =IF(ISNUMBER(SEARCH($B$16,BU121)),MAX($BT$8:BT120)+1,0) -> 113 | BU121: Tucked Back Salto FS | BX121: =IFERROR(VLOOKUP(ROWS($BU$9:BU121),$BT$9:$BU$162,2,0),"") -> Tucked Back Salto FS | CB121: =IF(ISNUMBER(SEARCH($B$17,CC121)),MAX($CB$8:CB120)+1,0) -> 113 | CC121: Tucked Back Salto FS | CF121: =IFERROR(VLOOKUP(ROWS($CC$9:CC121),$CB$9:$CC$162,2,0),"") -> Tucked Back Salto FS | CJ121: =IF(ISNUMBER(SEARCH($B$18,CK121)),MAX($CJ$8:CJ120)+1,0) -> 113 | CK121: Tucked Back Salto FS | CN121: =IFERROR(VLOOKUP(ROWS($CK$9:CK121),$CJ$9:$CK$162,2,0),"") -> Tucked Back Salto FS
P122: =IF(ISNUMBER(SEARCH($B$9,Q122)),MAX($P$8:P121)+1,0) -> 114 | Q122: Free Cartwheel | T122: =IFERROR(VLOOKUP(ROWS($Q$9:Q122),$P$9:$Q$162,2,0),"") -> Free Cartwheel | X122: =IF(ISNUMBER(SEARCH($B$10,Y122)),MAX($X$8:X121)+1,0) -> 114 | Y122: Free Cartwheel | AB122: =IFERROR(VLOOKUP(ROWS($Y$9:Y122),$X$9:$Y$162,2,0),"") -> Free Cartwheel | AF122: =IF(ISNUMBER(SEARCH($B$11,AG122)),MAX($AF$8:AF121)+1,0) -> 114 | AG122: Free Cartwheel | AJ122: =IFERROR(VLOOKUP(ROWS($AG$9:AG122),$AF$9:$AG$162,2,0),"") -> Free Cartwheel | AN122: =IF(ISNUMBER(SEARCH($B$12,AO122)),MAX($AN$8:AN121)+1,0) -> 114 | AO122: Free Cartwheel | AR122: =IFERROR(VLOOKUP(ROWS($AO$9:AO122),$AN$9:$AO$162,2,0),"") -> Free Cartwheel | AV122: =IF(ISNUMBER(SEARCH($B$13,AW122)),MAX($AV$8:AV121)+1,0) -> 114 | AW122: Free Cartwheel | AZ122: =IFERROR(VLOOKUP(ROWS($AW$9:AW122),$AV$9:$AW$162,2,0),"") -> Free Cartwheel | BD122: =IF(ISNUMBER(SEARCH($B$14,BE122)),MAX($BD$8:BD121)+1,0) -> 114 | BE122: Free Cartwheel | BH122: =IFERROR(VLOOKUP(ROWS($BE$9:BE122),$BD$9:$BE$162,2,0),"") -> Free Cartwheel | BL122: =IF(ISNUMBER(SEARCH($B$15,BM122)),MAX($BL$8:BL121)+1,0) -> 114 | BM122: Free Cartwheel | BP122: =IFERROR(VLOOKUP(ROWS($BM$9:BM122),$BL$9:$BM$162,2,0),"") -> Free Cartwheel | BT122: =IF(ISNUMBER(SEARCH($B$16,BU122)),MAX($BT$8:BT121)+1,0) -> 114 | BU122: Free Cartwheel | BX122: =IFERROR(VLOOKUP(ROWS($BU$9:BU122),$BT$9:$BU$162,2,0),"") -> Free Cartwheel | CB122: =IF(ISNUMBER(SEARCH($B$17,CC122)),MAX($CB$8:CB121)+1,0) -> 114 | CC122: Free Cartwheel | CF122: =IFERROR(VLOOKUP(ROWS($CC$9:CC122),$CB$9:$CC$162,2,0),"") -> Free Cartwheel | CJ122: =IF(ISNUMBER(SEARCH($B$18,CK122)),MAX($CJ$8:CJ121)+1,0) -> 114 | CK122: Free Cartwheel | CN122: =IFERROR(VLOOKUP(ROWS($CK$9:CK122),$CJ$9:$CK$162,2,0),"") -> Free Cartwheel
P123: =IF(ISNUMBER(SEARCH($B$9,Q123)),MAX($P$8:P122)+1,0) -> 115 | Q123: Free Cartwheel Flick | T123: =IFERROR(VLOOKUP(ROWS($Q$9:Q123),$P$9:$Q$162,2,0),"") -> Free Cartwheel Flick | X123: =IF(ISNUMBER(SEARCH($B$10,Y123)),MAX($X$8:X122)+1,0) -> 115 | Y123: Free Cartwheel Flick | AB123: =IFERROR(VLOOKUP(ROWS($Y$9:Y123),$X$9:$Y$162,2,0),"") -> Free Cartwheel Flick | AF123: =IF(ISNUMBER(SEARCH($B$11,AG123)),MAX($AF$8:AF122)+1,0) -> 115 | AG123: Free Cartwheel Flick | AJ123: =IFERROR(VLOOKUP(ROWS($AG$9:AG123),$AF$9:$AG$162,2,0),"") -> Free Cartwheel Flick | AN123: =IF(ISNUMBER(SEARCH($B$12,AO123)),MAX($AN$8:AN122)+1,0) -> 115 | AO123: Free Cartwheel Flick | AR123: =IFERROR(VLOOKUP(ROWS($AO$9:AO123),$AN$9:$AO$162,2,0),"") -> Free Cartwheel Flick | AV123: =IF(ISNUMBER(SEARCH($B$13,AW123)),MAX($AV$8:AV122)+1,0) -> 115 | AW123: Free Cartwheel Flick | AZ123: =IFERROR(VLOOKUP(ROWS($AW$9:AW123),$AV$9:$AW$162,2,0),"") -> Free Cartwheel Flick | BD123: =IF(ISNUMBER(SEARCH($B$14,BE123)),MAX($BD$8:BD122)+1,0) -> 115 | BE123: Free Cartwheel Flick | BH123: =IFERROR(VLOOKUP(ROWS($BE$9:BE123),$BD$9:$BE$162,2,0),"") -> Free Cartwheel Flick | BL123: =IF(ISNUMBER(SEARCH($B$15,BM123)),MAX($BL$8:BL122)+1,0) -> 115 | BM123: Free Cartwheel Flick | BP123: =IFERROR(VLOOKUP(ROWS($BM$9:BM123),$BL$9:$BM$162,2,0),"") -> Free Cartwheel Flick | BT123: =IF(ISNUMBER(SEARCH($B$16,BU123)),MAX($BT$8:BT122)+1,0) -> 115 | BU123: Free Cartwheel Flick | BX123: =IFERROR(VLOOKUP(ROWS($BU$9:BU123),$BT$9:$BU$162,2,0),"") -> Free Cartwheel Flick | CB123: =IF(ISNUMBER(SEARCH($B$17,CC123)),MAX($CB$8:CB122)+1,0) -> 115 | CC123: Free Cartwheel Flick | CF123: =IFERROR(VLOOKUP(ROWS($CC$9:CC123),$CB$9:$CC$162,2,0),"") -> Free Cartwheel Flick | CJ123: =IF(ISNUMBER(SEARCH($B$18,CK123)),MAX($CJ$8:CJ122)+1,0) -> 115 | CK123: Free Cartwheel Flick | CN123: =IFERROR(VLOOKUP(ROWS($CK$9:CK123),$CJ$9:$CK$162,2,0),"") -> Free Cartwheel Flick
P124: =IF(ISNUMBER(SEARCH($B$9,Q124)),MAX($P$8:P123)+1,0) -> 116 | Q124: Front Salto to 1 R/O | T124: =IFERROR(VLOOKUP(ROWS($Q$9:Q124),$P$9:$Q$162,2,0),"") -> Front Salto to 1 R/O | X124: =IF(ISNUMBER(SEARCH($B$10,Y124)),MAX($X$8:X123)+1,0) -> 116 | Y124: Front Salto to 1 R/O | AB124: =IFERROR(VLOOKUP(ROWS($Y$9:Y124),$X$9:$Y$162,2,0),"") -> Front Salto to 1 R/O | AF124: =IF(ISNUMBER(SEARCH($B$11,AG124)),MAX($AF$8:AF123)+1,0) -> 116 | AG124: Front Salto to 1 R/O | AJ124: =IFERROR(VLOOKUP(ROWS($AG$9:AG124),$AF$9:$AG$162,2,0),"") -> Front Salto to 1 R/O | AN124: =IF(ISNUMBER(SEARCH($B$12,AO124)),MAX($AN$8:AN123)+1,0) -> 116 | AO124: Front Salto to 1 R/O | AR124: =IFERROR(VLOOKUP(ROWS($AO$9:AO124),$AN$9:$AO$162,2,0),"") -> Front Salto to 1 R/O | AV124: =IF(ISNUMBER(SEARCH($B$13,AW124)),MAX($AV$8:AV123)+1,0) -> 116 | AW124: Front Salto to 1 R/O | AZ124: =IFERROR(VLOOKUP(ROWS($AW$9:AW124),$AV$9:$AW$162,2,0),"") -> Front Salto to 1 R/O | BD124: =IF(ISNUMBER(SEARCH($B$14,BE124)),MAX($BD$8:BD123)+1,0) -> 116 | BE124: Front Salto to 1 R/O | BH124: =IFERROR(VLOOKUP(ROWS($BE$9:BE124),$BD$9:$BE$162,2,0),"") -> Front Salto to 1 R/O | BL124: =IF(ISNUMBER(SEARCH($B$15,BM124)),MAX($BL$8:BL123)+1,0) -> 116 | BM124: Front Salto to 1 R/O | BP124: =IFERROR(VLOOKUP(ROWS($BM$9:BM124),$BL$9:$BM$162,2,0),"") -> Front Salto to 1 R/O | BT124: =IF(ISNUMBER(SEARCH($B$16,BU124)),MAX($BT$8:BT123)+1,0) -> 116 | BU124: Front Salto to 1 R/O | BX124: =IFERROR(VLOOKUP(ROWS($BU$9:BU124),$BT$9:$BU$162,2,0),"") -> Front Salto to 1 R/O | CB124: =IF(ISNUMBER(SEARCH($B$17,CC124)),MAX($CB$8:CB123)+1,0) -> 116 | CC124: Front Salto to 1 R/O | CF124: =IFERROR(VLOOKUP(ROWS($CC$9:CC124),$CB$9:$CC$162,2,0),"") -> Front Salto to 1 R/O | CJ124: =IF(ISNUMBER(SEARCH($B$18,CK124)),MAX($CJ$8:CJ123)+1,0) -> 116 | CK124: Front Salto to 1 R/O | CN124: =IFERROR(VLOOKUP(ROWS($CK$9:CK124),$CJ$9:$CK$162,2,0),"") -> Front Salto to 1 R/O
P125: =IF(ISNUMBER(SEARCH($B$9,Q125)),MAX($P$8:P124)+1,0) -> 117 | Q125: Front Salto, R/O, flic | T125: =IFERROR(VLOOKUP(ROWS($Q$9:Q125),$P$9:$Q$162,2,0),"") -> Front Salto, R/O, flic | X125: =IF(ISNUMBER(SEARCH($B$10,Y125)),MAX($X$8:X124)+1,0) -> 117 | Y125: Front Salto, R/O, flic | AB125: =IFERROR(VLOOKUP(ROWS($Y$9:Y125),$X$9:$Y$162,2,0),"") -> Front Salto, R/O, flic | AF125: =IF(ISNUMBER(SEARCH($B$11,AG125)),MAX($AF$8:AF124)+1,0) -> 117 | AG125: Front Salto, R/O, flic | AJ125: =IFERROR(VLOOKUP(ROWS($AG$9:AG125),$AF$9:$AG$162,2,0),"") -> Front Salto, R/O, flic | AN125: =IF(ISNUMBER(SEARCH($B$12,AO125)),MAX($AN$8:AN124)+1,0) -> 117 | AO125: Front Salto, R/O, flic | AR125: =IFERROR(VLOOKUP(ROWS($AO$9:AO125),$AN$9:$AO$162,2,0),"") -> Front Salto, R/O, flic | AV125: =IF(ISNUMBER(SEARCH($B$13,AW125)),MAX($AV$8:AV124)+1,0) -> 117 | AW125: Front Salto, R/O, flic | AZ125: =IFERROR(VLOOKUP(ROWS($AW$9:AW125),$AV$9:$AW$162,2,0),"") -> Front Salto, R/O, flic | BD125: =IF(ISNUMBER(SEARCH($B$14,BE125)),MAX($BD$8:BD124)+1,0) -> 117 | BE125: Front Salto, R/O, flic | BH125: =IFERROR(VLOOKUP(ROWS($BE$9:BE125),$BD$9:$BE$162,2,0),"") -> Front Salto, R/O, flic | BL125: =IF(ISNUMBER(SEARCH($B$15,BM125)),MAX($BL$8:BL124)+1,0) -> 117 | BM125: Front Salto, R/O, flic | BP125: =IFERROR(VLOOKUP(ROWS($BM$9:BM125),$BL$9:$BM$162,2,0),"") -> Front Salto, R/O, flic | BT125: =IF(ISNUMBER(SEARCH($B$16,BU125)),MAX($BT$8:BT124)+1,0) -> 117 | BU125: Front Salto, R/O, flic | BX125: =IFERROR(VLOOKUP(ROWS($BU$9:BU125),$BT$9:$BU$162,2,0),"") -> Front Salto, R/O, flic | CB125: =IF(ISNUMBER(SEARCH($B$17,CC125)),MAX($CB$8:CB124)+1,0) -> 117 | CC125: Front Salto, R/O, flic | CF125: =IFERROR(VLOOKUP(ROWS($CC$9:CC125),$CB$9:$CC$162,2,0),"") -> Front Salto, R/O, flic | CJ125: =IF(ISNUMBER(SEARCH($B$18,CK125)),MAX($CJ$8:CJ124)+1,0) -> 117 | CK125: Front Salto, R/O, flic | CN125: =IFERROR(VLOOKUP(ROWS($CK$9:CK125),$CJ$9:$CK$162,2,0),"") -> Front Salto, R/O, flic
P126: =IF(ISNUMBER(SEARCH($B$9,Q126)),MAX($P$8:P125)+1,0) -> 118 | Q126: F Salto step out, R/O, B Salto | T126: =IFERROR(VLOOKUP(ROWS($Q$9:Q126),$P$9:$Q$162,2,0),"") -> F Salto step out, R/O, B Salto | X126: =IF(ISNUMBER(SEARCH($B$10,Y126)),MAX($X$8:X125)+1,0) -> 118 | Y126: F Salto step out, R/O, B Salto | AB126: =IFERROR(VLOOKUP(ROWS($Y$9:Y126),$X$9:$Y$162,2,0),"") -> F Salto step out, R/O, B Salto | AF126: =IF(ISNUMBER(SEARCH($B$11,AG126)),MAX($AF$8:AF125)+1,0) -> 118 | AG126: F Salto step out, R/O, B Salto | AJ126: =IFERROR(VLOOKUP(ROWS($AG$9:AG126),$AF$9:$AG$162,2,0),"") -> F Salto step out, R/O, B Salto | AN126: =IF(ISNUMBER(SEARCH($B$12,AO126)),MAX($AN$8:AN125)+1,0) -> 118 | AO126: F Salto step out, R/O, B Salto | AR126: =IFERROR(VLOOKUP(ROWS($AO$9:AO126),$AN$9:$AO$162,2,0),"") -> F Salto step out, R/O, B Salto | AV126: =IF(ISNUMBER(SEARCH($B$13,AW126)),MAX($AV$8:AV125)+1,0) -> 118 | AW126: F Salto step out, R/O, B Salto | AZ126: =IFERROR(VLOOKUP(ROWS($AW$9:AW126),$AV$9:$AW$162,2,0),"") -> F Salto step out, R/O, B Salto | BD126: =IF(ISNUMBER(SEARCH($B$14,BE126)),MAX($BD$8:BD125)+1,0) -> 118 | BE126: F Salto step out, R/O, B Salto | BH126: =IFERROR(VLOOKUP(ROWS($BE$9:BE126),$BD$9:$BE$162,2,0),"") -> F Salto step out, R/O, B Salto | BL126: =IF(ISNUMBER(SEARCH($B$15,BM126)),MAX($BL$8:BL125)+1,0) -> 118 | BM126: F Salto step out, R/O, B Salto | BP126: =IFERROR(VLOOKUP(ROWS($BM$9:BM126),$BL$9:$BM$162,2,0),"") -> F Salto step out, R/O, B Salto | BT126: =IF(ISNUMBER(SEARCH($B$16,BU126)),MAX($BT$8:BT125)+1,0) -> 118 | BU126: F Salto step out, R/O, B Salto | BX126: =IFERROR(VLOOKUP(ROWS($BU$9:BU126),$BT$9:$BU$162,2,0),"") -> F Salto step out, R/O, B Salto | CB126: =IF(ISNUMBER(SEARCH($B$17,CC126)),MAX($CB$8:CB125)+1,0) -> 118 | CC126: F Salto step out, R/O, B Salto | CF126: =IFERROR(VLOOKUP(ROWS($CC$9:CC126),$CB$9:$CC$162,2,0),"") -> F Salto step out, R/O, B Salto | CJ126: =IF(ISNUMBER(SEARCH($B$18,CK126)),MAX($CJ$8:CJ125)+1,0) -> 118 | CK126: F Salto step out, R/O, B Salto | CN126: =IFERROR(VLOOKUP(ROWS($CK$9:CK126),$CJ$9:$CK$162,2,0),"") -> F Salto step out, R/O, B Salto
P127: =IF(ISNUMBER(SEARCH($B$9,Q127)),MAX($P$8:P126)+1,0) -> 119 | Q127: R/O Tuck Back Salto | T127: =IFERROR(VLOOKUP(ROWS($Q$9:Q127),$P$9:$Q$162,2,0),"") -> R/O Tuck Back Salto | X127: =IF(ISNUMBER(SEARCH($B$10,Y127)),MAX($X$8:X126)+1,0) -> 119 | Y127: R/O Tuck Back Salto | AB127: =IFERROR(VLOOKUP(ROWS($Y$9:Y127),$X$9:$Y$162,2,0),"") -> R/O Tuck Back Salto | AF127: =IF(ISNUMBER(SEARCH($B$11,AG127)),MAX($AF$8:AF126)+1,0) -> 119 | AG127: R/O Tuck Back Salto | AJ127: =IFERROR(VLOOKUP(ROWS($AG$9:AG127),$AF$9:$AG$162,2,0),"") -> R/O Tuck Back Salto | AN127: =IF(ISNUMBER(SEARCH($B$12,AO127)),MAX($AN$8:AN126)+1,0) -> 119 | AO127: R/O Tuck Back Salto | AR127: =IFERROR(VLOOKUP(ROWS($AO$9:AO127),$AN$9:$AO$162,2,0),"") -> R/O Tuck Back Salto | AV127: =IF(ISNUMBER(SEARCH($B$13,AW127)),MAX($AV$8:AV126)+1,0) -> 119 | AW127: R/O Tuck Back Salto | AZ127: =IFERROR(VLOOKUP(ROWS($AW$9:AW127),$AV$9:$AW$162,2,0),"") -> R/O Tuck Back Salto | BD127: =IF(ISNUMBER(SEARCH($B$14,BE127)),MAX($BD$8:BD126)+1,0) -> 119 | BE127: R/O Tuck Back Salto | BH127: =IFERROR(VLOOKUP(ROWS($BE$9:BE127),$BD$9:$BE$162,2,0),"") -> R/O Tuck Back Salto | BL127: =IF(ISNUMBER(SEARCH($B$15,BM127)),MAX($BL$8:BL126)+1,0) -> 119 | BM127: R/O Tuck Back Salto | BP127: =IFERROR(VLOOKUP(ROWS($BM$9:BM127),$BL$9:$BM$162,2,0),"") -> R/O Tuck Back Salto | BT127: =IF(ISNUMBER(SEARCH($B$16,BU127)),MAX($BT$8:BT126)+1,0) -> 119 | BU127: R/O Tuck Back Salto | BX127: =IFERROR(VLOOKUP(ROWS($BU$9:BU127),$BT$9:$BU$162,2,0),"") -> R/O Tuck Back Salto | CB127: =IF(ISNUMBER(SEARCH($B$17,CC127)),MAX($CB$8:CB126)+1,0) -> 119 | CC127: R/O Tuck Back Salto | CF127: =IFERROR(VLOOKUP(ROWS($CC$9:CC127),$CB$9:$CC$162,2,0),"") -> R/O Tuck Back Salto | CJ127: =IF(ISNUMBER(SEARCH($B$18,CK127)),MAX($CJ$8:CJ126)+1,0) -> 119 | CK127: R/O Tuck Back Salto | CN127: =IFERROR(VLOOKUP(ROWS($CK$9:CK127),$CJ$9:$CK$162,2,0),"") -> R/O Tuck Back Salto
P128: =IF(ISNUMBER(SEARCH($B$9,Q128)),MAX($P$8:P127)+1,0) -> 120 | Q128: R/O, Flic, Tuck Back Salto | T128: =IFERROR(VLOOKUP(ROWS($Q$9:Q128),$P$9:$Q$162,2,0),"") -> R/O, Flic, Tuck Back Salto | X128: =IF(ISNUMBER(SEARCH($B$10,Y128)),MAX($X$8:X127)+1,0) -> 120 | Y128: R/O, Flic, Tuck Back Salto | AB128: =IFERROR(VLOOKUP(ROWS($Y$9:Y128),$X$9:$Y$162,2,0),"") -> R/O, Flic, Tuck Back Salto | AF128: =IF(ISNUMBER(SEARCH($B$11,AG128)),MAX($AF$8:AF127)+1,0) -> 120 | AG128: R/O, Flic, Tuck Back Salto | AJ128: =IFERROR(VLOOKUP(ROWS($AG$9:AG128),$AF$9:$AG$162,2,0),"") -> R/O, Flic, Tuck Back Salto | AN128: =IF(ISNUMBER(SEARCH($B$12,AO128)),MAX($AN$8:AN127)+1,0) -> 120 | AO128: R/O, Flic, Tuck Back Salto | AR128: =IFERROR(VLOOKUP(ROWS($AO$9:AO128),$AN$9:$AO$162,2,0),"") -> R/O, Flic, Tuck Back Salto | AV128: =IF(ISNUMBER(SEARCH($B$13,AW128)),MAX($AV$8:AV127)+1,0) -> 120 | AW128: R/O, Flic, Tuck Back Salto | AZ128: =IFERROR(VLOOKUP(ROWS($AW$9:AW128),$AV$9:$AW$162,2,0),"") -> R/O, Flic, Tuck Back Salto | BD128: =IF(ISNUMBER(SEARCH($B$14,BE128)),MAX($BD$8:BD127)+1,0) -> 120 | BE128: R/O, Flic, Tuck Back Salto | BH128: =IFERROR(VLOOKUP(ROWS($BE$9:BE128),$BD$9:$BE$162,2,0),"") -> R/O, Flic, Tuck Back Salto | BL128: =IF(ISNUMBER(SEARCH($B$15,BM128)),MAX($BL$8:BL127)+1,0) -> 120 | BM128: R/O, Flic, Tuck Back Salto | BP128: =IFERROR(VLOOKUP(ROWS($BM$9:BM128),$BL$9:$BM$162,2,0),"") -> R/O, Flic, Tuck Back Salto | BT128: =IF(ISNUMBER(SEARCH($B$16,BU128)),MAX($BT$8:BT127)+1,0) -> 120 | BU128: R/O, Flic, Tuck Back Salto | BX128: =IFERROR(VLOOKUP(ROWS($BU$9:BU128),$BT$9:$BU$162,2,0),"") -> R/O, Flic, Tuck Back Salto | CB128: =IF(ISNUMBER(SEARCH($B$17,CC128)),MAX($CB$8:CB127)+1,0) -> 120 | CC128: R/O, Flic, Tuck Back Salto | CF128: =IFERROR(VLOOKUP(ROWS($CC$9:CC128),$CB$9:$CC$162,2,0),"") -> R/O, Flic, Tuck Back Salto | CJ128: =IF(ISNUMBER(SEARCH($B$18,CK128)),MAX($CJ$8:CJ127)+1,0) -> 120 | CK128: R/O, Flic, Tuck Back Salto | CN128: =IFERROR(VLOOKUP(ROWS($CK$9:CK128),$CJ$9:$CK$162,2,0),"") -> R/O, Flic, Tuck Back Salto
P129: =IF(ISNUMBER(SEARCH($B$9,Q129)),MAX($P$8:P128)+1,0) -> 121 | Q129: Handspring Flyspring | T129: =IFERROR(VLOOKUP(ROWS($Q$9:Q129),$P$9:$Q$162,2,0),"") -> Handspring Flyspring | X129: =IF(ISNUMBER(SEARCH($B$10,Y129)),MAX($X$8:X128)+1,0) -> 121 | Y129: Handspring Flyspring | AB129: =IFERROR(VLOOKUP(ROWS($Y$9:Y129),$X$9:$Y$162,2,0),"") -> Handspring Flyspring | AF129: =IF(ISNUMBER(SEARCH($B$11,AG129)),MAX($AF$8:AF128)+1,0) -> 121 | AG129: Handspring Flyspring | AJ129: =IFERROR(VLOOKUP(ROWS($AG$9:AG129),$AF$9:$AG$162,2,0),"") -> Handspring Flyspring | AN129: =IF(ISNUMBER(SEARCH($B$12,AO129)),MAX($AN$8:AN128)+1,0) -> 121 | AO129: Handspring Flyspring | AR129: =IFERROR(VLOOKUP(ROWS($AO$9:AO129),$AN$9:$AO$162,2,0),"") -> Handspring Flyspring | AV129: =IF(ISNUMBER(SEARCH($B$13,AW129)),MAX($AV$8:AV128)+1,0) -> 121 | AW129: Handspring Flyspring | AZ129: =IFERROR(VLOOKUP(ROWS($AW$9:AW129),$AV$9:$AW$162,2,0),"") -> Handspring Flyspring | BD129: =IF(ISNUMBER(SEARCH($B$14,BE129)),MAX($BD$8:BD128)+1,0) -> 121 | BE129: Handspring Flyspring | BH129: =IFERROR(VLOOKUP(ROWS($BE$9:BE129),$BD$9:$BE$162,2,0),"") -> Handspring Flyspring | BL129: =IF(ISNUMBER(SEARCH($B$15,BM129)),MAX($BL$8:BL128)+1,0) -> 121 | BM129: Handspring Flyspring | BP129: =IFERROR(VLOOKUP(ROWS($BM$9:BM129),$BL$9:$BM$162,2,0),"") -> Handspring Flyspring | BT129: =IF(ISNUMBER(SEARCH($B$16,BU129)),MAX($BT$8:BT128)+1,0) -> 121 | BU129: Handspring Flyspring | BX129: =IFERROR(VLOOKUP(ROWS($BU$9:BU129),$BT$9:$BU$162,2,0),"") -> Handspring Flyspring | CB129: =IF(ISNUMBER(SEARCH($B$17,CC129)),MAX($CB$8:CB128)+1,0) -> 121 | CC129: Handspring Flyspring | CF129: =IFERROR(VLOOKUP(ROWS($CC$9:CC129),$CB$9:$CC$162,2,0),"") -> Handspring Flyspring | CJ129: =IF(ISNUMBER(SEARCH($B$18,CK129)),MAX($CJ$8:CJ128)+1,0) -> 121 | CK129: Handspring Flyspring | CN129: =IFERROR(VLOOKUP(ROWS($CK$9:CK129),$CJ$9:$CK$162,2,0),"") -> Handspring Flyspring
P130: =IF(ISNUMBER(SEARCH($B$9,Q130)),MAX($P$8:P129)+1,0) -> 122 | Q130: Handspring, Front Salto | T130: =IFERROR(VLOOKUP(ROWS($Q$9:Q130),$P$9:$Q$162,2,0),"") -> Handspring, Front Salto | X130: =IF(ISNUMBER(SEARCH($B$10,Y130)),MAX($X$8:X129)+1,0) -> 122 | Y130: Handspring, Front Salto | AB130: =IFERROR(VLOOKUP(ROWS($Y$9:Y130),$X$9:$Y$162,2,0),"") -> Handspring, Front Salto | AF130: =IF(ISNUMBER(SEARCH($B$11,AG130)),MAX($AF$8:AF129)+1,0) -> 122 | AG130: Handspring, Front Salto | AJ130: =IFERROR(VLOOKUP(ROWS($AG$9:AG130),$AF$9:$AG$162,2,0),"") -> Handspring, Front Salto | AN130: =IF(ISNUMBER(SEARCH($B$12,AO130)),MAX($AN$8:AN129)+1,0) -> 122 | AO130: Handspring, Front Salto | AR130: =IFERROR(VLOOKUP(ROWS($AO$9:AO130),$AN$9:$AO$162,2,0),"") -> Handspring, Front Salto | AV130: =IF(ISNUMBER(SEARCH($B$13,AW130)),MAX($AV$8:AV129)+1,0) -> 122 | AW130: Handspring, Front Salto | AZ130: =IFERROR(VLOOKUP(ROWS($AW$9:AW130),$AV$9:$AW$162,2,0),"") -> Handspring, Front Salto | BD130: =IF(ISNUMBER(SEARCH($B$14,BE130)),MAX($BD$8:BD129)+1,0) -> 122 | BE130: Handspring, Front Salto | BH130: =IFERROR(VLOOKUP(ROWS($BE$9:BE130),$BD$9:$BE$162,2,0),"") -> Handspring, Front Salto | BL130: =IF(ISNUMBER(SEARCH($B$15,BM130)),MAX($BL$8:BL129)+1,0) -> 122 | BM130: Handspring, Front Salto | BP130: =IFERROR(VLOOKUP(ROWS($BM$9:BM130),$BL$9:$BM$162,2,0),"") -> Handspring, Front Salto | BT130: =IF(ISNUMBER(SEARCH($B$16,BU130)),MAX($BT$8:BT129)+1,0) -> 122 | BU130: Handspring, Front Salto | BX130: =IFERROR(VLOOKUP(ROWS($BU$9:BU130),$BT$9:$BU$162,2,0),"") -> Handspring, Front Salto | CB130: =IF(ISNUMBER(SEARCH($B$17,CC130)),MAX($CB$8:CB129)+1,0) -> 122 | CC130: Handspring, Front Salto | CF130: =IFERROR(VLOOKUP(ROWS($CC$9:CC130),$CB$9:$CC$162,2,0),"") -> Handspring, Front Salto | CJ130: =IF(ISNUMBER(SEARCH($B$18,CK130)),MAX($CJ$8:CJ129)+1,0) -> 122 | CK130: Handspring, Front Salto | CN130: =IFERROR(VLOOKUP(ROWS($CK$9:CK130),$CJ$9:$CK$162,2,0),"") -> Handspring, Front Salto
P131: =IF(ISNUMBER(SEARCH($B$9,Q131)),MAX($P$8:P130)+1,0) -> 123 | Q131: Split leap - sissone | T131: =IFERROR(VLOOKUP(ROWS($Q$9:Q131),$P$9:$Q$162,2,0),"") -> Split leap - sissone | X131: =IF(ISNUMBER(SEARCH($B$10,Y131)),MAX($X$8:X130)+1,0) -> 123 | Y131: Split leap - sissone | AB131: =IFERROR(VLOOKUP(ROWS($Y$9:Y131),$X$9:$Y$162,2,0),"") -> Split leap - sissone | AF131: =IF(ISNUMBER(SEARCH($B$11,AG131)),MAX($AF$8:AF130)+1,0) -> 123 | AG131: Split leap - sissone | AJ131: =IFERROR(VLOOKUP(ROWS($AG$9:AG131),$AF$9:$AG$162,2,0),"") -> Split leap - sissone | AN131: =IF(ISNUMBER(SEARCH($B$12,AO131)),MAX($AN$8:AN130)+1,0) -> 123 | AO131: Split leap - sissone | AR131: =IFERROR(VLOOKUP(ROWS($AO$9:AO131),$AN$9:$AO$162,2,0),"") -> Split leap - sissone | AV131: =IF(ISNUMBER(SEARCH($B$13,AW131)),MAX($AV$8:AV130)+1,0) -> 123 | AW131: Split leap - sissone | AZ131: =IFERROR(VLOOKUP(ROWS($AW$9:AW131),$AV$9:$AW$162,2,0),"") -> Split leap - sissone | BD131: =IF(ISNUMBER(SEARCH($B$14,BE131)),MAX($BD$8:BD130)+1,0) -> 123 | BE131: Split leap - sissone | BH131: =IFERROR(VLOOKUP(ROWS($BE$9:BE131),$BD$9:$BE$162,2,0),"") -> Split leap - sissone | BL131: =IF(ISNUMBER(SEARCH($B$15,BM131)),MAX($BL$8:BL130)+1,0) -> 123 | BM131: Split leap - sissone | BP131: =IFERROR(VLOOKUP(ROWS($BM$9:BM131),$BL$9:$BM$162,2,0),"") -> Split leap - sissone | BT131: =IF(ISNUMBER(SEARCH($B$16,BU131)),MAX($BT$8:BT130)+1,0) -> 123 | BU131: Split leap - sissone | BX131: =IFERROR(VLOOKUP(ROWS($BU$9:BU131),$BT$9:$BU$162,2,0),"") -> Split leap - sissone | CB131: =IF(ISNUMBER(SEARCH($B$17,CC131)),MAX($CB$8:CB130)+1,0) -> 123 | CC131: Split leap - sissone | CF131: =IFERROR(VLOOKUP(ROWS($CC$9:CC131),$CB$9:$CC$162,2,0),"") -> Split leap - sissone | CJ131: =IF(ISNUMBER(SEARCH($B$18,CK131)),MAX($CJ$8:CJ130)+1,0) -> 123 | CK131: Split leap - sissone | CN131: =IFERROR(VLOOKUP(ROWS($CK$9:CK131),$CJ$9:$CK$162,2,0),"") -> Split leap - sissone
P132: =IF(ISNUMBER(SEARCH($B$9,Q132)),MAX($P$8:P131)+1,0) -> 124 | Q132: Split leap - cat leap full turn | T132: =IFERROR(VLOOKUP(ROWS($Q$9:Q132),$P$9:$Q$162,2,0),"") -> Split leap - cat leap full turn | X132: =IF(ISNUMBER(SEARCH($B$10,Y132)),MAX($X$8:X131)+1,0) -> 124 | Y132: Split leap - cat leap full turn | AB132: =IFERROR(VLOOKUP(ROWS($Y$9:Y132),$X$9:$Y$162,2,0),"") -> Split leap - cat leap full turn | AF132: =IF(ISNUMBER(SEARCH($B$11,AG132)),MAX($AF$8:AF131)+1,0) -> 124 | AG132: Split leap - cat leap full turn | AJ132: =IFERROR(VLOOKUP(ROWS($AG$9:AG132),$AF$9:$AG$162,2,0),"") -> Split leap - cat leap full turn | AN132: =IF(ISNUMBER(SEARCH($B$12,AO132)),MAX($AN$8:AN131)+1,0) -> 124 | AO132: Split leap - cat leap full turn | AR132: =IFERROR(VLOOKUP(ROWS($AO$9:AO132),$AN$9:$AO$162,2,0),"") -> Split leap - cat leap full turn | AV132: =IF(ISNUMBER(SEARCH($B$13,AW132)),MAX($AV$8:AV131)+1,0) -> 124 | AW132: Split leap - cat leap full turn | AZ132: =IFERROR(VLOOKUP(ROWS($AW$9:AW132),$AV$9:$AW$162,2,0),"") -> Split leap - cat leap full turn | BD132: =IF(ISNUMBER(SEARCH($B$14,BE132)),MAX($BD$8:BD131)+1,0) -> 124 | BE132: Split leap - cat leap full turn | BH132: =IFERROR(VLOOKUP(ROWS($BE$9:BE132),$BD$9:$BE$162,2,0),"") -> Split leap - cat leap full turn | BL132: =IF(ISNUMBER(SEARCH($B$15,BM132)),MAX($BL$8:BL131)+1,0) -> 124 | BM132: Split leap - cat leap full turn | BP132: =IFERROR(VLOOKUP(ROWS($BM$9:BM132),$BL$9:$BM$162,2,0),"") -> Split leap - cat leap full turn | BT132: =IF(ISNUMBER(SEARCH($B$16,BU132)),MAX($BT$8:BT131)+1,0) -> 124 | BU132: Split leap - cat leap full turn | BX132: =IFERROR(VLOOKUP(ROWS($BU$9:BU132),$BT$9:$BU$162,2,0),"") -> Split leap - cat leap full turn | CB132: =IF(ISNUMBER(SEARCH($B$17,CC132)),MAX($CB$8:CB131)+1,0) -> 124 | CC132: Split leap - cat leap full turn | CF132: =IFERROR(VLOOKUP(ROWS($CC$9:CC132),$CB$9:$CC$162,2,0),"") -> Split leap - cat leap full turn | CJ132: =IF(ISNUMBER(SEARCH($B$18,CK132)),MAX($CJ$8:CJ131)+1,0) -> 124 | CK132: Split leap - cat leap full turn | CN132: =IFERROR(VLOOKUP(ROWS($CK$9:CK132),$CJ$9:$CK$162,2,0),"") -> Split leap - cat leap full turn
P133: =IF(ISNUMBER(SEARCH($B$9,Q133)),MAX($P$8:P132)+1,0) -> 125 | Q133: Change leg split leap - split leap | T133: =IFERROR(VLOOKUP(ROWS($Q$9:Q133),$P$9:$Q$162,2,0),"") -> Change leg split leap - split leap | X133: =IF(ISNUMBER(SEARCH($B$10,Y133)),MAX($X$8:X132)+1,0) -> 125 | Y133: Change leg split leap - split leap | AB133: =IFERROR(VLOOKUP(ROWS($Y$9:Y133),$X$9:$Y$162,2,0),"") -> Change leg split leap - split leap | AF133: =IF(ISNUMBER(SEARCH($B$11,AG133)),MAX($AF$8:AF132)+1,0) -> 125 | AG133: Change leg split leap - split leap | AJ133: =IFERROR(VLOOKUP(ROWS($AG$9:AG133),$AF$9:$AG$162,2,0),"") -> Change leg split leap - split leap | AN133: =IF(ISNUMBER(SEARCH($B$12,AO133)),MAX($AN$8:AN132)+1,0) -> 125 | AO133: Change leg split leap - split leap | AR133: =IFERROR(VLOOKUP(ROWS($AO$9:AO133),$AN$9:$AO$162,2,0),"") -> Change leg split leap - split leap | AV133: =IF(ISNUMBER(SEARCH($B$13,AW133)),MAX($AV$8:AV132)+1,0) -> 125 | AW133: Change leg split leap - split leap | AZ133: =IFERROR(VLOOKUP(ROWS($AW$9:AW133),$AV$9:$AW$162,2,0),"") -> Change leg split leap - split leap | BD133: =IF(ISNUMBER(SEARCH($B$14,BE133)),MAX($BD$8:BD132)+1,0) -> 125 | BE133: Change leg split leap - split leap | BH133: =IFERROR(VLOOKUP(ROWS($BE$9:BE133),$BD$9:$BE$162,2,0),"") -> Change leg split leap - split leap | BL133: =IF(ISNUMBER(SEARCH($B$15,BM133)),MAX($BL$8:BL132)+1,0) -> 125 | BM133: Change leg split leap - split leap | BP133: =IFERROR(VLOOKUP(ROWS($BM$9:BM133),$BL$9:$BM$162,2,0),"") -> Change leg split leap - split leap | BT133: =IF(ISNUMBER(SEARCH($B$16,BU133)),MAX($BT$8:BT132)+1,0) -> 125 | BU133: Change leg split leap - split leap | BX133: =IFERROR(VLOOKUP(ROWS($BU$9:BU133),$BT$9:$BU$162,2,0),"") -> Change leg split leap - split leap | CB133: =IF(ISNUMBER(SEARCH($B$17,CC133)),MAX($CB$8:CB132)+1,0) -> 125 | CC133: Change leg split leap - split leap | CF133: =IFERROR(VLOOKUP(ROWS($CC$9:CC133),$CB$9:$CC$162,2,0),"") -> Change leg split leap - split leap | CJ133: =IF(ISNUMBER(SEARCH($B$18,CK133)),MAX($CJ$8:CJ132)+1,0) -> 125 | CK133: Change leg split leap - split leap | CN133: =IFERROR(VLOOKUP(ROWS($CK$9:CK133),$CJ$9:$CK$162,2,0),"") -> Change leg split leap - split leap
P134: =IF(ISNUMBER(SEARCH($B$9,Q134)),MAX($P$8:P133)+1,0) -> 126 | Q134: Split leap - W jump | T134: =IFERROR(VLOOKUP(ROWS($Q$9:Q134),$P$9:$Q$162,2,0),"") -> Split leap - W jump | X134: =IF(ISNUMBER(SEARCH($B$10,Y134)),MAX($X$8:X133)+1,0) -> 126 | Y134: Split leap - W jump | AB134: =IFERROR(VLOOKUP(ROWS($Y$9:Y134),$X$9:$Y$162,2,0),"") -> Split leap - W jump | AF134: =IF(ISNUMBER(SEARCH($B$11,AG134)),MAX($AF$8:AF133)+1,0) -> 126 | AG134: Split leap - W jump | AJ134: =IFERROR(VLOOKUP(ROWS($AG$9:AG134),$AF$9:$AG$162,2,0),"") -> Split leap - W jump | AN134: =IF(ISNUMBER(SEARCH($B$12,AO134)),MAX($AN$8:AN133)+1,0) -> 126 | AO134: Split leap - W jump | AR134: =IFERROR(VLOOKUP(ROWS($AO$9:AO134),$AN$9:$AO$162,2,0),"") -> Split leap - W jump | AV134: =IF(ISNUMBER(SEARCH($B$13,AW134)),MAX($AV$8:AV133)+1,0) -> 126 | AW134: Split leap - W jump | AZ134: =IFERROR(VLOOKUP(ROWS($AW$9:AW134),$AV$9:$AW$162,2,0),"") -> Split leap - W jump | BD134: =IF(ISNUMBER(SEARCH($B$14,BE134)),MAX($BD$8:BD133)+1,0) -> 126 | BE134: Split leap - W jump | BH134: =IFERROR(VLOOKUP(ROWS($BE$9:BE134),$BD$9:$BE$162,2,0),"") -> Split leap - W jump | BL134: =IF(ISNUMBER(SEARCH($B$15,BM134)),MAX($BL$8:BL133)+1,0) -> 126 | BM134: Split leap - W jump | BP134: =IFERROR(VLOOKUP(ROWS($BM$9:BM134),$BL$9:$BM$162,2,0),"") -> Split leap - W jump | BT134: =IF(ISNUMBER(SEARCH($B$16,BU134)),MAX($BT$8:BT133)+1,0) -> 126 | BU134: Split leap - W jump | BX134: =IFERROR(VLOOKUP(ROWS($BU$9:BU134),$BT$9:$BU$162,2,0),"") -> Split leap - W jump | CB134: =IF(ISNUMBER(SEARCH($B$17,CC134)),MAX($CB$8:CB133)+1,0) -> 126 | CC134: Split leap - W jump | CF134: =IFERROR(VLOOKUP(ROWS($CC$9:CC134),$CB$9:$CC$162,2,0),"") -> Split leap - W jump | CJ134: =IF(ISNUMBER(SEARCH($B$18,CK134)),MAX($CJ$8:CJ133)+1,0) -> 126 | CK134: Split leap - W jump | CN134: =IFERROR(VLOOKUP(ROWS($CK$9:CK134),$CJ$9:$CK$162,2,0),"") -> Split leap - W jump
P135: =IF(ISNUMBER(SEARCH($B$9,Q135)),MAX($P$8:P134)+1,0) -> 127 | Q135: Full turn jump - straddle jump | T135: =IFERROR(VLOOKUP(ROWS($Q$9:Q135),$P$9:$Q$162,2,0),"") -> Full turn jump - straddle jump | X135: =IF(ISNUMBER(SEARCH($B$10,Y135)),MAX($X$8:X134)+1,0) -> 127 | Y135: Full turn jump - straddle jump | AB135: =IFERROR(VLOOKUP(ROWS($Y$9:Y135),$X$9:$Y$162,2,0),"") -> Full turn jump - straddle jump | AF135: =IF(ISNUMBER(SEARCH($B$11,AG135)),MAX($AF$8:AF134)+1,0) -> 127 | AG135: Full turn jump - straddle jump | AJ135: =IFERROR(VLOOKUP(ROWS($AG$9:AG135),$AF$9:$AG$162,2,0),"") -> Full turn jump - straddle jump | AN135: =IF(ISNUMBER(SEARCH($B$12,AO135)),MAX($AN$8:AN134)+1,0) -> 127 | AO135: Full turn jump - straddle jump | AR135: =IFERROR(VLOOKUP(ROWS($AO$9:AO135),$AN$9:$AO$162,2,0),"") -> Full turn jump - straddle jump | AV135: =IF(ISNUMBER(SEARCH($B$13,AW135)),MAX($AV$8:AV134)+1,0) -> 127 | AW135: Full turn jump - straddle jump | AZ135: =IFERROR(VLOOKUP(ROWS($AW$9:AW135),$AV$9:$AW$162,2,0),"") -> Full turn jump - straddle jump | BD135: =IF(ISNUMBER(SEARCH($B$14,BE135)),MAX($BD$8:BD134)+1,0) -> 127 | BE135: Full turn jump - straddle jump | BH135: =IFERROR(VLOOKUP(ROWS($BE$9:BE135),$BD$9:$BE$162,2,0),"") -> Full turn jump - straddle jump | BL135: =IF(ISNUMBER(SEARCH($B$15,BM135)),MAX($BL$8:BL134)+1,0) -> 127 | BM135: Full turn jump - straddle jump | BP135: =IFERROR(VLOOKUP(ROWS($BM$9:BM135),$BL$9:$BM$162,2,0),"") -> Full turn jump - straddle jump | BT135: =IF(ISNUMBER(SEARCH($B$16,BU135)),MAX($BT$8:BT134)+1,0) -> 127 | BU135: Full turn jump - straddle jump | BX135: =IFERROR(VLOOKUP(ROWS($BU$9:BU135),$BT$9:$BU$162,2,0),"") -> Full turn jump - straddle jump | CB135: =IF(ISNUMBER(SEARCH($B$17,CC135)),MAX($CB$8:CB134)+1,0) -> 127 | CC135: Full turn jump - straddle jump | CF135: =IFERROR(VLOOKUP(ROWS($CC$9:CC135),$CB$9:$CC$162,2,0),"") -> Full turn jump - straddle jump | CJ135: =IF(ISNUMBER(SEARCH($B$18,CK135)),MAX($CJ$8:CJ134)+1,0) -> 127 | CK135: Full turn jump - straddle jump | CN135: =IFERROR(VLOOKUP(ROWS($CK$9:CK135),$CJ$9:$CK$162,2,0),"") -> Full turn jump - straddle jump
P136: =IF(ISNUMBER(SEARCH($B$9,Q136)),MAX($P$8:P135)+1,0) -> 128 | Q136: Jump 1/2 Turn to Prone | T136: =IFERROR(VLOOKUP(ROWS($Q$9:Q136),$P$9:$Q$162,2,0),"") -> Jump 1/2 Turn to Prone | X136: =IF(ISNUMBER(SEARCH($B$10,Y136)),MAX($X$8:X135)+1,0) -> 128 | Y136: Jump 1/2 Turn to Prone | AB136: =IFERROR(VLOOKUP(ROWS($Y$9:Y136),$X$9:$Y$162,2,0),"") -> Jump 1/2 Turn to Prone | AF136: =IF(ISNUMBER(SEARCH($B$11,AG136)),MAX($AF$8:AF135)+1,0) -> 128 | AG136: Jump 1/2 Turn to Prone | AJ136: =IFERROR(VLOOKUP(ROWS($AG$9:AG136),$AF$9:$AG$162,2,0),"") -> Jump 1/2 Turn to Prone | AN136: =IF(ISNUMBER(SEARCH($B$12,AO136)),MAX($AN$8:AN135)+1,0) -> 128 | AO136: Jump 1/2 Turn to Prone | AR136: =IFERROR(VLOOKUP(ROWS($AO$9:AO136),$AN$9:$AO$162,2,0),"") -> Jump 1/2 Turn to Prone | AV136: =IF(ISNUMBER(SEARCH($B$13,AW136)),MAX($AV$8:AV135)+1,0) -> 128 | AW136: Jump 1/2 Turn to Prone | AZ136: =IFERROR(VLOOKUP(ROWS($AW$9:AW136),$AV$9:$AW$162,2,0),"") -> Jump 1/2 Turn to Prone | BD136: =IF(ISNUMBER(SEARCH($B$14,BE136)),MAX($BD$8:BD135)+1,0) -> 128 | BE136: Jump 1/2 Turn to Prone | BH136: =IFERROR(VLOOKUP(ROWS($BE$9:BE136),$BD$9:$BE$162,2,0),"") -> Jump 1/2 Turn to Prone | BL136: =IF(ISNUMBER(SEARCH($B$15,BM136)),MAX($BL$8:BL135)+1,0) -> 128 | BM136: Jump 1/2 Turn to Prone | BP136: =IFERROR(VLOOKUP(ROWS($BM$9:BM136),$BL$9:$BM$162,2,0),"") -> Jump 1/2 Turn to Prone | BT136: =IF(ISNUMBER(SEARCH($B$16,BU136)),MAX($BT$8:BT135)+1,0) -> 128 | BU136: Jump 1/2 Turn to Prone | BX136: =IFERROR(VLOOKUP(ROWS($BU$9:BU136),$BT$9:$BU$162,2,0),"") -> Jump 1/2 Turn to Prone | CB136: =IF(ISNUMBER(SEARCH($B$17,CC136)),MAX($CB$8:CB135)+1,0) -> 128 | CC136: Jump 1/2 Turn to Prone | CF136: =IFERROR(VLOOKUP(ROWS($CC$9:CC136),$CB$9:$CC$162,2,0),"") -> Jump 1/2 Turn to Prone | CJ136: =IF(ISNUMBER(SEARCH($B$18,CK136)),MAX($CJ$8:CJ135)+1,0) -> 128 | CK136: Jump 1/2 Turn to Prone | CN136: =IFERROR(VLOOKUP(ROWS($CK$9:CK136),$CJ$9:$CK$162,2,0),"") -> Jump 1/2 Turn to Prone
P137: =IF(ISNUMBER(SEARCH($B$9,Q137)),MAX($P$8:P136)+1,0) -> 129 | Q137: Straddle jump Shushunova | T137: =IFERROR(VLOOKUP(ROWS($Q$9:Q137),$P$9:$Q$162,2,0),"") -> Straddle jump Shushunova | X137: =IF(ISNUMBER(SEARCH($B$10,Y137)),MAX($X$8:X136)+1,0) -> 129 | Y137: Straddle jump Shushunova | AB137: =IFERROR(VLOOKUP(ROWS($Y$9:Y137),$X$9:$Y$162,2,0),"") -> Straddle jump Shushunova | AF137: =IF(ISNUMBER(SEARCH($B$11,AG137)),MAX($AF$8:AF136)+1,0) -> 129 | AG137: Straddle jump Shushunova | AJ137: =IFERROR(VLOOKUP(ROWS($AG$9:AG137),$AF$9:$AG$162,2,0),"") -> Straddle jump Shushunova | AN137: =IF(ISNUMBER(SEARCH($B$12,AO137)),MAX($AN$8:AN136)+1,0) -> 129 | AO137: Straddle jump Shushunova | AR137: =IFERROR(VLOOKUP(ROWS($AO$9:AO137),$AN$9:$AO$162,2,0),"") -> Straddle jump Shushunova | AV137: =IF(ISNUMBER(SEARCH($B$13,AW137)),MAX($AV$8:AV136)+1,0) -> 129 | AW137: Straddle jump Shushunova | AZ137: =IFERROR(VLOOKUP(ROWS($AW$9:AW137),$AV$9:$AW$162,2,0),"") -> Straddle jump Shushunova | BD137: =IF(ISNUMBER(SEARCH($B$14,BE137)),MAX($BD$8:BD136)+1,0) -> 129 | BE137: Straddle jump Shushunova | BH137: =IFERROR(VLOOKUP(ROWS($BE$9:BE137),$BD$9:$BE$162,2,0),"") -> Straddle jump Shushunova | BL137: =IF(ISNUMBER(SEARCH($B$15,BM137)),MAX($BL$8:BL136)+1,0) -> 129 | BM137: Straddle jump Shushunova | BP137: =IFERROR(VLOOKUP(ROWS($BM$9:BM137),$BL$9:$BM$162,2,0),"") -> Straddle jump Shushunova | BT137: =IF(ISNUMBER(SEARCH($B$16,BU137)),MAX($BT$8:BT136)+1,0) -> 129 | BU137: Straddle jump Shushunova | BX137: =IFERROR(VLOOKUP(ROWS($BU$9:BU137),$BT$9:$BU$162,2,0),"") -> Straddle jump Shushunova | CB137: =IF(ISNUMBER(SEARCH($B$17,CC137)),MAX($CB$8:CB136)+1,0) -> 129 | CC137: Straddle jump Shushunova | CF137: =IFERROR(VLOOKUP(ROWS($CC$9:CC137),$CB$9:$CC$162,2,0),"") -> Straddle jump Shushunova | CJ137: =IF(ISNUMBER(SEARCH($B$18,CK137)),MAX($CJ$8:CJ136)+1,0) -> 129 | CK137: Straddle jump Shushunova | CN137: =IFERROR(VLOOKUP(ROWS($CK$9:CK137),$CJ$9:$CK$162,2,0),"") -> Straddle jump Shushunova
P138: =IF(ISNUMBER(SEARCH($B$9,Q138)),MAX($P$8:P137)+1,0) -> 130 | Q138: Straddle jump - pike jump | T138: =IFERROR(VLOOKUP(ROWS($Q$9:Q138),$P$9:$Q$162,2,0),"") -> Straddle jump - pike jump | X138: =IF(ISNUMBER(SEARCH($B$10,Y138)),MAX($X$8:X137)+1,0) -> 130 | Y138: Straddle jump - pike jump | AB138: =IFERROR(VLOOKUP(ROWS($Y$9:Y138),$X$9:$Y$162,2,0),"") -> Straddle jump - pike jump | AF138: =IF(ISNUMBER(SEARCH($B$11,AG138)),MAX($AF$8:AF137)+1,0) -> 130 | AG138: Straddle jump - pike jump | AJ138: =IFERROR(VLOOKUP(ROWS($AG$9:AG138),$AF$9:$AG$162,2,0),"") -> Straddle jump - pike jump | AN138: =IF(ISNUMBER(SEARCH($B$12,AO138)),MAX($AN$8:AN137)+1,0) -> 130 | AO138: Straddle jump - pike jump | AR138: =IFERROR(VLOOKUP(ROWS($AO$9:AO138),$AN$9:$AO$162,2,0),"") -> Straddle jump - pike jump | AV138: =IF(ISNUMBER(SEARCH($B$13,AW138)),MAX($AV$8:AV137)+1,0) -> 130 | AW138: Straddle jump - pike jump | AZ138: =IFERROR(VLOOKUP(ROWS($AW$9:AW138),$AV$9:$AW$162,2,0),"") -> Straddle jump - pike jump | BD138: =IF(ISNUMBER(SEARCH($B$14,BE138)),MAX($BD$8:BD137)+1,0) -> 130 | BE138: Straddle jump - pike jump | BH138: =IFERROR(VLOOKUP(ROWS($BE$9:BE138),$BD$9:$BE$162,2,0),"") -> Straddle jump - pike jump | BL138: =IF(ISNUMBER(SEARCH($B$15,BM138)),MAX($BL$8:BL137)+1,0) -> 130 | BM138: Straddle jump - pike jump | BP138: =IFERROR(VLOOKUP(ROWS($BM$9:BM138),$BL$9:$BM$162,2,0),"") -> Straddle jump - pike jump | BT138: =IF(ISNUMBER(SEARCH($B$16,BU138)),MAX($BT$8:BT137)+1,0) -> 130 | BU138: Straddle jump - pike jump | BX138: =IFERROR(VLOOKUP(ROWS($BU$9:BU138),$BT$9:$BU$162,2,0),"") -> Straddle jump - pike jump | CB138: =IF(ISNUMBER(SEARCH($B$17,CC138)),MAX($CB$8:CB137)+1,0) -> 130 | CC138: Straddle jump - pike jump | CF138: =IFERROR(VLOOKUP(ROWS($CC$9:CC138),$CB$9:$CC$162,2,0),"") -> Straddle jump - pike jump | CJ138: =IF(ISNUMBER(SEARCH($B$18,CK138)),MAX($CJ$8:CJ137)+1,0) -> 130 | CK138: Straddle jump - pike jump | CN138: =IFERROR(VLOOKUP(ROWS($CK$9:CK138),$CJ$9:$CK$162,2,0),"") -> Straddle jump - pike jump
P139: =IF(ISNUMBER(SEARCH($B$9,Q139)),MAX($P$8:P138)+1,0) -> 131 | Q139: Double spin | T139: =IFERROR(VLOOKUP(ROWS($Q$9:Q139),$P$9:$Q$162,2,0),"") -> Double spin | X139: =IF(ISNUMBER(SEARCH($B$10,Y139)),MAX($X$8:X138)+1,0) -> 131 | Y139: Double spin | AB139: =IFERROR(VLOOKUP(ROWS($Y$9:Y139),$X$9:$Y$162,2,0),"") -> Double spin | AF139: =IF(ISNUMBER(SEARCH($B$11,AG139)),MAX($AF$8:AF138)+1,0) -> 131 | AG139: Double spin | AJ139: =IFERROR(VLOOKUP(ROWS($AG$9:AG139),$AF$9:$AG$162,2,0),"") -> Double spin | AN139: =IF(ISNUMBER(SEARCH($B$12,AO139)),MAX($AN$8:AN138)+1,0) -> 131 | AO139: Double spin | AR139: =IFERROR(VLOOKUP(ROWS($AO$9:AO139),$AN$9:$AO$162,2,0),"") -> Double spin | AV139: =IF(ISNUMBER(SEARCH($B$13,AW139)),MAX($AV$8:AV138)+1,0) -> 131 | AW139: Double spin | AZ139: =IFERROR(VLOOKUP(ROWS($AW$9:AW139),$AV$9:$AW$162,2,0),"") -> Double spin | BD139: =IF(ISNUMBER(SEARCH($B$14,BE139)),MAX($BD$8:BD138)+1,0) -> 131 | BE139: Double spin | BH139: =IFERROR(VLOOKUP(ROWS($BE$9:BE139),$BD$9:$BE$162,2,0),"") -> Double spin | BL139: =IF(ISNUMBER(SEARCH($B$15,BM139)),MAX($BL$8:BL138)+1,0) -> 131 | BM139: Double spin | BP139: =IFERROR(VLOOKUP(ROWS($BM$9:BM139),$BL$9:$BM$162,2,0),"") -> Double spin | BT139: =IF(ISNUMBER(SEARCH($B$16,BU139)),MAX($BT$8:BT138)+1,0) -> 131 | BU139: Double spin | BX139: =IFERROR(VLOOKUP(ROWS($BU$9:BU139),$BT$9:$BU$162,2,0),"") -> Double spin | CB139: =IF(ISNUMBER(SEARCH($B$17,CC139)),MAX($CB$8:CB138)+1,0) -> 131 | CC139: Double spin | CF139: =IFERROR(VLOOKUP(ROWS($CC$9:CC139),$CB$9:$CC$162,2,0),"") -> Double spin | CJ139: =IF(ISNUMBER(SEARCH($B$18,CK139)),MAX($CJ$8:CJ138)+1,0) -> 131 | CK139: Double spin | CN139: =IFERROR(VLOOKUP(ROWS($CK$9:CK139),$CJ$9:$CK$162,2,0),"") -> Double spin
P140: =IF(ISNUMBER(SEARCH($B$9,Q140)),MAX($P$8:P139)+1,0) -> 132 | Q140: Full spin 1 leg extended, min 45 deg | T140: =IFERROR(VLOOKUP(ROWS($Q$9:Q140),$P$9:$Q$162,2,0),"") -> Full spin 1 leg extended, min 45 deg | X140: =IF(ISNUMBER(SEARCH($B$10,Y140)),MAX($X$8:X139)+1,0) -> 132 | Y140: Full spin 1 leg extended, min 45 deg | AB140: =IFERROR(VLOOKUP(ROWS($Y$9:Y140),$X$9:$Y$162,2,0),"") -> Full spin 1 leg extended, min 45 deg | AF140: =IF(ISNUMBER(SEARCH($B$11,AG140)),MAX($AF$8:AF139)+1,0) -> 132 | AG140: Full spin 1 leg extended, min 45 deg | AJ140: =IFERROR(VLOOKUP(ROWS($AG$9:AG140),$AF$9:$AG$162,2,0),"") -> Full spin 1 leg extended, min 45 deg | AN140: =IF(ISNUMBER(SEARCH($B$12,AO140)),MAX($AN$8:AN139)+1,0) -> 132 | AO140: Full spin 1 leg extended, min 45 deg | AR140: =IFERROR(VLOOKUP(ROWS($AO$9:AO140),$AN$9:$AO$162,2,0),"") -> Full spin 1 leg extended, min 45 deg | AV140: =IF(ISNUMBER(SEARCH($B$13,AW140)),MAX($AV$8:AV139)+1,0) -> 132 | AW140: Full spin 1 leg extended, min 45 deg | AZ140: =IFERROR(VLOOKUP(ROWS($AW$9:AW140),$AV$9:$AW$162,2,0),"") -> Full spin 1 leg extended, min 45 deg | BD140: =IF(ISNUMBER(SEARCH($B$14,BE140)),MAX($BD$8:BD139)+1,0) -> 132 | BE140: Full spin 1 leg extended, min 45 deg | BH140: =IFERROR(VLOOKUP(ROWS($BE$9:BE140),$BD$9:$BE$162,2,0),"") -> Full spin 1 leg extended, min 45 deg | BL140: =IF(ISNUMBER(SEARCH($B$15,BM140)),MAX($BL$8:BL139)+1,0) -> 132 | BM140: Full spin 1 leg extended, min 45 deg | BP140: =IFERROR(VLOOKUP(ROWS($BM$9:BM140),$BL$9:$BM$162,2,0),"") -> Full spin 1 leg extended, min 45 deg | BT140: =IF(ISNUMBER(SEARCH($B$16,BU140)),MAX($BT$8:BT139)+1,0) -> 132 | BU140: Full spin 1 leg extended, min 45 deg | BX140: =IFERROR(VLOOKUP(ROWS($BU$9:BU140),$BT$9:$BU$162,2,0),"") -> Full spin 1 leg extended, min 45 deg | CB140: =IF(ISNUMBER(SEARCH($B$17,CC140)),MAX($CB$8:CB139)+1,0) -> 132 | CC140: Full spin 1 leg extended, min 45 deg | CF140: =IFERROR(VLOOKUP(ROWS($CC$9:CC140),$CB$9:$CC$162,2,0),"") -> Full spin 1 leg extended, min 45 deg | CJ140: =IF(ISNUMBER(SEARCH($B$18,CK140)),MAX($CJ$8:CJ139)+1,0) -> 132 | CK140: Full spin 1 leg extended, min 45 deg | CN140: =IFERROR(VLOOKUP(ROWS($CK$9:CK140),$CJ$9:$CK$162,2,0),"") -> Full spin 1 leg extended, min 45 deg
P141: =IF(ISNUMBER(SEARCH($B$9,Q141)),MAX($P$8:P140)+1,0) -> 133 | Q141: From Splits position lift to H/stand | T141: =IFERROR(VLOOKUP(ROWS($Q$9:Q141),$P$9:$Q$162,2,0),"") -> From Splits position lift to H/stand | X141: =IF(ISNUMBER(SEARCH($B$10,Y141)),MAX($X$8:X140)+1,0) -> 133 | Y141: From Splits position lift to H/stand | AB141: =IFERROR(VLOOKUP(ROWS($Y$9:Y141),$X$9:$Y$162,2,0),"") -> From Splits position lift to H/stand | AF141: =IF(ISNUMBER(SEARCH($B$11,AG141)),MAX($AF$8:AF140)+1,0) -> 133 | AG141: From Splits position lift to H/stand | AJ141: =IFERROR(VLOOKUP(ROWS($AG$9:AG141),$AF$9:$AG$162,2,0),"") -> From Splits position lift to H/stand | AN141: =IF(ISNUMBER(SEARCH($B$12,AO141)),MAX($AN$8:AN140)+1,0) -> 133 | AO141: From Splits position lift to H/stand | AR141: =IFERROR(VLOOKUP(ROWS($AO$9:AO141),$AN$9:$AO$162,2,0),"") -> From Splits position lift to H/stand | AV141: =IF(ISNUMBER(SEARCH($B$13,AW141)),MAX($AV$8:AV140)+1,0) -> 133 | AW141: From Splits position lift to H/stand | AZ141: =IFERROR(VLOOKUP(ROWS($AW$9:AW141),$AV$9:$AW$162,2,0),"") -> From Splits position lift to H/stand | BD141: =IF(ISNUMBER(SEARCH($B$14,BE141)),MAX($BD$8:BD140)+1,0) -> 133 | BE141: From Splits position lift to H/stand | BH141: =IFERROR(VLOOKUP(ROWS($BE$9:BE141),$BD$9:$BE$162,2,0),"") -> From Splits position lift to H/stand | BL141: =IF(ISNUMBER(SEARCH($B$15,BM141)),MAX($BL$8:BL140)+1,0) -> 133 | BM141: From Splits position lift to H/stand | BP141: =IFERROR(VLOOKUP(ROWS($BM$9:BM141),$BL$9:$BM$162,2,0),"") -> From Splits position lift to H/stand | BT141: =IF(ISNUMBER(SEARCH($B$16,BU141)),MAX($BT$8:BT140)+1,0) -> 133 | BU141: From Splits position lift to H/stand | BX141: =IFERROR(VLOOKUP(ROWS($BU$9:BU141),$BT$9:$BU$162,2,0),"") -> From Splits position lift to H/stand | CB141: =IF(ISNUMBER(SEARCH($B$17,CC141)),MAX($CB$8:CB140)+1,0) -> 133 | CC141: From Splits position lift to H/stand | CF141: =IFERROR(VLOOKUP(ROWS($CC$9:CC141),$CB$9:$CC$162,2,0),"") -> From Splits position lift to H/stand | CJ141: =IF(ISNUMBER(SEARCH($B$18,CK141)),MAX($CJ$8:CJ140)+1,0) -> 133 | CK141: From Splits position lift to H/stand | CN141: =IFERROR(VLOOKUP(ROWS($CK$9:CK141),$CJ$9:$CK$162,2,0),"") -> From Splits position lift to H/stand
P142: =IF(ISNUMBER(SEARCH($B$9,Q142)),MAX($P$8:P141)+1,0) -> 134 | Q142: Full V ‘Russian’ lever | T142: =IFERROR(VLOOKUP(ROWS($Q$9:Q142),$P$9:$Q$162,2,0),"") -> Full V ‘Russian’ lever | X142: =IF(ISNUMBER(SEARCH($B$10,Y142)),MAX($X$8:X141)+1,0) -> 134 | Y142: Full V ‘Russian’ lever | AB142: =IFERROR(VLOOKUP(ROWS($Y$9:Y142),$X$9:$Y$162,2,0),"") -> Full V ‘Russian’ lever | AF142: =IF(ISNUMBER(SEARCH($B$11,AG142)),MAX($AF$8:AF141)+1,0) -> 134 | AG142: Full V ‘Russian’ lever | AJ142: =IFERROR(VLOOKUP(ROWS($AG$9:AG142),$AF$9:$AG$162,2,0),"") -> Full V ‘Russian’ lever | AN142: =IF(ISNUMBER(SEARCH($B$12,AO142)),MAX($AN$8:AN141)+1,0) -> 134 | AO142: Full V ‘Russian’ lever | AR142: =IFERROR(VLOOKUP(ROWS($AO$9:AO142),$AN$9:$AO$162,2,0),"") -> Full V ‘Russian’ lever | AV142: =IF(ISNUMBER(SEARCH($B$13,AW142)),MAX($AV$8:AV141)+1,0) -> 134 | AW142: Full V ‘Russian’ lever | AZ142: =IFERROR(VLOOKUP(ROWS($AW$9:AW142),$AV$9:$AW$162,2,0),"") -> Full V ‘Russian’ lever | BD142: =IF(ISNUMBER(SEARCH($B$14,BE142)),MAX($BD$8:BD141)+1,0) -> 134 | BE142: Full V ‘Russian’ lever | BH142: =IFERROR(VLOOKUP(ROWS($BE$9:BE142),$BD$9:$BE$162,2,0),"") -> Full V ‘Russian’ lever | BL142: =IF(ISNUMBER(SEARCH($B$15,BM142)),MAX($BL$8:BL141)+1,0) -> 134 | BM142: Full V ‘Russian’ lever | BP142: =IFERROR(VLOOKUP(ROWS($BM$9:BM142),$BL$9:$BM$162,2,0),"") -> Full V ‘Russian’ lever | BT142: =IF(ISNUMBER(SEARCH($B$16,BU142)),MAX($BT$8:BT141)+1,0) -> 134 | BU142: Full V ‘Russian’ lever | BX142: =IFERROR(VLOOKUP(ROWS($BU$9:BU142),$BT$9:$BU$162,2,0),"") -> Full V ‘Russian’ lever | CB142: =IF(ISNUMBER(SEARCH($B$17,CC142)),MAX($CB$8:CB141)+1,0) -> 134 | CC142: Full V ‘Russian’ lever | CF142: =IFERROR(VLOOKUP(ROWS($CC$9:CC142),$CB$9:$CC$162,2,0),"") -> Full V ‘Russian’ lever | CJ142: =IF(ISNUMBER(SEARCH($B$18,CK142)),MAX($CJ$8:CJ141)+1,0) -> 134 | CK142: Full V ‘Russian’ lever | CN142: =IFERROR(VLOOKUP(ROWS($CK$9:CK142),$CJ$9:$CK$162,2,0),"") -> Full V ‘Russian’ lever
P143: =IF(ISNUMBER(SEARCH($B$9,Q143)),MAX($P$8:P142)+1,0) -> 135 | Q143: Tucked top planchě (held) | T143: =IFERROR(VLOOKUP(ROWS($Q$9:Q143),$P$9:$Q$162,2,0),"") -> Tucked top planchě (held) | X143: =IF(ISNUMBER(SEARCH($B$10,Y143)),MAX($X$8:X142)+1,0) -> 135 | Y143: Tucked top planchě (held) | AB143: =IFERROR(VLOOKUP(ROWS($Y$9:Y143),$X$9:$Y$162,2,0),"") -> Tucked top planchě (held) | AF143: =IF(ISNUMBER(SEARCH($B$11,AG143)),MAX($AF$8:AF142)+1,0) -> 135 | AG143: Tucked top planchě (held) | AJ143: =IFERROR(VLOOKUP(ROWS($AG$9:AG143),$AF$9:$AG$162,2,0),"") -> Tucked top planchě (held) | AN143: =IF(ISNUMBER(SEARCH($B$12,AO143)),MAX($AN$8:AN142)+1,0) -> 135 | AO143: Tucked top planchě (held) | AR143: =IFERROR(VLOOKUP(ROWS($AO$9:AO143),$AN$9:$AO$162,2,0),"") -> Tucked top planchě (held) | AV143: =IF(ISNUMBER(SEARCH($B$13,AW143)),MAX($AV$8:AV142)+1,0) -> 135 | AW143: Tucked top planchě (held) | AZ143: =IFERROR(VLOOKUP(ROWS($AW$9:AW143),$AV$9:$AW$162,2,0),"") -> Tucked top planchě (held) | BD143: =IF(ISNUMBER(SEARCH($B$14,BE143)),MAX($BD$8:BD142)+1,0) -> 135 | BE143: Tucked top planchě (held) | BH143: =IFERROR(VLOOKUP(ROWS($BE$9:BE143),$BD$9:$BE$162,2,0),"") -> Tucked top planchě (held) | BL143: =IF(ISNUMBER(SEARCH($B$15,BM143)),MAX($BL$8:BL142)+1,0) -> 135 | BM143: Tucked top planchě (held) | BP143: =IFERROR(VLOOKUP(ROWS($BM$9:BM143),$BL$9:$BM$162,2,0),"") -> Tucked top planchě (held) | BT143: =IF(ISNUMBER(SEARCH($B$16,BU143)),MAX($BT$8:BT142)+1,0) -> 135 | BU143: Tucked top planchě (held) | BX143: =IFERROR(VLOOKUP(ROWS($BU$9:BU143),$BT$9:$BU$162,2,0),"") -> Tucked top planchě (held) | CB143: =IF(ISNUMBER(SEARCH($B$17,CC143)),MAX($CB$8:CB142)+1,0) -> 135 | CC143: Tucked top planchě (held) | CF143: =IFERROR(VLOOKUP(ROWS($CC$9:CC143),$CB$9:$CC$162,2,0),"") -> Tucked top planchě (held) | CJ143: =IF(ISNUMBER(SEARCH($B$18,CK143)),MAX($CJ$8:CJ142)+1,0) -> 135 | CK143: Tucked top planchě (held) | CN143: =IFERROR(VLOOKUP(ROWS($CK$9:CK143),$CJ$9:$CK$162,2,0),"") -> Tucked top planchě (held)
P144: =IF(ISNUMBER(SEARCH($B$9,Q144)),MAX($P$8:P143)+1,0) -> 136 | Q144: Straddle lever to handstand | T144: =IFERROR(VLOOKUP(ROWS($Q$9:Q144),$P$9:$Q$162,2,0),"") -> Straddle lever to handstand | X144: =IF(ISNUMBER(SEARCH($B$10,Y144)),MAX($X$8:X143)+1,0) -> 136 | Y144: Straddle lever to handstand | AB144: =IFERROR(VLOOKUP(ROWS($Y$9:Y144),$X$9:$Y$162,2,0),"") -> Straddle lever to handstand | AF144: =IF(ISNUMBER(SEARCH($B$11,AG144)),MAX($AF$8:AF143)+1,0) -> 136 | AG144: Straddle lever to handstand | AJ144: =IFERROR(VLOOKUP(ROWS($AG$9:AG144),$AF$9:$AG$162,2,0),"") -> Straddle lever to handstand | AN144: =IF(ISNUMBER(SEARCH($B$12,AO144)),MAX($AN$8:AN143)+1,0) -> 136 | AO144: Straddle lever to handstand | AR144: =IFERROR(VLOOKUP(ROWS($AO$9:AO144),$AN$9:$AO$162,2,0),"") -> Straddle lever to handstand | AV144: =IF(ISNUMBER(SEARCH($B$13,AW144)),MAX($AV$8:AV143)+1,0) -> 136 | AW144: Straddle lever to handstand | AZ144: =IFERROR(VLOOKUP(ROWS($AW$9:AW144),$AV$9:$AW$162,2,0),"") -> Straddle lever to handstand | BD144: =IF(ISNUMBER(SEARCH($B$14,BE144)),MAX($BD$8:BD143)+1,0) -> 136 | BE144: Straddle lever to handstand | BH144: =IFERROR(VLOOKUP(ROWS($BE$9:BE144),$BD$9:$BE$162,2,0),"") -> Straddle lever to handstand | BL144: =IF(ISNUMBER(SEARCH($B$15,BM144)),MAX($BL$8:BL143)+1,0) -> 136 | BM144: Straddle lever to handstand | BP144: =IFERROR(VLOOKUP(ROWS($BM$9:BM144),$BL$9:$BM$162,2,0),"") -> Straddle lever to handstand | BT144: =IF(ISNUMBER(SEARCH($B$16,BU144)),MAX($BT$8:BT143)+1,0) -> 136 | BU144: Straddle lever to handstand | BX144: =IFERROR(VLOOKUP(ROWS($BU$9:BU144),$BT$9:$BU$162,2,0),"") -> Straddle lever to handstand | CB144: =IF(ISNUMBER(SEARCH($B$17,CC144)),MAX($CB$8:CB143)+1,0) -> 136 | CC144: Straddle lever to handstand | CF144: =IFERROR(VLOOKUP(ROWS($CC$9:CC144),$CB$9:$CC$162,2,0),"") -> Straddle lever to handstand | CJ144: =IF(ISNUMBER(SEARCH($B$18,CK144)),MAX($CJ$8:CJ143)+1,0) -> 136 | CK144: Straddle lever to handstand | CN144: =IFERROR(VLOOKUP(ROWS($CK$9:CK144),$CJ$9:$CK$162,2,0),"") -> Straddle lever to handstand
P145: =IF(ISNUMBER(SEARCH($B$9,Q145)),MAX($P$8:P144)+1,0) -> 137 | Q145: Straddle lever to h/stand full turn | T145: =IFERROR(VLOOKUP(ROWS($Q$9:Q145),$P$9:$Q$162,2,0),"") -> Straddle lever to h/stand full turn | X145: =IF(ISNUMBER(SEARCH($B$10,Y145)),MAX($X$8:X144)+1,0) -> 137 | Y145: Straddle lever to h/stand full turn | AB145: =IFERROR(VLOOKUP(ROWS($Y$9:Y145),$X$9:$Y$162,2,0),"") -> Straddle lever to h/stand full turn | AF145: =IF(ISNUMBER(SEARCH($B$11,AG145)),MAX($AF$8:AF144)+1,0) -> 137 | AG145: Straddle lever to h/stand full turn | AJ145: =IFERROR(VLOOKUP(ROWS($AG$9:AG145),$AF$9:$AG$162,2,0),"") -> Straddle lever to h/stand full turn | AN145: =IF(ISNUMBER(SEARCH($B$12,AO145)),MAX($AN$8:AN144)+1,0) -> 137 | AO145: Straddle lever to h/stand full turn | AR145: =IFERROR(VLOOKUP(ROWS($AO$9:AO145),$AN$9:$AO$162,2,0),"") -> Straddle lever to h/stand full turn | AV145: =IF(ISNUMBER(SEARCH($B$13,AW145)),MAX($AV$8:AV144)+1,0) -> 137 | AW145: Straddle lever to h/stand full turn | AZ145: =IFERROR(VLOOKUP(ROWS($AW$9:AW145),$AV$9:$AW$162,2,0),"") -> Straddle lever to h/stand full turn | BD145: =IF(ISNUMBER(SEARCH($B$14,BE145)),MAX($BD$8:BD144)+1,0) -> 137 | BE145: Straddle lever to h/stand full turn | BH145: =IFERROR(VLOOKUP(ROWS($BE$9:BE145),$BD$9:$BE$162,2,0),"") -> Straddle lever to h/stand full turn | BL145: =IF(ISNUMBER(SEARCH($B$15,BM145)),MAX($BL$8:BL144)+1,0) -> 137 | BM145: Straddle lever to h/stand full turn | BP145: =IFERROR(VLOOKUP(ROWS($BM$9:BM145),$BL$9:$BM$162,2,0),"") -> Straddle lever to h/stand full turn | BT145: =IF(ISNUMBER(SEARCH($B$16,BU145)),MAX($BT$8:BT144)+1,0) -> 137 | BU145: Straddle lever to h/stand full turn | BX145: =IFERROR(VLOOKUP(ROWS($BU$9:BU145),$BT$9:$BU$162,2,0),"") -> Straddle lever to h/stand full turn | CB145: =IF(ISNUMBER(SEARCH($B$17,CC145)),MAX($CB$8:CB144)+1,0) -> 137 | CC145: Straddle lever to h/stand full turn | CF145: =IFERROR(VLOOKUP(ROWS($CC$9:CC145),$CB$9:$CC$162,2,0),"") -> Straddle lever to h/stand full turn | CJ145: =IF(ISNUMBER(SEARCH($B$18,CK145)),MAX($CJ$8:CJ144)+1,0) -> 137 | CK145: Straddle lever to h/stand full turn | CN145: =IFERROR(VLOOKUP(ROWS($CK$9:CK145),$CJ$9:$CK$162,2,0),"") -> Straddle lever to h/stand full turn
P146: =IF(ISNUMBER(SEARCH($B$9,Q146)),MAX($P$8:P145)+1,0) -> 138 | Q146: Chest Roll to Handstand | T146: =IFERROR(VLOOKUP(ROWS($Q$9:Q146),$P$9:$Q$162,2,0),"") -> Chest Roll to Handstand | X146: =IF(ISNUMBER(SEARCH($B$10,Y146)),MAX($X$8:X145)+1,0) -> 138 | Y146: Chest Roll to Handstand | AB146: =IFERROR(VLOOKUP(ROWS($Y$9:Y146),$X$9:$Y$162,2,0),"") -> Chest Roll to Handstand | AF146: =IF(ISNUMBER(SEARCH($B$11,AG146)),MAX($AF$8:AF145)+1,0) -> 138 | AG146: Chest Roll to Handstand | AJ146: =IFERROR(VLOOKUP(ROWS($AG$9:AG146),$AF$9:$AG$162,2,0),"") -> Chest Roll to Handstand | AN146: =IF(ISNUMBER(SEARCH($B$12,AO146)),MAX($AN$8:AN145)+1,0) -> 138 | AO146: Chest Roll to Handstand | AR146: =IFERROR(VLOOKUP(ROWS($AO$9:AO146),$AN$9:$AO$162,2,0),"") -> Chest Roll to Handstand | AV146: =IF(ISNUMBER(SEARCH($B$13,AW146)),MAX($AV$8:AV145)+1,0) -> 138 | AW146: Chest Roll to Handstand | AZ146: =IFERROR(VLOOKUP(ROWS($AW$9:AW146),$AV$9:$AW$162,2,0),"") -> Chest Roll to Handstand | BD146: =IF(ISNUMBER(SEARCH($B$14,BE146)),MAX($BD$8:BD145)+1,0) -> 138 | BE146: Chest Roll to Handstand | BH146: =IFERROR(VLOOKUP(ROWS($BE$9:BE146),$BD$9:$BE$162,2,0),"") -> Chest Roll to Handstand | BL146: =IF(ISNUMBER(SEARCH($B$15,BM146)),MAX($BL$8:BL145)+1,0) -> 138 | BM146: Chest Roll to Handstand | BP146: =IFERROR(VLOOKUP(ROWS($BM$9:BM146),$BL$9:$BM$162,2,0),"") -> Chest Roll to Handstand | BT146: =IF(ISNUMBER(SEARCH($B$16,BU146)),MAX($BT$8:BT145)+1,0) -> 138 | BU146: Chest Roll to Handstand | BX146: =IFERROR(VLOOKUP(ROWS($BU$9:BU146),$BT$9:$BU$162,2,0),"") -> Chest Roll to Handstand | CB146: =IF(ISNUMBER(SEARCH($B$17,CC146)),MAX($CB$8:CB145)+1,0) -> 138 | CC146: Chest Roll to Handstand | CF146: =IFERROR(VLOOKUP(ROWS($CC$9:CC146),$CB$9:$CC$162,2,0),"") -> Chest Roll to Handstand | CJ146: =IF(ISNUMBER(SEARCH($B$18,CK146)),MAX($CJ$8:CJ145)+1,0) -> 138 | CK146: Chest Roll to Handstand | CN146: =IFERROR(VLOOKUP(ROWS($CK$9:CK146),$CJ$9:$CK$162,2,0),"") -> Chest Roll to Handstand
P147: =IF(ISNUMBER(SEARCH($B$9,Q147)),MAX($P$8:P146)+1,0) -> 139 | Q147: B Roll to h/stand, 1/2 or full turn | T147: =IFERROR(VLOOKUP(ROWS($Q$9:Q147),$P$9:$Q$162,2,0),"") -> B Roll to h/stand, 1/2 or full turn | X147: =IF(ISNUMBER(SEARCH($B$10,Y147)),MAX($X$8:X146)+1,0) -> 139 | Y147: B Roll to h/stand, 1/2 or full turn | AB147: =IFERROR(VLOOKUP(ROWS($Y$9:Y147),$X$9:$Y$162,2,0),"") -> B Roll to h/stand, 1/2 or full turn | AF147: =IF(ISNUMBER(SEARCH($B$11,AG147)),MAX($AF$8:AF146)+1,0) -> 139 | AG147: B Roll to h/stand, 1/2 or full turn | AJ147: =IFERROR(VLOOKUP(ROWS($AG$9:AG147),$AF$9:$AG$162,2,0),"") -> B Roll to h/stand, 1/2 or full turn | AN147: =IF(ISNUMBER(SEARCH($B$12,AO147)),MAX($AN$8:AN146)+1,0) -> 139 | AO147: B Roll to h/stand, 1/2 or full turn | AR147: =IFERROR(VLOOKUP(ROWS($AO$9:AO147),$AN$9:$AO$162,2,0),"") -> B Roll to h/stand, 1/2 or full turn | AV147: =IF(ISNUMBER(SEARCH($B$13,AW147)),MAX($AV$8:AV146)+1,0) -> 139 | AW147: B Roll to h/stand, 1/2 or full turn | AZ147: =IFERROR(VLOOKUP(ROWS($AW$9:AW147),$AV$9:$AW$162,2,0),"") -> B Roll to h/stand, 1/2 or full turn | BD147: =IF(ISNUMBER(SEARCH($B$14,BE147)),MAX($BD$8:BD146)+1,0) -> 139 | BE147: B Roll to h/stand, 1/2 or full turn | BH147: =IFERROR(VLOOKUP(ROWS($BE$9:BE147),$BD$9:$BE$162,2,0),"") -> B Roll to h/stand, 1/2 or full turn | BL147: =IF(ISNUMBER(SEARCH($B$15,BM147)),MAX($BL$8:BL146)+1,0) -> 139 | BM147: B Roll to h/stand, 1/2 or full turn | BP147: =IFERROR(VLOOKUP(ROWS($BM$9:BM147),$BL$9:$BM$162,2,0),"") -> B Roll to h/stand, 1/2 or full turn | BT147: =IF(ISNUMBER(SEARCH($B$16,BU147)),MAX($BT$8:BT146)+1,0) -> 139 | BU147: B Roll to h/stand, 1/2 or full turn | BX147: =IFERROR(VLOOKUP(ROWS($BU$9:BU147),$BT$9:$BU$162,2,0),"") -> B Roll to h/stand, 1/2 or full turn | CB147: =IF(ISNUMBER(SEARCH($B$17,CC147)),MAX($CB$8:CB146)+1,0) -> 139 | CC147: B Roll to h/stand, 1/2 or full turn | CF147: =IFERROR(VLOOKUP(ROWS($CC$9:CC147),$CB$9:$CC$162,2,0),"") -> B Roll to h/stand, 1/2 or full turn | CJ147: =IF(ISNUMBER(SEARCH($B$18,CK147)),MAX($CJ$8:CJ146)+1,0) -> 139 | CK147: B Roll to h/stand, 1/2 or full turn | CN147: =IFERROR(VLOOKUP(ROWS($CK$9:CK147),$CJ$9:$CK$162,2,0),"") -> B Roll to h/stand, 1/2 or full turn
P148: =IF(ISNUMBER(SEARCH($B$9,Q148)),MAX($P$8:P147)+1,0) -> 140 | Q148: Handstand double pirouette | T148: =IFERROR(VLOOKUP(ROWS($Q$9:Q148),$P$9:$Q$162,2,0),"") -> Handstand double pirouette | X148: =IF(ISNUMBER(SEARCH($B$10,Y148)),MAX($X$8:X147)+1,0) -> 140 | Y148: Handstand double pirouette | AB148: =IFERROR(VLOOKUP(ROWS($Y$9:Y148),$X$9:$Y$162,2,0),"") -> Handstand double pirouette | AF148: =IF(ISNUMBER(SEARCH($B$11,AG148)),MAX($AF$8:AF147)+1,0) -> 140 | AG148: Handstand double pirouette | AJ148: =IFERROR(VLOOKUP(ROWS($AG$9:AG148),$AF$9:$AG$162,2,0),"") -> Handstand double pirouette | AN148: =IF(ISNUMBER(SEARCH($B$12,AO148)),MAX($AN$8:AN147)+1,0) -> 140 | AO148: Handstand double pirouette | AR148: =IFERROR(VLOOKUP(ROWS($AO$9:AO148),$AN$9:$AO$162,2,0),"") -> Handstand double pirouette | AV148: =IF(ISNUMBER(SEARCH($B$13,AW148)),MAX($AV$8:AV147)+1,0) -> 140 | AW148: Handstand double pirouette | AZ148: =IFERROR(VLOOKUP(ROWS($AW$9:AW148),$AV$9:$AW$162,2,0),"") -> Handstand double pirouette | BD148: =IF(ISNUMBER(SEARCH($B$14,BE148)),MAX($BD$8:BD147)+1,0) -> 140 | BE148: Handstand double pirouette | BH148: =IFERROR(VLOOKUP(ROWS($BE$9:BE148),$BD$9:$BE$162,2,0),"") -> Handstand double pirouette | BL148: =IF(ISNUMBER(SEARCH($B$15,BM148)),MAX($BL$8:BL147)+1,0) -> 140 | BM148: Handstand double pirouette | BP148: =IFERROR(VLOOKUP(ROWS($BM$9:BM148),$BL$9:$BM$162,2,0),"") -> Handstand double pirouette | BT148: =IF(ISNUMBER(SEARCH($B$16,BU148)),MAX($BT$8:BT147)+1,0) -> 140 | BU148: Handstand double pirouette | BX148: =IFERROR(VLOOKUP(ROWS($BU$9:BU148),$BT$9:$BU$162,2,0),"") -> Handstand double pirouette | CB148: =IF(ISNUMBER(SEARCH($B$17,CC148)),MAX($CB$8:CB147)+1,0) -> 140 | CC148: Handstand double pirouette | CF148: =IFERROR(VLOOKUP(ROWS($CC$9:CC148),$CB$9:$CC$162,2,0),"") -> Handstand double pirouette | CJ148: =IF(ISNUMBER(SEARCH($B$18,CK148)),MAX($CJ$8:CJ147)+1,0) -> 140 | CK148: Handstand double pirouette | CN148: =IFERROR(VLOOKUP(ROWS($CK$9:CK148),$CJ$9:$CK$162,2,0),"") -> Handstand double pirouette
P149: =IF(ISNUMBER(SEARCH($B$9,Q149)),MAX($P$8:P148)+1,0) -> 141 | Q149: Double Leg Circle | T149: =IFERROR(VLOOKUP(ROWS($Q$9:Q149),$P$9:$Q$162,2,0),"") -> Double Leg Circle | X149: =IF(ISNUMBER(SEARCH($B$10,Y149)),MAX($X$8:X148)+1,0) -> 141 | Y149: Double Leg Circle | AB149: =IFERROR(VLOOKUP(ROWS($Y$9:Y149),$X$9:$Y$162,2,0),"") -> Double Leg Circle | AF149: =IF(ISNUMBER(SEARCH($B$11,AG149)),MAX($AF$8:AF148)+1,0) -> 141 | AG149: Double Leg Circle | AJ149: =IFERROR(VLOOKUP(ROWS($AG$9:AG149),$AF$9:$AG$162,2,0),"") -> Double Leg Circle | AN149: =IF(ISNUMBER(SEARCH($B$12,AO149)),MAX($AN$8:AN148)+1,0) -> 141 | AO149: Double Leg Circle | AR149: =IFERROR(VLOOKUP(ROWS($AO$9:AO149),$AN$9:$AO$162,2,0),"") -> Double Leg Circle | AV149: =IF(ISNUMBER(SEARCH($B$13,AW149)),MAX($AV$8:AV148)+1,0) -> 141 | AW149: Double Leg Circle | AZ149: =IFERROR(VLOOKUP(ROWS($AW$9:AW149),$AV$9:$AW$162,2,0),"") -> Double Leg Circle | BD149: =IF(ISNUMBER(SEARCH($B$14,BE149)),MAX($BD$8:BD148)+1,0) -> 141 | BE149: Double Leg Circle | BH149: =IFERROR(VLOOKUP(ROWS($BE$9:BE149),$BD$9:$BE$162,2,0),"") -> Double Leg Circle | BL149: =IF(ISNUMBER(SEARCH($B$15,BM149)),MAX($BL$8:BL148)+1,0) -> 141 | BM149: Double Leg Circle | BP149: =IFERROR(VLOOKUP(ROWS($BM$9:BM149),$BL$9:$BM$162,2,0),"") -> Double Leg Circle | BT149: =IF(ISNUMBER(SEARCH($B$16,BU149)),MAX($BT$8:BT148)+1,0) -> 141 | BU149: Double Leg Circle | BX149: =IFERROR(VLOOKUP(ROWS($BU$9:BU149),$BT$9:$BU$162,2,0),"") -> Double Leg Circle | CB149: =IF(ISNUMBER(SEARCH($B$17,CC149)),MAX($CB$8:CB148)+1,0) -> 141 | CC149: Double Leg Circle | CF149: =IFERROR(VLOOKUP(ROWS($CC$9:CC149),$CB$9:$CC$162,2,0),"") -> Double Leg Circle | CJ149: =IF(ISNUMBER(SEARCH($B$18,CK149)),MAX($CJ$8:CJ148)+1,0) -> 141 | CK149: Double Leg Circle | CN149: =IFERROR(VLOOKUP(ROWS($CK$9:CK149),$CJ$9:$CK$162,2,0),"") -> Double Leg Circle
P150: =IF(ISNUMBER(SEARCH($B$9,Q150)),MAX($P$8:P149)+1,0) -> 142 | Q150: Valdez | T150: =IFERROR(VLOOKUP(ROWS($Q$9:Q150),$P$9:$Q$162,2,0),"") -> Valdez | X150: =IF(ISNUMBER(SEARCH($B$10,Y150)),MAX($X$8:X149)+1,0) -> 142 | Y150: Valdez | AB150: =IFERROR(VLOOKUP(ROWS($Y$9:Y150),$X$9:$Y$162,2,0),"") -> Valdez | AF150: =IF(ISNUMBER(SEARCH($B$11,AG150)),MAX($AF$8:AF149)+1,0) -> 142 | AG150: Valdez | AJ150: =IFERROR(VLOOKUP(ROWS($AG$9:AG150),$AF$9:$AG$162,2,0),"") -> Valdez | AN150: =IF(ISNUMBER(SEARCH($B$12,AO150)),MAX($AN$8:AN149)+1,0) -> 142 | AO150: Valdez | AR150: =IFERROR(VLOOKUP(ROWS($AO$9:AO150),$AN$9:$AO$162,2,0),"") -> Valdez | AV150: =IF(ISNUMBER(SEARCH($B$13,AW150)),MAX($AV$8:AV149)+1,0) -> 142 | AW150: Valdez | AZ150: =IFERROR(VLOOKUP(ROWS($AW$9:AW150),$AV$9:$AW$162,2,0),"") -> Valdez | BD150: =IF(ISNUMBER(SEARCH($B$14,BE150)),MAX($BD$8:BD149)+1,0) -> 142 | BE150: Valdez | BH150: =IFERROR(VLOOKUP(ROWS($BE$9:BE150),$BD$9:$BE$162,2,0),"") -> Valdez | BL150: =IF(ISNUMBER(SEARCH($B$15,BM150)),MAX($BL$8:BL149)+1,0) -> 142 | BM150: Valdez | BP150: =IFERROR(VLOOKUP(ROWS($BM$9:BM150),$BL$9:$BM$162,2,0),"") -> Valdez | BT150: =IF(ISNUMBER(SEARCH($B$16,BU150)),MAX($BT$8:BT149)+1,0) -> 142 | BU150: Valdez | BX150: =IFERROR(VLOOKUP(ROWS($BU$9:BU150),$BT$9:$BU$162,2,0),"") -> Valdez | CB150: =IF(ISNUMBER(SEARCH($B$17,CC150)),MAX($CB$8:CB149)+1,0) -> 142 | CC150: Valdez | CF150: =IFERROR(VLOOKUP(ROWS($CC$9:CC150),$CB$9:$CC$162,2,0),"") -> Valdez | CJ150: =IF(ISNUMBER(SEARCH($B$18,CK150)),MAX($CJ$8:CJ149)+1,0) -> 142 | CK150: Valdez | CN150: =IFERROR(VLOOKUP(ROWS($CK$9:CK150),$CJ$9:$CK$162,2,0),"") -> Valdez
P151: =IF(ISNUMBER(SEARCH($B$9,Q151)),MAX($P$8:P150)+1,0) -> 143 | Q151: Flyspring Front Salto | T151: =IFERROR(VLOOKUP(ROWS($Q$9:Q151),$P$9:$Q$162,2,0),"") -> Flyspring Front Salto | X151: =IF(ISNUMBER(SEARCH($B$10,Y151)),MAX($X$8:X150)+1,0) -> 143 | Y151: Flyspring Front Salto | AB151: =IFERROR(VLOOKUP(ROWS($Y$9:Y151),$X$9:$Y$162,2,0),"") -> Flyspring Front Salto | AF151: =IF(ISNUMBER(SEARCH($B$11,AG151)),MAX($AF$8:AF150)+1,0) -> 143 | AG151: Flyspring Front Salto | AJ151: =IFERROR(VLOOKUP(ROWS($AG$9:AG151),$AF$9:$AG$162,2,0),"") -> Flyspring Front Salto | AN151: =IF(ISNUMBER(SEARCH($B$12,AO151)),MAX($AN$8:AN150)+1,0) -> 143 | AO151: Flyspring Front Salto | AR151: =IFERROR(VLOOKUP(ROWS($AO$9:AO151),$AN$9:$AO$162,2,0),"") -> Flyspring Front Salto | AV151: =IF(ISNUMBER(SEARCH($B$13,AW151)),MAX($AV$8:AV150)+1,0) -> 143 | AW151: Flyspring Front Salto | AZ151: =IFERROR(VLOOKUP(ROWS($AW$9:AW151),$AV$9:$AW$162,2,0),"") -> Flyspring Front Salto | BD151: =IF(ISNUMBER(SEARCH($B$14,BE151)),MAX($BD$8:BD150)+1,0) -> 143 | BE151: Flyspring Front Salto | BH151: =IFERROR(VLOOKUP(ROWS($BE$9:BE151),$BD$9:$BE$162,2,0),"") -> Flyspring Front Salto | BL151: =IF(ISNUMBER(SEARCH($B$15,BM151)),MAX($BL$8:BL150)+1,0) -> 143 | BM151: Flyspring Front Salto | BP151: =IFERROR(VLOOKUP(ROWS($BM$9:BM151),$BL$9:$BM$162,2,0),"") -> Flyspring Front Salto | BT151: =IF(ISNUMBER(SEARCH($B$16,BU151)),MAX($BT$8:BT150)+1,0) -> 143 | BU151: Flyspring Front Salto | BX151: =IFERROR(VLOOKUP(ROWS($BU$9:BU151),$BT$9:$BU$162,2,0),"") -> Flyspring Front Salto | CB151: =IF(ISNUMBER(SEARCH($B$17,CC151)),MAX($CB$8:CB150)+1,0) -> 143 | CC151: Flyspring Front Salto | CF151: =IFERROR(VLOOKUP(ROWS($CC$9:CC151),$CB$9:$CC$162,2,0),"") -> Flyspring Front Salto | CJ151: =IF(ISNUMBER(SEARCH($B$18,CK151)),MAX($CJ$8:CJ150)+1,0) -> 143 | CK151: Flyspring Front Salto | CN151: =IFERROR(VLOOKUP(ROWS($CK$9:CK151),$CJ$9:$CK$162,2,0),"") -> Flyspring Front Salto
P152: =IF(ISNUMBER(SEARCH($B$9,Q152)),MAX($P$8:P151)+1,0) -> 144 | Q152: Dive Forward Roll (with flight) | T152: =IFERROR(VLOOKUP(ROWS($Q$9:Q152),$P$9:$Q$162,2,0),"") -> Dive Forward Roll (with flight) | X152: =IF(ISNUMBER(SEARCH($B$10,Y152)),MAX($X$8:X151)+1,0) -> 144 | Y152: Dive Forward Roll (with flight) | AB152: =IFERROR(VLOOKUP(ROWS($Y$9:Y152),$X$9:$Y$162,2,0),"") -> Dive Forward Roll (with flight) | AF152: =IF(ISNUMBER(SEARCH($B$11,AG152)),MAX($AF$8:AF151)+1,0) -> 144 | AG152: Dive Forward Roll (with flight) | AJ152: =IFERROR(VLOOKUP(ROWS($AG$9:AG152),$AF$9:$AG$162,2,0),"") -> Dive Forward Roll (with flight) | AN152: =IF(ISNUMBER(SEARCH($B$12,AO152)),MAX($AN$8:AN151)+1,0) -> 144 | AO152: Dive Forward Roll (with flight) | AR152: =IFERROR(VLOOKUP(ROWS($AO$9:AO152),$AN$9:$AO$162,2,0),"") -> Dive Forward Roll (with flight) | AV152: =IF(ISNUMBER(SEARCH($B$13,AW152)),MAX($AV$8:AV151)+1,0) -> 144 | AW152: Dive Forward Roll (with flight) | AZ152: =IFERROR(VLOOKUP(ROWS($AW$9:AW152),$AV$9:$AW$162,2,0),"") -> Dive Forward Roll (with flight) | BD152: =IF(ISNUMBER(SEARCH($B$14,BE152)),MAX($BD$8:BD151)+1,0) -> 144 | BE152: Dive Forward Roll (with flight) | BH152: =IFERROR(VLOOKUP(ROWS($BE$9:BE152),$BD$9:$BE$162,2,0),"") -> Dive Forward Roll (with flight) | BL152: =IF(ISNUMBER(SEARCH($B$15,BM152)),MAX($BL$8:BL151)+1,0) -> 144 | BM152: Dive Forward Roll (with flight) | BP152: =IFERROR(VLOOKUP(ROWS($BM$9:BM152),$BL$9:$BM$162,2,0),"") -> Dive Forward Roll (with flight) | BT152: =IF(ISNUMBER(SEARCH($B$16,BU152)),MAX($BT$8:BT151)+1,0) -> 144 | BU152: Dive Forward Roll (with flight) | BX152: =IFERROR(VLOOKUP(ROWS($BU$9:BU152),$BT$9:$BU$162,2,0),"") -> Dive Forward Roll (with flight) | CB152: =IF(ISNUMBER(SEARCH($B$17,CC152)),MAX($CB$8:CB151)+1,0) -> 144 | CC152: Dive Forward Roll (with flight) | CF152: =IFERROR(VLOOKUP(ROWS($CC$9:CC152),$CB$9:$CC$162,2,0),"") -> Dive Forward Roll (with flight) | CJ152: =IF(ISNUMBER(SEARCH($B$18,CK152)),MAX($CJ$8:CJ151)+1,0) -> 144 | CK152: Dive Forward Roll (with flight) | CN152: =IFERROR(VLOOKUP(ROWS($CK$9:CK152),$CJ$9:$CK$162,2,0),"") -> Dive Forward Roll (with flight)
P153: =IF(ISNUMBER(SEARCH($B$9,Q153)),MAX($P$8:P152)+1,0) -> 145 | Q153: Pike Front Salto | T153: =IFERROR(VLOOKUP(ROWS($Q$9:Q153),$P$9:$Q$162,2,0),"") -> Pike Front Salto | X153: =IF(ISNUMBER(SEARCH($B$10,Y153)),MAX($X$8:X152)+1,0) -> 145 | Y153: Pike Front Salto | AB153: =IFERROR(VLOOKUP(ROWS($Y$9:Y153),$X$9:$Y$162,2,0),"") -> Pike Front Salto | AF153: =IF(ISNUMBER(SEARCH($B$11,AG153)),MAX($AF$8:AF152)+1,0) -> 145 | AG153: Pike Front Salto | AJ153: =IFERROR(VLOOKUP(ROWS($AG$9:AG153),$AF$9:$AG$162,2,0),"") -> Pike Front Salto | AN153: =IF(ISNUMBER(SEARCH($B$12,AO153)),MAX($AN$8:AN152)+1,0) -> 145 | AO153: Pike Front Salto | AR153: =IFERROR(VLOOKUP(ROWS($AO$9:AO153),$AN$9:$AO$162,2,0),"") -> Pike Front Salto | AV153: =IF(ISNUMBER(SEARCH($B$13,AW153)),MAX($AV$8:AV152)+1,0) -> 145 | AW153: Pike Front Salto | AZ153: =IFERROR(VLOOKUP(ROWS($AW$9:AW153),$AV$9:$AW$162,2,0),"") -> Pike Front Salto | BD153: =IF(ISNUMBER(SEARCH($B$14,BE153)),MAX($BD$8:BD152)+1,0) -> 145 | BE153: Pike Front Salto | BH153: =IFERROR(VLOOKUP(ROWS($BE$9:BE153),$BD$9:$BE$162,2,0),"") -> Pike Front Salto | BL153: =IF(ISNUMBER(SEARCH($B$15,BM153)),MAX($BL$8:BL152)+1,0) -> 145 | BM153: Pike Front Salto | BP153: =IFERROR(VLOOKUP(ROWS($BM$9:BM153),$BL$9:$BM$162,2,0),"") -> Pike Front Salto | BT153: =IF(ISNUMBER(SEARCH($B$16,BU153)),MAX($BT$8:BT152)+1,0) -> 145 | BU153: Pike Front Salto | BX153: =IFERROR(VLOOKUP(ROWS($BU$9:BU153),$BT$9:$BU$162,2,0),"") -> Pike Front Salto | CB153: =IF(ISNUMBER(SEARCH($B$17,CC153)),MAX($CB$8:CB152)+1,0) -> 145 | CC153: Pike Front Salto | CF153: =IFERROR(VLOOKUP(ROWS($CC$9:CC153),$CB$9:$CC$162,2,0),"") -> Pike Front Salto | CJ153: =IF(ISNUMBER(SEARCH($B$18,CK153)),MAX($CJ$8:CJ152)+1,0) -> 145 | CK153: Pike Front Salto | CN153: =IFERROR(VLOOKUP(ROWS($CK$9:CK153),$CJ$9:$CK$162,2,0),"") -> Pike Front Salto
P154: =IF(ISNUMBER(SEARCH($B$9,Q154)),MAX($P$8:P153)+1,0) -> 146 | Q154: Straight Front Salto | T154: =IFERROR(VLOOKUP(ROWS($Q$9:Q154),$P$9:$Q$162,2,0),"") -> Straight Front Salto | X154: =IF(ISNUMBER(SEARCH($B$10,Y154)),MAX($X$8:X153)+1,0) -> 146 | Y154: Straight Front Salto | AB154: =IFERROR(VLOOKUP(ROWS($Y$9:Y154),$X$9:$Y$162,2,0),"") -> Straight Front Salto | AF154: =IF(ISNUMBER(SEARCH($B$11,AG154)),MAX($AF$8:AF153)+1,0) -> 146 | AG154: Straight Front Salto | AJ154: =IFERROR(VLOOKUP(ROWS($AG$9:AG154),$AF$9:$AG$162,2,0),"") -> Straight Front Salto | AN154: =IF(ISNUMBER(SEARCH($B$12,AO154)),MAX($AN$8:AN153)+1,0) -> 146 | AO154: Straight Front Salto | AR154: =IFERROR(VLOOKUP(ROWS($AO$9:AO154),$AN$9:$AO$162,2,0),"") -> Straight Front Salto | AV154: =IF(ISNUMBER(SEARCH($B$13,AW154)),MAX($AV$8:AV153)+1,0) -> 146 | AW154: Straight Front Salto | AZ154: =IFERROR(VLOOKUP(ROWS($AW$9:AW154),$AV$9:$AW$162,2,0),"") -> Straight Front Salto | BD154: =IF(ISNUMBER(SEARCH($B$14,BE154)),MAX($BD$8:BD153)+1,0) -> 146 | BE154: Straight Front Salto | BH154: =IFERROR(VLOOKUP(ROWS($BE$9:BE154),$BD$9:$BE$162,2,0),"") -> Straight Front Salto | BL154: =IF(ISNUMBER(SEARCH($B$15,BM154)),MAX($BL$8:BL153)+1,0) -> 146 | BM154: Straight Front Salto | BP154: =IFERROR(VLOOKUP(ROWS($BM$9:BM154),$BL$9:$BM$162,2,0),"") -> Straight Front Salto | BT154: =IF(ISNUMBER(SEARCH($B$16,BU154)),MAX($BT$8:BT153)+1,0) -> 146 | BU154: Straight Front Salto | BX154: =IFERROR(VLOOKUP(ROWS($BU$9:BU154),$BT$9:$BU$162,2,0),"") -> Straight Front Salto | CB154: =IF(ISNUMBER(SEARCH($B$17,CC154)),MAX($CB$8:CB153)+1,0) -> 146 | CC154: Straight Front Salto | CF154: =IFERROR(VLOOKUP(ROWS($CC$9:CC154),$CB$9:$CC$162,2,0),"") -> Straight Front Salto | CJ154: =IF(ISNUMBER(SEARCH($B$18,CK154)),MAX($CJ$8:CJ153)+1,0) -> 146 | CK154: Straight Front Salto | CN154: =IFERROR(VLOOKUP(ROWS($CK$9:CK154),$CJ$9:$CK$162,2,0),"") -> Straight Front Salto
P155: =IF(ISNUMBER(SEARCH($B$9,Q155)),MAX($P$8:P154)+1,0) -> 147 | Q155: F Salto step out, R/O, Flic, B Salto | T155: =IFERROR(VLOOKUP(ROWS($Q$9:Q155),$P$9:$Q$162,2,0),"") -> F Salto step out, R/O, Flic, B Salto | X155: =IF(ISNUMBER(SEARCH($B$10,Y155)),MAX($X$8:X154)+1,0) -> 147 | Y155: F Salto step out, R/O, Flic, B Salto | AB155: =IFERROR(VLOOKUP(ROWS($Y$9:Y155),$X$9:$Y$162,2,0),"") -> F Salto step out, R/O, Flic, B Salto | AF155: =IF(ISNUMBER(SEARCH($B$11,AG155)),MAX($AF$8:AF154)+1,0) -> 147 | AG155: F Salto step out, R/O, Flic, B Salto | AJ155: =IFERROR(VLOOKUP(ROWS($AG$9:AG155),$AF$9:$AG$162,2,0),"") -> F Salto step out, R/O, Flic, B Salto | AN155: =IF(ISNUMBER(SEARCH($B$12,AO155)),MAX($AN$8:AN154)+1,0) -> 147 | AO155: F Salto step out, R/O, Flic, B Salto | AR155: =IFERROR(VLOOKUP(ROWS($AO$9:AO155),$AN$9:$AO$162,2,0),"") -> F Salto step out, R/O, Flic, B Salto | AV155: =IF(ISNUMBER(SEARCH($B$13,AW155)),MAX($AV$8:AV154)+1,0) -> 147 | AW155: F Salto step out, R/O, Flic, B Salto | AZ155: =IFERROR(VLOOKUP(ROWS($AW$9:AW155),$AV$9:$AW$162,2,0),"") -> F Salto step out, R/O, Flic, B Salto | BD155: =IF(ISNUMBER(SEARCH($B$14,BE155)),MAX($BD$8:BD154)+1,0) -> 147 | BE155: F Salto step out, R/O, Flic, B Salto | BH155: =IFERROR(VLOOKUP(ROWS($BE$9:BE155),$BD$9:$BE$162,2,0),"") -> F Salto step out, R/O, Flic, B Salto | BL155: =IF(ISNUMBER(SEARCH($B$15,BM155)),MAX($BL$8:BL154)+1,0) -> 147 | BM155: F Salto step out, R/O, Flic, B Salto | BP155: =IFERROR(VLOOKUP(ROWS($BM$9:BM155),$BL$9:$BM$162,2,0),"") -> F Salto step out, R/O, Flic, B Salto | BT155: =IF(ISNUMBER(SEARCH($B$16,BU155)),MAX($BT$8:BT154)+1,0) -> 147 | BU155: F Salto step out, R/O, Flic, B Salto | BX155: =IFERROR(VLOOKUP(ROWS($BU$9:BU155),$BT$9:$BU$162,2,0),"") -> F Salto step out, R/O, Flic, B Salto | CB155: =IF(ISNUMBER(SEARCH($B$17,CC155)),MAX($CB$8:CB154)+1,0) -> 147 | CC155: F Salto step out, R/O, Flic, B Salto | CF155: =IFERROR(VLOOKUP(ROWS($CC$9:CC155),$CB$9:$CC$162,2,0),"") -> F Salto step out, R/O, Flic, B Salto | CJ155: =IF(ISNUMBER(SEARCH($B$18,CK155)),MAX($CJ$8:CJ154)+1,0) -> 147 | CK155: F Salto step out, R/O, Flic, B Salto | CN155: =IFERROR(VLOOKUP(ROWS($CK$9:CK155),$CJ$9:$CK$162,2,0),"") -> F Salto step out, R/O, Flic, B Salto
